Workbook

Sheet MENU
H2: 熱計算Excelシート メニュー | N2: 作成：国峰尚樹
N3: 2023年11月21日 修正
D5: 第4章 | J5: 第１０章
J10: 第１１章
D16: 第６章
J18: 第１２章
D24: 第７章
D29: 第８章

Sheet 筐体温度計算(4.1.3)
A1: 自然空冷筐体温度計算 (4.1.3項で解説） 伝熱基礎式の組み合わせによる計算
A2: 筐体幅(m) | B2: 0.08
A3: 筐体奥行(m) | B3: 0.1 | C3: 上面代表長 | D3: =MIN(B2,B3) -> 0.08
A4: 筐体高さ(m) | B4: 0.15 | C4: Stop | D4: =B2*B3+F4 -> 0.008
A5: 表面放射率 | B5: 0.85 | C5: Sside | D5: =(B2+B3)*2*B4 -> 0.054
A6: 発熱量 (W) | B6: 20 | C6: Sbot | D6: =B2*B3 -> 0.008
A7: 通風口面積 (m2) | B7: 0.0032 | C7: σ | D7: 5.67e-08
A8: 周囲空気温度℃ | B8: 35 | C8: 煙突長 | D8: =B4/2 -> 0.075
A10: 表面温度上昇ΔＴ（仮定値） | B10: 9.369396745 | C10: 内部空気温度上昇 | E10: =B10*2 -> 18.73879349
A11: 周囲温度（K） | B11: =B8+273.15 -> 308.15 | C11: 内部空気温度 | E11: =E10+B8 -> 53.73879349
A12: 表面温度（K) | B12: =B8+B10+273.15 -> 317.5193967 | C12: 表面温度 | E12: =B10+B8 -> 44.36939675
B14: 熱伝達率 | C14: 熱ｺﾝﾀﾞｸﾀﾝｽ | D14: 放熱量
A15: 上面の対流熱伝達率 | B15: =2.51*0.54*(B10/D3)^0.25 -> 4.458850302 | C15: =B15*D4 -> 0.03567080242 | D15: =C15*$B$10 -> 0.3342139001
A16: 側面の対流熱伝達率 | B16: =2.51*0.56*(B10/B4)^0.25 -> 3.951544173 | C16: =B16*D5 -> 0.2133833853 | D16: =C16*$B$10 -> 1.999273596
A17: 底面の対流熱伝達率 | B17: =2.51*0.27*(B10/D3)^0.25 -> 2.229425151 | C17: =B17*D6 -> 0.01783540121 | D17: =C17*$B$10 -> 0.16710695
A18: 全面の放射熱伝達率 | B18: =D7*B5*(B12^2+B11^2)*(B12+B11) -> 5.903425781 | C18: =B18*(D4+D5+D6) -> 0.4132398047 | D18: =C18*$B$10 -> 3.871807681
A19: 換気による放熱量 | D19: =1150*B7*0.1667*(D8*E10)^0.5*E10 -> 13.62782311
A20: 合計放熱量 | D20: =SUM(D15:D19) -> 20.00022524
A22: ＥＲＲ | B22: =B6-D20 -> -0.0002252402689

Sheet 筐体温度計算実験式（4.1.1)
A1: 自然空冷筐体温度計算 (4.1.3項で解説）筐体温度上昇計算式（実験式）
A2: 筐体縦(m) | B2: 0.08
A3: 筐体横(m) | B3: 0.1
A4: 筐体高さ(m) | B4: 0.15 | C4: Stop | D4: =B2*B3 -> 0.008 | E4: 筐体上面面積
A5: 表面放射率 | B5: 0.85 | C5: Sside | D5: =(B2+B3)*2*B4 -> 0.054 | E5: 筐体側面面積
A6: 発熱量 (W) | B6: 19 | C6: Sbot | D6: =B2*B3 -> 0.008 | E6: 筐体底面面積
A7: 通風口面積 (m2) | B7: 0.0032 | C7: σ | D7: 5.67e-08 | E7: ステファンボルツマン定数
A8: 周囲空気温度℃ | B8: 35 | C8: 煙突高さ | D8: =B4/2 -> 0.075 | E8: 筐体高さの1/2としている
A10: ΔＴ（仮定値） | B10: 18.08947678
A12: Ｗ | B12: =(2.8*D4+2.2*D5+1.5*D6)*(B10/2)^1.25+4*D7*B5*((D4+D5+D6)*(B8+B10/4+273)^3)*(B10/2)+1150*B7*0.166*(D8*B10)^0.5*B10 -> 19.00001972
A13: ＥＲＲ | B13: =B6-B12 -> -1.971648056e-05

Sheet 熱回路網法_筐体熱回路モデル (4.1.4)
A1: 熱回路網法 筐体熱回路モデル（4.1.4項）で解説
A3: 節点数 | B3: 要素数 | C3: 発熱節点数 | D3: 温度固定節点数 | E3: 計算反復回数
A4: 8 | B4: 25 | C4: 1 | D4: 1 | E4: 5
A6: 節点１ | B6: 節点２ | C6: 熱ｺﾝﾀﾞｸﾀﾝｽ | D6: 発熱点番号 | E6: 発熱量 | F6: 固定点番号 | G6: 固定温度
A7: 1 | B7: 8 | C7: =G17*G18*(0.54*2.51*(ABS(B34-$B$41)/MIN(G17,G18))^0.25+G22*0.0000000567*((B34+273.15)^2+($B$41+273.15)^2)*((B34+273.15)+($B$41+273.15))) -> 0.08310370288 | D7: 7 | E7: =G25 -> 20 | F7: 8 | G7: =G26 -> 35
A8: 2 | B8: 8 | C8: =G17*G19*(0.56*2.51*(ABS(B35-$B$41)/G19)^0.25+G22*0.0000000567*((B35+273.15)^2+($B$41+273.15)^2)*((B35+273.15)+($B$41+273.15))) -> 0.1185590838
A9: 3 | B9: 8 | C9: =G18*G19*(0.56*2.51*(ABS(B36-$B$41)/G19)^0.25+G22*0.0000000567*((B36+273.15)^2+($B$41+273.15)^2)*((B36+273.15)+($B$41+273.15))) -> 0.1481988624
A10: 4 | B10: 8 | C10: =G17*G19*(0.56*2.51*(ABS(B37-$B$41)/G19)^0.25+G22*0.0000000567*((B37+273.15)^2+($B$41+273.15)^2)*((B37+273.15)+($B$41+273.15))) -> 0.1185590838
A11: 5 | B11: 8 | C11: =G18*G19*(0.56*2.51*(ABS(B38-$B$41)/G19)^0.25+G22*0.0000000567*((B38+273.15)^2+($B$41+273.15)^2)*((B38+273.15)+($B$41+273.15))) -> 0.1481988548
A12: 6 | B12: 8 | C12: =G17*G18*(0.27*2.51*(ABS(B39-B41)/MIN(G17,G18))^0.25+G22*0.0000000567*((B39+273.15)^2+(B41+273.15)^2)*((B39+273.15)+(B41+273.15))) -> 0.06523148392
A13: 1 | B13: 2 | C13: =G17* G20* G21/( G18/2+ G19/2) -> 0.000576
A14: 1 | B14: 3 | C14: =G18*G20*G21/(G17/2+G19/2) -> 0.0007826086957
A15: 1 | B15: 4 | C15: =C13 -> 0.000576
A16: 1 | B16: 5 | C16: =C14 -> 0.0007826086957 | F16: 入力
A17: 2 | B17: 3 | C17: =G19*G20*G21/(G17/2+G18/2) -> 0.0015 | F17: 筐体幅(m) | G17: 0.08
A18: 3 | B18: 4 | C18: =C17 -> 0.0015 | F18: 筐体奥行(m) | G18: 0.1
A19: 4 | B19: 5 | C19: =C18 -> 0.0015 | F19: 筐体高さ(m) | G19: 0.15
A20: 5 | B20: 2 | C20: =C19 -> 0.0015 | F20: 筐体厚み(m) | G20: 0.003
A21: 2 | B21: 6 | C21: =C13 -> 0.000576 | F21: 筺体熱伝導率(W/mK) | G21: 0.3
A22: 3 | B22: 6 | C22: =C14 -> 0.0007826086957 | F22: 外表面放射率 | G22: 0.85
A23: 4 | B23: 6 | C23: =C15 -> 0.000576 | F23: 内表面放射率 | G23: 0.85
A24: 5 | B24: 6 | C24: =C16 -> 0.0007826086957 | F24: 通風口面積(m2) | G24: 0.0032
A25: 1 | B25: 7 | C25: =G17*G18*(0.54*2.51*(ABS(B34-$B$40)/MIN(G17,G18))^0.25+G23*0.0000000567*((B34+273.15)^2+($B$40+273.15)^2)*((B34+273.15)+($B$40+273.15))) -> 0.08704347136 | F25: 発熱量(W) | G25: 20
A26: 2 | B26: 7 | C26: =G17*G19*(0.56*2.51*(ABS(B35-$B$40)/G19)^0.25+G23*0.0000000567*((B35+273.15)^2+($B$40+273.15)^2)*((B35+273.15)+($B$40+273.15))) -> 0.1245083373 | F26: 周囲温度(℃) | G26: 35
A27: 3 | B27: 7 | C27: =G18*G19*(0.56*2.51*(ABS(B36-$B$40)/G19)^0.25+G23*0.0000000567*((B36+273.15)^2+($B$40+273.15)^2)*((B36+273.15)+($B$40+273.15))) -> 0.1556354171
A28: 4 | B28: 7 | C28: =C26 -> 0.1245083373
A29: 5 | B29: 7 | C29: =C27 -> 0.1556354171
A30: 6 | B30: 7 | C30: =G17*G18*(0.27*2.51*(ABS(B39-$B$40)/MIN(G17,G18))^0.25+G23*0.0000000567*((B39+273.15)^2+($B$40+273.15)^2)*((B39+273.15)+($B$40+273.15))) -> 0.06931540429
A31: 8 | B31: 7 | C31: =1150*G24*0.166*(G19/2*(B40-B41))^0.5 -> 0.7226059886
A33: 節点番号 | B33: 温度 | C33: 温度上昇
A34: 1 | B34: 44.54444122 | C34: =B34-B41 -> 9.544441223 | D34: 上面
A35: 2 | B35: 44.55666351 | C35: =B35-B41 -> 9.556663513 | D35: 前面
A36: 3 | B36: 44.55666733 | C36: =B36-B41 -> 9.556667328 | D36: 左面
A37: 4 | B37: 44.55666351 | C37: =B37-B41 -> 9.556663513 | D37: 後面
A38: 5 | B38: 44.55666351 | C38: =B38-B41 -> 9.556663513 | D38: 右面
A39: 6 | B39: 44.61030579 | C39: =B39-B41 -> 9.610305786 | D39: 底面 | E39: 風速
A40: 7 | B40: 53.65649414 | C40: =B40-B41 -> 18.65649414 | D40: 内部空気 | E40: =0.166*(G19/2*(B40-B41))^0.5 -> 0.196360323 | F40: m/s
A41: 8 | B41: 35 | C41: =B41-B41 -> 0 | D41: 外気

Sheet 日射の計算（6.4.1)
A1: 屋外設置筐体の日射受熱量(6.4.1項)
D3: 太陽定数 | E3: 1353 | F3: (W/m2)
A4: ■機器設置地域と時間/天気 | D4: 度/ﾗｼﾞｱﾝ | E4: =3.14159/180 -> 0.01745327778
A5: 土地の緯度（度） | B5: 38
A6: 春分の日からの経過日数(日) | B6: 100 | C6: 太陽赤緯° | D6: =25*SIN(3.14159*2*(B6/365)) -> 24.71694521 | E6: (春分/秋分日０、±２５度）
A7: 時刻 (時:24H表示） | B7: 14 | C7: 時角（°） | D7: =(B7-12)*15 -> 30 | E7: (正午が０、１時間１５度）
A8: 日射量透過率Ｐ | B8: 0.78 | C8: （晴れ0.78,もや晴れ0.66,うす晴れ0.53)
A10: ■機器設置方向 | B10: 南 | C10: 東 | D10: 北 | E10: 西 | F10: 上 | G10: 底面
A11: 南壁面の方位角（度） | B11: 0 | C11: =B11+90 -> 90 | D11: =B11-180 -> -180 | E11: =B11-90 -> -90 | F11: =B11 -> 0 | G11: =B11 -> 0
A12: ■筐体寸法 | B12: 幅(m) | C12: 高さ (m) | D12: 奥行き (m)
A13: 横、高さ、奥行き | B13: 0.22 | C13: 0.1 | D13: 0.2
A14: 各面 | B14: 南面 | C14: 西面 | D14: 北面 | E14: 東面 | F14: 上面 | G14: 底面
A15: 各外壁面の太陽吸収率 | B15: 0.75 | C15: =B15 -> 0.75 | D15: =B15 -> 0.75 | E15: =B15 -> 0.75 | F15: =B15 -> 0.75 | G15: =B15 -> 0.75
A16: 日除け有無（有:1,無:0） | B16: 0 | C16: 0 | D16: 0 | E16: 0 | F16: 0 | G16: 0
A17: ■計算結果
B18: 南面 | C18: 西面 | D18: 北面 | E18: 東面 | F18: 上面 | G18: 底面 | H18: 合計(W)
A19: 各面の日射受熱量（Ｗ） | B19: =I25 -> 3.500098841 | C19: =I26 -> 7.758973987 | D19: =I27 -> 0.8959737813 | E19: =I28 -> 0.8145216193 | F19: =I29 -> 33.09542863 | G19: =I30 -> 0 | H19: =SUM(B19:G19) -> 46.06499686
A22: 太陽高度H(度） | B22: =(ASIN(C22))/E4 -> 61.32387317 | C22: =SIN(D6*E4)*SIN(B5*E4)+COS(D6*E4)*COS(B5*E4)*COS(D7*E4) -> 0.8773457463 | D22: （SIN(H)) | E22: 法線面直達日射量 | G22: 水平天空輻射量
A23: 太陽方位角A(度） | B23: =(ASIN(C23))/E4 -> 71.17564173 | C23: =COS(D6*E4)*SIN(D7*E4)*(1/COS(B22*E4)) -> 0.9465118306 | E23: =E3*B8^(1/SIN(B22*E4)) -> 1019.311825 | G23: =IF(B22>0,1/2*$E$3*$C$22*((1-$B$8^(1/$C$22))/(1-1.4*LN($B$8))),0) -> 108.6028826
B24: (度） | C24: COS(θ) | D24: 直達日射量 | E24: 天空幅射量 | F24: 全日射量 | G24: 面面積 | H24: 全日射受熱 | I24: 吸収熱
A25: 各面の入射角 南 | B25: =IF((ASIN(C25))/E4>0,(ASIN(C25))/E4,0) -> 8.907269422 | C25: =IF(B22>0,COS(B22*E4)*COS(B23*E4-B11*E4),0) -> 0.1548356031 | D25: =MAX($E$23*C25,0) -> 157.8257612 | E25: =$G$23/2 -> 54.30144129 | F25: =IF(B16=1,E25,D25+E25) -> 212.1272025 | G25: =B13*C13 -> 0.022 | H25: =F25*G25 -> 4.666798454 | I25: =H25*B15 -> 3.500098841
A26: (θ) 西 | B26: =IF((ASIN(C26))/E4>0,(ASIN(C26))/E4,0) -> 27.01299449 | C26: =IF(B22>0,COS(B22*E4)*COS(B23*E4-C11*E4),0) -> 0.4541922106 | D26: =MAX($E$23*C26,0) -> 462.9634912 | E26: =$G$23/2 -> 54.30144129 | F26: =IF(C16=1,E26,D26+E26) -> 517.2649325 | G26: =D13*C13 -> 0.02 | H26: 10.34529865 | I26: =H26*C15 -> 7.758973987
A27: 北 | B27: =IF((ASIN(C27))/E4>0,(ASIN(C27))/E4,0) -> 0 | C27: =IF(B22>0,COS($B$22*$E$4)*COS($B$23*$E$4-D11*$E$4),0) -> -0.1548368083 | D27: =MAX($E$23*C27,0) -> 0 | E27: =$G$23/2 -> 54.30144129 | F27: =IF(D16=1,E27,D27+E27) -> 54.30144129 | G27: =B13*C13 -> 0.022 | H27: 1.194631708 | I27: =H27*D15 -> 0.8959737813
A28: 東 | B28: =IF((ASIN(C28))/E4>0,(ASIN(C28))/E4,0) -> 0 | C28: =IF(B22>0,COS($B$22*$E$4)*COS($B$23*$E$4-E11*$E$4),0) -> -0.4541917997 | D28: =MAX($E$23*C28,0) -> 0 | E28: =$G$23/2 -> 54.30144129 | F28: =IF(E16=1,E28,D28+E28) -> 54.30144129 | G28: =D13*C13 -> 0.02 | H28: 1.086028826 | I28: =H28*E15 -> 0.8145216193
A29: 上 | B29: =IF((ASIN(C29))/E4>0,(ASIN(C29))/E4,0) -> 8.907269422 | C29: =IF(B22>0,COS($B$22*$E$4)*COS($B$23*$E$4-F11*$E$4),0) -> 0.1548356031 | D29: =IF(B22>0,E23*SIN(B22*E4),0) -> 894.288894 | E29: =IF(B22>0,1/2*$E$3*$C$22*((1-$B$8^(1/$C$22))/(1-1.4*LN($B$8))),0) -> 108.6028826 | F29: =IF(F16=1,E29,D29+E29) -> 1002.891777 | G29: =B13*D13 -> 0.044 | H29: 44.12723817 | I29: =H29*F15 -> 33.09542863
A30: 底 | B30: =IF((ASIN(C30))/E4>0,(ASIN(C30))/E4,0) -> 8.907269422 | C30: =IF(B22>0,COS($B$22*$E$4)*COS($B$23*$E$4-G11*$E$4),0) -> 0.1548356031 | D30: 0 | E30: 0 | F30: =IF(G16=1,E30,D30+E30) -> 0 | G30: =B13*D13 -> 0.044 | H30: 0 | I30: =G15*H30 -> 0
E31: (W/m2) | F31: (W/m2) | G31: (m2) | H31: (W) | I31: (W)
B32: 合計値 | H32: =SUM(H25:H30) -> 61.41999581 | I32: =SUM(I25:I30) -> 46.06499686
A34: ◆筐体の熱計算に使用する熱伝達率
A35: 屋外設置機器に使用する熱伝達率基準値 | D35: 熱伝達率 使用値 | E35: 面の位置 | F35: 日射量 | G35: 面の面積 | H35: 筐体外面熱伝達率 | I35: 筐体内面熱伝達率 | J35: 太陽吸収率 | K35: 相当外気温度上昇 | L35: 熱通過率 | M35: 熱通過率×面積 | N35: 侵入熱量
B36: 条件 | C36: 熱伝達率 (W/m2℃) | F36: (W/m2) | G36: (m2) | H36: (W/m2K) | I36: (W/m2K) | K36: （Ｋ） | L36: (W/m2K) | M36: (W/℃) | N36: (W)
B37: 垂直面 | C37: ７～１０ | D37: =#REF! ->  | E37: 上面 | F37: =F29 -> 1002.891777 | G37: =G29 -> 0.044 | H37: =#REF! ->  | I37: =#REF! ->  | J37: =F15 -> 0.75 | K37: =F37*J37/H37 ->  | L37: =1/(1/H37+#REF!/#REF!+1/I37) ->  | M37: =L37*G37 ->  | N37: =L37*G37*K37 -> 
A38: 筐体内側熱伝達率 | B38: 水平面（熱流上向） | C38: ７～１０ | D38: =#REF! ->  | E38: 南面 | F38: =F25 -> 212.1272025 | G38: =G25 -> 0.022 | H38: =#REF! ->  | I38: =#REF! ->  | J38: =B15 -> 0.75 | L38: =1/(1/H38+#REF!/#REF!+1/I38) -> 
B39: 水平面（熱流下向） | C39: ５～７ | D39: =#REF! ->  | E39: 北面 | F39: =F27 -> 54.30144129 | G39: =G27 -> 0.022 | H39: =#REF! ->  | I39: =#REF! ->  | J39: =D15 -> 0.75 | L39: =1/(1/H39+#REF!/#REF!+1/I39) -> 
B40: 空気に接する面 | C40: １０～３０ | D40: =#REF! ->  | E40: 西面 | F40: =F26 -> 517.2649325 | G40: =G26 -> 0.02 | H40: =#REF! ->  | I40: =#REF! ->  | J40: =C15 -> 0.75 | L40: =1/(1/H40+#REF!/#REF!+1/I40) -> 
A41: 筐体外側熱伝達率 | B41: （風速0～6m/s） | E41: 東面 | F41: =F28 -> 54.30144129 | G41: =G28 -> 0.02 | H41: =#REF! ->  | I41: =#REF! ->  | J41: =E15 -> 0.75 | L41: =1/(1/H41+#REF!/#REF!+1/I41) -> 
B42: 水に接する面 | C42: ６０ | E42: 下面 | F42: =F30 -> 0 | G42: =G30 -> 0.044 | H42: =#REF! ->  | I42: =#REF! ->  | J42: =G15 -> 0.75 | L42: =1/(1/H42+#REF!/#REF!+1/I42) -> 
B43: 土に接する面 | C43: １．８ | E43: 合計 | G43: =SUM(G37:G42) -> 0.172 | L43: =SUM(L37:L42) ->  | M43: =SUM(M37:M42) ->  | N43: =SUM(N37:N42) -> 

Sheet 熱回路網法_筐体熱回路モデル 日射(6.4.2)
A1: 熱回路網法 筐体熱回路モデル（日射受熱）
A3: 節点数 | B3: 要素数 | C3: 発熱節点数 | D3: 温度固定節点数 | E3: 計算反復回数
A4: 8 | B4: 25 | C4: 6 | D4: 1 | E4: 5
A6: 節点１ | B6: 節点２ | C6: 熱ｺﾝﾀﾞｸﾀﾝｽ | D6: 発熱点番号 | E6: 発熱量 | F6: 固定点番号 | G6: 固定温度 | H6: 日射量W/m2
A7: 1 | B7: 8 | C7: =G17*G18*(0.54*2.51*(ABS(B34-$B$41)/MIN(G17,G18))^0.25+G22*0.0000000567*((B34+273.15)^2+($B$41+273.15)^2)*((B34+273.15)+($B$41+273.15))) -> 2.557473831 | D7: 7 | E7: =G25 -> 20 | F7: 8 | G7: =G26 -> 35
A8: 2 | B8: 8 | C8: =G17*G19*(0.56*2.51*(ABS(B35-$B$41)/G19)^0.25+G22*0.0000000567*((B35+273.15)^2+($B$41+273.15)^2)*((B35+273.15)+($B$41+273.15))) -> 1.80634727 | D8: 1 | E8: =H8*G17*G18*$G$27 -> 117.624 | H8: 980.2 | I8: 上
A9: 3 | B9: 8 | C9: =G18*G19*(0.56*2.51*(ABS(B36-$B$41)/G19)^0.25+G22*0.0000000567*((B36+273.15)^2+($B$41+273.15)^2)*((B36+273.15)+($B$41+273.15))) -> 1.1612023 | D9: 2 | E9: =G17*G19*H9*G27 -> 23.553 | H9: 261.7 | I9: 南
A10: 4 | B10: 8 | C10: =G17*G19*(0.56*2.51*(ABS(B37-$B$41)/G19)^0.25+G22*0.0000000567*((B37+273.15)^2+($B$41+273.15)^2)*((B37+273.15)+($B$41+273.15))) -> 1.742967278 | D10: 3 | E10: =H10*G18*G19*G27 -> 4.746 | H10: 79.1 | I10: 東
A11: 5 | B11: 8 | C11: =G18*G19*(0.56*2.51*(ABS(B38-$B$41)/G19)^0.25+G22*0.0000000567*((B38+273.15)^2+($B$41+273.15)^2)*((B38+273.15)+($B$41+273.15))) -> 1.254917256 | D11: 4 | E11: =H11*G17*G19*G27 -> 7.119 | H11: 79.1 | I11: 北
A12: 6 | B12: 8 | C12: =G17*G18*(0.27*2.51*(ABS(B39-B41)/MIN(G17,G18))^0.25+G22*0.0000000567*((B39+273.15)^2+(B41+273.15)^2)*((B39+273.15)+(B41+273.15))) -> 1.812924251 | D12: 5 | E12: =H12*G18*G19*G27 -> 31.398 | H12: 523.3 | I12: 西
A13: 1 | B13: 2 | C13: =G17* G20* G21/( G18/2+ G19/2) -> 0.1714285714
A14: 1 | B14: 3 | C14: =G18*G20*G21/(G17/2+G19/2) -> 0.08888888889
A15: 1 | B15: 4 | C15: =C13 -> 0.1714285714
A16: 1 | B16: 5 | C16: =C14 -> 0.08888888889 | F16: 入力
A17: 2 | B17: 3 | C17: =G19*G20*G21/(G17/2+G18/2) -> 0.06 | F17: 筐体幅(m) | G17: 0.6
A18: 3 | B18: 4 | C18: =C17 -> 0.06 | F18: 筐体奥行(m) | G18: 0.4
A19: 4 | B19: 5 | C19: =C18 -> 0.06 | F19: 筐体高さ(m) | G19: 0.3
A20: 5 | B20: 2 | C20: =C19 -> 0.06 | F20: 筐体厚み(m) | G20: 0.002
A21: 2 | B21: 6 | C21: =C13 -> 0.1714285714 | F21: 筺体熱伝導率(W/mK) | G21: 50
A22: 3 | B22: 6 | C22: =C14 -> 0.08888888889 | F22: 外表面放射率 | G22: 0.85
A23: 4 | B23: 6 | C23: =C15 -> 0.1714285714 | F23: 内表面放射率 | G23: 0.85
A24: 5 | B24: 6 | C24: =C16 -> 0.08888888889 | F24: 通風口面積(m2) | G24: 0
A25: 1 | B25: 7 | C25: =G17*G18*(0.54*2.51*(ABS(B34-$B$40)/MIN(G17,G18))^0.25+G23*0.0000000567*((B34+273.15)^2+($B$40+273.15)^2)*((B34+273.15)+($B$40+273.15))) -> 2.482332734 | F25: 発熱量(W) | G25: 20
A26: 2 | B26: 7 | C26: =G17*G19*(0.56*2.51*(ABS(B35-$B$40)/G19)^0.25+G23*0.0000000567*((B35+273.15)^2+($B$40+273.15)^2)*((B35+273.15)+($B$40+273.15))) -> 1.702862487 | F26: 周囲温度(℃) | G26: 35
A27: 3 | B27: 7 | C27: =G18*G19*(0.56*2.51*(ABS(B36-$B$40)/G19)^0.25+G23*0.0000000567*((B36+273.15)^2+($B$40+273.15)^2)*((B36+273.15)+($B$40+273.15))) -> 1.181987979 | F27: 太陽吸収率 | G27: 0.5
A28: 4 | B28: 7 | C28: =C26 -> 1.702862487
A29: 5 | B29: 7 | C29: =C27 -> 1.181987979
A30: 6 | B30: 7 | C30: =G17*G18*(0.27*2.51*(ABS(B39-$B$40)/MIN(G17,G18))^0.25+G23*0.0000000567*((B39+273.15)^2+($B$40+273.15)^2)*((B39+273.15)+($B$40+273.15))) -> 1.947482858
A31: 8 | B31: 7 | C31: =1150*G24*0.166*(G19/2*(B40-B41))^0.5 -> 0
A33: 節点番号 | B33: 温度 | C33: 温度上昇
A34: 1 | B34: 67.32653809 | C34: =B34-B41 -> 32.32653809 | D34: 上面
A35: 2 | B35: 52.62755585 | C35: =B35-B41 -> 17.62755585 | D35: 前面
A36: 3 | B36: 48.64147186 | C36: =B36-B41 -> 13.64147186 | D36: 左面
A37: 4 | B37: 48.70890808 | C37: =B37-B41 -> 13.70890808 | D37: 後面
A38: 5 | B38: 57.91989899 | C38: =B38-B41 -> 22.91989899 | D38: 右面
A39: 6 | B39: 46.8190155 | C39: =B39-B41 -> 11.8190155 | D39: 底面 | E39: 風速
A40: 7 | B40: 56.55389404 | C40: =B40-B41 -> 21.55389404 | D40: 内部空気 | E40: =0.166*(G19/2*(B40-B41))^0.5 -> 0.2984809301 | F40: m/s
A41: 8 | B41: 35 | C41: =B41-B41 -> 0 | D41: 外気

Sheet モータ計算シート（7.4.2)
A1: モータ強制空冷（ファン吹付）計算(7.4.2項）
A3: ■モータ仕様入力
A4: 直径 | B4: 60 | C4: mm | D4: 全表面積 | E4: =(B4*PI()*B5+B4^2*PI()/4*2+B6)/1000000 -> 0.02562969712 | F4: m2
A5: 長さ | B5: 94.5 | C5: mm
A6: フランジ表面積 | B6: 2162 | C6: mm2
A7: 発熱量 | B7: 13.1 | C7: W
A8: 放射率 | B8: 0.9
A10: ■ファン仕様入力
A11: 外形寸法 | B11: 80 | C11: mm | D11: 見かけ流路面積 | E11: =B11*B11 -> 6400 | F11: mm2
A12: ブレード穴直径 | B12: 72.5 | C12: mm | D12: 最小流路面積 | E12: =(B12^2-B13^2)*PI()/4 -> 3280.192182 | F12: mm2
A13: モータ部直径 | B13: 32.86 | C13: mm
A14: 最大風量 | B14: 1.1 | C14: m3/min
A16: 室温 | B16: 25
A18: 風速計算結果
A19: 最大風速 | B19: =B14/60/E12*1000000 -> 5.589103418 | C19: m/s
A20: 見かけ風速 | B20: =B14/60/E11*1000000 -> 2.864583333 | C20: m/s
A22: 温度上昇（最大風速） | B22: =B7/E4/(B32+D32) -> 12.44342035 | C22: ℃
A23: 温度上昇（見かけ風速） | B23: =B7/E4/(B33+D32) -> 14.65730893 | C23: ℃
A25: 熱伝達率計算結果 | F25: ヒルパートの式(Nu計算に使用）
A26: モータ長さL | B26: =B5/1000 -> 0.0945 | C26: m | F26: Re | G26: C | H26: n
A27: 代表長 d | B27: =B4/1000 -> 0.06 | C27: m | F27: 1 | G27: 0.891 | H27: 0.33
A28: Re 最大 | B28: =B19*B27/0.000017 -> 19726.24736 | F28: 4 | G28: 0.821 | H28: 0.385
A29: Re 見かけ | B29: =B20*B27/0.000017 -> 10110.29412 | F29: 40 | G29: 0.615 | H29: 0.466
A30: Nu 最大 | B30: =LOOKUP(B28,F27:F31,G27:G31)*(B28)^LOOKUP(B28,F27:F31,H27:H31) -> 78.50308675 | F30: 4000 | G30: 0.174 | H30: 0.618
A31: Nu 見かけ | B31: =LOOKUP(B29,F27:F31,G27:G31)*(B29)^LOOKUP(B29,F27:F31,H27:H31) -> 51.93896252 | D31: 放射熱伝達率 | F31: 40000 | G31: 0.024 | H31: 0.805
A32: 対流熱伝達率最大 | B32: =B30*0.027/B27 -> 35.32638904 | C32: W/m2K | D32: =0.0000000567*B8*((B22+B16+273)^2+(B16+273)^2)*((B22+B16+273)+(B16+273)) -> 5.749601919
A33: 対流熱伝達率見かけ | B33: =B31*0.027/B27+D32 -> 29.12213505 | C33: W/m2K | D33: =0.0000000567*B8*((B23+B16+273)^2+(B16+273)^2)*((B23+B16+273)+(B16+273)) -> 5.813509482
A35: 参考（自然対流時） | B35: =2.51*0.52*(B37/(B4/1000))^0.25+0.0000000567*B8*((T13+B16+273)^2+(B16+273)^2)*((T13+B16+273)+(B16+273)) -> 12.12189271 | C35: W/m2K
A36: 温度上昇(自然対流時） | B36: =B7/E4/(B35) -> 42.16551277 | C36: ℃
A37: 温度上昇（仮定） | B37: =B36 -> 42.16551277

Sheet サーマルビア(8.5.2)
A1: サーマルビア熱回路モデル(8.5.2）
A3: 節点数 | B3: 要素数 | C3: 発熱節点数 | D3: 温度固定節点数 | E3: 計算反復回数
A4: 7 | B4: 7 | C4: 1 | D4: 2 | E4: 10
A6: 節点１ | B6: 節点２ | C6: 熱ｺﾝﾀﾞｸﾀﾝｽ | D6: 発熱点番号 | E6: 発熱量 | F6: 固定点番号 | G6: 固定温度
A7: 1 | B7: 2 | C7: =0.01*0.017*60/0.0002 -> 51 | D7: 1 | E7: 2 | F7: 6 | G7: 25
A8: 1 | B8: 7 | C8: =0.000332*(2.51* 0.56*(ABS(B16-B22)/ 0.01)^0.25+ 0.92*0.0000000567*((B16+273.15)^2+(B22+273.15)^2)*((B16+273.15)+(B22+273.15))) -> 0.006138661581 | D8: 部品表面放熱 | F8: 7 | G8: 45
A9: 2 | B9: 3 | C9: =0.01*0.000035*380/G13 -> 0.0665 | D9: 配線熱伝導
A10: 2 | B10: 4 | C10: =0.01*0.017*0.4/0.0016 -> 0.0425 | D10: 基板熱伝導
A11: 3 | B11: 4 | C11: =(0.0003*PI()*0.00002*G12*380)/0.0016 -> 0.08953539063 | D11: サーマルビア
A12: 4 | B12: 5 | C12: =0.01*0.02*2/0.002 -> 0.2 | D12: 接触熱抵抗 | F12: ビア本数 | G12: 20 | H12: 本
A13: 5 | B13: 6 | C13: =0.1*0.1*(2.51* 0.27*(ABS(B20-B21)/ 0.1)^0.25+ 0.85*0.0000000567*((B20+273.15)^2+(B21+273.15)^2)*((B20+273.15)+(B21+273.15))) -> 0.08294137616 | D13: 筐体底面放熱 | F13: 部品とビアの距離 | G13: 0.002 | H13: m
A15: 節点番号 | B15: 温度
A16: 1 | B16: 77.97901917
A17: 2 | B17: 77.94377136
A18: 3 | B18: 65.15638733
A19: 4 | B19: 55.6588974
A20: 5 | B20: 46.67155457
A21: 6 | B21: 25
A22: 7 | B22: 45

Sheet ジュール発熱計算(8.6.1)
A1: ジュール発熱による配線温度上昇計算
D2: 参考データ
A3: 項目 | B3: 単位 | C3: 入力 | D3: 銅 | E3: アルミ | G3: 流体の物性値
A4: 導電率 | B4: １/mΩ | C4: 59600000 | D4: 59600000 | E4: 37700000 | G4: 流体密度 | H4: ρ(kg/m3) | I4: 1.15
A5: 抵抗率 | B5: m・Ω | C5: 1.68e-08 | D5: 1.68e-08 | E5: 2.65e-08 | G5: 重力加速度 | H5: g(m/s2) | I5: 9.81
A6: 温度係数 | C6: 0.00433 | D6: 0.00433 | E6: 0.004 | G6: 動粘性係数 | H6: ν(m2/s) | I6: 1.7e-05
A7: 放射率 | C7: 0.85 | G7: ﾌﾟﾗﾝﾄﾙ数 | H7: Pr | I7: 0.71
G8: 流体熱伝導率 | H8: λ（W/mK) | I8: =(C19)*0.0000725+0.0241 -> 0.02754320957
A9: 銅箔厚 | B9: μm | C9: 105 | G9: 体膨張係数 | H9: β | I9: =1/320 -> 0.003125
A10: 配線幅 | B10: ㎜ | C10: 10 | G10: 計算用ワークエリア
A11: 配線長 | B11: ㎜ | C11: 200 | G11: 銅箔温度上昇 | I11: =I14 -> 22.49254578
A12: 層数 | C12: 1 | G12: 銅箔温度K | I12: =C14+I11+273.15 -> 320.6425458
A13: 電流値 | B13: A | C13: 20 | G13: 周囲温度K | I13: =C14+273.15 -> 298.15
A14: 周囲温度 | B14: ℃ | C14: 25 | G14: 銅箔温度上昇 | I14: =C17/(I18*(I16+I17)) -> 22.49254578
G15: 熱伝達率
A16: 電気抵抗値 | B16: Ω | C16: =C5*(C11/1000)/(C10*C9*C12/1000000000) -> 0.0032 | G16: 対流熱伝達率 | I16: =I8/(C10/1000)*0.56*((I9*I5*(C10/1000)^3*I11/I6^2)*I7)^0.25 -> 9.895371662
A17: 発熱量 | B17: W | C17: =C13^2*C16*(1+C6*(I11+C14-25)) -> 1.404662686 | G17: 放射熱伝達率 | I17: =0.0000000567*C7*(I12^2+I13^2)*(I12+I13) -> 5.717163925
G18: 放熱面積（両面） | I18: =C10*C11/1000000*2 -> 0.004
A19: 温度 | B19: ℃ | C19: =I11+C14 -> 47.49254578

Sheet PCBの等価熱伝達率
C1: プリント基板の等価熱伝導率計算シート
C3: viaエリア幅(mm) | E3: viaエリア奥行き(mm)
C4: 10 | E4: 10
C5: 材料の熱伝導率 | D5: 層厚さ | E5: 銅箔残存率 | G5: 本数 | H5: ビア内径 | I5: ﾒｯｷ厚 | J5: ﾒｯｷ熱伝導率
C6: (W/mK) | D6: (mm) | E6: (ﾍﾞﾀ=1,なし=0) | G6: (本) | H6: (mm) | I6: (mm) | J6: (W/mK)
B7: １層目 | C7: 380 | D7: 0.035 | E7: 0.7 | G7: - | H7: - | I7: - | J7: -
B8: 1-2層間 | C8: 0.4 | D8: 0.2 | E8: - | G8: 0 | H8: 0.2 | I8: 0.02 | J8: 370
B9: ２層目 | C9: 380 | D9: 0.035 | E9: 0.9 | G9: - | H9: - | I9: - | J9: -
B10: 2-3層間 | C10: 0.4 | D10: 0.5 | E10: - | G10: 0 | H10: 0.2 | I10: 0.02 | J10: 370 | L10: 面方向等価熱伝導率(W/mK)
B11: ３層目 | C11: 380 | D11: 0.035 | E11: 0.9 | G11: - | H11: - | I11: - | J11: - | L11: =(C7*D7*E7+C8*D8+C9*D9*E9+C10*D10+C11*D11*E11+C12*D12+C13*D13*E13+C14*D14+C15*D15*E15+C16*D16+C17*D17*E17+C18*D18+C19*D19*E19+C20*D20+C21*D21*E21+C22*D22+C23*D23*E23+C24*D24+C25*D25*E25+C26*D26+C27*D27*E27+C28*D28+C29*D29*E29+C30*D30+C31*D31*E31+C32*D32+C33*D33*E33+C34*D34+C35*D35*E35+C36*D36+C37*D37*E37)/D38 -> 36.35911602
B12: 3-4層間 | C12: 0.4 | D12: 0.2 | E12: - | G12: 0 | H12: 0.2 | I12: 0.02 | J12: 370
B13: ４層目 | C13: 380 | D13: 0.035 | E13: 0.9 | G13: - | H13: - | I13: - | J13: - | L13: 厚み方向等価熱伝導率(W/m℃)
B14: 4-5層間 | C14: 0.4 | D14: 0.5 | E14: - | G14: 0 | H14: 0.2 | I14: 0.02 | J14: 370 | L14: =O77 -> 0.4524214546
B15: ５層目 | C15: 380 | D15: 0.035 | E15: 0.9 | G15: - | H15: - | I15: - | J15: -
B16: 5-6層間 | C16: 0.4 | D16: 0.2 | E16: - | G16: 0 | H16: 0.2 | I16: 0.02 | J16: 370
B17: ６層目 | C17: 380 | D17: 0.035 | E17: 0.6 | G17: - | H17: - | I17: - | J17: -
B18: 6-7層間 | C18: 0.4 | D18: 0 | E18: - | G18: 0 | H18: 0.2 | I18: 0.02 | J18: 370
B19: ７層目 | C19: 380 | D19: 0 | E19: 1 | G19: - | H19: - | I19: - | J19: -
B20: 7-8層間 | C20: 0.4 | D20: 0 | E20: - | G20: 0 | H20: 0.2 | I20: 0.02 | J20: 370
B21: ８層目 | C21: 380 | D21: 0 | E21: 1
B38: ト－タル板厚 | D38: =SUM(D7:D37) -> 1.81
K41: ビア
B42: 計算領域断面積 | D42: =C4*E4/1000000 -> 0.0001 | H42: A | I42: λ | J42: Aλ/t | K42: R | M42: ビア以外の抵抗 | N42: 合成COND | O42: 合成R
H43: =((H8/1000+I8*2/1000)^2-(H8/1000)^2)*PI()/4*G8 -> 0 | I43: =J8 -> 370 | J43: =IF(D8<>0,H43*I43/(D8/1000),100000000000000) -> 0 | K43: =IF(D8=0,100000000000000,IF(G8=0,100000000000000,1/J43)) -> 100000000000000 | M43: =D7/1000/C7/E7/D42 -> 0.001315789474 | O43: =M43 -> 0.001315789474
H44: =((H10/1000+I10*2/1000)^2-(H10/1000)^2)*PI()/4*G10 -> 0 | I44: =J10 -> 370 | J44: =IF(D10<>0,H44*I44/(D10/1000),100000000000000) -> 0 | K44: =IF(D10=0,100000000000000,IF(G10=0,100000000000000,1/J44)) -> 100000000000000 | M44: =D8/1000/C8/D42 -> 5 | N44: =IF(M44<>0,1/K43+1/M44,100000000000000) -> 0.2 | O44: =1/N44 -> 5
H45: =((H12/1000+I12*2/1000)^2-(H12/1000)^2)*PI()/4*G12 -> 0 | I45: =J12 -> 370 | J45: =IF(D12<>0,H45*I45/(D12/1000),100000000000000) -> 0 | K45: =IF(D12=0,100000000000000,IF(G12=0,100000000000000,1/J45)) -> 100000000000000 | M45: =D9/1000/C9/E9/D42 -> 0.001023391813 | O45: =M45 -> 0.001023391813
H46: =((H14/1000+I14*2/1000)^2-(H14/1000)^2)*PI()/4*G14 -> 0 | I46: =J14 -> 370 | J46: =IF(D14<>0,H46*I46/(D14/1000),100000000000000) -> 0 | K46: =IF(D14=0,100000000000000,IF(G14=0,100000000000000,1/J46)) -> 100000000000000 | M46: =D10/1000/C10/D42 -> 12.5 | N46: =IF(M46<>0,1/K44+1/M46,100000000000000) -> 0.08 | O46: =1/N46 -> 12.5
H47: =((H16/1000+I16*2/1000)^2-(H16/1000)^2)*PI()/4*G16 -> 0 | I47: =J16 -> 370 | J47: =IF(D16<>0,H47*I47/(D16/1000),100000000000000) -> 0 | K47: =IF(D16=0,100000000000000,IF(G16=0,100000000000000,1/J47)) -> 100000000000000 | M47: =D11/1000/C11/E11/D42 -> 0.001023391813 | O47: =M47 -> 0.001023391813
H48: =((H18/1000+I18*2/1000)^2-(H18/1000)^2)*PI()/4*G18 -> 0 | I48: =J18 -> 370 | J48: =IF(D18<>0,H48*I48/(D18/1000),100000000000000) -> 100000000000000 | K48: =IF(D18=0,100000000000000,IF(G18=0,100000000000000,1/J48)) -> 100000000000000 | M48: =D12/1000/C12/$D$42 -> 5 | N48: =IF(M48<>0,1/K45+1/M48,100000000000000) -> 0.2 | O48: =1/N48 -> 5
H49: =((H20/1000+I20*2/1000)^2-(H20/1000)^2)*PI()/4*G20 -> 0 | I49: =J20 -> 370 | J49: =IF(D20<>0,H49*I49/(D20/1000),100000000000000) -> 100000000000000 | K49: =IF(D20=0,100000000000000,IF(G20=0,100000000000000,1/J49)) -> 100000000000000 | M49: =D13/1000/C13/E13/D42 -> 0.001023391813 | O49: =M49 -> 0.001023391813
M50: =D14/1000/C14/$D$42 -> 12.5 | N50: =IF(M50<>0,1/K46+1/M50,100000000000000) -> 0.08 | O50: =1/N50 -> 12.5
M51: =D15/1000/C15/E15/D42 -> 0.001023391813 | O51: =M51 -> 0.001023391813
M52: =D16/1000/C16/D42 -> 5 | N52: =IF(M52<>0,1/K47+1/M52,100000000000000) -> 0.2 | O52: =1/N52 -> 5
M53: =D17/1000/C17/E17/D42 -> 0.001535087719 | O53: =M53 -> 0.001535087719
M54: =D18/1000/C18/D42 -> 0 | N54: =IF(M54<>0,1/K48+1/M54,100000000000000) -> 100000000000000 | O54: =1/N54 -> 1e-14
M55: =D19/1000/C19/E19/D42 -> 0 | O55: =M55 -> 0
M56: =D20/1000/C20/D42 -> 0 | N56: =IF(M56<>0,1/K49+1/M56,100000000000000) -> 100000000000000 | O56: =1/N56 -> 1e-14
N75: K/W | O75: =SUM(O43:O74) -> 40.00694444 | P75: K/W
O76: =1/O75 -> 0.02499566048
O77: =O76*(D38/1000)/D42 -> 0.4524214546

Sheet ヒートシンクの非定常計算(10.8)
A1: ヒートシンクの非定常モデル | I1: 時間Step | J1: 60
A3: 節点数 | B3: 要素数 | C3: 発熱節点数 | D3: 温度固定 節点数 | E3: 熱容量保有 節点数 | F3: 計算反復回数 | G3: 計算ステップ(s) | H3: 計算終了時間(s)
A4: 3 | B4: 2 | C4: 1 | D4: 1 | E4: 2 | F4: 3 | G4: 1 | H4: 60
A6: 節点１ | B6: 節点２ | C6: 熱ｺﾝﾀﾞｸﾀﾝｽ | D6: 発熱点番号 | E6: 発熱量 | F6: 固定点番号 | G6: 固定温度 | H6: 熱容量 節点番号 | I6: 熱容量 | J6: 初期温度（℃）
A7: 1 | B7: 2 | C7: =1/0.04 -> 25 | D7: 1 | E7: 150 | F7: 3 | G7: 0 | H7: 1 | I7: 204 | J7: 0
A8: 2 | B8: 3 | C8: =1/0.2 -> 5 | H8: 2 | I8: 490 | J8: 0
A10: 現在時間 | B10: 60
A11: 1 | B11: 14.27564293
A12: 2 | B12: 9.530433614
A13: 3 | B13: 0
A16: 時間(s) | B16: 節点 1 | C16: 節点 2 | D16: 節点 3
A17: 0 | B17: 0 | C17: 0 | D17: 0
A18: 1 | B18: 0.658477903 | C18: 0.03165759149 | D18: 0
A19: 2 | B19: 1.251438449 | C19: 0.08999650202 | D19: 0
A20: 3 | B20: 1.788485482 | C20: 0.1707892751 | D20: 0
A21: 4 | B21: 2.277782353 | C21: 0.2704448146 | D21: 0
A22: 5 | B22: 2.726268211 | C22: 0.3859128162 | D22: 0
A23: 6 | B23: 3.139841829 | C23: 0.5146025494 | D23: 0
A24: 7 | B24: 3.523517812 | C24: 0.6543138356 | D24: 0
A25: 8 | B25: 3.88155936 | C25: 0.8031783912 | D25: 0
A26: 9 | B26: 4.217591087 | C26: 0.9596099786 | D26: 0
A27: 10 | B27: 4.534694903 | C27: 1.122262042 | D27: 0
A28: 11 | B28: 4.835491497 | C28: 1.289991708 | D28: 0
A29: 12 | B29: 5.122209586 | C29: 1.461829186 | D29: 0
A30: 13 | B30: 5.396744759 | C30: 1.636951769 | D30: 0
A31: 14 | B31: 5.660709494 | C31: 1.814661739 | D31: 0
A32: 15 | B32: 5.915475661 | C32: 1.994367584 | D32: 0
A33: 16 | B33: 6.162210638 | C33: 2.175568042 | D33: 0
A34: 17 | B34: 6.401908007 | C34: 2.35783854 | D34: 0
A35: 18 | B35: 6.635413646 | C35: 2.540819665 | D35: 0
A36: 19 | B36: 6.863447896 | C36: 2.724207372 | D36: 0
A37: 20 | B37: 7.086624398 | C37: 2.907744658 | D37: 0
A38: 21 | B38: 7.305466111 | C38: 3.091214491 | D38: 0
A39: 22 | B39: 7.520418915 | C39: 3.274433795 | D39: 0
A40: 23 | B40: 7.731863176 | C40: 3.457248344 | D40: 0
A41: 24 | B41: 7.940123574 | C41: 3.639528419 | D41: 0
A42: 25 | B42: 8.145477454 | C42: 3.821165119 | D42: 0
A43: 26 | B43: 8.348161927 | C43: 4.002067224 | D43: 0
A44: 27 | B44: 8.548379897 | C44: 4.182158533 | D44: 0
A45: 28 | B45: 8.746305192 | C45: 4.361375598 | D45: 0
A46: 29 | B46: 8.942086918 | C46: 4.5396658 | D46: 0
A47: 30 | B47: 9.135853162 | C47: 4.716985713 | D47: 0
A48: 31 | B48: 9.327714139 | C48: 4.893299717 | D48: 0
A49: 32 | B49: 9.517764868 | C49: 5.068578814 | D49: 0
A50: 33 | B50: 9.70608744 | C50: 5.242799625 | D50: 0
A51: 34 | B51: 9.892752953 | C51: 5.415943538 | D51: 0
A52: 35 | B52: 10.07782315 | C52: 5.587995986 | D52: 0
A53: 36 | B53: 10.26135183 | C53: 5.758945824 | D53: 0
A54: 37 | B54: 10.443386 | C54: 5.928784815 | D54: 0
A55: 38 | B55: 10.62396691 | C55: 6.097507177 | D55: 0
A56: 39 | B56: 10.80313092 | C56: 6.265109211 | D56: 0
A57: 40 | B57: 10.98091018 | C57: 6.431588977 | D57: 0
A58: 41 | B58: 11.15733331 | C58: 6.596946022 | D58: 0
A59: 42 | B59: 11.33242587 | C59: 6.761181149 | D59: 0
A60: 43 | B60: 11.50621084 | C60: 6.924296219 | D60: 0
A61: 44 | B61: 11.678709 | C61: 7.086293986 | D61: 0
A62: 45 | B62: 11.84993924 | C62: 7.24717795 | D62: 0
A63: 46 | B63: 12.01991882 | C63: 7.406952242 | D63: 0
A64: 47 | B64: 12.18866366 | C64: 7.565621519 | D64: 0
A65: 48 | B65: 12.35618846 | C65: 7.723190877 | D65: 0
A66: 49 | B66: 12.52250695 | C66: 7.879665776 | D66: 0
A67: 50 | B67: 12.68763195 | C67: 8.035051979 | D67: 0
A68: 51 | B68: 12.85157557 | C68: 8.189355498 | D68: 0
A69: 52 | B69: 13.01434926 | C69: 8.342582549 | D69: 0
A70: 53 | B70: 13.17596391 | C70: 8.494739513 | D70: 0
A71: 54 | B71: 13.33642996 | C71: 8.645832904 | D71: 0
A72: 55 | B72: 13.4957574 | C72: 8.795869343 | D72: 0
A73: 56 | B73: 13.65395589 | C73: 8.944855529 | D73: 0
A74: 57 | B74: 13.81103475 | C74: 9.092798227 | D74: 0
A75: 58 | B75: 13.96700303 | C75: 9.239704244 | D75: 0
A76: 59 | B76: 14.12186956 | C76: 9.385580421 | D76: 0
A77: 60 | B77: 14.27564293 | C77: 9.530433614 | D77: 0

Sheet アルミ板の定常熱解析
A1: アルミ板の熱回路モデル（定常モデル）
A3: 節点数 | B3: 要素数 | C3: 発熱節点数 | D3: 温度固定節点数 | E3: 計算反復回数
A4: 7 | B4: 11 | C4: 2 | D4: 1 | E4: 5
A6: 節点１ | B6: 節点２ | C6: 熱ｺﾝﾀﾞｸﾀﾝｽ | D6: 発熱点番号 | E6: 発熱量 | F6: 固定点番号 | G6: 固定温度
A7: 1 | B7: 2 | C7: =0.03*0.001*120/0.03 -> 0.12 | D7: 2 | E7: 5 | F7: 7 | G7: 25
A8: 2 | B8: 3 | C8: =0.03*0.001*120/0.03 -> 0.12 | D8: 6 | E8: 3
A9: 3 | B9: 4 | C9: 0.12
A10: 4 | B10: 5 | C10: 0.12
A11: 5 | B11: 6 | C11: 0.12
A12: 1 | B12: 7 | C12: =0.03*0.03*2*15 -> 0.027
A13: 2 | B13: 7 | C13: =0.03*0.03*2*15 -> 0.027
A14: 3 | B14: 7 | C14: 0.027
A15: 4 | B15: 7 | C15: 0.027
A16: 5 | B16: 7 | C16: 0.027
A17: 6 | B17: 7 | C17: 0.027
A19: 節点番号 | B19: 温度
A20: 1 | B20: 75.67156982
A21: 2 | B21: 87.07267761
A22: 3 | B22: 70.77346039
A23: 4 | B23: 64.77326965
A24: 5 | B24: 67.72206116
A25: 6 | B25: 80.28330994
A26: 7 | B26: 25

Sheet アルミ板のの非定常計算
A1: アルミ板の熱回路モデル（非定常モデル） | I1: 時間Step | J1: 100
A3: 節点数 | B3: 要素数 | C3: 発熱節点数 | D3: 温度固定 節点数 | E3: 熱容量保有 節点数 | F3: 計算反復回数 | G3: 計算ステップ(s) | H3: 計算終了時間(s)
A4: 7 | B4: 17 | C4: 2 | D4: 1 | E4: 6 | F4: 3 | G4: 2 | H4: 100
A6: 節点１ | B6: 節点２ | C6: 熱ｺﾝﾀﾞｸﾀﾝｽ | D6: 発熱点番号 | E6: 発熱量 | F6: 固定点番号 | G6: 固定温度 | H6: 熱容量 節点番号 | I6: 熱容量 | J6: 初期温度（℃）
A7: 1 | B7: 2 | C7: =0.03*0.001*120/0.03 -> 0.12 | D7: 2 | E7: 5 | F7: 7 | G7: 25 | H7: 1 | I7: =2700*900*0.03*0.03*0.001 -> 2.187 | J7: 25
A8: 2 | B8: 3 | C8: =0.03*0.001*120/0.03 -> 0.12 | D8: 6 | E8: 3 | H8: 2 | I8: 2.187 | J8: 25
A9: 3 | B9: 4 | C9: 0.12 | H9: 3 | I9: 2.187 | J9: 25
A10: 4 | B10: 5 | C10: 0.12 | H10: 4 | I10: 2.187 | J10: 25
A11: 5 | B11: 6 | C11: 0.12 | H11: 5 | I11: 2.187 | J11: 25
A12: 1 | B12: 7 | C12: =0.03*0.03*2*0.56*2.51*((B26-B32)/0.03)^0.25 -> 0.01505324464 | H12: 6 | I12: 2.187 | J12: 25
A13: 2 | B13: 7 | C13: =0.03*0.03*2*0.56*2.51*((B27-B32)/0.03)^0.25 -> 0.01608067659
A14: 3 | B14: 7 | C14: =0.03*0.03*2*0.56*2.51*(ABS(B28-B32)/0.03)^0.25 -> 0.01457571663
A15: 4 | B15: 7 | C15: =0.03*0.03*2*0.56*2.51*(ABS(B29-B32)/0.03)^0.25 -> 0.01389680164
A16: 5 | B16: 7 | C16: =0.03*0.03*2*0.56*2.51*(ABS(B30-B32)/0.03)^0.25 -> 0.01426545883
A17: 6 | B17: 7 | C17: =0.03*0.03*2*0.56*2.51*(ABS(B31-B32)/0.03)^0.25 -> 0.01554588419
A18: 1 | B18: 7 | C18: =0.03*0.03*2*0.0000000567*0.8*((273.15+B26)^2+(273.15+B32)^2)*((273.15+B26)+(273.15+B32)) -> 0.01043488754
A19: 2 | B19: 7 | C19: =0.03*0.03*2*0.0000000567*0.8*((273.15+B27)^2+(273.15+B32)^2)*((273.15+B27)+(273.15+B32)) -> 0.01103070943
A20: 3 | B20: 7 | C20: =0.03*0.03*2*0.0000000567*0.8*((273.15+B28)^2+(273.15+B32)^2)*((273.15+B28)+(273.15+B32)) -> 0.01020416112
A21: 4 | B21: 7 | C21: =0.03*0.03*2*0.0000000567*0.8*((273.15+B29)^2+(273.15+B32)^2)*((273.15+B29)+(273.15+B32)) -> 0.009919193237
A22: 5 | B22: 7 | C22: =0.03*0.03*2*0.0000000567*0.8*((273.15+B30)^2+(273.15+B32)^2)*((273.15+B30)+(273.15+B32)) -> 0.01006800968
A23: 6 | B23: 7 | C23: =0.03*0.03*2*0.0000000567*0.8*((273.15+B31)^2+(273.15+B32)^2)*((273.15+B31)+(273.15+B32)) -> 0.01070242531
A25: 現在時間 | B25: 100
A26: 1 | B26: 62.59280385
A27: 2 | B27: 73.95550226
A28: 3 | B28: 58.04485927
A29: 4 | B29: 52.30509389
A30: 5 | B30: 55.31986192
A31: 6 | B31: 67.7608129
A32: 7 | B32: 25
A35: 時間(s) | B35: 節点 1 | C35: 節点 2 | D35: 節点 3 | E35: 節点 4 | F35: 節点 5 | G35: 節点 6 | H35: 節点 7
A36: 0 | B36: 25 | C36: 25 | D36: 25 | E36: 25 | F36: 25 | G36: 25 | H36: 25
A37: 2 | B37: 25.36186566 | C37: 28.73622742 | D37: 25.33441555 | E37: 25.04902206 | F37: 25.22007141 | G37: 27.44114746 | H37: 25
A38: 4 | B38: 25.99689846 | C38: 31.89484512 | D38: 25.90142581 | E38: 25.17474645 | F38: 25.61050421 | G38: 29.66935051 | H38: 25
A39: 6 | B39: 26.82326753 | C39: 34.57802986 | D39: 26.61815226 | E39: 25.38657342 | F39: 26.12583886 | G39: 31.69296669 | H39: 25
A40: 8 | B40: 27.78314623 | C40: 36.89648503 | D40: 27.4306969 | E40: 25.6848719 | F40: 26.73414776 | G40: 33.54293245 | H40: 25
A41: 10 | B41: 28.8332036 | C41: 38.93306827 | D41: 28.30233473 | E41: 26.0644288 | F41: 27.4113357 | G41: 35.24476116 | H41: 25
A42: 12 | B42: 29.94105437 | C42: 40.74993979 | D42: 29.20819309 | E42: 26.51709869 | F42: 28.1390444 | G42: 36.81959217 | H42: 25
A43: 14 | B43: 31.08257047 | C43: 42.39383789 | D43: 30.13152586 | E43: 27.03348541 | F43: 28.90315402 | G43: 38.28499326 | H43: 25
A44: 16 | B44: 32.23985161 | C44: 43.90000395 | D44: 31.06112345 | E44: 27.60397514 | F44: 29.69270772 | G44: 39.65560551 | H44: 25
A45: 18 | B45: 33.39969439 | C45: 45.29509929 | D45: 31.98952344 | E45: 28.21934069 | F45: 30.49913507 | G45: 40.94366376 | H45: 25
A46: 20 | B46: 34.55243718 | C46: 46.5993715 | D46: 32.91178194 | E46: 28.87106731 | F46: 31.31568623 | G46: 42.15941826 | H46: 25
A47: 22 | B47: 35.69108808 | C47: 47.82826405 | D47: 33.82463557 | E47: 29.55150141 | F47: 32.13701569 | G47: 43.3114776 | H47: 25
A48: 24 | B48: 36.81066585 | C48: 48.99361364 | D48: 34.72593395 | E48: 30.25388997 | F48: 32.9588726 | G48: 44.4070888 | H48: 25
A49: 26 | B49: 37.90770145 | C49: 50.10454205 | D49: 35.61425843 | E49: 30.97235554 | F49: 33.77786769 | G49: 45.45236709 | H49: 25
A50: 28 | B50: 38.97986071 | C50: 51.16812216 | D50: 36.48866838 | E50: 31.70183578 | F50: 34.59129581 | G50: 46.45248505 | H50: 25
A51: 30 | B51: 40.02565848 | C51: 52.1898761 | D51: 37.34853404 | E51: 32.43800617 | F51: 35.39699911 | G51: 47.41182884 | H51: 25
A52: 32 | B52: 41.04424207 | C52: 53.17414883 | D52: 38.19342797 | E52: 33.17719729 | F52: 36.19326053 | G52: 48.33412757 | H52: 25
A53: 34 | B53: 42.03522708 | C53: 54.12438917 | D53: 39.02305531 | E53: 33.91631357 | F53: 36.9787199 | G53: 49.22256084 | H53: 25
A54: 36 | B54: 42.99857306 | C54: 55.04336158 | D54: 39.83720998 | E54: 34.65275708 | F54: 37.75230739 | G54: 50.07984801 | H54: 25
A55: 38 | B55: 43.93448946 | C55: 55.93330628 | D55: 40.6357476 | E55: 35.38435848 | F55: 38.51319014 | G55: 50.90832263 | H55: 25
A56: 40 | B56: 44.84336444 | C56: 56.79606056 | D56: 41.41856913 | E56: 36.10931564 | F56: 39.26072939 | G56: 51.70999462 | H56: 25
A57: 42 | B57: 45.72571135 | C57: 57.63315105 | D57: 42.18561126 | E57: 36.8261398 | F57: 39.99444556 | G57: 52.48660205 | H57: 25
A58: 44 | B58: 46.58212838 | C58: 58.44586393 | D58: 42.93684087 | E58: 37.53360903 | F58: 40.71398999 | G58: 53.23965442 | H58: 25
A59: 46 | B59: 47.41326854 | C59: 59.23529862 | D59: 43.67225182 | E59: 38.23072814 | F59: 41.41912174 | G59: 53.97046895 | H59: 25
A60: 48 | B60: 48.2198171 | C60: 60.00240883 | D60: 44.39186317 | E60: 38.91669439 | F60: 42.10968863 | G60: 54.6802009 | H60: 25
A61: 50 | B61: 49.00247524 | C61: 60.74803411 | D61: 45.09571788 | E61: 39.59086837 | F61: 42.78561161 | G61: 55.36986893 | H61: 25
A62: 52 | B62: 49.7619479 | C62: 61.47292405 | D62: 45.78388172 | E62: 40.25274911 | F62: 43.44687189 | G62: 56.04037635 | H62: 25
A63: 54 | B63: 50.49893508 | C63: 62.17775696 | D63: 46.45644247 | E63: 40.90195307 | F63: 44.0935004 | G63: 56.69252903 | H63: 25
A64: 56 | B64: 51.21412576 | C64: 62.86315429 | D64: 47.11350874 | E64: 41.53819629 | F64: 44.725569 | G64: 57.32705031 | H64: 25
A65: 58 | B65: 51.90819371 | C65: 63.52969174 | D65: 47.75520883 | E65: 42.16127923 | F65: 45.34318322 | G65: 57.94459354 | H65: 25
A66: 60 | B66: 52.5817947 | C66: 64.17790794 | D66: 48.38168947 | E66: 42.77107399 | F66: 45.9464763 | G66: 58.54575268 | H66: 25
A67: 62 | B67: 53.23556486 | C67: 64.80831102 | D67: 48.99311439 | E67: 43.36751332 | F67: 46.53560415 | G67: 59.13107106 | H67: 25
A68: 64 | B68: 53.87011974 | C68: 65.42138389 | D68: 49.58966293 | E68: 43.95058146 | F68: 47.11074124 | G68: 59.7010489 | H68: 25
A69: 66 | B69: 54.48605395 | C69: 66.01758821 | D69: 50.17152852 | E69: 44.52030621 | F69: 47.67207714 | G69: 60.25614958 | H69: 25
A70: 68 | B70: 55.08394134 | C70: 66.59736753 | D70: 50.73891718 | E70: 45.07675223 | F70: 48.21981363 | G70: 60.7968048 | H70: 25
A71: 70 | B71: 55.66433522 | C71: 67.16114979 | D71: 51.29204606 | E71: 45.62001528 | F71: 48.75416232 | G71: 61.32341914 | H71: 25
A72: 72 | B72: 56.22776906 | C72: 67.70934909 | D72: 51.83114205 | E72: 46.15021736 | F72: 49.27534262 | G72: 61.83637373 | H72: 25
A73: 74 | B73: 56.77475707 | C73: 68.24236725 | D73: 52.35644031 | E73: 46.66750248 | F73: 49.78358003 | G73: 62.33602937 | H73: 25
A74: 76 | B74: 57.30579506 | C74: 68.76059499 | D74: 52.86818311 | E74: 47.17203304 | F74: 50.27910472 | G74: 62.82272918 | H74: 25
A75: 78 | B75: 57.82136114 | C75: 69.26441277 | D75: 53.36661846 | E75: 47.66398677 | F75: 50.7621503 | G75: 63.29680087 | H75: 25
A76: 80 | B76: 58.32191655 | C76: 69.75419158 | D76: 53.85199906 | E76: 48.14355407 | F76: 51.23295285 | G76: 63.75855856 | H76: 25
A77: 82 | B77: 58.80790648 | C77: 70.23029343 | D77: 54.32458123 | E77: 48.61093562 | F77: 51.69174998 | G77: 64.20830442 | H77: 25
A78: 84 | B78: 59.27976082 | C78: 70.69307181 | D78: 54.78462392 | E78: 49.06634049 | F78: 52.13878015 | G78: 64.64632998 | H78: 25
A79: 86 | B79: 59.73789492 | C79: 71.14287209 | D79: 55.23238784 | E79: 49.50998442 | F79: 52.57428196 | G79: 65.07291714 | H79: 25
A80: 88 | B80: 60.18271026 | C80: 71.58003177 | D80: 55.66813462 | E80: 49.94208824 | F80: 52.99849366 | G80: 65.48833937 | H80: 25
A81: 90 | B81: 60.61459512 | C81: 72.00488079 | D81: 56.09212613 | E81: 50.36287666 | F81: 53.41165269 | G81: 65.89286226 | H81: 25
A82: 92 | B82: 61.0339252 | C82: 72.41774164 | D82: 56.50462382 | E82: 50.77257711 | F82: 53.81399524 | G82: 66.28674425 | H82: 25
A83: 94 | B83: 61.44106425 | C83: 72.81892953 | D83: 56.90588811 | E83: 51.17141885 | F83: 54.20575585 | G83: 66.67023731 | H83: 25
A84: 96 | B84: 61.83636454 | C84: 73.20875259 | D84: 57.29617792 | E84: 51.55963206 | F84: 54.58716722 | G84: 67.04358723 | H84: 25
A85: 98 | B85: 62.22016744 | C85: 73.58751207 | D85: 57.67575013 | E85: 51.9374471 | F85: 54.95845987 | G85: 67.40703415 | H85: 25
A86: 100 | B86: 62.59280385 | C86: 73.95550226 | D86: 58.04485927 | E86: 52.30509389 | F86: 55.31986192 | G86: 67.7608129 | H86: 25

Sheet 水冷ヒートシンク計算(11.2.3)
B1: 水冷ヒートシンク
B3: 流路直径(m) | C3: 0.004 | D3: 摩擦係数f | E3: =0.3164*C11^-0.25 -> 0.03006093987
B4: 直管部流路長さ（m） | C4: 0.59 | D4: 入口の圧損係数 | E4: 0.5
B5: ベンド部流路長さ（m） | C5: 0.151 | D5: ■流体物性データ入力
B6: 総発熱量（W) | C6: 200 | D6: 密度ρ(kg/m3) | E6: =(LOOKUP(E23,H16:H27,I16:I27)+LOOKUP(E23+10,H16:H27,I16:I27)+LOOKUP(E23-11,H16:H27,I16:I27))/3 -> 993.1566667
B7: 流入水温(℃） | C7: 40 | D7: 熱伝導率λ | E7: =(LOOKUP(E23,H16:H27,L16:L27)+LOOKUP(E23+10,H16:H27,L16:L27)+LOOKUP(E23-11,H16:H27,L16:L27))/3 -> 0.6239333333
B8: 水量L/分 | C8: 2 | D8: 比熱 | E8: =(LOOKUP(E23,H16:H27,J16:J27)+LOOKUP(E23+10,H16:H27,J16:J27)+LOOKUP(E23-11,H16:H27,J16:J27))/3*1000 -> 4179.333333
B9: 水冷ヒートシンク表面までの熱抵抗 | C9: 0.000955 | D9: 動粘性係数 | E9: =FORECAST(E23,K16:K27,H16:H27) -> 8.645561268e-07
B10: 中間パラメータ
B11: レイノルズ数 Re | C11: =C3*C19/E9 -> 12272.57457 | D11: =IF(C11>2300,"乱流","層流") -> 乱流
B12: プラントル数 Pr | C12: =(LOOKUP(E23,H16:H27,N16:N27)+LOOKUP(E23+10,H16:H27,N16:N27)+LOOKUP(E23-11,H16:H27,N16:N27))/3 -> 4.759716406
B13: 流量 | C13: =C8/1000/60 -> 3.333333333e-05 | D13: m3/s | H13: ■冷媒の物性値（温度依存） | K13: 純水の物性値
B14: 流路断面積 | C14: =PI()*C3^2/4 -> 1.256637061e-05 | D14: m2 | H14: 温度T | I14: 密度 | J14: 比熱 | K14: 動粘性係数 | L14: 熱伝導率 | M14: 熱拡散率 | N14: プラントル数
B15: 円管周長 | C15: =PI()*C3 -> 0.01256637061 | D15: m | H15: ℃ | I15: kg/m3 | J15: kJ/(kg･K) | K15: m2/s | L15: W/(m・K) | M15: m2/s×10-6
B16: 円管表面積 | C16: =C15*(C4+C5) -> 0.009311680625 | D16: m2 | H16: 0 | I16: 999.78 | J16: 4.217 | K16: 1.792e-06 | L16: 0.5619 | M16: 0.1333 | N16: =K16/M16*1000000 -> 13.44336084
B17: Nu | C17: =0.023*C11^0.8*C12^0.4 -> 80.15097519 | D17: ディッタスの式 | H17: 6.83 | I17: 999.93 | J17: 4.199 | K17: 1.435e-06 | L17: 0.576 | M17: 0.1372 | N17: =K17/M17*1000000 -> 10.45918367
B18: 熱伝達率 | C18: =C17*E7/C3 -> 12502.21628 | D18: W/m2K | H18: =H17+10 -> 16.83 | I18: 998.87 | J18: 4.184 | K18: 1.087e-06 | L18: 0.5943 | M18: 0.1422 | N18: 7.64416315
B19: フィン間流速 | C19: =C13/C14 -> 2.652582385 | D19: m/s | H19: =H18+10 -> 26.83 | I19: 996.62 | J19: 4.179 | K19: 8.573e-07 | L19: 0.6104 | M19: 0.1466 | N19: 5.847885402
H20: 36.83 | I20: 993.42 | J20: 4.179 | K20: 6.983e-07 | L20: 0.6245 | M20: 0.1504 | N20: 4.642952128
H21: 46.83 | I21: 989.43 | J21: 4.18 | K21: 5.834e-07 | L21: 0.6369 | M21: 0.154 | N21: 3.788311688
B22: ■温度計算結果 | H22: 56.83 | I22: 984.75 | J22: 4.184 | K22: 4.974e-07 | L22: 0.6479 | M22: 0.1572 | N22: 3.164122137
B23: 流体平均温度上昇 | C23: =C6/(E6*E8*C13)/2 -> 0.7227639484 | D23: ℃ 流体温度 | E23: =C7+C23 -> 40.72276395 | F23: ℃ | H23: 66.83 | I23: 979.44 | J23: 4.188 | K23: 4.314e-07 | L23: 0.6568 | M23: 0.1601 | N23: 2.694565896
B24: 流体-壁面温度差 | C24: =C6/C18/C16 -> 1.71796739 | D24: ℃ 壁面温度 | E24: =E23+C24 -> 42.44073134 | F24: ℃ | H24: 76.83 | I24: 973.59 | J24: 4.194 | K24: 3.794e-07 | L24: 0.6646 | M24: 0.1628 | N24: 2.33046683
B25: 壁面-熱源温度差 | C25: =C9*C6 -> 0.191 | H25: 86.83 | I25: 967.21 | J25: 4.202 | K25: 3.378e-07 | L25: 0.671 | M25: 0.1651 | N25: 2.046032707
B26: 熱源温度 | C26: =SUM(C23:C25)+C7 -> 42.63173134 | D26: ℃ | H26: 96.83 | I26: 960.37 | J26: 4.212 | K26: 3.039e-07 | L26: 0.6761 | M26: 0.1671 | N26: 1.818671454
B27: ΔT | C27: =SUM(C23:C25) -> 2.631731339 | H27: 106.83 | I27: 953.08 | J27: 4.224 | K27: 2.759e-07 | L27: 0.68 | M27: 0.1689 | N27: 1.633510953
B29: ■圧損計算
H30: ※このシートでは冷媒の物性値の温度依存性を考慮して計算しているため、書籍の計算結果と少し異なります
B31: 水冷ヒートシンク摩擦圧損係数 | C31: =E3*(C4+C5)/C3 -> 5.568789111
B32: 配管部 摩擦圧損係数 | C32: =E4*E32/C4 -> 0.4237288136 | D32: 配管長 m | E32: 0.5
C33: 圧損箇所１ | D33: 圧損箇所２ | E33: 圧損箇所３
B34: 開口率 | C34: 1 | D34: 1 | E34: 1
B35: 開口箇所 | C35: 1 | D35: 1 | E35: 1
B36: 局所圧損(絞り） | C36: =C35*2.5*(1-C34)/C34^2 -> 0 | D36: =D35*2.5*(1-D34)/D34^2 -> 0 | E36: =E35*2.5*(1-E34)/E34^2 -> 0
C37: 45°曲がり | D37: 90°曲がり | E37: 180°曲がり
B38: ベンド半径 ｍ | C38: 0.01 | D38: 0.01 | E38: 0.01
B39: ベンド箇所 | C39: 0 | D39: 8 | E39: 0
B40: 局所圧損（ベンド） | C40: =IF(C11*(C3/C38)^2<365,(0.00515*C41*45*C11^-0.2*(C38/C3)^0.9)*C39,(0.00431*C41*45*C11^-0.17*(C38/C3)^0.849)*C39) -> 0 | D40: =IF(C11*(C3/D38)^2<365,(0.00515*D41*90*C11^-0.2*(D38/C3)^0.9)*D39,(0.00431*D41*90*C11^-0.17*(D38/C3)^0.849)*D39) -> 2.294990628 | E40: =IF(C11*(C3/E38)^2<365,(0.00515*E41*180*C11^-0.2*(E38/C3)^0.9)*E39,(0.00431*E41*180*C11^-0.17*(E38/C3)^0.849)*E39) -> 0
C41: =1+5.13*(C38/C3)^-1.47 -> 2.333968432 | D41: =IF(D38/C3<9.85,0.95+4.42*(D38/C3)^-1.96,1) -> 1.683600895 | E41: =1+5.06*(E38/C3)^-4.52 -> 1.080438077
B43: 圧力損失 KPa | C43: =((C31+C32+D31+E31+C36+D36+E36+E4+C40+D40+E40)*E6/2*C19^2)/1000 -> 30.7037407

Sheet ペルチェモジュール 熱回路モデル(11.3.2)
A1: 熱回路網法 (TEC 熱電素子）
A3: 節点数 | B3: 要素数 | C3: 発熱節点数 | D3: 温度固定節点数 | E3: 計算反復回数
A4: 9 | B4: 10 | C4: 4 | D4: 1 | E4: 10
A6: 節点１ | B6: 節点２ | C6: 熱ｺﾝﾀﾞｸﾀﾝｽ | D6: 発熱点番号 | E6: 発熱量 | F6: 固定点番号 | G6: 固定温度
A7: 1 | B7: 2 | C7: 10000 | D7: 4 | E7: =-2*F18*F13*(B21+273.15)*F12 -> -38.96116685 | F7: 9 | G7: 25
A8: 2 | B8: 3 | C8: =F20*F21*F19/(F23/2) -> 20.49180328 | D8: 5 | E8: =2*F18*(F29*F12^2) -> 25.02938543
A9: 3 | B9: 4 | C9: =F20*F21*F19/(F23/2) -> 20.49180328 | D9: 6 | E9: =2*F18*(F12*F13*(B23+273.15)) -> 43.48650675
A10: 4 | B10: 5 | C10: =F15*F18*F17/(F14/2)*2 -> 0.4096 | D10: 1 | E10: =F24 -> 22.5
A11: 5 | B11: 6 | C11: =F17*F15/(F14/2)*F18*2 -> 0.4096
A12: 6 | B12: 7 | C12: =F20*F21*F19/(F23/2) -> 20.49180328 | E12: 電流 | F12: 2.2 | G12: A
A13: 7 | B13: 8 | C13: =F20*F21*F19/(F23/2) -> 20.49180328 | E13: ゼーベック係数 | F13: 0.0002069 | G13: V/K
A14: 8 | B14: 9 | C14: =1/F25 -> 1 | E14: 素子の厚み | F14: 0.00127 | G14: m
A15: 2 | B15: 9 | C15: =1/F26 -> 0.0001 | E15: 素子の断面積 | F15: 6.4e-07 | G15: m2
A16: 4 | B16: 6 | C16: =1/F27 -> 0.0001 | E16: 素子の電気抵抗率 | F16: 1.026e-05 | G16: Ωm
E17: 熱伝導率 | F17: 1.6 | G17: W/mK
A18: 節点番号 | B18: 温度 | E18: 素子数 (PNペア数） | F18: 127 | G18: ペア
A19: 1 | B19: 64.93764496 | C19: 部品 | E19: セラミック熱伝導率 | F19: 15 | G19: W/mK
A20: 2 | B20: 64.93539429 | C20: セラミックC部品面 | E20: 外形寸法縦 | F20: 0.025 | G20: m
A21: 3 | B21: 63.83848953 | C21: セラミックC厚み中心 | E21: 外形寸法横 | F21: 0.025 | G21: m
A22: 4 | B22: 62.74158478 | C22: ペルチェ吸熱面 | E22: 外形寸法高さ | F22: 0.0031 | G22: m
A23: 5 | B23: 102.9797058 | C23: ペルチェ中心部 | E23: セラミック厚み | F23: 0.000915 | G23: m
A24: 6 | B24: 82.1109314 | C24: ペルチェ排熱面 | E24: 部品の発熱量 | F24: 22.5 | G24: W
A25: 7 | B25: 79.5717392 | C25: セラミックH厚み中心 | E25: ヒートシンク熱抵抗（接触含む） | F25: 1 | G25: K/W
A26: 8 | B26: 77.032547 | C26: セラミックH放熱面 | E26: 発熱体-空気熱抵抗 | F26: 10000 | G26: K/W
A27: 9 | B27: 25 | C27: 周囲温度 | E27: Hot-Cool戻り熱抵抗 | F27: 10000 | G27: K/W
C29: 温度差ΔT [℃] | D29: =B20-B26 -> -12.09715271 | E29: 電気抵抗/素子 | F29: =F16*F14/F15 -> 0.0203596875 | G29: Ω
C30: 吸熱量 Qc [W] | D30: =C8*(B20-B21) -> 22.47755645 | E30: 電気抵抗/モジュール | F30: =2*F29*F18 -> 5.171360625 | G30: Ω
C31: 投入電力 [W] | D31: =F32 -> 25.02938543 | E31: 電圧 | F31: =F30*F12 -> 11.37699338 | G31: V
C32: 成績係数 COP | D32: =D30/D31 -> 0.8980466786 | E32: 入力電力 | F32: =F31*F12 -> 25.02938543 | G32: W

Sheet 【事例1】 密閉機器筐体
A1: 12.2 密閉筐体の熱設計事例（筐体）
A2: 筐体幅(m) | B2: 0.18
A3: 筐体奥行(m) | B3: 0.15 | C3: 上面代表長 | D3: =MIN(B2,B3) -> 0.15
A4: 筐体高さ(m) | B4: 0.03 | C4: Stop | D4: =B2*B3+F4 -> 0.027
A5: 表面放射率 | B5: 0.85 | C5: Sside | D5: =(B2+B3)*2*B4 -> 0.0198
A6: 発熱量 (W) | B6: 15.5 | C6: Sbot | D6: =B2*B3 -> 0.027
A7: 通風口面積 (m2) | B7: 0 | C7: σ | D7: 5.67e-08
A8: 周囲空気温度℃ | B8: 40 | C8: 煙突長 | D8: =B4/2 -> 0.015
B9: =B8+B10 -> 59.28148524
A10: 表面温度上昇ΔＴ（仮定値） | B10: 19.28148524 | C10: 内部空気温度上昇 | E10: =B10*2 -> 38.56297049
A11: 周囲温度（K） | B11: =B8+273.15 -> 313.15 | C11: 内部空気温度 | E11: =E10+B8 -> 78.56297049
A12: 表面温度（K) | B12: =B8+B10+273.15 -> 332.4314852 | C12: 表面温度 | E12: =B10+B8 -> 59.28148524
B14: 熱伝達率 | C14: 熱ｺﾝﾀﾞｸﾀﾝｽ | D14: 放熱量
A15: 上面の対流熱伝達率 | B15: =2.51*0.54*(B10/D3)^0.25 -> 4.563833455 | C15: =B15*D4 -> 0.1232235033 | D15: =C15*$B$10 -> 2.375932161
A16: 側面の対流熱伝達率 | B16: =2.51*0.56*(B10/B4)^0.25 -> 7.077282899 | C16: =B16*D5 -> 0.1401302014 | D16: =C16*$B$10 -> 2.70191841
A17: 底面の対流熱伝達率 | B17: =2.51*0.27*(B10/D3)^0.25 -> 2.281916728 | C17: =B17*D6 -> 0.06161175165 | D17: =C17*$B$10 -> 1.18796608
A18: 全面の放射熱伝達率 | B18: =D7*B5*(B12^2+B11^2)*(B12+B11) -> 6.489517672 | C18: =B18*(D4+D5+D6) -> 0.4789264042 | D18: =C18*$B$10 -> 9.234412396
A19: 換気による放熱量 | D19: =1150*B7*0.1667*(D8*E10)^0.5*E10 -> 0
A20: 合計放熱量 | D20: =SUM(D15:D19) -> 15.50022905
A22: ＥＲＲ | B22: =B6-D20 -> -0.0002290474555

Sheet 【事例1】 密閉機器基板
A1: 12.2 密閉筐体の熱設計事例（基板）
A2: 筐体幅(m) | B2: 0.16
A3: 筐体奥行(m) | B3: 0.13 | C3: 上面代表長 | D3: =MIN(B2,B3) -> 0.13
A4: 筐体高さ(m) | B4: 0.0016 | C4: Stop | D4: =B2*B3+F4 -> 0.0208
A5: 表面放射率 | B5: 0.85 | C5: Sside | D5: =(B2+B3)*2*B4 -> 0.000928
A6: 発熱量 (W) | B6: 15.5 | C6: Sbot | D6: =B2*B3 -> 0.0208
A7: 通風口面積 (m2) | B7: 0 | C7: σ | D7: 5.67e-08
A8: 周囲空気温度℃ | B8: ='【事例1】 密閉機器筐体'!B8+'【事例1】 密閉機器筐体'!B10 -> 59.28148524 | C8: 煙突長 | D8: =B4/2 -> 0.0008
B9: =B8+B10 -> 88.89620403
A10: 表面温度上昇ΔＴ（仮定値） | B10: 29.61471879 | C10: 内部空気温度上昇 | E10: =B10*2 -> 59.22943757
A11: 周囲温度（K） | B11: =B8+273.15 -> 332.4314852 | C11: 内部空気温度 | E11: =E10+B8 -> 118.5109228
A12: 表面温度（K) | B12: =B8+B10+273.15 -> 362.046204 | C12: 表面温度 | E12: =B10+B8 -> 88.89620403
B14: 熱伝達率 | C14: 熱ｺﾝﾀﾞｸﾀﾝｽ | D14: 放熱量
A15: 上面の対流熱伝達率 | B15: =2.51*0.54*(B10/D3)^0.25 -> 5.26572951 | C15: =B15*D4 -> 0.1095271738 | D15: =C15*$B$10 -> 3.243616452
A16: 側面の対流熱伝達率 | B16: =2.51*0.56*(B10/B4)^0.25 -> 16.39489562 | C16: =B16*D5 -> 0.01521446314 | D16: =C16*$B$10 -> 0.4505720473
A17: 底面の対流熱伝達率 | B17: =2.51*0.27*(B10/D3)^0.25 -> 2.632864755 | C17: =B17*D6 -> 0.0547635869 | D17: =C17*$B$10 -> 1.621808226
A18: 全面の放射熱伝達率 | B18: =D7*B5*(B12^2+B11^2)*(B12+B11) -> 8.08604035 | C18: =B18*(D4+D5+D6) -> 0.343883124 | D18: =C18*$B$10 -> 10.18400201
A19: 換気による放熱量 | D19: =1150*B7*0.1667*(D8*E10)^0.5*E10 -> 0
A20: 合計放熱量 | D20: =SUM(D15:D19) -> 15.49999874
A22: ＥＲＲ | B22: =B6-D20 -> 1.262861073e-06

Sheet 【事例1】危険部品判断シート
C2: 熱対策が必要な部品かどうかを見分けるグラフ | K2: 基板で対策が可能かどうかを見分けるグラフ
Q4: 放熱限界ラインの調整
Q5: 基板熱伝導率 | R5: 18
Q6: 部品周囲の放熱領域（㎜）
Q7: 最小 | R7: 5
Q8: 最大 | R8: 20
A35: 部品リスト | G35: ※色のついていないセルが入力部分です | N35: 基板放射率 | O35: 0.85
A36: 名称 | B36: 許容温度 | C36: 外形寸法(mm) | F36: 消費電力 | G36: 周長 | H36: 表面積 | I36: 熱流束 | J36: 単体 熱抵抗 K/W | K36: 目標 熱抵抗 K/W | L36: 周囲温度℃ | M36: ='【事例1】 密閉機器基板'!B8 -> 59.28148524 | N36: 風速[m/s] | O36: 0 | P36: 放射率 | Q36: 対流・放射熱伝達率 W/m2K
B37: (℃) | C37: 縦 | D37: 横 | E37: 高さ | F37: Ｗ | G37: mm | H37: mm2 | I37: W/m2 | L37: 単体＜目標 | M37: 目標＞30 | N37: 単体÷目標 | O37: 対策方針
A38: 部品1 | B38: 90 | C38: 5 | D38: 4.9 | E38: 1 | F38: 0.2 | G38: =(C38+D38)*2 -> 19.8 | H38: =(C38*D38+D38*E38+E38*C38)*2 -> 68.8 | I38: =F38/H38*1000000 -> 2906.976744 | J38: =1/H38/Q38*1000000 -> 688.8611245 | K38: =(B38-$M$36)/F38 -> 153.5925738 | L38: =IF(J38<K38,"○","×") -> × | M38: =IF(OR(K38>=30,L38="○"),"○","×") -> ○ | N38: =J38/K38 -> 4.484989785 | P38: 0.9 | Q38: =IF($O$36<>0,3.86*($O$36/MIN(C38,D38)*1000)^0.5+0.0000000567*P38*(($M$36+273+(B38-$M$36))^2+($M$36+273)^2)*(($M$36+273+(B38-$M$36))+($M$36+273)),2.51*0.56*((B38-$M$36)/(MIN(C38,D38)/1000))^0.25+0.0000000567*P38*(($M$36+273+(B38-$M$36))^2+($M$36+273)^2)*(($M$36+273+(B38-$M$36))+($M$36+273))) -> 21.09987515
A39: 部品2 | B39: 90 | C39: 17 | D39: 17 | E39: 1 | F39: 2 | G39: =(C39+D39)*2 -> 68 | H39: 646 | I39: 3095.975232 | J39: 87.17666416 | K39: =(B39-$M$36)/F39 -> 15.35925738 | L39: × | M39: × | N39: 5.675838488 | P39: 0.9 | Q39: =IF($O$36<>0,3.86*($O$36/MIN(C39,D39)*1000)^0.5+0.0000000567*P39*(($M$36+273+(B39-$M$36))^2+($M$36+273)^2)*(($M$36+273+(B39-$M$36))+($M$36+273)),2.51*0.56*((B39-$M$36)/(MIN(C39,D39)/1000))^0.25+0.0000000567*P39*(($M$36+273+(B39-$M$36))^2+($M$36+273)^2)*(($M$36+273+(B39-$M$36))+($M$36+273))) -> 17.75690354
A40: 部品3 | B40: 90 | C40: 13 | D40: 13 | E40: 1.5 | F40: 1.7 | G40: 52 | H40: 416 | I40: 4086.538462 | J40: =1/H40/Q40*1000000 -> 130.6964093 | K40: =(B40-$M$36)/F40 -> 18.06971456 | L40: × | M40: × | N40: 7.232898384 | P40: 0.9 | Q40: =IF($O$36<>0,3.86*($O$36/MIN(C40,D40)*1000)^0.5+0.0000000567*P40*(($M$36+273+(B40-$M$36))^2+($M$36+273)^2)*(($M$36+273+(B40-$M$36))+($M$36+273)),2.51*0.56*((B40-$M$36)/(MIN(C40,D40)/1000))^0.25+0.0000000567*P40*(($M$36+273+(B40-$M$36))^2+($M$36+273)^2)*(($M$36+273+(B40-$M$36))+($M$36+273))) -> 18.39259523
A41: 部品4 | B41: 90 | C41: 3.95 | D41: 4.9 | E41: 1 | F41: 0.14 | G41: 17.7 | H41: 56.41 | I41: 2481.829463 | J41: =1/H41/Q41*1000000 -> 813.4704931 | K41: =(B41-$M$36)/F41 -> 219.4179625 | L41: =IF(J41<K41,"○","×") -> × | M41: ○ | N41: 3.707401544 | P41: 0.9 | Q41: 21.79225117
A42: 部品5 | B42: 90 | C42: 3 | D42: 6.5 | E42: 1 | F42: 0.16 | G42: 19 | H42: 58 | I42: 2758.62069 | J42: 758.4624529 | K42: 191.9907172 | L42: × | M42: ○ | N42: 3.950516275 | P42: 0.9 | Q42: 22.73201428
A43: 部品6 | B43: 90 | C43: 9.25 | D43: 10 | E43: 3.5 | F43: 1.7 | G43: 38.5 | H43: 319.75 | I43: 5316.653636 | J43: 162.3558613 | K43: 18.06971456 | L43: × | M43: × | N43: 8.984971002 | P43: 0.9 | Q43: 19.26289134
A44: 部品7 | B44: 90 | C44: 6 | D44: 7.2 | E44: 1.7 | F44: 0.3 | G44: 26.4 | H44: 131.28 | I44: 2285.191956 | J44: 371.8955326 | K44: 102.3950492 | L44: =IF(J44<K44,"○","×") -> × | M44: =IF(OR(K44>=30,L44="○"),"○","×") -> ○ | N44: =J44/K44 -> 3.631967908 | P44: 0.9 | Q44: 20.48238242
A45: 部品8 | B45: 90 | C45: 5 | D45: 2.1 | E45: 1 | F45: 0.2 | G45: 14.2 | H45: 35.2 | I45: 5681.818182 | J45: 1181.215397 | K45: 153.5925738 | L45: × | M45: ○ | N45: 7.690576233 | P45: 0.9 | Q45: 24.05072857
A46: 部品9 | B46: 90 | C46: 13.2 | D46: 14.5 | E46: 1.2 | F46: 2.3 | G46: 55.4 | H46: 449.28 | I46: 5119.301994 | J46: 121.2613347 | K46: 13.35587598 | L46: × | M46: × | N46: 9.079249829 | P46: 0.9 | Q46: 18.35526123
A47: 部品10 | B47: 90 | C47: 7 | D47: 6 | E47: 1.5 | F47: 0.19 | G47: 26 | H47: 123 | I47: 1544.715447 | J47: 396.9304514 | K47: 161.6763934 | L47: =IF(J47<K47,"○","×") -> × | M47: =IF(OR(K47>=30,L47="○"),"○","×") -> ○ | N47: =J47/K47 -> 2.455092193 | P47: 0.9 | Q47: 20.48238242
A48: 部品11 | B48: 90 | C48: 10.5 | D48: 7.5 | E48: 2.5 | F48: 0.5 | G48: 36 | H48: 247.5 | I48: 2020.20202 | J48: 203.6775072 | K48: 61.43702951 | L48: × | M48: ○ | N48: 3.315223877 | P48: 0.9 | Q48: 19.83726184
A49: 部品12 | B49: 90 | C49: 11.3 | D49: 11.4 | E49: 2.5 | F49: 1.2 | G49: 45.4 | H49: 371.14 | I49: 3233.281242 | J49: 143.7624179 | K49: 25.5987623 | L49: × | M49: × | N49: 5.615990968 | P49: 0.9 | Q49: 18.74204034

Sheet LEEの式 (2) (hidden)
L2: 面方向 | M2: 厚み方向
K3: 等価熱伝導率 | L3: =【事例1】危険部品判断シート!R5 -> 18 | M3: 0.4 | O3: ターゲット温度上昇 | Q3: 30
K4: 隙間 | L4: =【事例1】危険部品判断シート!R7 -> 5
E5: 位置 | H5: 発熱量 | I5: 部品L | J5: 周長 | K5: 周囲幅 | L5: P表面積 | M5: 熱伝達率 | N5: 熱抵抗R0 | O5: 温度上昇 | P5: As | Q5: Ap | R5: λ | S5: AC | T5: BC | U5: CC | V5: Rc | W5: Rt | X5: ERR
E6: C0 | F6: 1 | G6: =J6*1000 -> 8 | H6: =X6 -> 0.1579784717 | I6: 0.002 | J6: =I6*4 -> 0.008 | K6: =I6+$L$4/1000*2 -> 0.012 | L6: =K6^2*2 -> 0.000288 | M6: =IF(【事例1】危険部品判断シート!$O$36=0,2.51*0.56*(O6/K6)^0.25+0.0000000567*$F$9*(($F$10+273+O6)^2+($F$10+273)^2)*(($F$10+273+O6)+($F$10+273)),3.86*(【事例1】危険部品判断シート!$O$36/K6)^0.5+0.0000000567*$F$9*(($F$10+273+O6)^2+($F$10+273)^2)*(($F$10+273+O6)+($F$10+273))) -> 18.28454534 | N6: =1/L6/M6+$F$8/$M$3/L6 -> 203.7881813 | O6: =H6*N6 -> 32.19414544 | P6: =I6^2 -> 4e-06 | Q6: =K6^2 -> 0.000144 | R6: =(PI()^1.5)/((Q6)^0.5)+1/(P6)^0.5 -> 964.0273331 | S6: =$F$6*(Q6^0.5-P6^0.5)/($L$3*(PI()*Q6*P6)^0.5) -> 13.05994406 | T6: =R6*$L$3*Q6*N6/$F$6 -> 509.2175211 | U6: =TANH(R6*$F$8/$F$6) -> 0.9125300913 | V6: =S6*(T6+U6)/(1+T6*U6) -> 14.30665416 | W6: =N6+V6 -> 218.0948355 | X6: =L6*M6*$Q$3 -> 0.1579784717 | Y6: =J6*1000 -> 8
G7: =J7*1000 -> 16 | H7: =X7 -> 0.210467677 | I7: =I6+0.002 -> 0.004 | J7: 0.016 | K7: =I7+$L$4/1000*2 -> 0.014 | L7: =K7^2*2 -> 0.000392 | M7: =IF(【事例1】危険部品判断シート!$O$36=0,2.51*0.56*(O7/K7)^0.25+0.0000000567*$F$9*(($F$10+273+O7)^2+($F$10+273)^2)*(($F$10+273+O7)+($F$10+273)),3.86*(【事例1】危険部品判断シート!$O$36/K7)^0.5+0.0000000567*$F$9*(($F$10+273+O7)^2+($F$10+273)^2)*(($F$10+273+O7)+($F$10+273))) -> 17.89691131 | N7: =1/L7/M7+$F$8/$M$3/L7 -> 152.7437838 | O7: 32.14762936 | P7: =I7^2 -> 1.6e-05 | Q7: =K7^2 -> 0.000196 | R7: =(PI()^1.5)/((Q7)^0.5)+1/(P7)^0.5 -> 647.7377141 | S7: 5.597118884 | T7: 349.0529442 | U7: 0.7764546697 | V7: =S7*(T7+U7)/(1+T7*U7) -> 7.198034942 | W7: =N7+V7 -> 159.9418188 | X7: =L7*M7*$Q$3 -> 0.210467677 | Y7: =J7*1000 -> 16
E8: t | F8: 0.0016 | G8: 24 | H8: =X8 -> 0.2699244286 | I8: =I7+0.002 -> 0.006 | J8: 0.024 | K8: 0.016 | L8: 0.000512 | M8: =IF(【事例1】危険部品判断シート!$O$36=0,2.51*0.56*(O8/K8)^0.25+0.0000000567*$F$9*(($F$10+273+O8)^2+($F$10+273)^2)*(($F$10+273+O8)+($F$10+273)),3.86*(【事例1】危険部品判断シート!$O$36/K8)^0.5+0.0000000567*$F$9*(($F$10+273+O8)^2+($F$10+273)^2)*(($F$10+273+O8)+($F$10+273))) -> 17.57320498 | N8: 118.9547192 | O8: 32.1087846 | P8: 3.6e-05 | Q8: 0.000256 | R8: 514.6871665 | S8: 3.264986016 | T8: 282.1223455 | U8: 0.67697007 | V8: 4.809331646 | W8: 123.7640508 | X8: =L8*M8*$Q$3 -> 0.2699244286 | Y8: 24
E9: 放射率 | F9: =【事例1】危険部品判断シート!O35 -> 0.85 | G9: 32 | H9: 0.3362471115 | I9: 0.008 | J9: 0.032 | K9: 0.018 | L9: 0.000648 | M9: =IF(【事例1】危険部品判断シート!$O$36=0,2.51*0.56*(O9/K9)^0.25+0.0000000567*$F$9*(($F$10+273+O9)^2+($F$10+273)^2)*(($F$10+273+O9)+($F$10+273)),3.86*(【事例1】危険部品判断シート!$O$36/K9)^0.5+0.0000000567*$F$9*(($F$10+273+O9)^2+($F$10+273)^2)*(($F$10+273+O9)+($F$10+273))) -> 17.29666211 | N9: 95.39293679 | O9: =H9*N9 -> 32.07559945 | P9: 6.4e-05 | Q9: 0.000324 | R9: 434.3515554 | S9: 2.176657344 | T9: 241.643499 | U9: 0.6011605318 | V9: 3.604950507 | W9: 98.9978873 | X9: 0.3362471115 | Y9: 32
E10: 室温 | F10: =【事例1】危険部品判断シート!M36 -> 59.28148524 | G10: 40 | H10: 0.4093489784 | I10: 0.01 | J10: 0.04 | K10: 0.02 | L10: 0.0008 | M10: =IF(【事例1】危険部品判断シート!$O$36=0,2.51*0.56*(O10/K10)^0.25+0.0000000567*$F$9*(($F$10+273+O10)^2+($F$10+273)^2)*(($F$10+273+O10)+($F$10+273)),3.86*(【事例1】危険部品判断シート!$O$36/K10)^0.5+0.0000000567*$F$9*(($F$10+273+O10)^2+($F$10+273)^2)*(($F$10+273+O10)+($F$10+273))) -> 17.05620743 | N10: 78.28710119 | O10: 32.04674489 | P10: 0.0001 | Q10: 0.0004 | R10: 378.4163998 | S10: 1.567193288 | T10: 213.3008855 | U10: 0.5409277979 | V10: 2.879621628 | W10: 81.16672282 | X10: 0.4093489784 | Y10: 40
G11: 48 | H11: 0.4891546369 | I11: 0.012 | J11: 0.048 | K11: 0.022 | L11: =K11^2*2 -> 0.000968 | M11: =IF(【事例1】危険部品判断シート!$O$36=0,2.51*0.56*(O11/K11)^0.25+0.0000000567*$F$9*(($F$10+273+O11)^2+($F$10+273)^2)*(($F$10+273+O11)+($F$10+273)),3.86*(【事例1】危険部品判断シート!$O$36/K11)^0.5+0.0000000567*$F$9*(($F$10+273+O11)^2+($F$10+273)^2)*(($F$10+273+O11)+($F$10+273))) -> 16.84416794 | N11: 65.46253013 | O11: 32.02130015 | P11: 0.000144 | Q11: 0.000484 | R11: 336.4391514 | S11: 1.187267642 | T11: 191.8744652 | U11: 0.4917020551 | V11: 2.395405746 | W11: 67.85793587 | X11: 0.4891546369 | Y11: 48
G12: 56 | H12: 0.5755976243 | I12: 0.014 | J12: 0.056 | K12: 0.024 | L12: 0.001152 | M12: =IF(【事例1】危険部品判断シート!$O$36=0,2.51*0.56*(O12/K12)^0.25+0.0000000567*$F$9*(($F$10+273+O12)^2+($F$10+273)^2)*(($F$10+273+O12)+($F$10+273)),3.86*(【事例1】危険部品判断シート!$O$36/K12)^0.5+0.0000000567*$F$9*(($F$10+273+O12)^2+($F$10+273)^2)*(($F$10+273+O12)+($F$10+273))) -> 16.65502385 | N12: 55.59196479 | O12: 31.99860286 | P12: 0.000196 | Q12: 0.000576 | R12: 303.442238 | S12: 0.9328531474 | T12: 174.8972758 | U12: 0.4506435895 | V12: 2.049378189 | W12: 57.64134298 | X12: 0.5755976243 | Y12: 56
G13: 64 | H13: 0.6686186665 | I13: 0.016 | J13: 0.064 | K13: 0.026 | L13: 0.001352 | M13: =IF(【事例1】危険部品判断シート!$O$36=0,2.51*0.56*(O13/K13)^0.25+0.0000000567*$F$9*(($F$10+273+O13)^2+($F$10+273)^2)*(($F$10+273+O13)+($F$10+273)),3.86*(【事例1】危険部品判断シート!$O$36/K13)^0.5+0.0000000567*$F$9*(($F$10+273+O13)^2+($F$10+273)^2)*(($F$10+273+O13)+($F$10+273))) -> 16.48468113 | N13: 47.82720456 | O13: 31.97816174 | P13: 0.000256 | Q13: 0.000676 | R13: 276.6664614 | S13: 0.7534583114 | T13: 161.0092082 | U13: 0.4158521253 | V13: 1.789790674 | W13: 49.61699523 | X13: 0.6686186665 | Y13: 64
G14: 72 | H14: 0.7681643885 | I14: 0.018 | J14: 0.072 | K14: 0.028 | L14: 0.001568 | M14: =IF(【事例1】危険部品判断シート!$O$36=0,2.51*0.56*(O14/K14)^0.25+0.0000000567*$F$9*(($F$10+273+O14)^2+($F$10+273)^2)*(($F$10+273+O14)+($F$10+273)),3.86*(【事例1】危険部品判断シート!$O$36/K14)^0.5+0.0000000567*$F$9*(($F$10+273+O14)^2+($F$10+273)^2)*(($F$10+273+O14)+($F$10+273))) -> 16.33002527 | N14: 41.60516097 | O14: 31.95960303 | P14: 0.000324 | Q14: 0.000784 | R14: 254.4244126 | S14: 0.6219020983 | T14: 149.3807222 | U14: 0.385989732 | V14: 1.587813595 | W14: 43.19297456 | X14: 0.7681643885 | Y14: 72
G15: 80 | H15: 0.874186335 | I15: 0.02 | J15: 0.08 | K15: 0.03 | L15: 0.0018 | M15: =IF(【事例1】危険部品判断シート!$O$36=0,2.51*0.56*(O15/K15)^0.25+0.0000000567*$F$9*(($F$10+273+O15)^2+($F$10+273)^2)*(($F$10+273+O15)+($F$10+273)),3.86*(【事例1】危険部品判断シート!$O$36/K15)^0.5+0.0000000567*$F$9*(($F$10+273+O15)^2+($F$10+273)^2)*(($F$10+273+O15)+($F$10+273))) -> 16.18863583 | N15: 36.53984857 | O15: 31.9426363 | P15: 0.0004 | Q15: 0.0009 | R15: 235.6109332 | S15: 0.5223977625 | T15: 139.4688427 | U15: 0.360079719 | V15: 1.426131519 | W15: 37.96598009 | X15: 0.874186335 | Y15: 80
G16: 88 | H16: 0.9866402098 | I16: 0.022 | J16: 0.088 | K16: 0.032 | L16: 0.002048 | M16: =IF(【事例1】危険部品判断シート!$O$36=0,2.51*0.56*(O16/K16)^0.25+0.0000000567*$F$9*(($F$10+273+O16)^2+($F$10+273)^2)*(($F$10+273+O16)+($F$10+273)),3.86*(【事例1】危険部品判断シート!$O$36/K16)^0.5+0.0000000567*$F$9*(($F$10+273+O16)^2+($F$10+273)^2)*(($F$10+273+O16)+($F$10+273))) -> 16.05859716 | N16: 32.35934573 | O16: 31.92703166 | P16: 0.000484 | Q16: 0.001024 | R16: 219.4647954 | S16: 0.4452253658 | T16: 130.8992199 | U16: 0.3373894216 | V16: 1.293726237 | W16: 33.65307197 | X16: 0.9866402098 | Y16: 88
G17: 96 | H17: =X17 -> 1.105485274 | I17: 0.024 | J17: 0.096 | K17: 0.034 | L17: 0.002312 | M17: =IF(【事例1】危険部品判断シート!$O$36=0,2.51*0.56*(O17/K17)^0.25+0.0000000567*$F$9*(($F$10+273+O17)^2+($F$10+273)^2)*(($F$10+273+O17)+($F$10+273)),3.86*(【事例1】危険部品判断シート!$O$36/K17)^0.5+0.0000000567*$F$9*(($F$10+273+O17)^2+($F$10+273)^2)*(($F$10+273+O17)+($F$10+273))) -> 15.938369 | N17: 28.86750735 | O17: 31.91260428 | P17: 0.000576 | Q17: 0.001156 | R17: 205.4410195 | S17: 0.3841160019 | T17: 123.4033035 | U17: 0.3173572499 | V17: 1.183257346 | W17: 30.0507647 | X17: =L17*M17*$Q$3 -> 1.105485274 | Y17: 96
G18: 104 | H18: =X18 -> 1.230683863 | I18: 0.026 | J18: 0.104 | K18: 0.036 | L18: 0.002592 | M18: =IF(【事例1】危険部品判断シート!$O$36=0,2.51*0.56*(O18/K18)^0.25+0.0000000567*$F$9*(($F$10+273+O18)^2+($F$10+273)^2)*(($F$10+273+O18)+($F$10+273)),3.86*(【事例1】危険部品判断シート!$O$36/K18)^0.5+0.0000000567*$F$9*(($F$10+273+O18)^2+($F$10+273)^2)*(($F$10+273+O18)+($F$10+273))) -> 15.82669578 | N18: 25.91990067 | O18: 31.89920349 | P18: 0.000676 | Q18: 0.001296 | R18: 193.1373162 | S18: 0.3348703606 | T18: 116.782302 | U18: 0.2995450243 | V18: 1.089648227 | W18: 27.00954889 | X18: =L18*M18*$Q$3 -> 1.230683863 | Y18: 104
G19: 112 | H19: 1.362200993 | I19: 0.028 | J19: 0.112 | K19: 0.038 | L19: 0.002888 | M19: =IF(【事例1】危険部品判断シート!$O$36=0,2.51*0.56*(O19/K19)^0.25+0.0000000567*$F$9*(($F$10+273+O19)^2+($F$10+273)^2)*(($F$10+273+O19)+($F$10+273)),3.86*(【事例1】危険部品判断シート!$O$36/K19)^0.5+0.0000000567*$F$9*(($F$10+273+O19)^2+($F$10+273)^2)*(($F$10+273+O19)+($F$10+273))) -> 15.72254148 | N19: 23.40822326 | O19: 31.88670498 | P19: 0.000784 | Q19: 0.001444 | R19: 182.249233 | S19: 0.2945852044 | T19: 110.8852701 | U19: 0.2836056584 | V19: 1.009276961 | W19: 24.41750022 | X19: 1.362200993 | Y19: 112
G20: 120 | H20: 1.500004035 | I20: 0.03 | J20: 0.12 | K20: 0.04 | L20: 0.0032 | M20: =IF(【事例1】危険部品判断シート!$O$36=0,2.51*0.56*(O20/K20)^0.25+0.0000000567*$F$9*(($F$10+273+O20)^2+($F$10+273)^2)*(($F$10+273+O20)+($F$10+273)),3.86*(【事例1】危険部品判断シート!$O$36/K20)^0.5+0.0000000567*$F$9*(($F$10+273+O20)^2+($F$10+273)^2)*(($F$10+273+O20)+($F$10+273))) -> 15.62504203 | N20: 21.2499462 | O20: 31.87500504 | P20: 0.0009 | Q20: 0.0016 | R20: 172.5415333 | S20: 0.2611988813 | T20: 105.595151 | U20: 0.2692605998 | V20: 0.9394906673 | W20: 22.18943687 | X20: 1.500004035 | Y20: 120
G21: 128 | H21: 1.644062444 | I21: 0.032 | J21: 0.128 | K21: 0.042 | L21: 0.003528 | M21: =IF(【事例1】危険部品判断シート!$O$36=0,2.51*0.56*(O21/K21)^0.25+0.0000000567*$F$9*(($F$10+273+O21)^2+($F$10+273)^2)*(($F$10+273+O21)+($F$10+273)),3.86*(【事例1】危険部品判断シート!$O$36/K21)^0.5+0.0000000567*$F$9*(($F$10+273+O21)^2+($F$10+273)^2)*(($F$10+273+O21)+($F$10+273))) -> 15.5334698 | N21: 19.38126894 | O21: 31.86401638 | P21: 0.001024 | Q21: 0.001764 | R21: 163.829238 | S21: 0.2332132869 | T21: 100.8195385 | U21: 0.2562837043 | V21: 0.8783020041 | W21: 20.25957094 | X21: 1.644062444 | Y21: 128
G22: 136 | H22: 1.794347532 | I22: 0.034 | J22: 0.136 | K22: 0.044 | L22: 0.003872 | M22: =IF(【事例1】危険部品判断シート!$O$36=0,2.51*0.56*(O22/K22)^0.25+0.0000000567*$F$9*(($F$10+273+O22)^2+($F$10+273)^2)*(($F$10+273+O22)+($F$10+273)),3.86*(【事例1】危険部品判断シート!$O$36/K22)^0.5+0.0000000567*$F$9*(($F$10+273+O22)^2+($F$10+273)^2)*(($F$10+273+O22)+($F$10+273))) -> 15.44720672 | N22: 17.75222706 | O22: 31.85366481 | P22: 0.001156 | Q22: 0.001936 | R22: 155.9646737 | S22: 0.2095178192 | T22: 96.48436504 | U22: 0.2444894769 | V22: 0.8241928965 | W22: 18.57641995 | X22: 1.794347532 | Y22: 136
G23: 144 | H23: 1.950832274 | I23: 0.036 | J23: 0.144 | K23: 0.046 | L23: 0.004232 | M23: =IF(【事例1】危険部品判断シート!$O$36=0,2.51*0.56*(O23/K23)^0.25+0.0000000567*$F$9*(($F$10+273+O23)^2+($F$10+273)^2)*(($F$10+273+O23)+($F$10+273)),3.86*(【事例1】危険部品判断シート!$O$36/K23)^0.5+0.0000000567*$F$9*(($F$10+273+O23)^2+($F$10+273)^2)*(($F$10+273+O23)+($F$10+273))) -> 15.36572364 | N23: 16.32323151 | O23: 31.84388684 | P23: 0.001296 | Q23: 0.002116 | R23: 148.8283864 | S23: 0.1892745516 | T23: 92.52947153 | U23: 0.2337243489 | V23: 0.7759837929 | W23: 17.0992153 | X23: 1.950832274 | Y23: 144
G24: 152 | H24: 2.113491141 | I24: 0.038 | J24: 0.152 | K24: 0.048 | L24: 0.004608 | M24: =IF(【事例1】危険部品判断シート!$O$36=0,2.51*0.56*(O24/K24)^0.25+0.0000000567*$F$9*(($F$10+273+O24)^2+($F$10+273)^2)*(($F$10+273+O24)+($F$10+273)),3.86*(【事例1】危険部品判断シート!$O$36/K24)^0.5+0.0000000567*$F$9*(($F$10+273+O24)^2+($F$10+273)^2)*(($F$10+273+O24)+($F$10+273))) -> 15.28856439 | N24: 15.06257921 | O24: 31.83462773 | P24: 0.001444 | Q24: 0.002304 | R24: 142.3226227 | S24: 0.1718413693 | T24: 88.90542493 | U24: 0.22386011 | V24: 0.732744295 | W24: 15.79532351 | X24: 2.113491141 | Y24: 152
G25: 160 | H25: 2.28229996 | I25: 0.04 | J25: 0.16 | K25: 0.05 | L25: 0.005 | M25: =IF(【事例1】危険部品判断シート!$O$36=0,2.51*0.56*(O25/K25)^0.25+0.0000000567*$F$9*(($F$10+273+O25)^2+($F$10+273)^2)*(($F$10+273+O25)+($F$10+273)),3.86*(【事例1】危険部品判断シート!$O$36/K25)^0.5+0.0000000567*$F$9*(($F$10+273+O25)^2+($F$10+273)^2)*(($F$10+273+O25)+($F$10+273))) -> 15.21533307 | N25: 13.94463503 | O25: 31.82583997 | P25: 0.0016 | Q25: 0.0025 | R25: 136.3665599 | S25: 0.1567193288 | T25: 85.57118588 | U25: 0.2147888975 | V25: 0.6937306649 | W25: 14.63836569 | X25: 2.28229996 | Y25: 160
G26: 168 | H26: 2.457235786 | I26: 0.042 | J26: 0.168 | K26: 0.052 | L26: 0.005408 | M26: =IF(【事例1】危険部品判断シート!$O$36=0,2.51*0.56*(O26/K26)^0.25+0.0000000567*$F$9*(($F$10+273+O26)^2+($F$10+273)^2)*(($F$10+273+O26)+($F$10+273)),3.86*(【事例1】危険部品判断シート!$O$36/K26)^0.5+0.0000000567*$F$9*(($F$10+273+O26)^2+($F$10+273)^2)*(($F$10+273+O26)+($F$10+273))) -> 15.14568408 | N26: 12.94848556 | O26: 31.81748209 | P26: 0.001764 | Q26: 0.002704 | R26: 130.8927545 | S26: 0.1435158688 | T26: 82.49236911 | U26: 0.2064193265 | V26: 0.6583412349 | W26: 13.6068268 | X26: 2.457235786 | Y26: 168
G27: 176 | H27: 2.638276796 | I27: 0.044 | J27: 0.176 | K27: 0.054 | L27: 0.005832 | M27: =IF(【事例1】危険部品判断シート!$O$36=0,2.51*0.56*(O27/K27)^0.25+0.0000000567*$F$9*(($F$10+273+O27)^2+($F$10+273)^2)*(($F$10+273+O27)+($F$10+273)),3.86*(【事例1】危険部品判断シート!$O$36/K27)^0.5+0.0000000567*$F$9*(($F$10+273+O27)^2+($F$10+273)^2)*(($F$10+273+O27)+($F$10+273))) -> 15.07931411 | N27: 12.05692964 | O27: 31.80951769 | P27: 0.001936 | Q27: 0.002916 | R27: 125.8444579 | S27: 0.1319186269 | T27: 79.63992554 | U27: 0.1986734697 | V27: 0.6260840136 | W27: 12.68301365 | X27: 2.638276796 | Y27: 176
G28: 184 | H28: 2.825402195 | I28: 0.046 | J28: 0.184 | K28: 0.056 | L28: 0.006272 | M28: =IF(【事例1】危険部品判断シート!$O$36=0,2.51*0.56*(O28/K28)^0.25+0.0000000567*$F$9*(($F$10+273+O28)^2+($F$10+273)^2)*(($F$10+273+O28)+($F$10+273)),3.86*(【事例1】危険部品判断シート!$O$36/K28)^0.5+0.0000000567*$F$9*(($F$10+273+O28)^2+($F$10+273)^2)*(($F$10+273+O28)+($F$10+273))) -> 15.01595555 | N28: 11.25571245 | O28: 31.80191467 | P28: 0.002116 | Q28: 0.003136 | R28: 121.1735589 | S28: 0.1216764975 | T28: 76.98913006 | U28: 0.1914844765 | V28: 0.5965527673 | W28: 11.85226522 | X28: 2.825402195 | Y28: 184
G29: 192 | H29: 3.018592132 | I29: 0.048 | J29: 0.192 | K29: 0.058 | L29: 0.006728 | M29: =IF(【事例1】危険部品判断シート!$O$36=0,2.51*0.56*(O29/K29)^0.25+0.0000000567*$F$9*(($F$10+273+O29)^2+($F$10+273)^2)*(($F$10+273+O29)+($F$10+273)),3.86*(【事例1】危険部品判断シート!$O$36/K29)^0.5+0.0000000567*$F$9*(($F$10+273+O29)^2+($F$10+273)^2)*(($F$10+273+O29)+($F$10+273))) -> 14.95537124 | N29: 10.53293826 | O29: 31.79464455 | P29: 0.002304 | Q29: 0.003364 | R29: 116.8389885 | S29: 0.1125857247 | T29: 74.51879423 | U29: 0.1847946791 | V29: 0.569409099 | W29: 11.10234736 | X29: 3.018592132 | Y29: 192
G30: 200 | H30: 3.21782762 | I30: 0.05 | J30: 0.2 | K30: 0.06 | L30: 0.0072 | M30: =IF(【事例1】危険部品判断シート!$O$36=0,2.51*0.56*(O30/K30)^0.25+0.0000000567*$F$9*(($F$10+273+O30)^2+($F$10+273)^2)*(($F$10+273+O30)+($F$10+273)),3.86*(【事例1】危険部品判断シート!$O$36/K30)^0.5+0.0000000567*$F$9*(($F$10+273+O30)^2+($F$10+273)^2)*(($F$10+273+O30)+($F$10+273))) -> 14.89735009 | N30: 9.878615563 | O30: 31.78768201 | P30: 0.0025 | Q30: 0.0036 | R30: 112.8054666 | S30: 0.1044795525 | T30: 72.21064711 | U30: 0.178554074 | V30: 0.5443688417 | W30: 10.42298441 | X30: 3.21782762 | Y30: 200
E32: 刻み | K32: 隙間 | L32: =L4+E33 -> 10
E33: =(【事例1】危険部品判断シート!R8-【事例1】危険部品判断シート!R7)/3 -> 5 | H33: 発熱量 | I33: 部品L | J33: 周長 | K33: 周囲幅 | L33: P表面積 | M33: 熱伝達率 | N33: 熱抵抗R0 | O33: 温度上昇 | P33: As | Q33: Ap | R33: λ | S33: AC | T33: BC | U33: CC | V33: Rc | W33: Rt | X33: ERR
G34: =J34*1000 -> 8 | H34: =X34 -> 0.4891546369 | I34: 0.002 | J34: =I34*4 -> 0.008 | K34: =I34+$L$32/1000*2 -> 0.022 | L34: =K34^2*2 -> 0.000968 | M34: =IF(【事例1】危険部品判断シート!$O$36=0,2.51*0.56*(O34/K34)^0.25+0.0000000567*$F$9*(($F$10+273+O34)^2+($F$10+273)^2)*(($F$10+273+O34)+($F$10+273)),3.86*(【事例1】危険部品判断シート!$O$36/K34)^0.5+0.0000000567*$F$9*(($F$10+273+O34)^2+($F$10+273)^2)*(($F$10+273+O34)+($F$10+273))) -> 16.84416794 | N34: =1/L34/M34+$F$8/$M$3/L34 -> 65.46253013 | O34: =H34*N34 -> 32.02130015 | P34: =I34^2 -> 4e-06 | Q34: =K34^2 -> 0.000484 | R34: =(PI()^1.5)/((Q34)^0.5)+1/(P34)^0.5 -> 753.105818 | S34: =$F$6*(Q34^0.5-P34^0.5)/($L$3*(PI()*Q34*P34)^0.5) -> 14.24721171 | T34: =R34*$L$3*Q34*N34/$F$6 -> 429.5034496 | U34: =TANH(R34*$F$8/$F$6) -> 0.8351640799 | V34: =S34*(T34+U34)/(1+T34*U34) -> 17.0448306 | W34: =N34+V34 -> 82.50736073 | X34: =L34*M34*$Q$3 -> 0.4891546369
G35: =J35*1000 -> 16 | H35: =X35 -> 0.5755976243 | I35: =I34+0.002 -> 0.004 | J35: 0.016 | K35: =I35+$L$32/1000*2 -> 0.024 | L35: =K35^2*2 -> 0.001152 | M35: =IF(【事例1】危険部品判断シート!$O$36=0,2.51*0.56*(O35/K35)^0.25+0.0000000567*$F$9*(($F$10+273+O35)^2+($F$10+273)^2)*(($F$10+273+O35)+($F$10+273)),3.86*(【事例1】危険部品判断シート!$O$36/K35)^0.5+0.0000000567*$F$9*(($F$10+273+O35)^2+($F$10+273)^2)*(($F$10+273+O35)+($F$10+273))) -> 16.65502385 | N35: =1/L35/M35+$F$8/$M$3/L35 -> 55.59196479 | O35: =H35*N35 -> 31.99860286 | P35: =I35^2 -> 1.6e-05 | Q35: =K35^2 -> 0.000576 | R35: =(PI()^1.5)/((Q35)^0.5)+1/(P35)^0.5 -> 482.0136665 | S35: 6.529972032 | T35: 277.8218277 | U35: 0.6476393826 | V35: =S35*(T35+U35)/(1+T35*U35) -> 10.05037498 | W35: =N35+V35 -> 65.64233977 | X35: =L35*M35*$Q$3 -> 0.5755976243
G36: 24 | H36: =X36 -> 0.6686186665 | I36: =I35+0.002 -> 0.006 | J36: 0.024 | K36: 0.026 | L36: 0.001352 | M36: =IF(【事例1】危険部品判断シート!$O$36=0,2.51*0.56*(O36/K36)^0.25+0.0000000567*$F$9*(($F$10+273+O36)^2+($F$10+273)^2)*(($F$10+273+O36)+($F$10+273)),3.86*(【事例1】危険部品判断シート!$O$36/K36)^0.5+0.0000000567*$F$9*(($F$10+273+O36)^2+($F$10+273)^2)*(($F$10+273+O36)+($F$10+273))) -> 16.48468113 | N36: 47.82720456 | O36: 31.97816174 | P36: 3.6e-05 | Q36: 0.000676 | R36: 380.8331281 | S36: 4.018444327 | T36: 221.6301899 | U36: 0.5436574135 | V36: 7.348643127 | W36: 55.17584769 | X36: 0.6686186665
G37: 32 | H37: 0.7681643885 | I37: 0.008 | J37: 0.032 | K37: 0.028 | L37: 0.001568 | M37: =IF(【事例1】危険部品判断シート!$O$36=0,2.51*0.56*(O37/K37)^0.25+0.0000000567*$F$9*(($F$10+273+O37)^2+($F$10+273)^2)*(($F$10+273+O37)+($F$10+273)),3.86*(【事例1】危険部品判断シート!$O$36/K37)^0.5+0.0000000567*$F$9*(($F$10+273+O37)^2+($F$10+273)^2)*(($F$10+273+O37)+($F$10+273))) -> 16.33002527 | N37: 41.60516097 | O37: 31.95960303 | P37: 6.4e-05 | Q37: 0.000784 | R37: 323.868857 | S37: 2.798559442 | T37: 190.15378 | U37: 0.4763019743 | V37: 5.825991033 | W37: 47.431152 | X37: 0.7681643885
G38: 40 | H38: 0.874186335 | I38: 0.01 | J38: 0.04 | K38: 0.03 | L38: 0.0018 | M38: =IF(【事例1】危険部品判断シート!$O$36=0,2.51*0.56*(O38/K38)^0.25+0.0000000567*$F$9*(($F$10+273+O38)^2+($F$10+273)^2)*(($F$10+273+O38)+($F$10+273)),3.86*(【事例1】危険部品判断シート!$O$36/K38)^0.5+0.0000000567*$F$9*(($F$10+273+O38)^2+($F$10+273)^2)*(($F$10+273+O38)+($F$10+273))) -> 16.18863583 | N38: 36.53984857 | O38: 31.9426363 | P38: 0.0001 | Q38: 0.0009 | R38: 285.6109332 | S38: 2.08959105 | T38: 169.06612 | U38: 0.4276175861 | V38: 4.832109626 | W38: 41.37195819 | X38: 0.874186335
G39: 48 | H39: 0.9866402098 | I39: 0.012 | J39: 0.048 | K39: 0.032 | L39: =K39^2*2 -> 0.002048 | M39: =IF(【事例1】危険部品判断シート!$O$36=0,2.51*0.56*(O39/K39)^0.25+0.0000000567*$F$9*(($F$10+273+O39)^2+($F$10+273)^2)*(($F$10+273+O39)+($F$10+273)),3.86*(【事例1】危険部品判断シート!$O$36/K39)^0.5+0.0000000567*$F$9*(($F$10+273+O39)^2+($F$10+273)^2)*(($F$10+273+O39)+($F$10+273))) -> 16.05859716 | N39: 32.35934573 | O39: 31.92703166 | P39: 0.000144 | Q39: 0.001024 | R39: 257.3435832 | S39: 1.632493008 | T39: 153.4919267 | U39: 0.3899573487 | V39: 4.1280066 | W39: 36.48735233 | X39: 0.9866402098
G40: 56 | H40: 1.105485274 | I40: 0.014 | J40: 0.056 | K40: 0.034 | L40: 0.002312 | M40: =IF(【事例1】危険部品判断シート!$O$36=0,2.51*0.56*(O40/K40)^0.25+0.0000000567*$F$9*(($F$10+273+O40)^2+($F$10+273)^2)*(($F$10+273+O40)+($F$10+273)),3.86*(【事例1】危険部品判断シート!$O$36/K40)^0.5+0.0000000567*$F$9*(($F$10+273+O40)^2+($F$10+273)^2)*(($F$10+273+O40)+($F$10+273))) -> 15.938369 | N40: 28.86750735 | O40: 31.91260428 | P40: 0.000196 | Q40: 0.001156 | R40: 235.2029243 | S40: 1.316969149 | T40: 141.2805384 | U40: 0.3595114134 | V40: 3.601631491 | W40: 32.46913884 | X40: 1.105485274
G41: 64 | H41: 1.230683863 | I41: 0.016 | J41: 0.064 | K41: 0.036 | L41: 0.002592 | M41: =IF(【事例1】危険部品判断シート!$O$36=0,2.51*0.56*(O41/K41)^0.25+0.0000000567*$F$9*(($F$10+273+O41)^2+($F$10+273)^2)*(($F$10+273+O41)+($F$10+273)),3.86*(【事例1】危険部品判断シート!$O$36/K41)^0.5+0.0000000567*$F$9*(($F$10+273+O41)^2+($F$10+273)^2)*(($F$10+273+O41)+($F$10+273))) -> 15.82669578 | N41: 25.91990067 | O41: 31.89920349 | P41: 0.000256 | Q41: 0.001296 | R41: 217.1757777 | S41: 1.088328672 | T41: 131.3173847 | U41: 0.3341398927 | V41: 3.192631709 | W41: 29.11253238 | X41: 1.230683863
G42: 72 | H42: 1.362200993 | I42: 0.018 | J42: 0.072 | K42: 0.038 | L42: 0.002888 | M42: =IF(【事例1】危険部品判断シート!$O$36=0,2.51*0.56*(O42/K42)^0.25+0.0000000567*$F$9*(($F$10+273+O42)^2+($F$10+273)^2)*(($F$10+273+O42)+($F$10+273)),3.86*(【事例1】危険部品判断シート!$O$36/K42)^0.5+0.0000000567*$F$9*(($F$10+273+O42)^2+($F$10+273)^2)*(($F$10+273+O42)+($F$10+273))) -> 15.72254148 | N42: 23.40822326 | O42: 31.88670498 | P42: 0.000324 | Q42: 0.001444 | R42: 202.0905028 | S42: 0.9164873027 | T42: 122.9572252 | U42: 0.3125281728 | V42: 2.865382945 | W42: 26.2736062 | X42: 1.362200993
B43: 0.1 | C43: 0.1 | G43: 80 | H43: 1.500004035 | I43: 0.02 | J43: 0.08 | K43: 0.04 | L43: 0.0032 | M43: =IF(【事例1】危険部品判断シート!$O$36=0,2.51*0.56*(O43/K43)^0.25+0.0000000567*$F$9*(($F$10+273+O43)^2+($F$10+273)^2)*(($F$10+273+O43)+($F$10+273)),3.86*(【事例1】危険部品判断シート!$O$36/K43)^0.5+0.0000000567*$F$9*(($F$10+273+O43)^2+($F$10+273)^2)*(($F$10+273+O43)+($F$10+273))) -> 15.62504203 | N43: 21.2499462 | O43: 31.87500504 | P43: 0.0004 | Q43: 0.0016 | R43: 189.2081999 | S43: 0.7835966438 | T43: 115.7951252 | U43: 0.2938117954 | V43: 2.597423616 | W43: 23.84736981 | X43: 1.500004035
B44: 1000 | C44: 1000 | G44: 88 | H44: 1.644062444 | I44: 0.022 | J44: 0.088 | K44: 0.042 | L44: 0.003528 | M44: =IF(【事例1】危険部品判断シート!$O$36=0,2.51*0.56*(O44/K44)^0.25+0.0000000567*$F$9*(($F$10+273+O44)^2+($F$10+273)^2)*(($F$10+273+O44)+($F$10+273)),3.86*(【事例1】危険部品判断シート!$O$36/K44)^0.5+0.0000000567*$F$9*(($F$10+273+O44)^2+($F$10+273)^2)*(($F$10+273+O44)+($F$10+273))) -> 15.5334698 | N44: 19.38126894 | O44: 31.86401638 | P44: 0.000484 | Q44: 0.001764 | R44: 178.0337835 | S44: 0.6784386527 | T44: 109.5609313 | U44: 0.2773916393 | V44: 2.373861428 | W44: 21.75513037 | X44: 1.644062444
G45: 96 | H45: 1.794347532 | I45: 0.024 | J45: 0.096 | K45: 0.044 | L45: 0.003872 | M45: =IF(【事例1】危険部品判断シート!$O$36=0,2.51*0.56*(O45/K45)^0.25+0.0000000567*$F$9*(($F$10+273+O45)^2+($F$10+273)^2)*(($F$10+273+O45)+($F$10+273)),3.86*(【事例1】危険部品判断シート!$O$36/K45)^0.5+0.0000000567*$F$9*(($F$10+273+O45)^2+($F$10+273)^2)*(($F$10+273+O45)+($F$10+273))) -> 15.44720672 | N45: 17.75222706 | O45: 31.85366481 | P45: 0.000576 | Q45: 0.001936 | R45: 168.2195757 | S45: 0.5936338211 | T45: 104.0656102 | U45: 0.2628349616 | V45: 2.184421464 | W45: 19.93664852 | X45: 1.794347532
G46: 104 | H46: 1.950832274 | I46: 0.026 | J46: 0.104 | K46: 0.046 | L46: 0.004232 | M46: =IF(【事例1】危険部品判断シート!$O$36=0,2.51*0.56*(O46/K46)^0.25+0.0000000567*$F$9*(($F$10+273+O46)^2+($F$10+273)^2)*(($F$10+273+O46)+($F$10+273)),3.86*(【事例1】危険部品判断シート!$O$36/K46)^0.5+0.0000000567*$F$9*(($F$10+273+O46)^2+($F$10+273)^2)*(($F$10+273+O46)+($F$10+273))) -> 15.36572364 | N46: 16.32323151 | O46: 31.84388684 | P46: 0.000676 | Q46: 0.002116 | R46: 159.5121471 | S46: 0.5241449123 | T46: 99.17177112 | U46: 0.2498187007 | V46: 2.021780611 | W46: 18.34501212 | X46: 1.950832274
G47: 112 | H47: 2.113491141 | I47: 0.028 | J47: 0.112 | K47: 0.048 | L47: 0.004608 | M47: =IF(【事例1】危険部品判断シート!$O$36=0,2.51*0.56*(O47/K47)^0.25+0.0000000567*$F$9*(($F$10+273+O47)^2+($F$10+273)^2)*(($F$10+273+O47)+($F$10+273)),3.86*(【事例1】危険部品判断シート!$O$36/K47)^0.5+0.0000000567*$F$9*(($F$10+273+O47)^2+($F$10+273)^2)*(($F$10+273+O47)+($F$10+273))) -> 15.28856439 | N47: 15.06257921 | O47: 31.83462773 | P47: 0.000784 | Q47: 0.002304 | R47: 151.721119 | S47: 0.4664265737 | T47: 94.77643325 | U47: 0.2380951272 | V47: 1.880576424 | W47: 16.94315563 | X47: 2.113491141
G48: 120 | H48: 2.28229996 | I48: 0.03 | J48: 0.12 | K48: 0.05 | L48: 0.005 | M48: =IF(【事例1】危険部品判断シート!$O$36=0,2.51*0.56*(O48/K48)^0.25+0.0000000567*$F$9*(($F$10+273+O48)^2+($F$10+273)^2)*(($F$10+273+O48)+($F$10+273)),3.86*(【事例1】危険部品判断シート!$O$36/K48)^0.5+0.0000000567*$F$9*(($F$10+273+O48)^2+($F$10+273)^2)*(($F$10+273+O48)+($F$10+273))) -> 15.21533307 | N48: 13.94463503 | O48: 31.82583997 | P48: 0.0009 | Q48: 0.0025 | R48: 144.6998933 | S48: 0.41791821 | T48: 90.80042402 | U48: 0.2274700389 | V48: 1.756791079 | W48: 15.70142611 | X48: 2.28229996
G49: 128 | H49: 2.457235786 | I49: 0.032 | J49: 0.128 | K49: 0.052 | L49: 0.005408 | M49: =IF(【事例1】危険部品判断シート!$O$36=0,2.51*0.56*(O49/K49)^0.25+0.0000000567*$F$9*(($F$10+273+O49)^2+($F$10+273)^2)*(($F$10+273+O49)+($F$10+273)),3.86*(【事例1】危険部品判断シート!$O$36/K49)^0.5+0.0000000567*$F$9*(($F$10+273+O49)^2+($F$10+273)^2)*(($F$10+273+O49)+($F$10+273))) -> 15.14568408 | N49: 12.94848556 | O49: 31.81748209 | P49: 0.001024 | Q49: 0.002704 | R49: 138.3332307 | S49: 0.3767291557 | T49: 87.18157067 | U49: 0.2177883641 | V49: 1.647354273 | W49: 14.59583983 | X49: 2.457235786
G50: 136 | H50: 2.638276796 | I50: 0.034 | J50: 0.136 | K50: 0.054 | L50: 0.005832 | M50: =IF(【事例1】危険部品判断シート!$O$36=0,2.51*0.56*(O50/K50)^0.25+0.0000000567*$F$9*(($F$10+273+O50)^2+($F$10+273)^2)*(($F$10+273+O50)+($F$10+273)),3.86*(【事例1】危険部品判断シート!$O$36/K50)^0.5+0.0000000567*$F$9*(($F$10+273+O50)^2+($F$10+273)^2)*(($F$10+273+O50)+($F$10+273))) -> 15.07931411 | N50: 12.05692964 | O50: 31.80951769 | P50: 0.001156 | Q50: 0.002916 | R50: 132.5289498 | S50: 0.3414364461 | T50: 83.870167 | U50: 0.2089243332 | V50: 1.549879181 | W50: 13.60680882 | X50: 2.638276796
G51: 144 | H51: 2.825402195 | I51: 0.036 | J51: 0.144 | K51: 0.056 | L51: 0.006272 | M51: =IF(【事例1】危険部品判断シート!$O$36=0,2.51*0.56*(O51/K51)^0.25+0.0000000567*$F$9*(($F$10+273+O51)^2+($F$10+273)^2)*(($F$10+273+O51)+($F$10+273)),3.86*(【事例1】危険部品判断シート!$O$36/K51)^0.5+0.0000000567*$F$9*(($F$10+273+O51)^2+($F$10+273)^2)*(($F$10+273+O51)+($F$10+273))) -> 15.01595555 | N51: 11.25571245 | O51: 31.80191467 | P51: 0.001296 | Q51: 0.003136 | R51: 127.2122063 | S51: 0.3109510491 | T51: 80.82585987 | U51: 0.2007745718 | V51: 1.462482153 | W51: 12.7181946 | X51: 2.825402195
G52: 152 | H52: 3.018592132 | I52: 0.038 | J52: 0.152 | K52: 0.058 | L52: 0.006728 | M52: =IF(【事例1】危険部品判断シート!$O$36=0,2.51*0.56*(O52/K52)^0.25+0.0000000567*$F$9*(($F$10+273+O52)^2+($F$10+273)^2)*(($F$10+273+O52)+($F$10+273)),3.86*(【事例1】危険部品判断シート!$O$36/K52)^0.5+0.0000000567*$F$9*(($F$10+273+O52)^2+($F$10+273)^2)*(($F$10+273+O52)+($F$10+273))) -> 14.95537124 | N52: 10.53293826 | O52: 31.79464455 | P52: 0.001444 | Q52: 0.003364 | R52: 122.3214446 | S52: 0.2844270939 | T52: 78.01545255 | U52: 0.1932531275 | V52: 1.383656664 | W52: 11.91659492 | X52: 3.018592132
G53: 160 | H53: 3.21782762 | I53: 0.04 | J53: 0.16 | K53: 0.06 | L53: 0.0072 | M53: =IF(【事例1】危険部品判断シート!$O$36=0,2.51*0.56*(O53/K53)^0.25+0.0000000567*$F$9*(($F$10+273+O53)^2+($F$10+273)^2)*(($F$10+273+O53)+($F$10+273)),3.86*(【事例1】危険部品判断シート!$O$36/K53)^0.5+0.0000000567*$F$9*(($F$10+273+O53)^2+($F$10+273)^2)*(($F$10+273+O53)+($F$10+273))) -> 14.89735009 | N53: 9.878615563 | O53: 31.78768201 | P53: 0.0016 | Q53: 0.0036 | R53: 117.8054666 | S53: 0.2611988813 | T53: 75.41131855 | U53: 0.1862878094 | V53: 1.312183381 | W53: 11.19079894 | X53: 3.21782762
G54: 168 | H54: 3.423090481 | I54: 0.042 | J54: 0.168 | K54: 0.062 | L54: 0.007688 | M54: =IF(【事例1】危険部品判断シート!$O$36=0,2.51*0.56*(O54/K54)^0.25+0.0000000567*$F$9*(($F$10+273+O54)^2+($F$10+273)^2)*(($F$10+273+O54)+($F$10+273)),3.86*(【事例1】危険部品判断シート!$O$36/K54)^0.5+0.0000000567*$F$9*(($F$10+273+O54)^2+($F$10+273)^2)*(($F$10+273+O54)+($F$10+273))) -> 14.84170344 | N54: 9.284301595 | O54: 31.78100441 | P54: 0.001764 | Q54: 0.003844 | R54: 113.6212657 | S54: 0.2407362961 | T54: 72.99023245 | U54: 0.179817443 | V54: 1.247064803 | W54: 10.5313664 | X54: 3.423090481
G55: 176 | H55: 3.634363276 | I55: 0.044 | J55: 0.176 | K55: 0.064 | L55: 0.008192 | M55: =IF(【事例1】危険部品判断シート!$O$36=0,2.51*0.56*(O55/K55)^0.25+0.0000000567*$F$9*(($F$10+273+O55)^2+($F$10+273)^2)*(($F$10+273+O55)+($F$10+273)),3.86*(【事例1】危険部品判断シート!$O$36/K55)^0.5+0.0000000567*$F$9*(($F$10+273+O55)^2+($F$10+273)^2)*(($F$10+273+O55)+($F$10+273))) -> 14.78826203 | N55: 8.742822066 | O55: 31.77459144 | P55: 0.001936 | Q55: 0.004096 | R55: 109.7323977 | S55: 0.2226126829 | T55: 70.73249239 | U55: 0.1737897781 | V55: 1.187476981 | W55: 9.930299048 | X55: 3.634363276
G56: 184 | H56: 3.851629257 | I56: 0.046 | J56: 0.184 | K56: 0.066 | L56: 0.008712 | M56: =IF(【事例1】危険部品判断シート!$O$36=0,2.51*0.56*(O56/K56)^0.25+0.0000000567*$F$9*(($F$10+273+O56)^2+($F$10+273)^2)*(($F$10+273+O56)+($F$10+273)),3.86*(【事例1】危険部品判断シート!$O$36/K56)^0.5+0.0000000567*$F$9*(($F$10+273+O56)^2+($F$10+273)^2)*(($F$10+273+O56)+($F$10+273))) -> 14.7368735 | N56: 8.248048474 | O56: 31.76842482 | P56: 0.002116 | Q56: 0.004356 | R56: 106.1077364 | S56: 0.2064813291 | T56: 68.62125094 | U56: 0.1681598693 | V56: 1.132733326 | W56: 9.3807818 | X56: 3.851629257
G57: 192 | H57: 4.074872322 | I57: 0.048 | J57: 0.192 | K57: 0.068 | L57: 0.009248 | M57: =IF(【事例1】危険部品判断シート!$O$36=0,2.51*0.56*(O57/K57)^0.25+0.0000000567*$F$9*(($F$10+273+O57)^2+($F$10+273)^2)*(($F$10+273+O57)+($F$10+273)),3.86*(【事例1】危険部品判断シート!$O$36/K57)^0.5+0.0000000567*$F$9*(($F$10+273+O57)^2+($F$10+273)^2)*(($F$10+273+O57)+($F$10+273))) -> 14.68740024 | N57: 7.794719814 | O57: 31.76248803 | P57: 0.002304 | Q57: 0.004624 | R57: 102.7205098 | S57: 0.1920580009 | T57: 66.64199739 | U57: 0.1628888074 | V57: 1.082257111 | W57: 8.876976925 | X57: 4.074872322
G58: 200 | H58: 4.304076966 | I58: 0.05 | J58: 0.2 | K58: 0.07 | L58: 0.0098 | M58: =IF(【事例1】危険部品判断シート!$O$36=0,2.51*0.56*(O58/K58)^0.25+0.0000000567*$F$9*(($F$10+273+O58)^2+($F$10+273)^2)*(($F$10+273+O58)+($F$10+273)),3.86*(【事例1】危険部品判断シート!$O$36/K58)^0.5+0.0000000567*$F$9*(($F$10+273+O58)^2+($F$10+273)^2)*(($F$10+273+O58)+($F$10+273))) -> 14.63971757 | N58: 7.378298846 | O58: 31.75676611 | P58: 0.0025 | Q58: 0.0049 | R58: 99.54754281 | S58: 0.1791078043 | T58: 64.78215208 | U58: 0.1579427127 | V58: 1.035560329 | W58: 8.413859175 | X58: 4.304076966
K60: 隙間 | L60: =L32+E33 -> 15
H61: 発熱量 | I61: 部品L | J61: 周長 | K61: 周囲幅 | L61: P表面積 | M61: 熱伝達率 | N61: 熱抵抗R0 | O61: 温度上昇 | P61: As | Q61: Ap | R61: λ | S61: AC | T61: BC | U61: CC | V61: Rc | W61: Rt | X61: ERR
G62: =J62*1000 -> 8 | H62: =X62 -> 0.9866402098 | I62: 0.002 | J62: =I62*4 -> 0.008 | K62: =I62+$L$60/1000*2 -> 0.032 | L62: =K62^2*2 -> 0.002048 | M62: =IF(【事例1】危険部品判断シート!$O$36=0,2.51*0.56*(O62/K62)^0.25+0.0000000567*$F$9*(($F$10+273+O62)^2+($F$10+273)^2)*(($F$10+273+O62)+($F$10+273)),3.86*(【事例1】危険部品判断シート!$O$36/K62)^0.5+0.0000000567*$F$9*(($F$10+273+O62)^2+($F$10+273)^2)*(($F$10+273+O62)+($F$10+273))) -> 16.05859716 | N62: =1/L62/M62+$F$8/$M$3/L62 -> 32.35934573 | O62: =H62*N62 -> 31.92703166 | P62: =I62^2 -> 4e-06 | Q62: =K62^2 -> 0.001024 | R62: =(PI()^1.5)/((Q62)^0.5)+1/(P62)^0.5 -> 674.0102499 | S62: =$F$6*(Q62^0.5-P62^0.5)/($L$3*(PI()*Q62*P62)^0.5) -> 14.69243707 | T62: =R62*$L$3*Q62*N62/$F$6 -> 402.0117019 | U62: =TANH(R62*$F$8/$F$6) -> 0.7926111043 | V62: =S62*(T62+U62)/(1+T62*U62) -> 18.51519417 | W62: =N62+V62 -> 50.8745399 | X62: =L62*M62*$Q$3 -> 0.9866402098
G63: =J63*1000 -> 16 | H63: =X63 -> 1.105485274 | I63: =I62+0.002 -> 0.004 | J63: 0.016 | K63: =I63+$L$60/1000*2 -> 0.034 | L63: =K63^2*2 -> 0.002312 | M63: =IF(【事例1】危険部品判断シート!$O$36=0,2.51*0.56*(O63/K63)^0.25+0.0000000567*$F$9*(($F$10+273+O63)^2+($F$10+273)^2)*(($F$10+273+O63)+($F$10+273)),3.86*(【事例1】危険部品判断シート!$O$36/K63)^0.5+0.0000000567*$F$9*(($F$10+273+O63)^2+($F$10+273)^2)*(($F$10+273+O63)+($F$10+273))) -> 15.938369 | N63: 28.86750735 | O63: 31.91260428 | P63: =I63^2 -> 1.6e-05 | Q63: =K63^2 -> 0.001156 | R63: =(PI()^1.5)/((Q63)^0.5)+1/(P63)^0.5 -> 413.7743528 | S63: 6.914088034 | T63: 248.5439479 | U63: 0.5797187352 | V63: =S63*(T63+U63)/(1+T63*U63) -> 11.87204769 | W63: =N63+V63 -> 40.73955505 | X63: =L63*M63*$Q$3 -> 1.105485274
G64: 24 | H64: =X64 -> 1.230683863 | I64: =I63+0.002 -> 0.006 | J64: 0.024 | K64: 0.036 | L64: 0.002592 | M64: =IF(【事例1】危険部品判断シート!$O$36=0,2.51*0.56*(O64/K64)^0.25+0.0000000567*$F$9*(($F$10+273+O64)^2+($F$10+273)^2)*(($F$10+273+O64)+($F$10+273)),3.86*(【事例1】危険部品判断シート!$O$36/K64)^0.5+0.0000000567*$F$9*(($F$10+273+O64)^2+($F$10+273)^2)*(($F$10+273+O64)+($F$10+273))) -> 15.82669578 | N64: 25.91990067 | O64: 31.89920349 | P64: 3.6e-05 | Q64: 0.001296 | R64: 321.3424444 | S64: 4.353314688 | T64: 194.3027433 | U64: 0.473170744 | V64: 9.123474132 | W64: 35.0433748 | X64: 1.230683863
G65: 32 | H65: 1.362200993 | I65: 0.008 | J65: 0.032 | K65: 0.038 | L65: 0.002888 | M65: =IF(【事例1】危険部品判断シート!$O$36=0,2.51*0.56*(O65/K65)^0.25+0.0000000567*$F$9*(($F$10+273+O65)^2+($F$10+273)^2)*(($F$10+273+O65)+($F$10+273)),3.86*(【事例1】危険部品判断シート!$O$36/K65)^0.5+0.0000000567*$F$9*(($F$10+273+O65)^2+($F$10+273)^2)*(($F$10+273+O65)+($F$10+273))) -> 15.72254148 | N65: 23.40822326 | O65: 31.88670498 | P65: 6.4e-05 | Q65: 0.001444 | R65: 271.5349473 | S65: 3.093144647 | T65: 165.2090682 | U65: 0.4090384446 | V65: 7.470169352 | W65: 30.87839261 | X65: 1.362200993
G66: 40 | H66: 1.500004035 | I66: 0.01 | J66: 0.04 | K66: 0.04 | L66: 0.0032 | M66: =IF(【事例1】危険部品判断シート!$O$36=0,2.51*0.56*(O66/K66)^0.25+0.0000000567*$F$9*(($F$10+273+O66)^2+($F$10+273)^2)*(($F$10+273+O66)+($F$10+273)),3.86*(【事例1】危険部品判断シート!$O$36/K66)^0.5+0.0000000567*$F$9*(($F$10+273+O66)^2+($F$10+273)^2)*(($F$10+273+O66)+($F$10+273))) -> 15.62504203 | N66: 21.2499462 | O66: 31.87500504 | P66: 0.0001 | Q66: 0.0016 | R66: 239.2081999 | S66: 2.350789931 | T66: 146.3950477 | U66: 0.3650786707 | V66: 6.33662838 | W66: 27.58657458 | X66: 1.500004035
G67: 48 | H67: 1.644062444 | I67: 0.012 | J67: 0.048 | K67: 0.042 | L67: =K67^2*2 -> 0.003528 | M67: =IF(【事例1】危険部品判断シート!$O$36=0,2.51*0.56*(O67/K67)^0.25+0.0000000567*$F$9*(($F$10+273+O67)^2+($F$10+273)^2)*(($F$10+273+O67)+($F$10+273)),3.86*(【事例1】危険部品判断シート!$O$36/K67)^0.5+0.0000000567*$F$9*(($F$10+273+O67)^2+($F$10+273)^2)*(($F$10+273+O67)+($F$10+273))) -> 15.5334698 | N67: 19.38126894 | O67: 31.86401638 | P67: 0.000144 | Q67: 0.001764 | R67: 215.9125714 | S67: 1.865706295 | T67: 132.871312 | U67: 0.3323432097 | V67: 5.503212377 | W67: 24.88448131 | X67: 1.644062444
G68: 56 | H68: 1.794347532 | I68: 0.014 | J68: 0.056 | K68: 0.044 | L68: 0.003872 | M68: =IF(【事例1】危険部品判断シート!$O$36=0,2.51*0.56*(O68/K68)^0.25+0.0000000567*$F$9*(($F$10+273+O68)^2+($F$10+273)^2)*(($F$10+273+O68)+($F$10+273)),3.86*(【事例1】危険部品判断シート!$O$36/K68)^0.5+0.0000000567*$F$9*(($F$10+273+O68)^2+($F$10+273)^2)*(($F$10+273+O68)+($F$10+273))) -> 15.44720672 | N68: 17.75222706 | O68: 31.85366481 | P68: 0.000196 | Q68: 0.001936 | R68: 197.9814804 | S68: 1.526486968 | T68: 122.4772057 | U68: 0.3065837591 | V68: 4.862002022 | W68: 22.61422908 | X68: 1.794347532
G69: 64 | H69: 1.950832274 | I69: 0.016 | J69: 0.064 | K69: 0.046 | L69: 0.004232 | M69: =IF(【事例1】危険部品判断シート!$O$36=0,2.51*0.56*(O69/K69)^0.25+0.0000000567*$F$9*(($F$10+273+O69)^2+($F$10+273)^2)*(($F$10+273+O69)+($F$10+273)),3.86*(【事例1】危険部品判断シート!$O$36/K69)^0.5+0.0000000567*$F$9*(($F$10+273+O69)^2+($F$10+273)^2)*(($F$10+273+O69)+($F$10+273))) -> 15.36572364 | N69: 16.32323151 | O69: 31.84388684 | P69: 0.000256 | Q69: 0.002116 | R69: 183.5506086 | S69: 1.277603224 | T69: 114.1169452 | U69: 0.2855192506 | V69: 4.352284339 | W69: 20.67551585 | X69: 1.950832274
G70: 72 | H70: 2.113491141 | I70: 0.018 | J70: 0.072 | K70: 0.048 | L70: 0.004608 | M70: =IF(【事例1】危険部品判断シート!$O$36=0,2.51*0.56*(O70/K70)^0.25+0.0000000567*$F$9*(($F$10+273+O70)^2+($F$10+273)^2)*(($F$10+273+O70)+($F$10+273)),3.86*(【事例1】危険部品判断シート!$O$36/K70)^0.5+0.0000000567*$F$9*(($F$10+273+O70)^2+($F$10+273)^2)*(($F$10+273+O70)+($F$10+273))) -> 15.28856439 | N70: 15.06257921 | O70: 31.83462773 | P70: 0.000324 | Q70: 0.002304 | R70: 171.5623888 | S70: 1.088328672 | T70: 107.1707841 | U70: 0.2678069394 | V70: 3.936843386 | W70: 18.9994226 | X70: 2.113491141
G71: 80 | H71: 2.28229996 | I71: 0.02 | J71: 0.08 | K71: 0.05 | L71: 0.005 | M71: =IF(【事例1】危険部品判断シート!$O$36=0,2.51*0.56*(O71/K71)^0.25+0.0000000567*$F$9*(($F$10+273+O71)^2+($F$10+273)^2)*(($F$10+273+O71)+($F$10+273)),3.86*(【事例1】危険部品判断シート!$O$36/K71)^0.5+0.0000000567*$F$9*(($F$10+273+O71)^2+($F$10+273)^2)*(($F$10+273+O71)+($F$10+273))) -> 15.21533307 | N71: 13.94463503 | O71: 31.82583997 | P71: 0.0004 | Q71: 0.0025 | R71: 161.3665599 | S71: 0.9403159726 | T71: 101.2589003 | U71: 0.2525985202 | V71: 3.591445116 | W71: 17.53608015 | X71: 2.28229996
G72: 88 | H72: 2.457235786 | I72: 0.022 | J72: 0.088 | K72: 0.052 | L72: 0.005408 | M72: =IF(【事例1】危険部品判断シート!$O$36=0,2.51*0.56*(O72/K72)^0.25+0.0000000567*$F$9*(($F$10+273+O72)^2+($F$10+273)^2)*(($F$10+273+O72)+($F$10+273)),3.86*(【事例1】危険部品判断シート!$O$36/K72)^0.5+0.0000000567*$F$9*(($F$10+273+O72)^2+($F$10+273)^2)*(($F$10+273+O72)+($F$10+273))) -> 15.14568408 | N72: 12.94848556 | O72: 31.81748209 | P72: 0.000484 | Q72: 0.002704 | R72: 152.5377762 | S72: 0.8219545215 | T72: 96.13368273 | U72: 0.2393273215 | V72: 3.299573296 | W72: 16.24805886 | X72: 2.457235786
G73: 96 | H73: 2.638276796 | I73: 0.024 | J73: 0.096 | K73: 0.054 | L73: 0.005832 | M73: =IF(【事例1】危険部品判断シート!$O$36=0,2.51*0.56*(O73/K73)^0.25+0.0000000567*$F$9*(($F$10+273+O73)^2+($F$10+273)^2)*(($F$10+273+O73)+($F$10+273)),3.86*(【事例1】危険部品判断シート!$O$36/K73)^0.5+0.0000000567*$F$9*(($F$10+273+O73)^2+($F$10+273)^2)*(($F$10+273+O73)+($F$10+273))) -> 15.07931411 | N73: 12.05692964 | O73: 31.80951769 | P73: 0.000576 | Q73: 0.002916 | R73: 144.7838518 | S73: 0.725552448 | T73: 91.62560969 | U73: 0.2275974178 | V73: 3.049559579 | W73: 15.10648922 | X73: 2.638276796
G74: 104 | H74: 2.825402195 | I74: 0.026 | J74: 0.104 | K74: 0.056 | L74: 0.006272 | M74: =IF(【事例1】危険部品判断シート!$O$36=0,2.51*0.56*(O74/K74)^0.25+0.0000000567*$F$9*(($F$10+273+O74)^2+($F$10+273)^2)*(($F$10+273+O74)+($F$10+273)),3.86*(【事例1】危険部品判断シート!$O$36/K74)^0.5+0.0000000567*$F$9*(($F$10+273+O74)^2+($F$10+273)^2)*(($F$10+273+O74)+($F$10+273))) -> 15.01595555 | N74: 11.25571245 | O74: 31.80191467 | P74: 0.000676 | Q74: 0.003136 | R74: 137.895967 | S74: 0.6458214097 | T74: 87.6139203 | U74: 0.217121825 | V74: 2.832915495 | W74: 14.08862794 | X74: 2.825402195
G75: 112 | H75: 3.018592132 | I75: 0.028 | J75: 0.112 | K75: 0.058 | L75: 0.006728 | M75: =IF(【事例1】危険部品判断シート!$O$36=0,2.51*0.56*(O75/K75)^0.25+0.0000000567*$F$9*(($F$10+273+O75)^2+($F$10+273)^2)*(($F$10+273+O75)+($F$10+273)),3.86*(【事例1】危険部品判断シート!$O$36/K75)^0.5+0.0000000567*$F$9*(($F$10+273+O75)^2+($F$10+273)^2)*(($F$10+273+O75)+($F$10+273))) -> 14.95537124 | N75: 10.53293826 | O75: 31.79464455 | P75: 0.000784 | Q75: 0.003364 | R75: 131.7199408 | S75: 0.5790122984 | T75: 84.00972395 | U75: 0.207686085 | V75: 2.643313072 | W75: 13.17625133 | X75: 3.018592132
G76: 120 | H76: 3.21782762 | I76: 0.03 | J76: 0.12 | K76: 0.06 | L76: 0.0072 | M76: =IF(【事例1】危険部品判断シート!$O$36=0,2.51*0.56*(O76/K76)^0.25+0.0000000567*$F$9*(($F$10+273+O76)^2+($F$10+273)^2)*(($F$10+273+O76)+($F$10+273)),3.86*(【事例1】危険部品判断シート!$O$36/K76)^0.5+0.0000000567*$F$9*(($F$10+273+O76)^2+($F$10+273)^2)*(($F$10+273+O76)+($F$10+273))) -> 14.89735009 | N76: 9.878615563 | O76: 31.78768201 | P76: 0.0009 | Q76: 0.0036 | R76: 126.1387999 | S76: 0.5223977625 | T76: 80.74577096 | U76: 0.1991257859 | V76: 2.475935929 | W76: 12.35455149 | X76: 3.21782762
G77: 128 | H77: 3.423090481 | I77: 0.032 | J77: 0.128 | K77: 0.062 | L77: 0.007688 | M77: =IF(【事例1】危険部品判断シート!$O$36=0,2.51*0.56*(O77/K77)^0.25+0.0000000567*$F$9*(($F$10+273+O77)^2+($F$10+273)^2)*(($F$10+273+O77)+($F$10+273)),3.86*(【事例1】危険部品判断シート!$O$36/K77)^0.5+0.0000000567*$F$9*(($F$10+273+O77)^2+($F$10+273)^2)*(($F$10+273+O77)+($F$10+273))) -> 14.84170344 | N77: 9.284301595 | O77: 31.78100441 | P77: 0.001024 | Q77: 0.003844 | R77: 121.0617419 | S77: 0.473949583 | T77: 77.76998986 | U77: 0.1913121231 | V77: 2.327051959 | W77: 11.61135355 | X77: 3.423090481
G78: 136 | H78: 3.634363276 | I78: 0.034 | J78: 0.136 | K78: 0.064 | L78: 0.008192 | M78: =IF(【事例1】危険部品判断シート!$O$36=0,2.51*0.56*(O78/K78)^0.25+0.0000000567*$F$9*(($F$10+273+O78)^2+($F$10+273)^2)*(($F$10+273+O78)+($F$10+273)),3.86*(【事例1】危険部品判断シート!$O$36/K78)^0.5+0.0000000567*$F$9*(($F$10+273+O78)^2+($F$10+273)^2)*(($F$10+273+O78)+($F$10+273))) -> 14.78826203 | N78: 8.742822066 | O78: 31.77459144 | P78: 0.001156 | Q78: 0.004096 | R78: 116.4168897 | S78: 0.4321305021 | T78: 75.04125433 | U78: 0.1841423026 | V78: 2.193723681 | W78: 10.93654575 | X78: 3.634363276
G79: 144 | H79: 3.851629257 | I79: 0.036 | J79: 0.144 | K79: 0.066 | L79: 0.008712 | M79: =IF(【事例1】危険部品判断シート!$O$36=0,2.51*0.56*(O79/K79)^0.25+0.0000000567*$F$9*(($F$10+273+O79)^2+($F$10+273)^2)*(($F$10+273+O79)+($F$10+273)),3.86*(【事例1】危険部品判断シート!$O$36/K79)^0.5+0.0000000567*$F$9*(($F$10+273+O79)^2+($F$10+273)^2)*(($F$10+273+O79)+($F$10+273))) -> 14.7368735 | N79: 8.248048474 | O79: 31.76842482 | P79: 0.001296 | Q79: 0.004356 | R79: 112.1463838 | S79: 0.3957558807 | T79: 72.52652259 | U79: 0.1775329697 | V79: 2.073607004 | W79: 10.32165548 | X79: 3.851629257
G80: 152 | H80: 4.074872322 | I80: 0.038 | J80: 0.152 | K80: 0.068 | L80: 0.009248 | M80: =IF(【事例1】危険部品判断シート!$O$36=0,2.51*0.56*(O80/K80)^0.25+0.0000000567*$F$9*(($F$10+273+O80)^2+($F$10+273)^2)*(($F$10+273+O80)+($F$10+273)),3.86*(【事例1】危険部品判断シート!$O$36/K80)^0.5+0.0000000567*$F$9*(($F$10+273+O80)^2+($F$10+273)^2)*(($F$10+273+O80)+($F$10+273))) -> 14.68740024 | N80: 7.794719814 | O80: 31.76248803 | P80: 0.001444 | Q80: 0.004624 | R80: 108.2029659 | S80: 0.3638993702 | T80: 70.19885112 | U80: 0.1714155915 | V80: 1.964808318 | W80: 9.759528132 | X80: 4.074872322
G81: 160 | H81: 4.304076966 | I81: 0.04 | J81: 0.16 | K81: 0.07 | L81: 0.0098 | M81: =IF(【事例1】危険部品判断シート!$O$36=0,2.51*0.56*(O81/K81)^0.25+0.0000000567*$F$9*(($F$10+273+O81)^2+($F$10+273)^2)*(($F$10+273+O81)+($F$10+273)),3.86*(【事例1】危険部品判断シート!$O$36/K81)^0.5+0.0000000567*$F$9*(($F$10+273+O81)^2+($F$10+273)^2)*(($F$10+273+O81)+($F$10+273))) -> 14.63971757 | N81: 7.378298846 | O81: 31.75676611 | P81: 0.0016 | Q81: 0.0049 | R81: 104.5475428 | S81: 0.3358271331 | T81: 68.03598187 | U81: 0.1657331358 | V81: 1.865781082 | W81: 9.244079927 | X81: 4.304076966
G82: 168 | H82: 4.539228245 | I82: 0.042 | J82: 0.168 | K82: 0.072 | L82: 0.010368 | M82: =IF(【事例1】危険部品判断シート!$O$36=0,2.51*0.56*(O82/K82)^0.25+0.0000000567*$F$9*(($F$10+273+O82)^2+($F$10+273)^2)*(($F$10+273+O82)+($F$10+273)),3.86*(【事例1】危険部品判断シート!$O$36/K82)^0.5+0.0000000567*$F$9*(($F$10+273+O82)^2+($F$10+273)^2)*(($F$10+273+O82)+($F$10+273))) -> 14.59371221 | N82: 6.994855459 | O82: 31.75124546 | P82: 0.001764 | Q82: 0.005184 | R82: 101.1474127 | S82: 0.3109510491 | T82: 66.01931603 | U82: 0.160437634 | V82: 1.775249677 | W82: 8.770105136 | X82: 4.539228245
G83: 176 | H83: 4.78031174 | I83: 0.044 | J83: 0.176 | K83: 0.074 | L83: 0.010952 | M83: =IF(【事例1】危険部品判断シート!$O$36=0,2.51*0.56*(O83/K83)^0.25+0.0000000567*$F$9*(($F$10+273+O83)^2+($F$10+273)^2)*(($F$10+273+O83)+($F$10+273)),3.86*(【事例1】危険部品判断シート!$O$36/K83)^0.5+0.0000000567*$F$9*(($F$10+273+O83)^2+($F$10+273)^2)*(($F$10+273+O83)+($F$10+273))) -> 14.54928092 | N83: 6.640971434 | O83: 31.74591371 | P83: 0.001936 | Q83: 0.005476 | R83: 97.97494836 | S83: 0.2887948319 | T83: 64.1331542 | U83: 0.1554883591 | V83: 1.692152502 | W83: 8.333123936 | X83: 4.78031174
G84: 184 | H84: 5.027313527 | I84: 0.046 | J84: 0.184 | K84: 0.076 | L84: 0.011552 | M84: =IF(【事例1】危険部品判断シート!$O$36=0,2.51*0.56*(O84/K84)^0.25+0.0000000567*$F$9*(($F$10+273+O84)^2+($F$10+273)^2)*(($F$10+273+O84)+($F$10+273)),3.86*(【事例1】危険部品判断シート!$O$36/K84)^0.5+0.0000000567*$F$9*(($F$10+273+O84)^2+($F$10+273)^2)*(($F$10+273+O84)+($F$10+273))) -> 14.50632943 | N84: 6.313662229 | O84: 31.74075953 | P84: 0.002116 | Q84: 0.005776 | R84: 95.00660408 | S84: 0.2689690997 | T84: 62.36412433 | U84: 0.1508504414 | V84: 1.615598843 | W84: 7.929261072 | X84: 5.027313527
G85: 192 | H85: 5.280220144 | I85: 0.048 | J85: 0.192 | K85: 0.078 | L85: 0.012168 | M85: =IF(【事例1】危険部品判断シート!$O$36=0,2.51*0.56*(O85/K85)^0.25+0.0000000567*$F$9*(($F$10+273+O85)^2+($F$10+273)^2)*(($F$10+273+O85)+($F$10+273)),3.86*(【事例1】危険部品判断シート!$O$36/K85)^0.5+0.0000000567*$F$9*(($F$10+273+O85)^2+($F$10+273)^2)*(($F$10+273+O85)+($F$10+273))) -> 14.46477138 | N85: 6.010312392 | O85: 31.73577257 | P85: 0.002304 | Q85: 0.006084 | R85: 92.22215381 | S85: 0.2511527705 | T85: 60.70074435 | U85: 0.146493802 | V85: 1.544835778 | W85: 7.55514817 | X85: 5.280220144
G86: 200 | H86: 5.539018566 | I86: 0.05 | J86: 0.2 | K86: 0.08 | L86: 0.0128 | M86: =IF(【事例1】危険部品判断シート!$O$36=0,2.51*0.56*(O86/K86)^0.25+0.0000000567*$F$9*(($F$10+273+O86)^2+($F$10+273)^2)*(($F$10+273+O86)+($F$10+273)),3.86*(【事例1】危険部品判断シート!$O$36/K86)^0.5+0.0000000567*$F$9*(($F$10+273+O86)^2+($F$10+273)^2)*(($F$10+273+O86)+($F$10+273))) -> 14.42452751 | N86: 5.728621944 | O86: 31.7309433 | P86: 0.0025 | Q86: 0.0064 | R86: 89.60409996 | S86: 0.2350789931 | T86: 59.13308313 | U86: 0.1423923183 | V86: 1.479222495 | W86: 7.207844439 | X86: 5.539018566
K88: 隙間 | L88: =L60+E33 -> 20
H89: 発熱量 | I89: 部品L | J89: 周長 | K89: 周囲幅 | L89: P表面積 | M89: 熱伝達率 | N89: 熱抵抗R0 | O89: 温度上昇 | P89: As | Q89: Ap | R89: λ | S89: AC | T89: BC | U89: CC | V89: Rc | W89: Rt | X89: ERR
G90: =J90*1000 -> 8 | H90: =X90 -> 1.644062444 | I90: 0.002 | J90: =I90*4 -> 0.008 | K90: =I90+$L$88/1000*2 -> 0.042 | L90: =K90^2*2 -> 0.003528 | M90: =IF(【事例1】危険部品判断シート!$O$36=0,2.51*0.56*(O90/K90)^0.25+0.0000000567*$F$9*(($F$10+273+O90)^2+($F$10+273)^2)*(($F$10+273+O90)+($F$10+273)),3.86*(【事例1】危険部品判断シート!$O$36/K90)^0.5+0.0000000567*$F$9*(($F$10+273+O90)^2+($F$10+273)^2)*(($F$10+273+O90)+($F$10+273))) -> 15.5334698 | N90: =1/L90/M90+$F$8/$M$3/L90 -> 19.38126894 | O90: =H90*N90 -> 31.86401638 | P90: =I90^2 -> 4e-06 | Q90: =K90^2 -> 0.001764 | R90: =(PI()^1.5)/((Q90)^0.5)+1/(P90)^0.5 -> 632.579238 | S90: =$F$6*(Q90^0.5-P90^0.5)/($L$3*(PI()*Q90*P90)^0.5) -> 14.92565036 | T90: =R90*$L$3*Q90*N90/$F$6 -> 389.2855 | U90: =TANH(R90*$F$8/$F$6) -> 0.7666402413 | V90: =S90*(T90+U90)/(1+T90*U90) -> 19.44210643 | W90: =N90+V90 -> 38.82337537 | X90: =L90*M90*$Q$3 -> 1.644062444
G91: =J91*1000 -> 16 | H91: =X91 -> 1.794347532 | I91: =I90+0.002 -> 0.004 | J91: 0.016 | K91: =I91+$L$88/1000*2 -> 0.044 | L91: =K91^2*2 -> 0.003872 | M91: =IF(【事例1】危険部品判断シート!$O$36=0,2.51*0.56*(O91/K91)^0.25+0.0000000567*$F$9*(($F$10+273+O91)^2+($F$10+273)^2)*(($F$10+273+O91)+($F$10+273)),3.86*(【事例1】危険部品判断シート!$O$36/K91)^0.5+0.0000000567*$F$9*(($F$10+273+O91)^2+($F$10+273)^2)*(($F$10+273+O91)+($F$10+273))) -> 15.44720672 | N91: =1/L91/M91+$F$8/$M$3/L91 -> 17.75222706 | O91: 31.85366481 | P91: =I91^2 -> 1.6e-05 | Q91: =K91^2 -> 0.001936 | R91: =(PI()^1.5)/((Q91)^0.5)+1/(P91)^0.5 -> 376.552909 | S91: 7.123605853 | T91: 232.9467787 | U91: 0.5388152321 | V91: =S91*(T91+U91)/(1+T91*U91) -> 13.14670797 | W91: =N91+V91 -> 30.89893503 | X91: =L91*M91*$Q$3 -> 1.794347532
G92: 24 | H92: =X92 -> 1.950832274 | I92: =I91+0.002 -> 0.006 | J92: 0.024 | K92: 0.046 | L92: 0.004232 | M92: =IF(【事例1】危険部品判断シート!$O$36=0,2.51*0.56*(O92/K92)^0.25+0.0000000567*$F$9*(($F$10+273+O92)^2+($F$10+273)^2)*(($F$10+273+O92)+($F$10+273)),3.86*(【事例1】危険部品判断シート!$O$36/K92)^0.5+0.0000000567*$F$9*(($F$10+273+O92)^2+($F$10+273)^2)*(($F$10+273+O92)+($F$10+273))) -> 15.36572364 | N92: 16.32323151 | O92: 31.84388684 | P92: 3.6e-05 | Q92: 0.002116 | R92: 287.7172753 | S92: 4.54258924 | T92: 178.8793662 | U92: 0.4303675056 | V92: 10.44485869 | W92: 26.76809019 | X92: 1.950832274
G93: 32 | H93: 2.113491141 | I93: 0.008 | J93: 0.032 | K93: 0.048 | L93: 0.004608 | M93: =IF(【事例1】危険部品判断シート!$O$36=0,2.51*0.56*(O93/K93)^0.25+0.0000000567*$F$9*(($F$10+273+O93)^2+($F$10+273)^2)*(($F$10+273+O93)+($F$10+273)),3.86*(【事例1】危険部品判断シート!$O$36/K93)^0.5+0.0000000567*$F$9*(($F$10+273+O93)^2+($F$10+273)^2)*(($F$10+273+O93)+($F$10+273))) -> 15.28856439 | N93: 15.06257921 | O93: 31.83462773 | P93: 6.4e-05 | Q93: 0.002304 | R93: 241.0068333 | S93: 3.264986016 | T93: 150.5510123 | U93: 0.3675702974 | V93: 8.746252242 | W93: 23.80883145 | X93: 2.113491141
G94: 40 | H94: 2.28229996 | I94: 0.01 | J94: 0.04 | K94: 0.05 | L94: 0.005 | M94: =IF(【事例1】危険部品判断シート!$O$36=0,2.51*0.56*(O94/K94)^0.25+0.0000000567*$F$9*(($F$10+273+O94)^2+($F$10+273)^2)*(($F$10+273+O94)+($F$10+273)),3.86*(【事例1】危険部品判断シート!$O$36/K94)^0.5+0.0000000567*$F$9*(($F$10+273+O94)^2+($F$10+273)^2)*(($F$10+273+O94)+($F$10+273))) -> 15.21533307 | N94: 13.94463503 | O94: 31.82583997 | P94: 0.0001 | Q94: 0.0025 | R94: 211.3665599 | S94: 2.50750926 | T94: 132.6343291 | U94: 0.3258574132 | V94: 7.539570518 | W94: 21.48420555 | X94: 2.28229996
G95: 48 | H95: 2.457235786 | I95: 0.012 | J95: 0.048 | K95: 0.052 | L95: =K95^2*2 -> 0.005408 | M95: =IF(【事例1】危険部品判断シート!$O$36=0,2.51*0.56*(O95/K95)^0.25+0.0000000567*$F$9*(($F$10+273+O95)^2+($F$10+273)^2)*(($F$10+273+O95)+($F$10+273)),3.86*(【事例1】危険部品判断シート!$O$36/K95)^0.5+0.0000000567*$F$9*(($F$10+273+O95)^2+($F$10+273)^2)*(($F$10+273+O95)+($F$10+273))) -> 15.14568408 | N95: 12.94848556 | O95: 31.81748209 | P95: 0.000144 | Q95: 0.002704 | R95: 190.416564 | S95: 2.009222164 | T95: 120.0059816 | U95: 0.295577273 | V95: 6.62752017 | W95: 19.57600573 | X95: 2.457235786
G96: 56 | H96: 2.638276796 | I96: 0.014 | J96: 0.056 | K96: 0.054 | L96: 0.005832 | M96: =IF(【事例1】危険部品判断シート!$O$36=0,2.51*0.56*(O96/K96)^0.25+0.0000000567*$F$9*(($F$10+273+O96)^2+($F$10+273)^2)*(($F$10+273+O96)+($F$10+273)),3.86*(【事例1】危険部品判断シート!$O$36/K96)^0.5+0.0000000567*$F$9*(($F$10+273+O96)^2+($F$10+273)^2)*(($F$10+273+O96)+($F$10+273))) -> 15.07931411 | N96: 12.05692964 | O96: 31.80951769 | P96: 0.000196 | Q96: 0.002916 | R96: 174.5457566 | S96: 1.658405595 | T96: 110.4602562 | U96: 0.272232287 | V96: 5.910343275 | W96: 17.96727291 | X96: 2.638276796
G97: 64 | H97: 2.825402195 | I97: 0.016 | J97: 0.064 | K97: 0.056 | L97: 0.006272 | M97: =IF(【事例1】危険部品判断シート!$O$36=0,2.51*0.56*(O97/K97)^0.25+0.0000000567*$F$9*(($F$10+273+O97)^2+($F$10+273)^2)*(($F$10+273+O97)+($F$10+273)),3.86*(【事例1】危険部品判断シート!$O$36/K97)^0.5+0.0000000567*$F$9*(($F$10+273+O97)^2+($F$10+273)^2)*(($F$10+273+O97)+($F$10+273))) -> 15.01595555 | N97: 11.25571245 | O97: 31.80191467 | P97: 0.000256 | Q97: 0.003136 | R97: 161.9344285 | S97: 1.399279721 | T97: 102.8870563 | U97: 0.2534489411 | V97: 5.330149833 | W97: 16.58586228 | X97: 2.825402195
G98: 72 | H98: 3.018592132 | I98: 0.018 | J98: 0.072 | K98: 0.058 | L98: 0.006728 | M98: =IF(【事例1】危険部品判断シート!$O$36=0,2.51*0.56*(O98/K98)^0.25+0.0000000567*$F$9*(($F$10+273+O98)^2+($F$10+273)^2)*(($F$10+273+O98)+($F$10+273)),3.86*(【事例1】危険部品判断シート!$O$36/K98)^0.5+0.0000000567*$F$9*(($F$10+273+O98)^2+($F$10+273)^2)*(($F$10+273+O98)+($F$10+273))) -> 14.95537124 | N98: 10.53293826 | O98: 31.79464455 | P98: 0.000324 | Q98: 0.003364 | R98: 151.5612107 | S98: 1.200914397 | T98: 96.66429692 | U98: 0.2378537634 | V98: 4.850423008 | W98: 15.38336127 | X98: 3.018592132
G99: 80 | H99: 3.21782762 | I99: 0.02 | J99: 0.08 | K99: 0.06 | L99: 0.0072 | M99: =IF(【事例1】危険部品判断シート!$O$36=0,2.51*0.56*(O99/K99)^0.25+0.0000000567*$F$9*(($F$10+273+O99)^2+($F$10+273)^2)*(($F$10+273+O99)+($F$10+273)),3.86*(【事例1】危険部品判断シート!$O$36/K99)^0.5+0.0000000567*$F$9*(($F$10+273+O99)^2+($F$10+273)^2)*(($F$10+273+O99)+($F$10+273))) -> 14.89735009 | N99: 9.878615563 | O99: 31.78768201 | P99: 0.0004 | Q99: 0.0036 | R99: 142.8054666 | S99: 1.044795525 | T99: 91.41467577 | U99: 0.2245938181 | V99: 4.446776189 | W99: 14.32539175 | X99: 3.21782762
G100: 88 | H100: 3.423090481 | I100: 0.022 | J100: 0.088 | K100: 0.062 | L100: 0.007688 | M100: =IF(【事例1】危険部品判断シート!$O$36=0,2.51*0.56*(O100/K100)^0.25+0.0000000567*$F$9*(($F$10+273+O100)^2+($F$10+273)^2)*(($F$10+273+O100)+($F$10+273)),3.86*(【事例1】危険部品判断シート!$O$36/K100)^0.5+0.0000000567*$F$9*(($F$10+273+O100)^2+($F$10+273)^2)*(($F$10+273+O100)+($F$10+273))) -> 14.84170344 | N100: 9.284301595 | O100: 31.78100441 | P100: 0.000484 | Q100: 0.003844 | R100: 135.2662873 | S100: 0.9191749488 | T100: 86.89498128 | U100: 0.2131090443 | V100: 4.102220407 | W100: 13.386522 | X100: 3.423090481
G101: 96 | H101: 3.634363276 | I101: 0.024 | J101: 0.096 | K101: 0.064 | L101: 0.008192 | M101: =IF(【事例1】危険部品判断シート!$O$36=0,2.51*0.56*(O101/K101)^0.25+0.0000000567*$F$9*(($F$10+273+O101)^2+($F$10+273)^2)*(($F$10+273+O101)+($F$10+273)),3.86*(【事例1】危険部品判断シート!$O$36/K101)^0.5+0.0000000567*$F$9*(($F$10+273+O101)^2+($F$10+273)^2)*(($F$10+273+O101)+($F$10+273))) -> 14.78826203 | N101: 8.742822066 | O101: 31.77459144 | P101: 0.000576 | Q101: 0.004096 | R101: 128.6717916 | S101: 0.816246504 | T101: 82.9406512 | U101: 0.2030147155 | V101: 3.804522344 | W101: 12.54734441 | X101: 3.634363276
G102: 104 | H102: 3.851629257 | I102: 0.026 | J102: 0.104 | K102: 0.066 | L102: 0.008712 | M102: =IF(【事例1】危険部品判断シート!$O$36=0,2.51*0.56*(O102/K102)^0.25+0.0000000567*$F$9*(($F$10+273+O102)^2+($F$10+273)^2)*(($F$10+273+O102)+($F$10+273)),3.86*(【事例1】危険部品判断シート!$O$36/K102)^0.5+0.0000000567*$F$9*(($F$10+273+O102)^2+($F$10+273)^2)*(($F$10+273+O102)+($F$10+273))) -> 14.7368735 | N102: 8.248048474 | O102: 31.76842482 | P102: 0.000676 | Q102: 0.004356 | R102: 122.8301445 | S102: 0.7306262413 | T102: 79.43584935 | U102: 0.1940365267 | V102: 3.544633327 | W102: 11.7926818 | X102: 3.851629257
G103: 112 | H103: 4.074872322 | I103: 0.028 | J103: 0.112 | K103: 0.068 | L103: 0.009248 | M103: =IF(【事例1】危険部品判断シート!$O$36=0,2.51*0.56*(O103/K103)^0.25+0.0000000567*$F$9*(($F$10+273+O103)^2+($F$10+273)^2)*(($F$10+273+O103)+($F$10+273)),3.86*(【事例1】危険部品判断シート!$O$36/K103)^0.5+0.0000000567*$F$9*(($F$10+273+O103)^2+($F$10+273)^2)*(($F$10+273+O103)+($F$10+273))) -> 14.68740024 | N103: 7.794719814 | O103: 31.76248803 | P103: 0.000784 | Q103: 0.004624 | R103: 117.6014621 | S103: 0.6584845746 | T103: 76.29631465 | U103: 0.1859727104 | V103: 3.315708666 | W103: 11.11042848 | X103: 4.074872322
G104: 120 | H104: 4.304076966 | I104: 0.03 | J104: 0.12 | K104: 0.07 | L104: 0.0098 | M104: =IF(【事例1】危険部品判断シート!$O$36=0,2.51*0.56*(O104/K104)^0.25+0.0000000567*$F$9*(($F$10+273+O104)^2+($F$10+273)^2)*(($F$10+273+O104)+($F$10+273)),3.86*(【事例1】危険部品判断シート!$O$36/K104)^0.5+0.0000000567*$F$9*(($F$10+273+O104)^2+($F$10+273)^2)*(($F$10+273+O104)+($F$10+273))) -> 14.63971757 | N104: 7.378298846 | O104: 31.75676611 | P104: 0.0009 | Q104: 0.0049 | R104: 112.8808761 | S104: 0.5970260143 | T104: 73.45903153 | U104: 0.17867088 | V104: 3.1124712 | W104: 10.49077005 | X104: 4.304076966
G105: 128 | H105: 4.539228245 | I105: 0.032 | J105: 0.128 | K105: 0.072 | L105: 0.010368 | M105: =IF(【事例1】危険部品判断シート!$O$36=0,2.51*0.56*(O105/K105)^0.25+0.0000000567*$F$9*(($F$10+273+O105)^2+($F$10+273)^2)*(($F$10+273+O105)+($F$10+273)),3.86*(【事例1】危険部品判断シート!$O$36/K105)^0.5+0.0000000567*$F$9*(($F$10+273+O105)^2+($F$10+273)^2)*(($F$10+273+O105)+($F$10+273))) -> 14.59371221 | N105: 6.994855459 | O105: 31.75124546 | P105: 0.001024 | Q105: 0.005184 | R105: 108.5878888 | S105: 0.544164336 | T105: 70.87574425 | U105: 0.1720133085 | V105: 2.930784745 | W105: 9.925640203 | X105: 4.539228245
G106: 136 | H106: 4.78031174 | I106: 0.034 | J106: 0.136 | K106: 0.074 | L106: 0.010952 | M106: =IF(【事例1】危険部品判断シート!$O$36=0,2.51*0.56*(O106/K106)^0.25+0.0000000567*$F$9*(($F$10+273+O106)^2+($F$10+273)^2)*(($F$10+273+O106)+($F$10+273)),3.86*(【事例1】危険部品判断シート!$O$36/K106)^0.5+0.0000000567*$F$9*(($F$10+273+O106)^2+($F$10+273)^2)*(($F$10+273+O106)+($F$10+273))) -> 14.54928092 | N106: 6.640971434 | O106: 31.74591371 | P106: 0.001156 | Q106: 0.005476 | R106: 104.6594403 | S106: 0.4983126511 | T106: 68.50873757 | U106: 0.165907249 | V106: 2.767360355 | W106: 9.408331788 | X106: 4.78031174
G107: 144 | H107: 5.027313527 | I107: 0.036 | J107: 0.144 | K107: 0.076 | L107: 0.011552 | M107: =IF(【事例1】危険部品判断シート!$O$36=0,2.51*0.56*(O107/K107)^0.25+0.0000000567*$F$9*(($F$10+273+O107)^2+($F$10+273)^2)*(($F$10+273+O107)+($F$10+273)),3.86*(【事例1】危険部品判断シート!$O$36/K107)^0.5+0.0000000567*$F$9*(($F$10+273+O107)^2+($F$10+273)^2)*(($F$10+273+O107)+($F$10+273))) -> 14.50632943 | N107: 6.313662229 | O107: 31.74075953 | P107: 0.001296 | Q107: 0.005776 | R107: 101.0452514 | S107: 0.4582436514 | T107: 66.32800618 | U107: 0.1602783793 | V107: 2.619549264 | W107: 8.933211493 | X107: 5.027313527
G108: 152 | H108: 5.280220144 | I108: 0.038 | J108: 0.152 | K108: 0.078 | L108: 0.012168 | M108: =IF(【事例1】危険部品判断シート!$O$36=0,2.51*0.56*(O108/K108)^0.25+0.0000000567*$F$9*(($F$10+273+O108)^2+($F$10+273)^2)*(($F$10+273+O108)+($F$10+273)),3.86*(【事例1】危険部品判断シート!$O$36/K108)^0.5+0.0000000567*$F$9*(($F$10+273+O108)^2+($F$10+273)^2)*(($F$10+273+O108)+($F$10+273))) -> 14.46477138 | N108: 6.010312392 | O108: 31.73577257 | P108: 0.001444 | Q108: 0.006084 | R108: 97.70460995 | S108: 0.4229941397 | T108: 64.30930428 | U108: 0.1550662466 | V108: 2.485193935 | W108: 8.495506327 | X108: 5.280220144
G109: 160 | H109: 5.539018566 | I109: 0.04 | J109: 0.16 | K109: 0.08 | L109: 0.0128 | M109: =IF(【事例1】危険部品判断シート!$O$36=0,2.51*0.56*(O109/K109)^0.25+0.0000000567*$F$9*(($F$10+273+O109)^2+($F$10+273)^2)*(($F$10+273+O109)+($F$10+273)),3.86*(【事例1】危険部品判断シート!$O$36/K109)^0.5+0.0000000567*$F$9*(($F$10+273+O109)^2+($F$10+273)^2)*(($F$10+273+O109)+($F$10+273))) -> 14.42452751 | N109: 5.728621944 | O109: 31.7309433 | P109: 0.0016 | Q109: 0.0064 | R109: 94.60409996 | S109: 0.3917983219 | T109: 62.43276937 | U109: 0.1502210287 | V109: 2.362518963 | W109: 8.091140906 | X109: 5.539018566
G110: 168 | H110: 5.803696177 | I110: 0.042 | J110: 0.168 | K110: 0.082 | L110: 0.013448 | M110: =IF(【事例1】危険部品判断シート!$O$36=0,2.51*0.56*(O110/K110)^0.25+0.0000000567*$F$9*(($F$10+273+O110)^2+($F$10+273)^2)*(($F$10+273+O110)+($F$10+273)),3.86*(【事例1】危険部品判断シート!$O$36/K110)^0.5+0.0000000567*$F$9*(($F$10+273+O110)^2+($F$10+273)^2)*(($F$10+273+O110)+($F$10+273))) -> 14.38552493 | N110: 5.466561657 | O110: 31.72626299 | P110: 0.001764 | Q110: 0.006724 | R110: 91.7159628 | S110: 0.3640402526 | T110: 60.6819307 | U110: 0.1457011834 | V110: 2.250049888 | W110: 7.716611545 | X110: 5.803696177
G111: 176 | H111: 6.074240754 | I111: 0.044 | J111: 0.176 | K111: 0.084 | L111: 0.014112 | M111: =IF(【事例1】危険部品判断シート!$O$36=0,2.51*0.56*(O111/K111)^0.25+0.0000000567*$F$9*(($F$10+273+O111)^2+($F$10+273)^2)*(($F$10+273+O111)+($F$10+273)),3.86*(【事例1】危険部品判断シート!$O$36/K111)^0.5+0.0000000567*$F$9*(($F$10+273+O111)^2+($F$10+273)^2)*(($F$10+273+O111)+($F$10+273))) -> 14.34769642 | N111: 5.222335573 | O111: 31.72172357 | P111: 0.001936 | Q111: 0.007056 | R111: 89.01689174 | S111: 0.3392193263 | T111: 59.04298121 | U111: 0.1414717118 | V111: 2.146551904 | W111: 7.368887477 | X111: 6.074240754
G112: 184 | H112: 6.350640439 | I112: 0.046 | J112: 0.184 | K112: 0.086 | L112: 0.014792 | M112: =IF(【事例1】危険部品判断シート!$O$36=0,2.51*0.56*(O112/K112)^0.25+0.0000000567*$F$9*(($F$10+273+O112)^2+($F$10+273)^2)*(($F$10+273+O112)+($F$10+273)),3.86*(【事例1】危険部品判断シート!$O$36/K112)^0.5+0.0000000567*$F$9*(($F$10+273+O112)^2+($F$10+273)^2)*(($F$10+273+O112)+($F$10+273))) -> 14.3109799 | N112: 4.99434945 | O112: 31.71731759 | P112: 0.002116 | Q112: 0.007396 | R112: 86.4871304 | S112: 0.3169248307 | T112: 57.50423385 | U112: 0.1375028527 | V112: 2.050982985 | W112: 7.045332435 | X112: 6.350640439
G113: 192 | H113: 6.632883723 | I113: 0.048 | J113: 0.192 | K113: 0.088 | L113: 0.015488 | M113: =IF(【事例1】危険部品判断シート!$O$36=0,2.51*0.56*(O113/K113)^0.25+0.0000000567*$F$9*(($F$10+273+O113)^2+($F$10+273)^2)*(($F$10+273+O113)+($F$10+273)),3.86*(【事例1】危険部品判断シート!$O$36/K113)^0.5+0.0000000567*$F$9*(($F$10+273+O113)^2+($F$10+273)^2)*(($F$10+273+O113)+($F$10+273))) -> 14.27531793 | N113: 4.781184093 | O113: 31.71303815 | P113: 0.002304 | Q113: 0.007744 | R113: 84.10978784 | S113: 0.2968169105 | T113: 56.05570938 | U113: 0.1337690874 | V113: 1.962457613 | W113: 6.743641707 | X113: 6.632883723
G114: 200 | H114: 6.920959427 | I114: 0.05 | J114: 0.2 | K114: 0.09 | L114: 0.0162 | M114: =IF(【事例1】危険部品判断シート!$O$36=0,2.51*0.56*(O114/K114)^0.25+0.0000000567*$F$9*(($F$10+273+O114)^2+($F$10+273)^2)*(($F$10+273+O114)+($F$10+273)),3.86*(【事例1】危険部品判断シート!$O$36/K114)^0.5+0.0000000567*$F$9*(($F$10+273+O114)^2+($F$10+273)^2)*(($F$10+273+O114)+($F$10+273))) -> 14.24065726 | N114: 4.581572715 | O114: 31.70887887 | P114: 0.0025 | Q114: 0.0081 | R114: 81.87031108 | S114: 0.27861214 | T114: 54.68881941 | U114: 0.1302483698 | V114: 1.880218412 | W114: 6.461791127 | X114: 6.920959427

Sheet 【事例2】 自然空冷通風機器
A1: 12.2 密閉筐体の熱設計事例（筐体）
A2: 筐体幅(m) | B2: 0.08
A3: 筐体奥行(m) | B3: 0.1 | C3: 上面代表長 | D3: =MIN(B2,B3) -> 0.08
A4: 筐体高さ(m) | B4: 0.15 | C4: Stop | D4: =B2*B3+F4 -> 0.008
A5: 表面放射率 | B5: 0.85 | C5: Sside | D5: =(B2+B3)*2*B4 -> 0.054
A6: 発熱量 (W) | B6: 20 | C6: Sbot | D6: =B2*B3 -> 0.008
A7: 通風口面積 (m2) | B7: 0.0032 | C7: σ | D7: 5.67e-08
A8: 周囲空気温度℃ | B8: 35 | C8: 煙突長 | D8: =B4/2 -> 0.075
B9: =B8+B10 -> 44.36932058
A10: 表面温度上昇ΔＴ（仮定値） | B10: 9.369320582 | C10: 内部空気温度上昇 | E10: =B10*2 -> 18.73864116
A11: 周囲温度（K） | B11: =B8+273.15 -> 308.15 | C11: 内部空気温度 | E11: =E10+B8 -> 53.73864116
A12: 表面温度（K) | B12: =B8+B10+273.15 -> 317.5193206 | C12: 表面温度 | E12: =B10+B8 -> 44.36932058
B14: 熱伝達率 | C14: 熱ｺﾝﾀﾞｸﾀﾝｽ | D14: 放熱量
A15: 上面の対流熱伝達率 | B15: =2.51*0.54*(B10/D3)^0.25 -> 4.45884124 | C15: =B15*D4 -> 0.03567072992 | D15: =C15*$B$10 -> 0.334210504
A16: 側面の対流熱伝達率 | B16: =2.51*0.56*(B10/B4)^0.25 -> 3.951536142 | C16: =B16*D5 -> 0.2133829517 | D16: =C16*$B$10 -> 1.999253281
A17: 底面の対流熱伝達率 | B17: =2.51*0.27*(B10/D3)^0.25 -> 2.22942062 | C17: =B17*D6 -> 0.01783536496 | D17: =C17*$B$10 -> 0.167105252
A18: 全面の放射熱伝達率 | B18: =D7*B5*(B12^2+B11^2)*(B12+B11) -> 5.903423604 | C18: =B18*(D4+D5+D6) -> 0.4132396523 | D18: =C18*$B$10 -> 3.871774779
A19: 換気による放熱量 | D19: =1150*B7*0.1667*(D8*E10)^0.5*E10 -> 13.62765694
A20: 合計放熱量 | D20: =SUM(D15:D19) -> 20.00000076
A22: ＥＲＲ | B22: =B6-D20 -> -7.597198746e-07

Sheet 【事例2】危険部品判断シート
C2: 熱対策が必要な部品かどうかを見分けるグラフ | K2: 基板で対策が可能かどうかを見分けるグラフ
Q4: 放熱限界ラインの調整
Q5: 基板熱伝導率 | R5: 18
Q6: 部品周囲の放熱領域（㎜）
Q7: 最小 | R7: 5
Q8: 最大 | R8: 20
A35: 部品リスト | G35: ※色のついていないセルが入力部分です | N35: 基板放射率 | O35: 0.85
A36: 名称 | B36: 許容温度 | C36: 外形寸法(mm) | F36: 消費電力 | G36: 周長 | H36: 表面積 | I36: 熱流束 | J36: 単体 熱抵抗 K/W | K36: 目標 熱抵抗 K/W | L36: 周囲温度℃ | M36: ='【事例2】 自然空冷通風機器'!B8+'【事例2】 自然空冷通風機器'!E10 -> 53.73864116 | N36: 風速[m/s] | O36: 0 | P36: 放射率 | Q36: 対流・放射熱伝達率 W/m2K
B37: (℃) | C37: 縦 | D37: 横 | E37: 高さ | F37: Ｗ | G37: mm | H37: mm2 | I37: W/m2 | L37: 単体＜目標 | M37: 目標＞30 | N37: 単体÷目標 | O37: 対策方針
A38: CPU | B38: 90 | C38: 35 | D38: 35 | E38: 2.3 | F38: 6.7 | G38: =(C38+D38)*2 -> 140 | H38: =(C38*D38+D38*E38+E38*C38)*2 -> 2772 | I38: =F38/H38*1000000 -> 2417.027417 | J38: =1/H38/Q38*1000000 -> 22.03719324 | K38: =(B38-$M$36)/F38 -> 5.41214311 | L38: =IF(J38<K38,"○","×") -> × | M38: =IF(OR(K38>=30,L38="○"),"○","×") -> × | N38: =J38/K38 -> 4.071805345 | P38: 0.9 | Q38: =IF($O$36<>0,3.86*($O$36/MIN(C38,D38)*1000)^0.5+0.0000000567*P38*(($M$36+273+(B38-$M$36))^2+($M$36+273)^2)*(($M$36+273+(B38-$M$36))+($M$36+273)),2.51*0.56*((B38-$M$36)/(MIN(C38,D38)/1000))^0.25+0.0000000567*P38*(($M$36+273+(B38-$M$36))^2+($M$36+273)^2)*(($M$36+273+(B38-$M$36))+($M$36+273))) -> 16.3700684
A39: 部品1 | B39: 90 | C39: 15 | D39: 15 | E39: 2 | F39: 2.2 | G39: =(C39+D39)*2 -> 60 | H39: 570 | I39: 3859.649123 | J39: =1/H39/Q39*1000000 -> 96.1227876 | K39: =(B39-$M$36)/F39 -> 16.48243583 | L39: × | M39: × | N39: 5.831831446 | P39: 0.9 | Q39: =IF($O$36<>0,3.86*($O$36/MIN(C39,D39)*1000)^0.5+0.0000000567*P39*(($M$36+273+(B39-$M$36))^2+($M$36+273)^2)*(($M$36+273+(B39-$M$36))+($M$36+273)),2.51*0.56*((B39-$M$36)/(MIN(C39,D39)/1000))^0.25+0.0000000567*P39*(($M$36+273+(B39-$M$36))^2+($M$36+273)^2)*(($M$36+273+(B39-$M$36))+($M$36+273))) -> 18.25150944
A40: 部品2 | B40: 90 | C40: 12 | D40: 12 | E40: 2.3 | F40: 0.6 | G40: 48 | H40: 398.4 | I40: 1506.024096 | J40: =1/H40/Q40*1000000 -> 133.39244 | K40: =(B40-$M$36)/F40 -> 60.43559806 | L40: × | M40: ○ | N40: 2.207183255 | P40: 0.9 | Q40: =IF($O$36<>0,3.86*($O$36/MIN(C40,D40)*1000)^0.5+0.0000000567*P40*(($M$36+273+(B40-$M$36))^2+($M$36+273)^2)*(($M$36+273+(B40-$M$36))+($M$36+273)),2.51*0.56*((B40-$M$36)/(MIN(C40,D40)/1000))^0.25+0.0000000567*P40*(($M$36+273+(B40-$M$36))^2+($M$36+273)^2)*(($M$36+273+(B40-$M$36))+($M$36+273))) -> 18.81695964
A41: 部品3 | B41: 90 | C41: 9 | D41: 9 | E41: 1.4 | F41: 0.4 | G41: 36 | H41: 212.4 | I41: 1883.239171 | J41: =1/H41/Q41*1000000 -> 240.2815889 | K41: =(B41-$M$36)/F41 -> 90.65339709 | L41: =IF(J41<K41,"○","×") -> × | M41: ○ | N41: 2.650552506 | P41: 0.9 | Q41: 19.59408522
A42: 部品4 | B42: 90 | C42: 24 | D42: 18 | E42: 2.8 | F42: 0.6 | G42: 84 | H42: 1099.2 | I42: 545.8515284 | J42: 51.07424485 | K42: 60.43559806 | L42: ○ | M42: ○ | N42: 0.845102001 | P42: 0.9 | Q42: 17.81235435
A43: 部品5 | B43: 90 | C43: 22 | D43: 22 | E43: 2 | F43: 0.8 | G43: 88 | H43: 1144 | I43: 699.3006993 | J43: 50.3772827 | K43: 45.32669855 | L43: × | M43: ○ | N43: 1.111426253 | P43: 0.9 | Q43: 17.3515884
A44: 電源IC1 | B44: 90 | C44: 4.8 | D44: 31 | E44: 16 | F44: 4.5 | G44: 71.6 | H44: 1443.2 | I44: 3118.070953 | J44: 32.22844588 | K44: 8.058079741 | L44: =IF(J44<K44,"○","×") -> × | M44: =IF(OR(K44>=30,L44="○"),"○","×") -> × | N44: =J44/K44 -> 3.999519353 | P44: 0.9 | Q44: 21.49978497
A45: 電源IC2 | B45: 90 | C45: 4.5 | D45: 17 | E45: 10 | F45: 0.4 | G45: 43 | H45: 583 | I45: 686.1063465 | J45: =1/H45/Q45*1000000 -> 78.99743098 | K45: 90.65339709 | L45: ○ | M45: ○ | N45: 0.8714227322 | P45: 0.9 | Q45: 21.71293224
A46: 電源IC3 | B46: 90 | C46: 4.5 | D46: 17 | E46: 10 | F46: 0.2 | G46: 43 | H46: 583 | I46: 343.0531732 | J46: 78.99743098 | K46: 181.3067942 | L46: ○ | M46: ○ | N46: 0.4357113661 | P46: 0.9 | Q46: 21.71293224

Sheet LEEの式 (3) (hidden)
L2: 面方向 | M2: 厚み方向
K3: 等価熱伝導率 | L3: =【事例2】危険部品判断シート!R5 -> 18 | M3: 0.4 | O3: ターゲット温度上昇 | Q3: 30
K4: 隙間 | L4: =【事例2】危険部品判断シート!R7 -> 5
E5: 位置 | H5: 発熱量 | I5: 部品L | J5: 周長 | K5: 周囲幅 | L5: P表面積 | M5: 熱伝達率 | N5: 熱抵抗R0 | O5: 温度上昇 | P5: As | Q5: Ap | R5: λ | S5: AC | T5: BC | U5: CC | V5: Rc | W5: Rt | X5: ERR
E6: C0 | F6: 1 | G6: =J6*1000 -> 8 | H6: =X6 -> 0.1546219994 | I6: 0.002 | J6: =I6*4 -> 0.008 | K6: =I6+$L$4/1000*2 -> 0.012 | L6: =K6^2*2 -> 0.000288 | M6: =IF(【事例2】危険部品判断シート!$O$36=0,2.51*0.56*(O6/K6)^0.25+0.0000000567*$F$9*(($F$10+273+O6)^2+($F$10+273)^2)*(($F$10+273+O6)+($F$10+273)),3.86*(【事例2】危険部品判断シート!$O$36/K6)^0.5+0.0000000567*$F$9*(($F$10+273+O6)^2+($F$10+273)^2)*(($F$10+273+O6)+($F$10+273))) -> 17.89606475 | N6: =1/L6/M6+$F$8/$M$3/L6 -> 207.9104389 | O6: =H6*N6 -> 32.14752777 | P6: =I6^2 -> 4e-06 | Q6: =K6^2 -> 0.000144 | R6: =(PI()^1.5)/((Q6)^0.5)+1/(P6)^0.5 -> 964.0273331 | S6: =$F$6*(Q6^0.5-P6^0.5)/($L$3*(PI()*Q6*P6)^0.5) -> 13.05994406 | T6: =R6*$L$3*Q6*N6/$F$6 -> 519.5180488 | U6: =TANH(R6*$F$8/$F$6) -> 0.9125300913 | V6: =S6*(T6+U6)/(1+T6*U6) -> 14.30675589 | W6: =N6+V6 -> 222.2171948 | X6: =L6*M6*$Q$3 -> 0.1546219994 | Y6: =J6*1000 -> 8
G7: =J7*1000 -> 16 | H7: =X7 -> 0.2059013778 | I7: =I6+0.002 -> 0.004 | J7: 0.016 | K7: =I7+$L$4/1000*2 -> 0.014 | L7: =K7^2*2 -> 0.000392 | M7: =IF(【事例2】危険部品判断シート!$O$36=0,2.51*0.56*(O7/K7)^0.25+0.0000000567*$F$9*(($F$10+273+O7)^2+($F$10+273)^2)*(($F$10+273+O7)+($F$10+273)),3.86*(【事例2】危険部品判断シート!$O$36/K7)^0.5+0.0000000567*$F$9*(($F$10+273+O7)^2+($F$10+273)^2)*(($F$10+273+O7)+($F$10+273))) -> 17.50862056 | N7: =1/L7/M7+$F$8/$M$3/L7 -> 155.9049037 | O7: =H7*N7 -> 32.10103447 | P7: =I7^2 -> 1.6e-05 | Q7: =K7^2 -> 0.000196 | R7: =(PI()^1.5)/((Q7)^0.5)+1/(P7)^0.5 -> 647.7377141 | S7: 5.597118884 | T7: 356.2767943 | U7: 0.7764546697 | V7: =S7*(T7+U7)/(1+T7*U7) -> 7.198247548 | W7: =N7+V7 -> 163.1031512 | X7: =L7*M7*$Q$3 -> 0.2059013778 | Y7: =J7*1000 -> 16
E8: t | F8: 0.0016 | G8: 24 | H8: =X8 -> 0.2639627207 | I8: =I7+0.002 -> 0.006 | J8: 0.024 | K8: 0.016 | L8: 0.000512 | M8: =IF(【事例2】危険部品判断シート!$O$36=0,2.51*0.56*(O8/K8)^0.25+0.0000000567*$F$9*(($F$10+273+O8)^2+($F$10+273)^2)*(($F$10+273+O8)+($F$10+273)),3.86*(【事例2】危険部品判断シート!$O$36/K8)^0.5+0.0000000567*$F$9*(($F$10+273+O8)^2+($F$10+273)^2)*(($F$10+273+O8)+($F$10+273))) -> 17.18507296 | N8: 121.4649124 | O8: 32.06220876 | P8: 3.6e-05 | Q8: 0.000256 | R8: 514.6871665 | S8: 3.264986016 | T8: 288.0757168 | U8: 0.67697007 | V8: 4.809611441 | W8: 126.2745239 | X8: 0.2639627207 | Y8: 24
E9: 放射率 | F9: =【事例2】危険部品判断シート!O35 -> 0.85 | G9: 32 | H9: 0.3287044639 | I9: 0.008 | J9: 0.032 | K9: 0.018 | L9: 0.000648 | M9: =IF(【事例2】危険部品判断シート!$O$36=0,2.51*0.56*(O9/K9)^0.25+0.0000000567*$F$9*(($F$10+273+O9)^2+($F$10+273)^2)*(($F$10+273+O9)+($F$10+273)),3.86*(【事例2】危険部品判断シート!$O$36/K9)^0.5+0.0000000567*$F$9*(($F$10+273+O9)^2+($F$10+273)^2)*(($F$10+273+O9)+($F$10+273))) -> 16.90866584 | N9: 97.44023407 | O9: 32.0290399 | P9: 6.4e-05 | Q9: 0.000324 | R9: 434.3515554 | S9: 2.176657344 | T9: 246.8295861 | U9: 0.6011605318 | V9: 3.60528043 | W9: 101.0455145 | X9: 0.3287044639 | Y9: 32
E10: 室温 | F10: =【事例2】危険部品判断シート!M36 -> 53.73864116 | G10: 40 | H10: 0.400039903 | I10: 0.01 | J10: 0.04 | K10: 0.02 | L10: 0.0008 | M10: =IF(【事例2】危険部品判断シート!$O$36=0,2.51*0.56*(O10/K10)^0.25+0.0000000567*$F$9*(($F$10+273+O10)^2+($F$10+273)^2)*(($F$10+273+O10)+($F$10+273)),3.86*(【事例2】危険部品判断シート!$O$36/K10)^0.5+0.0000000567*$F$9*(($F$10+273+O10)^2+($F$10+273)^2)*(($F$10+273+O10)+($F$10+273))) -> 16.66832929 | N10: 79.99251893 | O10: 32.00019951 | P10: 0.0001 | Q10: 0.0004 | R10: 378.4163998 | S10: 1.567193288 | T10: 217.9474634 | U10: 0.5409277979 | V10: 2.879993917 | W10: 82.87251285 | X10: 0.400039903 | Y10: 40
G11: 48 | H11: 0.4778936834 | I11: 0.012 | J11: 0.048 | K11: 0.022 | L11: =K11^2*2 -> 0.000968 | M11: =IF(【事例2】危険部品判断シート!$O$36=0,2.51*0.56*(O11/K11)^0.25+0.0000000567*$F$9*(($F$10+273+O11)^2+($F$10+273)^2)*(($F$10+273+O11)+($F$10+273)),3.86*(【事例2】危険部品判断シート!$O$36/K11)^0.5+0.0000000567*$F$9*(($F$10+273+O11)^2+($F$10+273)^2)*(($F$10+273+O11)+($F$10+273))) -> 16.45639406 | N11: 66.90770019 | O11: 31.97476729 | P11: 0.000144 | Q11: 0.000484 | R11: 336.4391514 | S11: 1.187267642 | T11: 196.1103423 | U11: 0.4917020551 | V11: 2.395816244 | W11: 69.30351643 | X11: 0.4778936834 | Y11: 48
G12: 56 | H12: 0.5621993754 | I12: 0.014 | J12: 0.056 | K12: 0.024 | L12: 0.001152 | M12: =IF(【事例2】危険部品判断シート!$O$36=0,2.51*0.56*(O12/K12)^0.25+0.0000000567*$F$9*(($F$10+273+O12)^2+($F$10+273)^2)*(($F$10+273+O12)+($F$10+273)),3.86*(【事例2】危険部品判断シート!$O$36/K12)^0.5+0.0000000567*$F$9*(($F$10+273+O12)^2+($F$10+273)^2)*(($F$10+273+O12)+($F$10+273))) -> 16.26734304 | N12: 56.83407447 | O12: 31.95208116 | P12: 0.000196 | Q12: 0.000576 | R12: 303.442238 | S12: 0.9328531474 | T12: 178.8050635 | U12: 0.4506435895 | V12: 2.049824357 | W12: 58.88389882 | X12: 0.5621993754 | Y12: 56
G13: 64 | H13: 0.6528977344 | I13: 0.016 | J13: 0.064 | K13: 0.026 | L13: 0.001352 | M13: =IF(【事例2】危険部品判断シート!$O$36=0,2.51*0.56*(O13/K13)^0.25+0.0000000567*$F$9*(($F$10+273+O13)^2+($F$10+273)^2)*(($F$10+273+O13)+($F$10+273)),3.86*(【事例2】危険部品判断シート!$O$36/K13)^0.5+0.0000000567*$F$9*(($F$10+273+O13)^2+($F$10+273)^2)*(($F$10+273+O13)+($F$10+273))) -> 16.09708418 | N13: 48.90758295 | O13: 31.9316501 | P13: 0.000256 | Q13: 0.000676 | R13: 276.6664614 | S13: 0.7534583114 | T13: 164.6462777 | U13: 0.4158521253 | V13: 1.790270778 | W13: 50.69785373 | X13: 0.6528977344 | Y13: 64
G14: 72 | H14: 0.7499354121 | I14: 0.018 | J14: 0.072 | K14: 0.028 | L14: 0.001568 | M14: =IF(【事例2】危険部品判断シート!$O$36=0,2.51*0.56*(O14/K14)^0.25+0.0000000567*$F$9*(($F$10+273+O14)^2+($F$10+273)^2)*(($F$10+273+O14)+($F$10+273)),3.86*(【事例2】危険部品判断シート!$O$36/K14)^0.5+0.0000000567*$F$9*(($F$10+273+O14)^2+($F$10+273)^2)*(($F$10+273+O14)+($F$10+273))) -> 15.94250451 | N14: 42.55446539 | O14: 31.91310054 | P14: 0.000324 | Q14: 0.000784 | R14: 254.4244126 | S14: 0.6219020983 | T14: 152.7891403 | U14: 0.385989732 | V14: 1.588326341 | W14: 44.14279173 | X14: 0.7499354121 | Y14: 72
G15: 80 | H15: 0.8532639774 | I15: 0.02 | J15: 0.08 | K15: 0.03 | L15: 0.0018 | M15: =IF(【事例2】危険部品判断シート!$O$36=0,2.51*0.56*(O15/K15)^0.25+0.0000000567*$F$9*(($F$10+273+O15)^2+($F$10+273)^2)*(($F$10+273+O15)+($F$10+273)),3.86*(【事例2】危険部品判断シート!$O$36/K15)^0.5+0.0000000567*$F$9*(($F$10+273+O15)^2+($F$10+273)^2)*(($F$10+273+O15)+($F$10+273))) -> 15.80118477 | N15: 37.38132983 | O15: 31.89614217 | P15: 0.0004 | Q15: 0.0009 | R15: 235.6109332 | S15: 0.5223977625 | T15: 142.6806901 | U15: 0.360079719 | V15: 1.426675861 | W15: 38.80800569 | X15: 0.8532639774 | Y15: 80
G16: 88 | H16: 0.9628391561 | I16: 0.022 | J16: 0.088 | K16: 0.032 | L16: 0.002048 | M16: =IF(【事例2】危険部品判断シート!$O$36=0,2.51*0.56*(O16/K16)^0.25+0.0000000567*$F$9*(($F$10+273+O16)^2+($F$10+273)^2)*(($F$10+273+O16)+($F$10+273)),3.86*(【事例2】危険部品判断シート!$O$36/K16)^0.5+0.0000000567*$F$9*(($F$10+273+O16)^2+($F$10+273)^2)*(($F$10+273+O16)+($F$10+273))) -> 15.67121022 | N16: 33.11097708 | O16: 31.88054523 | P16: 0.000484 | Q16: 0.001024 | R16: 219.4647954 | S16: 0.4452253658 | T16: 133.9397003 | U16: 0.3373894216 | V16: 1.294301278 | W16: 34.40527836 | X16: 0.9628391561 | Y16: 88
G17: 96 | H17: =X17 -> 1.07862023 | I17: 0.024 | J17: 0.096 | K17: 0.034 | L17: 0.002312 | M17: =IF(【事例2】危険部品判断シート!$O$36=0,2.51*0.56*(O17/K17)^0.25+0.0000000567*$F$9*(($F$10+273+O17)^2+($F$10+273)^2)*(($F$10+273+O17)+($F$10+273)),3.86*(【事例2】危険部品判断シート!$O$36/K17)^0.5+0.0000000567*$F$9*(($F$10+273+O17)^2+($F$10+273)^2)*(($F$10+273+O17)+($F$10+273))) -> 15.55104138 | N17: 29.54341489 | O17: 31.86612497 | P17: 0.000576 | Q17: 0.001156 | R17: 205.4410195 | S17: 0.3841160019 | T17: 126.2926844 | U17: 0.3173572499 | V17: 1.183862282 | W17: 30.72727718 | X17: =L17*M17*$Q$3 -> 1.07862023 | Y17: 96
G18: 104 | H18: =X18 -> 1.200569553 | I18: 0.026 | J18: 0.104 | K18: 0.036 | L18: 0.002592 | M18: =IF(【事例2】危険部品判断シート!$O$36=0,2.51*0.56*(O18/K18)^0.25+0.0000000567*$F$9*(($F$10+273+O18)^2+($F$10+273)^2)*(($F$10+273+O18)+($F$10+273)),3.86*(【事例2】危険部品判断シート!$O$36/K18)^0.5+0.0000000567*$F$9*(($F$10+273+O18)^2+($F$10+273)^2)*(($F$10+273+O18)+($F$10+273))) -> 15.43942326 | N18: 26.53134982 | O18: 31.85273079 | P18: 0.000676 | Q18: 0.001296 | R18: 193.1373162 | S18: 0.3348703606 | T18: 119.5371906 | U18: 0.2995450243 | V18: 1.090282308 | W18: 27.62163213 | X18: =L18*M18*$Q$3 -> 1.200569553 | Y18: 104
G19: 112 | H19: 1.328652159 | I19: 0.028 | J19: 0.112 | K19: 0.038 | L19: 0.002888 | M19: =IF(【事例2】危険部品判断シート!$O$36=0,2.51*0.56*(O19/K19)^0.25+0.0000000567*$F$9*(($F$10+273+O19)^2+($F$10+273)^2)*(($F$10+273+O19)+($F$10+273)),3.86*(【事例2】危険部品判断シート!$O$36/K19)^0.5+0.0000000567*$F$9*(($F$10+273+O19)^2+($F$10+273)^2)*(($F$10+273+O19)+($F$10+273))) -> 15.33532039 | N19: 23.96431469 | O19: 31.84023845 | P19: 0.000784 | Q19: 0.001444 | R19: 182.249233 | S19: 0.2945852044 | T19: 113.5194875 | U19: 0.2836056584 | V19: 1.009939472 | W19: 24.97425417 | X19: 1.328652159 | Y19: 112
G20: 120 | H20: 1.462835434 | I20: 0.03 | J20: 0.12 | K20: 0.04 | L20: 0.0032 | M20: =IF(【事例2】危険部品判断シート!$O$36=0,2.51*0.56*(O20/K20)^0.25+0.0000000567*$F$9*(($F$10+273+O20)^2+($F$10+273)^2)*(($F$10+273+O20)+($F$10+273)),3.86*(【事例2】危険部品判断シート!$O$36/K20)^0.5+0.0000000567*$F$9*(($F$10+273+O20)^2+($F$10+273)^2)*(($F$10+273+O20)+($F$10+273))) -> 15.2378691 | N20: 21.75811684 | O20: 31.82854429 | P20: 0.0009 | Q20: 0.0016 | R20: 172.5415333 | S20: 0.2611988813 | T20: 108.1203506 | U20: 0.2692605998 | V20: 0.9401809135 | W20: 22.69829776 | X20: 1.462835434 | Y20: 120
G21: 128 | H21: 1.60308885 | I21: 0.032 | J21: 0.128 | K21: 0.042 | L21: 0.003528 | M21: =IF(【事例2】危険部品判断シート!$O$36=0,2.51*0.56*(O21/K21)^0.25+0.0000000567*$F$9*(($F$10+273+O21)^2+($F$10+273)^2)*(($F$10+273+O21)+($F$10+273)),3.86*(【事例2】危険部品判断シート!$O$36/K21)^0.5+0.0000000567*$F$9*(($F$10+273+O21)^2+($F$10+273)^2)*(($F$10+273+O21)+($F$10+273))) -> 15.14634212 | N21: 19.84765914 | O21: 31.81756105 | P21: 0.001024 | Q21: 0.001764 | R21: 163.829238 | S21: 0.2332132869 | T21: 103.2456565 | U21: 0.2562837043 | V21: 0.879019303 | W21: 20.72667844 | X21: 1.60308885 | Y21: 128
G22: 136 | H22: 1.749383732 | I22: 0.034 | J22: 0.136 | K22: 0.044 | L22: 0.003872 | M22: =IF(【事例2】危険部品判断シート!$O$36=0,2.51*0.56*(O22/K22)^0.25+0.0000000567*$F$9*(($F$10+273+O22)^2+($F$10+273)^2)*(($F$10+273+O22)+($F$10+273)),3.86*(【事例2】危険部品判断シート!$O$36/K22)^0.5+0.0000000567*$F$9*(($F$10+273+O22)^2+($F$10+273)^2)*(($F$10+273+O22)+($F$10+273))) -> 15.06012166 | N22: 18.18195403 | O22: 31.8072146 | P22: 0.001156 | Q22: 0.001936 | R22: 155.9646737 | S22: 0.2095178192 | T22: 98.81995561 | U22: 0.2444894769 | V22: 0.8249365713 | W22: 19.0068906 | X22: 1.749383732 | Y22: 136
G23: 144 | H23: 1.90169307 | I23: 0.036 | J23: 0.144 | K23: 0.046 | L23: 0.004232 | M23: =IF(【事例2】危険部品判断シート!$O$36=0,2.51*0.56*(O23/K23)^0.25+0.0000000567*$F$9*(($F$10+273+O23)^2+($F$10+273)^2)*(($F$10+273+O23)+($F$10+273)),3.86*(【事例2】危険部品判断シート!$O$36/K23)^0.5+0.0000000567*$F$9*(($F$10+273+O23)^2+($F$10+273)^2)*(($F$10+273+O23)+($F$10+273))) -> 14.97867887 | N23: 16.72059596 | O23: 31.79744146 | P23: 0.001296 | Q23: 0.002116 | R23: 148.8283864 | S23: 0.1892745516 | T23: 94.78196198 | U23: 0.2337243489 | V23: 0.7767531688 | W23: 17.49734913 | X23: 1.90169307 | Y23: 144
G24: 152 | H24: 2.059991347 | I24: 0.038 | J24: 0.152 | K24: 0.048 | L24: 0.004608 | M24: =IF(【事例2】危険部品判断シート!$O$36=0,2.51*0.56*(O24/K24)^0.25+0.0000000567*$F$9*(($F$10+273+O24)^2+($F$10+273)^2)*(($F$10+273+O24)+($F$10+273)),3.86*(【事例2】危険部品判断シート!$O$36/K24)^0.5+0.0000000567*$F$9*(($F$10+273+O24)^2+($F$10+273)^2)*(($F$10+273+O24)+($F$10+273))) -> 14.90155778 | N24: 15.43122352 | O24: 31.78818693 | P24: 0.001444 | Q24: 0.002304 | R24: 142.3226227 | S24: 0.1718413693 | T24: 91.08131253 | U24: 0.22386011 | V24: 0.7335386968 | W24: 16.16476222 | X24: 2.059991347 | Y24: 152
G25: 160 | H25: 2.224254401 | I25: 0.04 | J25: 0.16 | K25: 0.05 | L25: 0.005 | M25: =IF(【事例2】危険部品判断シート!$O$36=0,2.51*0.56*(O25/K25)^0.25+0.0000000567*$F$9*(($F$10+273+O25)^2+($F$10+273)^2)*(($F$10+273+O25)+($F$10+273)),3.86*(【事例2】危険部品判断シート!$O$36/K25)^0.5+0.0000000567*$F$9*(($F$10+273+O25)^2+($F$10+273)^2)*(($F$10+273+O25)+($F$10+273))) -> 14.82836268 | N25: 14.28766579 | O25: 31.77940352 | P25: 0.0016 | Q25: 0.0025 | R25: 136.3665599 | S25: 0.1567193288 | T25: 87.67619251 | U25: 0.2147888975 | V25: 0.6945494154 | W25: 14.98221521 | X25: 2.224254401 | Y25: 160
G26: 168 | H26: 2.3944593 | I26: 0.042 | J26: 0.168 | K26: 0.052 | L26: 0.005408 | M26: =IF(【事例2】危険部品判断シート!$O$36=0,2.51*0.56*(O26/K26)^0.25+0.0000000567*$F$9*(($F$10+273+O26)^2+($F$10+273)^2)*(($F$10+273+O26)+($F$10+273)),3.86*(【事例2】危険部品判断シート!$O$36/K26)^0.5+0.0000000567*$F$9*(($F$10+273+O26)^2+($F$10+273)^2)*(($F$10+273+O26)+($F$10+273))) -> 14.75874815 | N26: 13.26856956 | O26: 31.77104978 | P26: 0.001764 | Q26: 0.002704 | R26: 130.8927545 | S26: 0.1435158688 | T26: 84.53156412 | U26: 0.2064193265 | V26: 0.6591836544 | W26: 13.92775321 | X26: 2.3944593 | Y26: 168
G27: 176 | H27: 2.570584232 | I27: 0.044 | J27: 0.176 | K27: 0.054 | L27: 0.005832 | M27: =IF(【事例2】危険部品判断シート!$O$36=0,2.51*0.56*(O27/K27)^0.25+0.0000000567*$F$9*(($F$10+273+O27)^2+($F$10+273)^2)*(($F$10+273+O27)+($F$10+273)),3.86*(【事例2】危険部品判断シート!$O$36/K27)^0.5+0.0000000567*$F$9*(($F$10+273+O27)^2+($F$10+273)^2)*(($F$10+273+O27)+($F$10+273))) -> 14.69241102 | N27: 12.35636978 | O27: 31.76308932 | P27: 0.001936 | Q27: 0.002916 | R27: 125.8444579 | S27: 0.1319186269 | T27: 81.61782466 | U27: 0.1986734697 | V27: 0.6269494193 | W27: 12.9833192 | X27: 2.570584232 | Y27: 176
G28: 184 | H28: 2.752608412 | I28: 0.046 | J28: 0.184 | K28: 0.056 | L28: 0.006272 | M28: =IF(【事例2】危険部品判断シート!$O$36=0,2.51*0.56*(O28/K28)^0.25+0.0000000567*$F$9*(($F$10+273+O28)^2+($F$10+273)^2)*(($F$10+273+O28)+($F$10+273)),3.86*(【事例2】危険部品判断シート!$O$36/K28)^0.5+0.0000000567*$F$9*(($F$10+273+O28)^2+($F$10+273)^2)*(($F$10+273+O28)+($F$10+273))) -> 14.62908382 | N28: 11.5365084 | O28: 31.75549006 | P28: 0.002116 | Q28: 0.003136 | R28: 121.1735589 | S28: 0.1216764975 | T28: 78.90977575 | U28: 0.1914844765 | V28: 0.5974404733 | W28: 12.13394887 | X28: 2.752608412 | Y28: 184
G29: 192 | H29: 2.940511998 | I29: 0.048 | J29: 0.192 | K29: 0.058 | L29: 0.006728 | M29: =IF(【事例2】危険部品判断シート!$O$36=0,2.51*0.56*(O29/K29)^0.25+0.0000000567*$F$9*(($F$10+273+O29)^2+($F$10+273)^2)*(($F$10+273+O29)+($F$10+273)),3.86*(【事例2】危険部品判断シート!$O$36/K29)^0.5+0.0000000567*$F$9*(($F$10+273+O29)^2+($F$10+273)^2)*(($F$10+273+O29)+($F$10+273))) -> 14.56852952 | N29: 10.79683523 | O29: 31.74822354 | P29: 0.002304 | Q29: 0.003364 | R29: 116.8389885 | S29: 0.1125857247 | T29: 76.38582163 | U29: 0.1847946791 | V29: 0.5703184167 | W29: 11.36715365 | X29: 2.940511998 | Y29: 192
G30: 200 | H30: 3.134276014 | I30: 0.05 | J30: 0.2 | K30: 0.06 | L30: 0.0072 | M30: =IF(【事例2】危険部品判断シート!$O$36=0,2.51*0.56*(O30/K30)^0.25+0.0000000567*$F$9*(($F$10+273+O30)^2+($F$10+273)^2)*(($F$10+273+O30)+($F$10+273)),3.86*(【事例2】危険部品判断シート!$O$36/K30)^0.5+0.0000000567*$F$9*(($F$10+273+O30)^2+($F$10+273)^2)*(($F$10+273+O30)+($F$10+273))) -> 14.5105371 | N30: 10.12714397 | O30: 31.74126445 | P30: 0.0025 | Q30: 0.0036 | R30: 112.8054666 | S30: 0.1044795525 | T30: 74.02733866 | U30: 0.178554074 | V30: 0.54529908 | W30: 10.67244305 | X30: 3.134276014 | Y30: 200
K32: 隙間 | L32: =L4+E33 -> 10
E33: =(【事例2】危険部品判断シート!R8-【事例2】危険部品判断シート!R7)/3 -> 5 | H33: 発熱量 | I33: 部品L | J33: 周長 | K33: 周囲幅 | L33: P表面積 | M33: 熱伝達率 | N33: 熱抵抗R0 | O33: 温度上昇 | P33: As | Q33: Ap | R33: λ | S33: AC | T33: BC | U33: CC | V33: Rc | W33: Rt | X33: ERR
G34: =J34*1000 -> 8 | H34: =X34 -> 0.4778936834 | I34: 0.002 | J34: =I34*4 -> 0.008 | K34: =I34+$L$32/1000*2 -> 0.022 | L34: =K34^2*2 -> 0.000968 | M34: =IF(【事例2】危険部品判断シート!$O$36=0,2.51*0.56*(O34/K34)^0.25+0.0000000567*$F$9*(($F$10+273+O34)^2+($F$10+273)^2)*(($F$10+273+O34)+($F$10+273)),3.86*(【事例2】危険部品判断シート!$O$36/K34)^0.5+0.0000000567*$F$9*(($F$10+273+O34)^2+($F$10+273)^2)*(($F$10+273+O34)+($F$10+273))) -> 16.45639406 | N34: =1/L34/M34+$F$8/$M$3/L34 -> 66.90770019 | O34: =H34*N34 -> 31.97476729 | P34: =I34^2 -> 4e-06 | Q34: =K34^2 -> 0.000484 | R34: =(PI()^1.5)/((Q34)^0.5)+1/(P34)^0.5 -> 753.105818 | S34: =$F$6*(Q34^0.5-P34^0.5)/($L$3*(PI()*Q34*P34)^0.5) -> 14.24721171 | T34: =R34*$L$3*Q34*N34/$F$6 -> 438.985294 | U34: =TANH(R34*$F$8/$F$6) -> 0.8351640799 | V34: =S34*(T34+U34)/(1+T34*U34) -> 17.04513962 | W34: =N34+V34 -> 83.95283981 | X34: =L34*M34*$Q$3 -> 0.4778936834
G35: =J35*1000 -> 16 | H35: =X35 -> 0.5621993754 | I35: =I34+0.002 -> 0.004 | J35: 0.016 | K35: =I35+$L$32/1000*2 -> 0.024 | L35: =K35^2*2 -> 0.001152 | M35: =IF(【事例2】危険部品判断シート!$O$36=0,2.51*0.56*(O35/K35)^0.25+0.0000000567*$F$9*(($F$10+273+O35)^2+($F$10+273)^2)*(($F$10+273+O35)+($F$10+273)),3.86*(【事例2】危険部品判断シート!$O$36/K35)^0.5+0.0000000567*$F$9*(($F$10+273+O35)^2+($F$10+273)^2)*(($F$10+273+O35)+($F$10+273))) -> 16.26734304 | N35: 56.83407447 | O35: =H35*N35 -> 31.95208116 | P35: =I35^2 -> 1.6e-05 | Q35: =K35^2 -> 0.000576 | R35: =(PI()^1.5)/((Q35)^0.5)+1/(P35)^0.5 -> 482.0136665 | S35: 6.529972032 | T35: 284.0292928 | U35: 0.6476393826 | V35: =S35*(T35+U35)/(1+T35*U35) -> 10.05107824 | W35: =N35+V35 -> 66.88515271 | X35: =L35*M35*$Q$3 -> 0.5621993754
G36: 24 | H36: =X36 -> 0.6528977344 | I36: =I35+0.002 -> 0.006 | J36: 0.024 | K36: 0.026 | L36: 0.001352 | M36: =IF(【事例2】危険部品判断シート!$O$36=0,2.51*0.56*(O36/K36)^0.25+0.0000000567*$F$9*(($F$10+273+O36)^2+($F$10+273)^2)*(($F$10+273+O36)+($F$10+273)),3.86*(【事例2】危険部品判断シート!$O$36/K36)^0.5+0.0000000567*$F$9*(($F$10+273+O36)^2+($F$10+273)^2)*(($F$10+273+O36)+($F$10+273))) -> 16.09708418 | N36: 48.90758295 | O36: 31.9316501 | P36: 3.6e-05 | Q36: 0.000676 | R36: 380.8331281 | S36: 4.018444327 | T36: 226.6366391 | U36: 0.5436574135 | V36: 7.349582245 | W36: 56.25716519 | X36: 0.6528977344
G37: 32 | H37: 0.7499354121 | I37: 0.008 | J37: 0.032 | K37: 0.028 | L37: 0.001568 | M37: =IF(【事例2】危険部品判断シート!$O$36=0,2.51*0.56*(O37/K37)^0.25+0.0000000567*$F$9*(($F$10+273+O37)^2+($F$10+273)^2)*(($F$10+273+O37)+($F$10+273)),3.86*(【事例2】危険部品判断シート!$O$36/K37)^0.5+0.0000000567*$F$9*(($F$10+273+O37)^2+($F$10+273)^2)*(($F$10+273+O37)+($F$10+273))) -> 15.94250451 | N37: 42.55446539 | O37: 31.91310054 | P37: 6.4e-05 | Q37: 0.000784 | R37: 323.868857 | S37: 2.798559442 | T37: 194.4925164 | U37: 0.4763019743 | V37: 5.82708587 | W37: 48.38155126 | X37: 0.7499354121
G38: 40 | H38: 0.8532639774 | I38: 0.01 | J38: 0.04 | K38: 0.03 | L38: 0.0018 | M38: =IF(【事例2】危険部品判断シート!$O$36=0,2.51*0.56*(O38/K38)^0.25+0.0000000567*$F$9*(($F$10+273+O38)^2+($F$10+273)^2)*(($F$10+273+O38)+($F$10+273)),3.86*(【事例2】危険部品判断シート!$O$36/K38)^0.5+0.0000000567*$F$9*(($F$10+273+O38)^2+($F$10+273)^2)*(($F$10+273+O38)+($F$10+273))) -> 15.80118477 | N38: 37.38132983 | O38: 31.89614217 | P38: 0.0001 | Q38: 0.0009 | R38: 285.6109332 | S38: 2.08959105 | T38: 172.9595673 | U38: 0.4276175861 | V38: 4.833319618 | W38: 42.21464945 | X38: 0.8532639774
G39: 48 | H39: 0.9628391561 | I39: 0.012 | J39: 0.048 | K39: 0.032 | L39: =K39^2*2 -> 0.002048 | M39: =IF(【事例2】危険部品判断シート!$O$36=0,2.51*0.56*(O39/K39)^0.25+0.0000000567*$F$9*(($F$10+273+O39)^2+($F$10+273)^2)*(($F$10+273+O39)+($F$10+273)),3.86*(【事例2】危険部品判断シート!$O$36/K39)^0.5+0.0000000567*$F$9*(($F$10+273+O39)^2+($F$10+273)^2)*(($F$10+273+O39)+($F$10+273))) -> 15.67121022 | N39: 33.11097708 | O39: 31.88054523 | P39: 0.000144 | Q39: 0.001024 | R39: 257.3435832 | S39: 1.632493008 | T39: 157.0571824 | U39: 0.3899573487 | V39: 4.129309456 | W39: 37.24028653 | X39: 0.9628391561
G40: 56 | H40: 1.07862023 | I40: 0.014 | J40: 0.056 | K40: 0.034 | L40: 0.002312 | M40: =IF(【事例2】危険部品判断シート!$O$36=0,2.51*0.56*(O40/K40)^0.25+0.0000000567*$F$9*(($F$10+273+O40)^2+($F$10+273)^2)*(($F$10+273+O40)+($F$10+273)),3.86*(【事例2】危険部品判断シート!$O$36/K40)^0.5+0.0000000567*$F$9*(($F$10+273+O40)^2+($F$10+273)^2)*(($F$10+273+O40)+($F$10+273))) -> 15.55104138 | N40: 29.54341489 | O40: 31.86612497 | P40: 0.000196 | Q40: 0.001156 | R40: 235.2029243 | S40: 1.316969149 | T40: 144.5884992 | U40: 0.3595114134 | V40: 3.60301393 | W40: 33.14642882 | X40: 1.07862023
G41: 64 | H41: 1.200569553 | I41: 0.016 | J41: 0.064 | K41: 0.036 | L41: 0.002592 | M41: =IF(【事例2】危険部品判断シート!$O$36=0,2.51*0.56*(O41/K41)^0.25+0.0000000567*$F$9*(($F$10+273+O41)^2+($F$10+273)^2)*(($F$10+273+O41)+($F$10+273)),3.86*(【事例2】危険部品判断シート!$O$36/K41)^0.5+0.0000000567*$F$9*(($F$10+273+O41)^2+($F$10+273)^2)*(($F$10+273+O41)+($F$10+273))) -> 15.43942326 | N41: 26.53134982 | O41: 31.85273079 | P41: 0.000256 | Q41: 0.001296 | R41: 217.1757777 | S41: 1.088328672 | T41: 134.4151552 | U41: 0.3341398927 | V41: 3.194085214 | W41: 29.72543503 | X41: 1.200569553
G42: 72 | H42: 1.328652159 | I42: 0.018 | J42: 0.072 | K42: 0.038 | L42: 0.002888 | M42: =IF(【事例2】危険部品判断シート!$O$36=0,2.51*0.56*(O42/K42)^0.25+0.0000000567*$F$9*(($F$10+273+O42)^2+($F$10+273)^2)*(($F$10+273+O42)+($F$10+273)),3.86*(【事例2】危険部品判断シート!$O$36/K42)^0.5+0.0000000567*$F$9*(($F$10+273+O42)^2+($F$10+273)^2)*(($F$10+273+O42)+($F$10+273))) -> 15.33532039 | N42: 23.96431469 | O42: 31.84023845 | P42: 0.000324 | Q42: 0.001444 | R42: 202.0905028 | S42: 0.9164873027 | T42: 125.8782269 | U42: 0.3125281728 | V42: 2.866901674 | W42: 26.83121637 | X42: 1.328652159
B43: 0.1 | C43: 0.1 | G43: 80 | H43: 1.462835434 | I43: 0.02 | J43: 0.08 | K43: 0.04 | L43: 0.0032 | M43: =IF(【事例2】危険部品判断シート!$O$36=0,2.51*0.56*(O43/K43)^0.25+0.0000000567*$F$9*(($F$10+273+O43)^2+($F$10+273)^2)*(($F$10+273+O43)+($F$10+273)),3.86*(【事例2】危険部品判断シート!$O$36/K43)^0.5+0.0000000567*$F$9*(($F$10+273+O43)^2+($F$10+273)^2)*(($F$10+273+O43)+($F$10+273))) -> 15.2378691 | N43: 21.75811684 | O43: 31.82854429 | P43: 0.0004 | Q43: 0.0016 | R43: 189.2081999 | S43: 0.7835966438 | T43: 118.5642467 | U43: 0.2938117954 | V43: 2.599003304 | W43: 24.35712015 | X43: 1.462835434
B44: 1000 | C44: 1000 | G44: 88 | H44: 1.60308885 | I44: 0.022 | J44: 0.088 | K44: 0.042 | L44: 0.003528 | M44: =IF(【事例2】危険部品判断シート!$O$36=0,2.51*0.56*(O44/K44)^0.25+0.0000000567*$F$9*(($F$10+273+O44)^2+($F$10+273)^2)*(($F$10+273+O44)+($F$10+273)),3.86*(【事例2】危険部品判断シート!$O$36/K44)^0.5+0.0000000567*$F$9*(($F$10+273+O44)^2+($F$10+273)^2)*(($F$10+273+O44)+($F$10+273))) -> 15.14634212 | N44: 19.84765914 | O44: 31.81756105 | P44: 0.000484 | Q44: 0.001764 | R44: 178.0337835 | S44: 0.6784386527 | T44: 112.1974018 | U44: 0.2773916393 | V44: 2.375498774 | W44: 22.22315791 | X44: 1.60308885
G45: 96 | H45: 1.749383732 | I45: 0.024 | J45: 0.096 | K45: 0.044 | L45: 0.003872 | M45: =IF(【事例2】危険部品判断シート!$O$36=0,2.51*0.56*(O45/K45)^0.25+0.0000000567*$F$9*(($F$10+273+O45)^2+($F$10+273)^2)*(($F$10+273+O45)+($F$10+273)),3.86*(【事例2】危険部品判断シート!$O$36/K45)^0.5+0.0000000567*$F$9*(($F$10+273+O45)^2+($F$10+273)^2)*(($F$10+273+O45)+($F$10+273))) -> 15.06012166 | N45: 18.18195403 | O45: 31.8072146 | P45: 0.000576 | Q45: 0.001936 | R45: 168.2195757 | S45: 0.5936338211 | T45: 106.5847195 | U45: 0.2628349616 | V45: 2.186113781 | W45: 20.36806781 | X45: 1.749383732
G46: 104 | H46: 1.90169307 | I46: 0.026 | J46: 0.104 | K46: 0.046 | L46: 0.004232 | M46: =IF(【事例2】危険部品判断シート!$O$36=0,2.51*0.56*(O46/K46)^0.25+0.0000000567*$F$9*(($F$10+273+O46)^2+($F$10+273)^2)*(($F$10+273+O46)+($F$10+273)),3.86*(【事例2】危険部品判断シート!$O$36/K46)^0.5+0.0000000567*$F$9*(($F$10+273+O46)^2+($F$10+273)^2)*(($F$10+273+O46)+($F$10+273))) -> 14.97867887 | N46: 16.72059596 | O46: 31.79744146 | P46: 0.000676 | Q46: 0.002116 | R46: 159.5121471 | S46: 0.5241449123 | T46: 101.5859583 | U46: 0.2498187007 | V46: 2.023525607 | W46: 18.74412157 | X46: 1.90169307
G47: 112 | H47: 2.059991347 | I47: 0.028 | J47: 0.112 | K47: 0.048 | L47: 0.004608 | M47: =IF(【事例2】危険部品判断シート!$O$36=0,2.51*0.56*(O47/K47)^0.25+0.0000000567*$F$9*(($F$10+273+O47)^2+($F$10+273)^2)*(($F$10+273+O47)+($F$10+273)),3.86*(【事例2】危険部品判断シート!$O$36/K47)^0.5+0.0000000567*$F$9*(($F$10+273+O47)^2+($F$10+273)^2)*(($F$10+273+O47)+($F$10+273))) -> 14.90155778 | N47: 15.43122352 | O47: 31.78818693 | P47: 0.000784 | Q47: 0.002304 | R47: 151.721119 | S47: 0.4664265737 | T47: 97.09600898 | U47: 0.2380951272 | V47: 1.882372073 | W47: 17.3135956 | X47: 2.059991347
G48: 120 | H48: 2.224254401 | I48: 0.03 | J48: 0.12 | K48: 0.05 | L48: 0.005 | M48: =IF(【事例2】危険部品判断シート!$O$36=0,2.51*0.56*(O48/K48)^0.25+0.0000000567*$F$9*(($F$10+273+O48)^2+($F$10+273)^2)*(($F$10+273+O48)+($F$10+273)),3.86*(【事例2】危険部品判断シート!$O$36/K48)^0.5+0.0000000567*$F$9*(($F$10+273+O48)^2+($F$10+273)^2)*(($F$10+273+O48)+($F$10+273))) -> 14.82836268 | N48: 14.28766579 | O48: 31.77940352 | P48: 0.0009 | Q48: 0.0025 | R48: 144.6998933 | S48: 0.41791821 | T48: 93.03406718 | U48: 0.2274700389 | V48: 1.758635532 | W48: 16.04630132 | X48: 2.224254401
G49: 128 | H49: 2.3944593 | I49: 0.032 | J49: 0.128 | K49: 0.052 | L49: 0.005408 | M49: =IF(【事例2】危険部品判断シート!$O$36=0,2.51*0.56*(O49/K49)^0.25+0.0000000567*$F$9*(($F$10+273+O49)^2+($F$10+273)^2)*(($F$10+273+O49)+($F$10+273)),3.86*(【事例2】危険部品判断シート!$O$36/K49)^0.5+0.0000000567*$F$9*(($F$10+273+O49)^2+($F$10+273)^2)*(($F$10+273+O49)+($F$10+273))) -> 14.75874815 | N49: 13.26856956 | O49: 31.77104978 | P49: 0.001024 | Q49: 0.002704 | R49: 138.3332307 | S49: 0.3767291557 | T49: 89.33668181 | U49: 0.2177883641 | V49: 1.649245803 | W49: 14.91781536 | X49: 2.3944593
G50: 136 | H50: 2.570584232 | I50: 0.034 | J50: 0.136 | K50: 0.054 | L50: 0.005832 | M50: =IF(【事例2】危険部品判断シート!$O$36=0,2.51*0.56*(O50/K50)^0.25+0.0000000567*$F$9*(($F$10+273+O50)^2+($F$10+273)^2)*(($F$10+273+O50)+($F$10+273)),3.86*(【事例2】危険部品判断シート!$O$36/K50)^0.5+0.0000000567*$F$9*(($F$10+273+O50)^2+($F$10+273)^2)*(($F$10+273+O50)+($F$10+273))) -> 14.69241102 | N50: 12.35636978 | O50: 31.76308932 | P50: 0.001156 | Q50: 0.002916 | R50: 132.5289498 | S50: 0.3414364461 | T50: 85.95312638 | U50: 0.2089243332 | V50: 1.551816148 | W50: 13.90818593 | X50: 2.570584232
G51: 144 | H51: 2.752608412 | I51: 0.036 | J51: 0.144 | K51: 0.056 | L51: 0.006272 | M51: =IF(【事例2】危険部品判断シート!$O$36=0,2.51*0.56*(O51/K51)^0.25+0.0000000567*$F$9*(($F$10+273+O51)^2+($F$10+273)^2)*(($F$10+273+O51)+($F$10+273)),3.86*(【事例2】危険部品判断シート!$O$36/K51)^0.5+0.0000000567*$F$9*(($F$10+273+O51)^2+($F$10+273)^2)*(($F$10+273+O51)+($F$10+273))) -> 14.62908382 | N51: 11.5365084 | O51: 31.75549006 | P51: 0.001296 | Q51: 0.003136 | R51: 127.2122063 | S51: 0.3109510491 | T51: 82.84222035 | U51: 0.2007745718 | V51: 1.464462973 | W51: 13.00097137 | X51: 2.752608412
G52: 152 | H52: 2.940511998 | I52: 0.038 | J52: 0.152 | K52: 0.058 | L52: 0.006728 | M52: =IF(【事例2】危険部品判断シート!$O$36=0,2.51*0.56*(O52/K52)^0.25+0.0000000567*$F$9*(($F$10+273+O52)^2+($F$10+273)^2)*(($F$10+273+O52)+($F$10+273)),3.86*(【事例2】危険部品判断シート!$O$36/K52)^0.5+0.0000000567*$F$9*(($F$10+273+O52)^2+($F$10+273)^2)*(($F$10+273+O52)+($F$10+273))) -> 14.56852952 | N52: 10.79683523 | O52: 31.74822354 | P52: 0.001444 | Q52: 0.003364 | R52: 122.3214446 | S52: 0.2844270939 | T52: 79.9700868 | U52: 0.1932531275 | V52: 1.385679798 | W52: 12.18251503 | X52: 2.940511998
G53: 160 | H53: 3.134276014 | I53: 0.04 | J53: 0.16 | K53: 0.06 | L53: 0.0072 | M53: =IF(【事例2】危険部品判断シート!$O$36=0,2.51*0.56*(O53/K53)^0.25+0.0000000567*$F$9*(($F$10+273+O53)^2+($F$10+273)^2)*(($F$10+273+O53)+($F$10+273)),3.86*(【事例2】危険部品判断シート!$O$36/K53)^0.5+0.0000000567*$F$9*(($F$10+273+O53)^2+($F$10+273)^2)*(($F$10+273+O53)+($F$10+273))) -> 14.5105371 | N53: 10.12714397 | O53: 31.74126445 | P53: 0.0016 | Q53: 0.0036 | R53: 117.8054666 | S53: 0.2611988813 | T53: 77.30853331 | U53: 0.1862878094 | V53: 1.314247321 | W53: 11.4413913 | X53: 3.134276014
G54: 168 | H54: 3.33388229 | I54: 0.042 | J54: 0.168 | K54: 0.062 | L54: 0.007688 | M54: =IF(【事例2】危険部品判断シート!$O$36=0,2.51*0.56*(O54/K54)^0.25+0.0000000567*$F$9*(($F$10+273+O54)^2+($F$10+273)^2)*(($F$10+273+O54)+($F$10+273)),3.86*(【事例2】危険部品判断シート!$O$36/K54)^0.5+0.0000000567*$F$9*(($F$10+273+O54)^2+($F$10+273)^2)*(($F$10+273+O54)+($F$10+273))) -> 14.45491801 | N54: 9.518809425 | O54: 31.73459016 | P54: 0.001764 | Q54: 0.003844 | R54: 113.6212657 | S54: 0.2407362961 | T54: 74.83385858 | U54: 0.179817443 | V54: 1.249168062 | W54: 10.76797749 | X54: 3.33388229
G55: 176 | H55: 3.539313395 | I55: 0.044 | J55: 0.176 | K55: 0.064 | L55: 0.008192 | M55: =IF(【事例2】危険部品判断シート!$O$36=0,2.51*0.56*(O55/K55)^0.25+0.0000000567*$F$9*(($F$10+273+O55)^2+($F$10+273)^2)*(($F$10+273+O55)+($F$10+273)),3.86*(【事例2】危険部品判断シート!$O$36/K55)^0.5+0.0000000567*$F$9*(($F$10+273+O55)^2+($F$10+273)^2)*(($F$10+273+O55)+($F$10+273))) -> 14.40150307 | N55: 8.964501536 | O55: 31.72818037 | P55: 0.001936 | Q55: 0.004096 | R55: 109.7323977 | S55: 0.2226126829 | T55: 72.52595694 | U55: 0.1737897781 | V55: 1.189618091 | W55: 10.15411963 | X55: 3.539313395
G56: 184 | H56: 3.750552592 | I56: 0.046 | J56: 0.184 | K56: 0.066 | L56: 0.008712 | M56: =IF(【事例2】危険部品判断シート!$O$36=0,2.51*0.56*(O56/K56)^0.25+0.0000000567*$F$9*(($F$10+273+O56)^2+($F$10+273)^2)*(($F$10+273+O56)+($F$10+273)),3.86*(【事例2】危険部品判断シート!$O$36/K56)^0.5+0.0000000567*$F$9*(($F$10+273+O56)^2+($F$10+273)^2)*(($F$10+273+O56)+($F$10+273))) -> 14.35014001 | N56: 8.457958133 | O56: 31.7220168 | P56: 0.002116 | Q56: 0.004356 | R56: 106.1077364 | S56: 0.2064813291 | T56: 70.36763536 | U56: 0.1681598693 | V56: 1.134910833 | W56: 9.592868965 | X56: 3.750552592
G57: 192 | H57: 3.967583785 | I57: 0.048 | J57: 0.192 | K57: 0.068 | L57: 0.009248 | M57: =IF(【事例2】危険部品判断シート!$O$36=0,2.51*0.56*(O57/K57)^0.25+0.0000000567*$F$9*(($F$10+273+O57)^2+($F$10+273)^2)*(($F$10+273+O57)+($F$10+273)),3.86*(【事例2】危険部品判断シート!$O$36/K57)^0.5+0.0000000567*$F$9*(($F$10+273+O57)^2+($F$10+273)^2)*(($F$10+273+O57)+($F$10+273))) -> 14.30069127 | N57: 7.993802946 | O57: 31.71608295 | P57: 0.002304 | Q57: 0.004624 | R57: 102.7205098 | S57: 0.1920580009 | T57: 68.34408521 | U57: 0.1628888074 | V57: 1.084469572 | W57: 9.078272519 | X57: 3.967583785
G58: 200 | H58: 4.190391477 | I58: 0.05 | J58: 0.2 | K58: 0.07 | L58: 0.0098 | M58: =IF(【事例2】危険部品判断シート!$O$36=0,2.51*0.56*(O58/K58)^0.25+0.0000000567*$F$9*(($F$10+273+O58)^2+($F$10+273)^2)*(($F$10+273+O58)+($F$10+273)),3.86*(【事例2】危険部品判断シート!$O$36/K58)^0.5+0.0000000567*$F$9*(($F$10+273+O58)^2+($F$10+273)^2)*(($F$10+273+O58)+($F$10+273))) -> 14.25303223 | N58: 7.567398904 | O58: 31.71036387 | P58: 0.0025 | Q58: 0.0049 | R58: 99.54754281 | S58: 0.1791078043 | T58: 66.44246823 | U58: 0.1579427127 | V58: 1.037806314 | W58: 8.605205218 | X58: 4.190391477
K60: 隙間 | L60: =L32+E33 -> 15
H61: 発熱量 | I61: 部品L | J61: 周長 | K61: 周囲幅 | L61: P表面積 | M61: 熱伝達率 | N61: 熱抵抗R0 | O61: 温度上昇 | P61: As | Q61: Ap | R61: λ | S61: AC | T61: BC | U61: CC | V61: Rc | W61: Rt | X61: ERR
G62: =J62*1000 -> 8 | H62: =X62 -> 0.9628391561 | I62: 0.002 | J62: =I62*4 -> 0.008 | K62: =I62+$L$60/1000*2 -> 0.032 | L62: =K62^2*2 -> 0.002048 | M62: =IF(【事例2】危険部品判断シート!$O$36=0,2.51*0.56*(O62/K62)^0.25+0.0000000567*$F$9*(($F$10+273+O62)^2+($F$10+273)^2)*(($F$10+273+O62)+($F$10+273)),3.86*(【事例2】危険部品判断シート!$O$36/K62)^0.5+0.0000000567*$F$9*(($F$10+273+O62)^2+($F$10+273)^2)*(($F$10+273+O62)+($F$10+273))) -> 15.67121022 | N62: =1/L62/M62+$F$8/$M$3/L62 -> 33.11097708 | O62: =H62*N62 -> 31.88054523 | P62: =I62^2 -> 4e-06 | Q62: =K62^2 -> 0.001024 | R62: =(PI()^1.5)/((Q62)^0.5)+1/(P62)^0.5 -> 674.0102499 | S62: =$F$6*(Q62^0.5-P62^0.5)/($L$3*(PI()*Q62*P62)^0.5) -> 14.69243707 | T62: =R62*$L$3*Q62*N62/$F$6 -> 411.3494864 | U62: =TANH(R62*$F$8/$F$6) -> 0.7926111043 | V62: =S62*(T62+U62)/(1+T62*U62) -> 18.51568209 | W62: =N62+V62 -> 51.62665917 | X62: =L62*M62*$Q$3 -> 0.9628391561
G63: =J63*1000 -> 16 | H63: =X63 -> 1.07862023 | I63: =I62+0.002 -> 0.004 | J63: 0.016 | K63: =I63+$L$60/1000*2 -> 0.034 | L63: =K63^2*2 -> 0.002312 | M63: =IF(【事例2】危険部品判断シート!$O$36=0,2.51*0.56*(O63/K63)^0.25+0.0000000567*$F$9*(($F$10+273+O63)^2+($F$10+273)^2)*(($F$10+273+O63)+($F$10+273)),3.86*(【事例2】危険部品判断シート!$O$36/K63)^0.5+0.0000000567*$F$9*(($F$10+273+O63)^2+($F$10+273)^2)*(($F$10+273+O63)+($F$10+273))) -> 15.55104138 | N63: 29.54341489 | O63: 31.86612497 | P63: =I63^2 -> 1.6e-05 | Q63: =K63^2 -> 0.001156 | R63: =(PI()^1.5)/((Q63)^0.5)+1/(P63)^0.5 -> 413.7743528 | S63: 6.914088034 | T63: 254.3633879 | U63: 0.5797187352 | V63: =S63*(T63+U63)/(1+T63*U63) -> 11.87328793 | W63: =N63+V63 -> 41.41670282 | X63: =L63*M63*$Q$3 -> 1.07862023
G64: 24 | H64: =X64 -> 1.200569553 | I64: =I63+0.002 -> 0.006 | J64: 0.024 | K64: 0.036 | L64: 0.002592 | M64: =IF(【事例2】危険部品判断シート!$O$36=0,2.51*0.56*(O64/K64)^0.25+0.0000000567*$F$9*(($F$10+273+O64)^2+($F$10+273)^2)*(($F$10+273+O64)+($F$10+273)),3.86*(【事例2】危険部品判断シート!$O$36/K64)^0.5+0.0000000567*$F$9*(($F$10+273+O64)^2+($F$10+273)^2)*(($F$10+273+O64)+($F$10+273))) -> 15.43942326 | N64: 26.53134982 | O64: 31.85273079 | P64: 3.6e-05 | Q64: 0.001296 | R64: 321.3424444 | S64: 4.353314688 | T64: 198.8863353 | U64: 0.473170744 | V64: 9.125226157 | W64: 35.65657597 | X64: 1.200569553
G65: 32 | H65: 1.328652159 | I65: 0.008 | J65: 0.032 | K65: 0.038 | L65: 0.002888 | M65: =IF(【事例2】危険部品判断シート!$O$36=0,2.51*0.56*(O65/K65)^0.25+0.0000000567*$F$9*(($F$10+273+O65)^2+($F$10+273)^2)*(($F$10+273+O65)+($F$10+273)),3.86*(【事例2】危険部品判断シート!$O$36/K65)^0.5+0.0000000567*$F$9*(($F$10+273+O65)^2+($F$10+273)^2)*(($F$10+273+O65)+($F$10+273))) -> 15.33532039 | N65: 23.96431469 | O65: 31.84023845 | P65: 6.4e-05 | Q65: 0.001444 | R65: 271.5349473 | S65: 3.093144647 | T65: 169.1338149 | U65: 0.4090384446 | V65: 7.472269689 | W65: 31.43658438 | X65: 1.328652159
G66: 40 | H66: 1.462835434 | I66: 0.01 | J66: 0.04 | K66: 0.04 | L66: 0.0032 | M66: =IF(【事例2】危険部品判断シート!$O$36=0,2.51*0.56*(O66/K66)^0.25+0.0000000567*$F$9*(($F$10+273+O66)^2+($F$10+273)^2)*(($F$10+273+O66)+($F$10+273)),3.86*(【事例2】危険部品判断シート!$O$36/K66)^0.5+0.0000000567*$F$9*(($F$10+273+O66)^2+($F$10+273)^2)*(($F$10+273+O66)+($F$10+273))) -> 15.2378691 | N66: 21.75811684 | O66: 31.82854429 | P66: 0.0001 | Q66: 0.0016 | R66: 239.2081999 | S66: 2.350789931 | T66: 149.895935 | U66: 0.3650786707 | V66: 6.338979448 | W66: 28.09709629 | X66: 1.462835434
G67: 48 | H67: 1.60308885 | I67: 0.012 | J67: 0.048 | K67: 0.042 | L67: =K67^2*2 -> 0.003528 | M67: =IF(【事例2】危険部品判断シート!$O$36=0,2.51*0.56*(O67/K67)^0.25+0.0000000567*$F$9*(($F$10+273+O67)^2+($F$10+273)^2)*(($F$10+273+O67)+($F$10+273)),3.86*(【事例2】危険部品判断シート!$O$36/K67)^0.5+0.0000000567*$F$9*(($F$10+273+O67)^2+($F$10+273)^2)*(($F$10+273+O67)+($F$10+273))) -> 15.14634212 | N67: 19.84765914 | O67: 31.81756105 | P67: 0.000144 | Q67: 0.001764 | R67: 215.9125714 | S67: 1.865706295 | T67: 136.0687228 | U67: 0.3323432097 | V67: 5.505754659 | W67: 25.3534138 | X67: 1.60308885
G68: 56 | H68: 1.749383732 | I68: 0.014 | J68: 0.056 | K68: 0.044 | L68: 0.003872 | M68: =IF(【事例2】危険部品判断シート!$O$36=0,2.51*0.56*(O68/K68)^0.25+0.0000000567*$F$9*(($F$10+273+O68)^2+($F$10+273)^2)*(($F$10+273+O68)+($F$10+273)),3.86*(【事例2】危険部品判断シート!$O$36/K68)^0.5+0.0000000567*$F$9*(($F$10+273+O68)^2+($F$10+273)^2)*(($F$10+273+O68)+($F$10+273))) -> 15.06012166 | N68: 18.18195403 | O68: 31.8072146 | P68: 0.000196 | Q68: 0.001936 | R68: 197.9814804 | S68: 1.526486968 | T68: 125.4420033 | U68: 0.3065837591 | V68: 4.86469765 | W68: 23.04665168 | X68: 1.749383732
G69: 64 | H69: 1.90169307 | I69: 0.016 | J69: 0.064 | K69: 0.046 | L69: 0.004232 | M69: =IF(【事例2】危険部品判断シート!$O$36=0,2.51*0.56*(O69/K69)^0.25+0.0000000567*$F$9*(($F$10+273+O69)^2+($F$10+273)^2)*(($F$10+273+O69)+($F$10+273)),3.86*(【事例2】危険部品判断シート!$O$36/K69)^0.5+0.0000000567*$F$9*(($F$10+273+O69)^2+($F$10+273)^2)*(($F$10+273+O69)+($F$10+273))) -> 14.97867887 | N69: 16.72059596 | O69: 31.79744146 | P69: 0.000256 | Q69: 0.002116 | R69: 183.5506086 | S69: 1.277603224 | T69: 116.8949501 | U69: 0.2855192506 | V69: 4.355108125 | W69: 21.07570409 | X69: 1.90169307
G70: 72 | H70: 2.059991347 | I70: 0.018 | J70: 0.072 | K70: 0.048 | L70: 0.004608 | M70: =IF(【事例2】危険部品判断シート!$O$36=0,2.51*0.56*(O70/K70)^0.25+0.0000000567*$F$9*(($F$10+273+O70)^2+($F$10+273)^2)*(($F$10+273+O70)+($F$10+273)),3.86*(【事例2】危険部品判断シート!$O$36/K70)^0.5+0.0000000567*$F$9*(($F$10+273+O70)^2+($F$10+273)^2)*(($F$10+273+O70)+($F$10+273))) -> 14.90155778 | N70: 15.43122352 | O70: 31.78818693 | P70: 0.000324 | Q70: 0.002304 | R70: 171.5623888 | S70: 1.088328672 | T70: 109.7937015 | U70: 0.2678069394 | V70: 3.93977784 | W70: 19.37100136 | X70: 2.059991347
G71: 80 | H71: 2.224254401 | I71: 0.02 | J71: 0.08 | K71: 0.05 | L71: 0.005 | M71: =IF(【事例2】危険部品判断シート!$O$36=0,2.51*0.56*(O71/K71)^0.25+0.0000000567*$F$9*(($F$10+273+O71)^2+($F$10+273)^2)*(($F$10+273+O71)+($F$10+273)),3.86*(【事例2】危険部品判断シート!$O$36/K71)^0.5+0.0000000567*$F$9*(($F$10+273+O71)^2+($F$10+273)^2)*(($F$10+273+O71)+($F$10+273))) -> 14.82836268 | N71: 14.28766579 | O71: 31.77940352 | P71: 0.0004 | Q71: 0.0025 | R71: 161.3665599 | S71: 0.9403159726 | T71: 103.7498165 | U71: 0.2525985202 | V71: 3.594477593 | W71: 17.88214338 | X71: 2.224254401
G72: 88 | H72: 2.3944593 | I72: 0.022 | J72: 0.088 | K72: 0.052 | L72: 0.005408 | M72: =IF(【事例2】危険部品判断シート!$O$36=0,2.51*0.56*(O72/K72)^0.25+0.0000000567*$F$9*(($F$10+273+O72)^2+($F$10+273)^2)*(($F$10+273+O72)+($F$10+273)),3.86*(【事例2】危険部品判断シート!$O$36/K72)^0.5+0.0000000567*$F$9*(($F$10+273+O72)^2+($F$10+273)^2)*(($F$10+273+O72)+($F$10+273))) -> 14.75874815 | N72: 13.26856956 | O72: 31.77104978 | P72: 0.000484 | Q72: 0.002704 | R72: 152.5377762 | S72: 0.8219545215 | T72: 98.51008831 | U72: 0.2393273215 | V72: 3.302694289 | W72: 16.57126385 | X72: 2.3944593
G73: 96 | H73: 2.570584232 | I73: 0.024 | J73: 0.096 | K73: 0.054 | L73: 0.005832 | M73: =IF(【事例2】危険部品判断シート!$O$36=0,2.51*0.56*(O73/K73)^0.25+0.0000000567*$F$9*(($F$10+273+O73)^2+($F$10+273)^2)*(($F$10+273+O73)+($F$10+273)),3.86*(【事例2】危険部品判断シート!$O$36/K73)^0.5+0.0000000567*$F$9*(($F$10+273+O73)^2+($F$10+273)^2)*(($F$10+273+O73)+($F$10+273))) -> 14.69241102 | N73: 12.35636978 | O73: 31.76308932 | P73: 0.000576 | Q73: 0.002916 | R73: 144.7838518 | S73: 0.725552448 | T73: 93.90117953 | U73: 0.2275974178 | V73: 3.052761675 | W73: 15.40913145 | X73: 2.570584232
G74: 104 | H74: 2.752608412 | I74: 0.026 | J74: 0.104 | K74: 0.056 | L74: 0.006272 | M74: =IF(【事例2】危険部品判断シート!$O$36=0,2.51*0.56*(O74/K74)^0.25+0.0000000567*$F$9*(($F$10+273+O74)^2+($F$10+273)^2)*(($F$10+273+O74)+($F$10+273)),3.86*(【事例2】危険部品判断シート!$O$36/K74)^0.5+0.0000000567*$F$9*(($F$10+273+O74)^2+($F$10+273)^2)*(($F$10+273+O74)+($F$10+273))) -> 14.62908382 | N74: 11.5365084 | O74: 31.75549006 | P74: 0.000676 | Q74: 0.003136 | R74: 137.895967 | S74: 0.6458214097 | T74: 89.79962233 | U74: 0.217121825 | V74: 2.836192709 | W74: 14.3727011 | X74: 2.752608412
G75: 112 | H75: 2.940511998 | I75: 0.028 | J75: 0.112 | K75: 0.058 | L75: 0.006728 | M75: =IF(【事例2】危険部品判断シート!$O$36=0,2.51*0.56*(O75/K75)^0.25+0.0000000567*$F$9*(($F$10+273+O75)^2+($F$10+273)^2)*(($F$10+273+O75)+($F$10+273)),3.86*(【事例2】危険部品判断シート!$O$36/K75)^0.5+0.0000000567*$F$9*(($F$10+273+O75)^2+($F$10+273)^2)*(($F$10+273+O75)+($F$10+273))) -> 14.56852952 | N75: 10.79683523 | O75: 31.74822354 | P75: 0.000784 | Q75: 0.003364 | R75: 131.7199408 | S75: 0.5790122984 | T75: 86.11454138 | U75: 0.207686085 | V75: 2.646660415 | W75: 13.44349565 | X75: 2.940511998
G76: 120 | H76: 3.134276014 | I76: 0.03 | J76: 0.12 | K76: 0.06 | L76: 0.0072 | M76: =IF(【事例2】危険部品判断シート!$O$36=0,2.51*0.56*(O76/K76)^0.25+0.0000000567*$F$9*(($F$10+273+O76)^2+($F$10+273)^2)*(($F$10+273+O76)+($F$10+273)),3.86*(【事例2】危険部品判断シート!$O$36/K76)^0.5+0.0000000567*$F$9*(($F$10+273+O76)^2+($F$10+273)^2)*(($F$10+273+O76)+($F$10+273))) -> 14.5105371 | N76: 10.12714397 | O76: 31.74126445 | P76: 0.0009 | Q76: 0.0036 | R76: 126.1387999 | S76: 0.5223977625 | T76: 82.77719105 | U76: 0.1991257859 | V76: 2.479349123 | W76: 12.6064931 | X76: 3.134276014
G77: 128 | H77: 3.33388229 | I77: 0.032 | J77: 0.128 | K77: 0.062 | L77: 0.007688 | M77: =IF(【事例2】危険部品判断シート!$O$36=0,2.51*0.56*(O77/K77)^0.25+0.0000000567*$F$9*(($F$10+273+O77)^2+($F$10+273)^2)*(($F$10+273+O77)+($F$10+273)),3.86*(【事例2】危険部品判断シート!$O$36/K77)^0.5+0.0000000567*$F$9*(($F$10+273+O77)^2+($F$10+273)^2)*(($F$10+273+O77)+($F$10+273))) -> 14.45491801 | N77: 9.518809425 | O77: 31.73459016 | P77: 0.001024 | Q77: 0.003844 | R77: 121.0617419 | S77: 0.473949583 | T77: 79.73434565 | U77: 0.1913121231 | V77: 2.330527236 | W77: 11.84933666 | X77: 3.33388229
G78: 136 | H78: 3.539313395 | I78: 0.034 | J78: 0.136 | K78: 0.064 | L78: 0.008192 | M78: =IF(【事例2】危険部品判断シート!$O$36=0,2.51*0.56*(O78/K78)^0.25+0.0000000567*$F$9*(($F$10+273+O78)^2+($F$10+273)^2)*(($F$10+273+O78)+($F$10+273)),3.86*(【事例2】危険部品判断シート!$O$36/K78)^0.5+0.0000000567*$F$9*(($F$10+273+O78)^2+($F$10+273)^2)*(($F$10+273+O78)+($F$10+273))) -> 14.40150307 | N78: 8.964501536 | O78: 31.72818037 | P78: 0.001156 | Q78: 0.004096 | R78: 116.4168897 | S78: 0.4321305021 | T78: 76.9439701 | U78: 0.1841423026 | V78: 2.197257653 | W78: 11.16175919 | X78: 3.539313395
G79: 144 | H79: 3.750552592 | I79: 0.036 | J79: 0.144 | K79: 0.066 | L79: 0.008712 | M79: =IF(【事例2】危険部品判断シート!$O$36=0,2.51*0.56*(O79/K79)^0.25+0.0000000567*$F$9*(($F$10+273+O79)^2+($F$10+273)^2)*(($F$10+273+O79)+($F$10+273)),3.86*(【事例2】危険部品判断シート!$O$36/K79)^0.5+0.0000000567*$F$9*(($F$10+273+O79)^2+($F$10+273)^2)*(($F$10+273+O79)+($F$10+273))) -> 14.35014001 | N79: 8.457958133 | O79: 31.7220168 | P79: 0.001296 | Q79: 0.004356 | R79: 112.1463838 | S79: 0.3957558807 | T79: 74.37229467 | U79: 0.1775329697 | V79: 2.077196562 | W79: 10.53515469 | X79: 3.750552592
G80: 152 | H80: 3.967583785 | I80: 0.038 | J80: 0.152 | K80: 0.068 | L80: 0.009248 | M80: =IF(【事例2】危険部品判断シート!$O$36=0,2.51*0.56*(O80/K80)^0.25+0.0000000567*$F$9*(($F$10+273+O80)^2+($F$10+273)^2)*(($F$10+273+O80)+($F$10+273)),3.86*(【事例2】危険部品判断シート!$O$36/K80)^0.5+0.0000000567*$F$9*(($F$10+273+O80)^2+($F$10+273)^2)*(($F$10+273+O80)+($F$10+273))) -> 14.30069127 | N80: 7.993802946 | O80: 31.71608295 | P80: 0.001444 | Q80: 0.004624 | R80: 108.2029659 | S80: 0.3638993702 | T80: 71.99178371 | U80: 0.1714155915 | V80: 1.968450572 | W80: 9.962253518 | X80: 3.967583785
G81: 160 | H81: 4.190391477 | I81: 0.04 | J81: 0.16 | K81: 0.07 | L81: 0.0098 | M81: =IF(【事例2】危険部品判断シート!$O$36=0,2.51*0.56*(O81/K81)^0.25+0.0000000567*$F$9*(($F$10+273+O81)^2+($F$10+273)^2)*(($F$10+273+O81)+($F$10+273)),3.86*(【事例2】危険部品判断シート!$O$36/K81)^0.5+0.0000000567*$F$9*(($F$10+273+O81)^2+($F$10+273)^2)*(($F$10+273+O81)+($F$10+273))) -> 14.25303223 | N81: 7.567398904 | O81: 31.71036387 | P81: 0.0016 | Q81: 0.0049 | R81: 104.5475428 | S81: 0.3358271331 | T81: 69.77969115 | U81: 0.1657331358 | V81: 1.869473304 | W81: 9.436872207 | X81: 4.190391477
G82: 168 | H82: 4.418960732 | I82: 0.042 | J82: 0.168 | K82: 0.072 | L82: 0.010368 | M82: =IF(【事例2】危険部品判断シート!$O$36=0,2.51*0.56*(O82/K82)^0.25+0.0000000567*$F$9*(($F$10+273+O82)^2+($F$10+273)^2)*(($F$10+273+O82)+($F$10+273)),3.86*(【事例2】危険部品判断シート!$O$36/K82)^0.5+0.0000000567*$F$9*(($F$10+273+O82)^2+($F$10+273)^2)*(($F$10+273+O82)+($F$10+273))) -> 14.20704968 | N82: 7.174729057 | O82: 31.70484596 | P82: 0.001764 | Q82: 0.005184 | R82: 101.1474127 | S82: 0.3109510491 | T82: 67.71701114 | U82: 0.160437634 | V82: 1.778989272 | W82: 8.953718328 | X82: 4.418960732
G83: 176 | H83: 4.653277138 | I83: 0.044 | J83: 0.176 | K83: 0.074 | L83: 0.010952 | M83: =IF(【事例2】危険部品判断シート!$O$36=0,2.51*0.56*(O83/K83)^0.25+0.0000000567*$F$9*(($F$10+273+O83)^2+($F$10+273)^2)*(($F$10+273+O83)+($F$10+273)),3.86*(【事例2】危険部品判断シート!$O$36/K83)^0.5+0.0000000567*$F$9*(($F$10+273+O83)^2+($F$10+273)^2)*(($F$10+273+O83)+($F$10+273))) -> 14.16264043 | N83: 6.812299356 | O83: 31.69951685 | P83: 0.001936 | Q83: 0.005476 | R83: 97.97494836 | S83: 0.2887948319 | T83: 65.7877013 | U83: 0.1554883591 | V83: 1.69593698 | W83: 8.508236335 | X83: 4.653277138
G84: 184 | H84: 4.893326778 | I84: 0.046 | J84: 0.184 | K84: 0.076 | L84: 0.011552 | M84: =IF(【事例2】危険部品判断シート!$O$36=0,2.51*0.56*(O84/K84)^0.25+0.0000000567*$F$9*(($F$10+273+O84)^2+($F$10+273)^2)*(($F$10+273+O84)+($F$10+273)),3.86*(【事例2】危険部品判断シート!$O$36/K84)^0.5+0.0000000567*$F$9*(($F$10+273+O84)^2+($F$10+273)^2)*(($F$10+273+O84)+($F$10+273))) -> 14.11971023 | N84: 6.477058791 | O84: 31.69436523 | P84: 0.002116 | Q84: 0.005776 | R84: 95.00660408 | S84: 0.2689690997 | T84: 63.97809783 | U84: 0.1508504414 | V84: 1.619425799 | W84: 8.09648459 | X84: 4.893326778
G85: 192 | H85: 5.139096197 | I85: 0.048 | J85: 0.192 | K85: 0.078 | L85: 0.012168 | M85: =IF(【事例2】危険部品判断シート!$O$36=0,2.51*0.56*(O85/K85)^0.25+0.0000000567*$F$9*(($F$10+273+O85)^2+($F$10+273)^2)*(($F$10+273+O85)+($F$10+273)),3.86*(【事例2】危険部品判断シート!$O$36/K85)^0.5+0.0000000567*$F$9*(($F$10+273+O85)^2+($F$10+273)^2)*(($F$10+273+O85)+($F$10+273))) -> 14.07817279 | N85: 6.166333441 | O85: 31.68938074 | P85: 0.002304 | Q85: 0.006084 | R85: 92.22215381 | S85: 0.2511527705 | T85: 62.27646841 | U85: 0.146493802 | V85: 1.548702882 | W85: 7.715036323 | X85: 5.139096197
G86: 200 | H86: 5.390572375 | I86: 0.05 | J86: 0.2 | K86: 0.08 | L86: 0.0128 | M86: =IF(【事例2】危険部品判断シート!$O$36=0,2.51*0.56*(O86/K86)^0.25+0.0000000567*$F$9*(($F$10+273+O86)^2+($F$10+273)^2)*(($F$10+273+O86)+($F$10+273)),3.86*(【事例2】危険部品判断シート!$O$36/K86)^0.5+0.0000000567*$F$9*(($F$10+273+O86)^2+($F$10+273)^2)*(($F$10+273+O86)+($F$10+273))) -> 14.03794889 | N86: 5.877771721 | O86: 31.68455387 | P86: 0.0025 | Q86: 0.0064 | R86: 89.60409996 | S86: 0.2350789931 | T86: 60.67266565 | U86: 0.1423923183 | V86: 1.483127476 | W86: 7.360899197 | X86: 5.390572375
K88: 隙間 | L88: =L60+E33 -> 20
H89: 発熱量 | I89: 部品L | J89: 周長 | K89: 周囲幅 | L89: P表面積 | M89: 熱伝達率 | N89: 熱抵抗R0 | O89: 温度上昇 | P89: As | Q89: Ap | R89: λ | S89: AC | T89: BC | U89: CC | V89: Rc | W89: Rt | X89: ERR
G90: =J90*1000 -> 8 | H90: =X90 -> 1.60308885 | I90: 0.002 | J90: =I90*4 -> 0.008 | K90: =I90+$L$88/1000*2 -> 0.042 | L90: =K90^2*2 -> 0.003528 | M90: =IF(【事例2】危険部品判断シート!$O$36=0,2.51*0.56*(O90/K90)^0.25+0.0000000567*$F$9*(($F$10+273+O90)^2+($F$10+273)^2)*(($F$10+273+O90)+($F$10+273)),3.86*(【事例2】危険部品判断シート!$O$36/K90)^0.5+0.0000000567*$F$9*(($F$10+273+O90)^2+($F$10+273)^2)*(($F$10+273+O90)+($F$10+273))) -> 15.14634212 | N90: =1/L90/M90+$F$8/$M$3/L90 -> 19.84765914 | O90: =H90*N90 -> 31.81756105 | P90: =I90^2 -> 4e-06 | Q90: =K90^2 -> 0.001764 | R90: =(PI()^1.5)/((Q90)^0.5)+1/(P90)^0.5 -> 632.579238 | S90: =$F$6*(Q90^0.5-P90^0.5)/($L$3*(PI()*Q90*P90)^0.5) -> 14.92565036 | T90: =R90*$L$3*Q90*N90/$F$6 -> 398.6532532 | U90: =TANH(R90*$F$8/$F$6) -> 0.7666402413 | V90: =S90*(T90+U90)/(1+T90*U90) -> 19.44273424 | W90: =N90+V90 -> 39.29039337 | X90: =L90*M90*$Q$3 -> 1.60308885
G91: =J91*1000 -> 16 | H91: =X91 -> 1.749383732 | I91: =I90+0.002 -> 0.004 | J91: 0.016 | K91: =I91+$L$88/1000*2 -> 0.044 | L91: =K91^2*2 -> 0.003872 | M91: =IF(【事例2】危険部品判断シート!$O$36=0,2.51*0.56*(O91/K91)^0.25+0.0000000567*$F$9*(($F$10+273+O91)^2+($F$10+273)^2)*(($F$10+273+O91)+($F$10+273)),3.86*(【事例2】危険部品判断シート!$O$36/K91)^0.5+0.0000000567*$F$9*(($F$10+273+O91)^2+($F$10+273)^2)*(($F$10+273+O91)+($F$10+273))) -> 15.06012166 | N91: 18.18195403 | O91: 31.8072146 | P91: =I91^2 -> 1.6e-05 | Q91: =K91^2 -> 0.001936 | R91: =(PI()^1.5)/((Q91)^0.5)+1/(P91)^0.5 -> 376.552909 | S91: 7.123605853 | T91: 238.5857058 | U91: 0.5388152321 | V91: =S91*(T91+U91)/(1+T91*U91) -> 13.14844724 | W91: =N91+V91 -> 31.33040127 | X91: =L91*M91*$Q$3 -> 1.749383732
G92: 24 | H92: =X92 -> 1.90169307 | I92: =I91+0.002 -> 0.006 | J92: 0.024 | K92: 0.046 | L92: 0.004232 | M92: =IF(【事例2】危険部品判断シート!$O$36=0,2.51*0.56*(O92/K92)^0.25+0.0000000567*$F$9*(($F$10+273+O92)^2+($F$10+273)^2)*(($F$10+273+O92)+($F$10+273)),3.86*(【事例2】危険部品判断シート!$O$36/K92)^0.5+0.0000000567*$F$9*(($F$10+273+O92)^2+($F$10+273)^2)*(($F$10+273+O92)+($F$10+273))) -> 14.97867887 | N92: 16.72059596 | O92: 31.79744146 | P92: 3.6e-05 | Q92: 0.002116 | R92: 287.7172753 | S92: 4.54258924 | T92: 183.2339146 | U92: 0.4303675056 | V92: 10.4474467 | W92: 27.16804266 | X92: 1.90169307
G93: 32 | H93: 2.059991347 | I93: 0.008 | J93: 0.032 | K93: 0.048 | L93: 0.004608 | M93: =IF(【事例2】危険部品判断シート!$O$36=0,2.51*0.56*(O93/K93)^0.25+0.0000000567*$F$9*(($F$10+273+O93)^2+($F$10+273)^2)*(($F$10+273+O93)+($F$10+273)),3.86*(【事例2】危険部品判断シート!$O$36/K93)^0.5+0.0000000567*$F$9*(($F$10+273+O93)^2+($F$10+273)^2)*(($F$10+273+O93)+($F$10+273))) -> 14.90155778 | N93: 15.43122352 | O93: 31.78818693 | P93: 6.4e-05 | Q93: 0.002304 | R93: 241.0068333 | S93: 3.264986016 | T93: 154.2356252 | U93: 0.3675702974 | V93: 8.749453453 | W93: 24.18067698 | X93: 2.059991347
G94: 40 | H94: 2.224254401 | I94: 0.01 | J94: 0.04 | K94: 0.05 | L94: 0.005 | M94: =IF(【事例2】危険部品判断シート!$O$36=0,2.51*0.56*(O94/K94)^0.25+0.0000000567*$F$9*(($F$10+273+O94)^2+($F$10+273)^2)*(($F$10+273+O94)+($F$10+273)),3.86*(【事例2】危険部品判断シート!$O$36/K94)^0.5+0.0000000567*$F$9*(($F$10+273+O94)^2+($F$10+273)^2)*(($F$10+273+O94)+($F$10+273))) -> 14.82836268 | N94: 14.28766579 | O94: 31.77940352 | P94: 0.0001 | Q94: 0.0025 | R94: 211.3665599 | S94: 2.50750926 | T94: 135.8970646 | U94: 0.3258574132 | V94: 7.543222425 | W94: 21.83088822 | X94: 2.224254401
G95: 48 | H95: 2.3944593 | I95: 0.012 | J95: 0.048 | K95: 0.052 | L95: =K95^2*2 -> 0.005408 | M95: =IF(【事例2】危険部品判断シート!$O$36=0,2.51*0.56*(O95/K95)^0.25+0.0000000567*$F$9*(($F$10+273+O95)^2+($F$10+273)^2)*(($F$10+273+O95)+($F$10+273)),3.86*(【事例2】危険部品判断シート!$O$36/K95)^0.5+0.0000000567*$F$9*(($F$10+273+O95)^2+($F$10+273)^2)*(($F$10+273+O95)+($F$10+273))) -> 14.75874815 | N95: 13.26856956 | O95: 31.77104978 | P95: 0.000144 | Q95: 0.002704 | R95: 190.416564 | S95: 2.009222164 | T95: 122.9725056 | U95: 0.295577273 | V95: 6.631513714 | W95: 19.90008327 | X95: 2.3944593
G96: 56 | H96: 2.570584232 | I96: 0.014 | J96: 0.056 | K96: 0.054 | L96: 0.005832 | M96: =IF(【事例2】危険部品判断シート!$O$36=0,2.51*0.56*(O96/K96)^0.25+0.0000000567*$F$9*(($F$10+273+O96)^2+($F$10+273)^2)*(($F$10+273+O96)+($F$10+273)),3.86*(【事例2】危険部品判断シート!$O$36/K96)^0.5+0.0000000567*$F$9*(($F$10+273+O96)^2+($F$10+273)^2)*(($F$10+273+O96)+($F$10+273))) -> 14.69241102 | N96: 12.35636978 | O96: 31.76308932 | P96: 0.000196 | Q96: 0.002916 | R96: 174.5457566 | S96: 1.658405595 | T96: 113.2035943 | U96: 0.272232287 | V96: 5.914604238 | W96: 18.27097402 | X96: 2.570584232
G97: 64 | H97: 2.752608412 | I97: 0.016 | J97: 0.064 | K97: 0.056 | L97: 0.006272 | M97: =IF(【事例2】危険部品判断シート!$O$36=0,2.51*0.56*(O97/K97)^0.25+0.0000000567*$F$9*(($F$10+273+O97)^2+($F$10+273)^2)*(($F$10+273+O97)+($F$10+273)),3.86*(【事例2】危険部品判断シート!$O$36/K97)^0.5+0.0000000567*$F$9*(($F$10+273+O97)^2+($F$10+273)^2)*(($F$10+273+O97)+($F$10+273))) -> 14.62908382 | N97: 11.5365084 | O97: 31.75549006 | P97: 0.000256 | Q97: 0.003136 | R97: 161.9344285 | S97: 1.399279721 | T97: 105.4537768 | U97: 0.2534489411 | V97: 5.334626447 | W97: 16.87113484 | X97: 2.752608412
G98: 72 | H98: 2.940511998 | I98: 0.018 | J98: 0.072 | K98: 0.058 | L98: 0.006728 | M98: =IF(【事例2】危険部品判断シート!$O$36=0,2.51*0.56*(O98/K98)^0.25+0.0000000567*$F$9*(($F$10+273+O98)^2+($F$10+273)^2)*(($F$10+273+O98)+($F$10+273)),3.86*(【事例2】危険部品判断シート!$O$36/K98)^0.5+0.0000000567*$F$9*(($F$10+273+O98)^2+($F$10+273)^2)*(($F$10+273+O98)+($F$10+273))) -> 14.56852952 | N98: 10.79683523 | O98: 31.74822354 | P98: 0.000324 | Q98: 0.003364 | R98: 151.5612107 | S98: 1.200914397 | T98: 99.08616771 | U98: 0.2378537634 | V98: 4.855078169 | W98: 15.6519134 | X98: 2.940511998
G99: 80 | H99: 3.134276014 | I99: 0.02 | J99: 0.08 | K99: 0.06 | L99: 0.0072 | M99: =IF(【事例2】危険部品判断シート!$O$36=0,2.51*0.56*(O99/K99)^0.25+0.0000000567*$F$9*(($F$10+273+O99)^2+($F$10+273)^2)*(($F$10+273+O99)+($F$10+273)),3.86*(【事例2】危険部品判断シート!$O$36/K99)^0.5+0.0000000567*$F$9*(($F$10+273+O99)^2+($F$10+273)^2)*(($F$10+273+O99)+($F$10+273))) -> 14.5105371 | N99: 10.12714397 | O99: 31.74126445 | P99: 0.0004 | Q99: 0.0036 | R99: 142.8054666 | S99: 1.044795525 | T99: 93.71450655 | U99: 0.2245938181 | V99: 4.451582563 | W99: 14.57872654 | X99: 3.134276014
G100: 88 | H100: 3.33388229 | I100: 0.022 | J100: 0.088 | K100: 0.062 | L100: 0.007688 | M100: =IF(【事例2】危険部品判断シート!$O$36=0,2.51*0.56*(O100/K100)^0.25+0.0000000567*$F$9*(($F$10+273+O100)^2+($F$10+273)^2)*(($F$10+273+O100)+($F$10+273)),3.86*(【事例2】危険部品判断シート!$O$36/K100)^0.5+0.0000000567*$F$9*(($F$10+273+O100)^2+($F$10+273)^2)*(($F$10+273+O100)+($F$10+273))) -> 14.45491801 | N100: 9.518809425 | O100: 31.73459016 | P100: 0.000484 | Q100: 0.003844 | R100: 135.2662873 | S100: 0.9191749488 | T100: 89.08982096 | U100: 0.2131090443 | V100: 4.107157316 | W100: 13.62596674 | X100: 3.33388229
G101: 96 | H101: 3.539313395 | I101: 0.024 | J101: 0.096 | K101: 0.064 | L101: 0.008192 | M101: =IF(【事例2】危険部品判断シート!$O$36=0,2.51*0.56*(O101/K101)^0.25+0.0000000567*$F$9*(($F$10+273+O101)^2+($F$10+273)^2)*(($F$10+273+O101)+($F$10+273)),3.86*(【事例2】危険部品判断シート!$O$36/K101)^0.5+0.0000000567*$F$9*(($F$10+273+O101)^2+($F$10+273)^2)*(($F$10+273+O101)+($F$10+273))) -> 14.40150307 | N101: 8.964501536 | O101: 31.72818037 | P101: 0.000576 | Q101: 0.004096 | R101: 128.6717916 | S101: 0.816246504 | T101: 85.0436609 | U101: 0.2030147155 | V101: 3.809573736 | W101: 12.77407527 | X101: 3.539313395
G102: 104 | H102: 3.750552592 | I102: 0.026 | J102: 0.104 | K102: 0.066 | L102: 0.008712 | M102: =IF(【事例2】危険部品判断シート!$O$36=0,2.51*0.56*(O102/K102)^0.25+0.0000000567*$F$9*(($F$10+273+O102)^2+($F$10+273)^2)*(($F$10+273+O102)+($F$10+273)),3.86*(【事例2】危険部品判断シート!$O$36/K102)^0.5+0.0000000567*$F$9*(($F$10+273+O102)^2+($F$10+273)^2)*(($F$10+273+O102)+($F$10+273))) -> 14.35014001 | N102: 8.457958133 | O102: 31.7220168 | P102: 0.000676 | Q102: 0.004356 | R102: 122.8301445 | S102: 0.7306262413 | T102: 81.45746114 | U102: 0.1940365267 | V102: 3.549786429 | W102: 12.00774456 | X102: 3.750552592
G103: 112 | H103: 3.967583785 | I103: 0.028 | J103: 0.112 | K103: 0.068 | L103: 0.009248 | M103: =IF(【事例2】危険部品判断シート!$O$36=0,2.51*0.56*(O103/K103)^0.25+0.0000000567*$F$9*(($F$10+273+O103)^2+($F$10+273)^2)*(($F$10+273+O103)+($F$10+273)),3.86*(【事例2】危険部品判断シート!$O$36/K103)^0.5+0.0000000567*$F$9*(($F$10+273+O103)^2+($F$10+273)^2)*(($F$10+273+O103)+($F$10+273))) -> 14.30069127 | N103: 7.993802946 | O103: 31.71608295 | P103: 0.000784 | Q103: 0.004624 | R103: 117.6014621 | S103: 0.6584845746 | T103: 78.24498114 | U103: 0.1859727104 | V103: 3.320953072 | W103: 11.31475602 | X103: 3.967583785
G104: 120 | H104: 4.190391477 | I104: 0.03 | J104: 0.12 | K104: 0.07 | L104: 0.0098 | M104: =IF(【事例2】危険部品判断シート!$O$36=0,2.51*0.56*(O104/K104)^0.25+0.0000000567*$F$9*(($F$10+273+O104)^2+($F$10+273)^2)*(($F$10+273+O104)+($F$10+273)),3.86*(【事例2】危険部品判断シート!$O$36/K104)^0.5+0.0000000567*$F$9*(($F$10+273+O104)^2+($F$10+273)^2)*(($F$10+273+O104)+($F$10+273))) -> 14.25303223 | N104: 7.567398904 | O104: 31.71036387 | P104: 0.0009 | Q104: 0.0049 | R104: 112.8808761 | S104: 0.5970260143 | T104: 75.34172934 | U104: 0.17867088 | V104: 3.11779824 | W104: 10.68519714 | X104: 4.190391477
G105: 128 | H105: 4.418960732 | I105: 0.032 | J105: 0.128 | K105: 0.072 | L105: 0.010368 | M105: =IF(【事例2】危険部品判断シート!$O$36=0,2.51*0.56*(O105/K105)^0.25+0.0000000567*$F$9*(($F$10+273+O105)^2+($F$10+273)^2)*(($F$10+273+O105)+($F$10+273)),3.86*(【事例2】危険部品判断シート!$O$36/K105)^0.5+0.0000000567*$F$9*(($F$10+273+O105)^2+($F$10+273)^2)*(($F$10+273+O105)+($F$10+273))) -> 14.20704968 | N105: 7.174729057 | O105: 31.70484596 | P105: 0.001024 | Q105: 0.005184 | R105: 108.5878888 | S105: 0.544164336 | T105: 72.69832303 | U105: 0.1720133085 | V105: 2.936187044 | W105: 10.1109161 | X105: 4.418960732
G106: 136 | H106: 4.653277138 | I106: 0.034 | J106: 0.136 | K106: 0.074 | L106: 0.010952 | M106: =IF(【事例2】危険部品判断シート!$O$36=0,2.51*0.56*(O106/K106)^0.25+0.0000000567*$F$9*(($F$10+273+O106)^2+($F$10+273)^2)*(($F$10+273+O106)+($F$10+273)),3.86*(【事例2】危険部品判断シート!$O$36/K106)^0.5+0.0000000567*$F$9*(($F$10+273+O106)^2+($F$10+273)^2)*(($F$10+273+O106)+($F$10+273))) -> 14.16264043 | N106: 6.812299356 | O106: 31.69951685 | P106: 0.001156 | Q106: 0.005476 | R106: 104.6594403 | S106: 0.4983126511 | T106: 70.2761687 | U106: 0.165907249 | V106: 2.772831516 | W106: 9.585130872 | X106: 4.653277138
G107: 144 | H107: 4.893326778 | I107: 0.036 | J107: 0.144 | K107: 0.076 | L107: 0.011552 | M107: =IF(【事例2】危険部品判断シート!$O$36=0,2.51*0.56*(O107/K107)^0.25+0.0000000567*$F$9*(($F$10+273+O107)^2+($F$10+273)^2)*(($F$10+273+O107)+($F$10+273)),3.86*(【事例2】危険部品判断シート!$O$36/K107)^0.5+0.0000000567*$F$9*(($F$10+273+O107)^2+($F$10+273)^2)*(($F$10+273+O107)+($F$10+273))) -> 14.11971023 | N107: 6.477058791 | O107: 31.69436523 | P107: 0.001296 | Q107: 0.005776 | R107: 101.0452514 | S107: 0.4582436514 | T107: 68.0445643 | U107: 0.1602783793 | V107: 2.625083644 | W107: 9.102142435 | X107: 4.893326778
G108: 152 | H108: 5.139096197 | I108: 0.038 | J108: 0.152 | K108: 0.078 | L108: 0.012168 | M108: =IF(【事例2】危険部品判断シート!$O$36=0,2.51*0.56*(O108/K108)^0.25+0.0000000567*$F$9*(($F$10+273+O108)^2+($F$10+273)^2)*(($F$10+273+O108)+($F$10+273)),3.86*(【事例2】危険部品判断シート!$O$36/K108)^0.5+0.0000000567*$F$9*(($F$10+273+O108)^2+($F$10+273)^2)*(($F$10+273+O108)+($F$10+273))) -> 14.07817279 | N108: 6.166333441 | O108: 31.68938074 | P108: 0.001444 | Q108: 0.006084 | R108: 97.70460995 | S108: 0.4229941397 | T108: 65.97870255 | U108: 0.1550662466 | V108: 2.490786473 | W108: 8.657119913 | X108: 5.139096197
G109: 160 | H109: 5.390572375 | I109: 0.04 | J109: 0.16 | K109: 0.08 | L109: 0.0128 | M109: =IF(【事例2】危険部品判断シート!$O$36=0,2.51*0.56*(O109/K109)^0.25+0.0000000567*$F$9*(($F$10+273+O109)^2+($F$10+273)^2)*(($F$10+273+O109)+($F$10+273)),3.86*(【事例2】危険部品判断シート!$O$36/K109)^0.5+0.0000000567*$F$9*(($F$10+273+O109)^2+($F$10+273)^2)*(($F$10+273+O109)+($F$10+273))) -> 14.03794889 | N109: 5.877771721 | O109: 31.68455387 | P109: 0.0016 | Q109: 0.0064 | R109: 94.60409996 | S109: 0.3917983219 | T109: 64.05826216 | U109: 0.1502210287 | V109: 2.368165059 | W109: 8.245936781 | X109: 5.390572375
G110: 168 | H110: 5.647742705 | I110: 0.042 | J110: 0.168 | K110: 0.082 | L110: 0.013448 | M110: =IF(【事例2】危険部品判断シート!$O$36=0,2.51*0.56*(O110/K110)^0.25+0.0000000567*$F$9*(($F$10+273+O110)^2+($F$10+273)^2)*(($F$10+273+O110)+($F$10+273)),3.86*(【事例2】危険部品判断シート!$O$36/K110)^0.5+0.0000000567*$F$9*(($F$10+273+O110)^2+($F$10+273)^2)*(($F$10+273+O110)+($F$10+273))) -> 13.99896566 | N110: 5.609298712 | O110: 31.67987588 | P110: 0.001764 | Q110: 0.006724 | R110: 91.7159628 | S110: 0.3640402526 | T110: 62.26639286 | U110: 0.1457011834 | V110: 2.255745313 | W110: 7.865044025 | X110: 5.647742705
G111: 176 | H111: 5.910594968 | I111: 0.044 | J111: 0.176 | K111: 0.084 | L111: 0.014112 | M111: =IF(【事例2】危険部品判断シート!$O$36=0,2.51*0.56*(O111/K111)^0.25+0.0000000567*$F$9*(($F$10+273+O111)^2+($F$10+273)^2)*(($F$10+273+O111)+($F$10+273)),3.86*(【事例2】危険部品判断シート!$O$36/K111)^0.5+0.0000000567*$F$9*(($F$10+273+O111)^2+($F$10+273)^2)*(($F$10+273+O111)+($F$10+273))) -> 13.96115592 | N111: 5.359077873 | O111: 31.67533871 | P111: 0.001936 | Q111: 0.007056 | R111: 89.01689174 | S111: 0.3392193263 | T111: 60.58897015 | U111: 0.1414717118 | V111: 2.152292728 | W111: 7.5113706 | X111: 5.910594968
G112: 184 | H112: 6.179117313 | I112: 0.046 | J112: 0.184 | K112: 0.086 | L112: 0.014792 | M112: =IF(【事例2】危険部品判断シート!$O$36=0,2.51*0.56*(O112/K112)^0.25+0.0000000567*$F$9*(($F$10+273+O112)^2+($F$10+273)^2)*(($F$10+273+O112)+($F$10+273)),3.86*(【事例2】危険部品判断シート!$O$36/K112)^0.5+0.0000000567*$F$9*(($F$10+273+O112)^2+($F$10+273)^2)*(($F$10+273+O112)+($F$10+273))) -> 13.92445762 | N112: 5.12547882 | O112: 31.67093491 | P112: 0.002116 | Q112: 0.007396 | R112: 86.4871304 | S112: 0.3169248307 | T112: 59.01403888 | U112: 0.1375028527 | V112: 2.056765522 | W112: 7.182244343 | X112: 6.179117313
G113: 192 | H113: 6.453298236 | I113: 0.048 | J113: 0.192 | K113: 0.088 | L113: 0.015488 | M113: =IF(【事例2】危険部品判断シート!$O$36=0,2.51*0.56*(O113/K113)^0.25+0.0000000567*$F$9*(($F$10+273+O113)^2+($F$10+273)^2)*(($F$10+273+O113)+($F$10+273)),3.86*(【事例2】危険部品判断シート!$O$36/K113)^0.5+0.0000000567*$F$9*(($F$10+273+O113)^2+($F$10+273)^2)*(($F$10+273+O113)+($F$10+273))) -> 13.88881335 | N113: 4.907050077 | O113: 31.6666576 | P113: 0.002304 | Q113: 0.007744 | R113: 84.10978784 | S113: 0.2968169105 | T113: 57.53139131 | U113: 0.1337690874 | V113: 1.968278387 | W113: 6.875328463 | X113: 6.453298236
G114: 200 | H114: 6.733126564 | I114: 0.05 | J114: 0.2 | K114: 0.09 | L114: 0.0162 | M114: =IF(【事例2】危険部品判断シート!$O$36=0,2.51*0.56*(O114/K114)^0.25+0.0000000567*$F$9*(($F$10+273+O114)^2+($F$10+273)^2)*(($F$10+273+O114)+($F$10+273)),3.86*(【事例2】危険部品判断シート!$O$36/K114)^0.5+0.0000000567*$F$9*(($F$10+273+O114)^2+($F$10+273)^2)*(($F$10+273+O114)+($F$10+273))) -> 13.85416988 | N114: 4.702495948 | O114: 31.66250039 | P114: 0.0025 | Q114: 0.0081 | R114: 81.87031108 | S114: 0.27861214 | T114: 56.13224273 | U114: 0.1302483698 | V114: 1.886074118 | W114: 6.588570067 | X114: 6.733126564

Sheet 【事例3】危険部品判断シート
C2: 熱対策が必要な部品かどうかを見分けるグラフ | K2: 基板で対策が可能かどうかを見分けるグラフ
Q4: 放熱限界ラインの調整
Q5: 基板熱伝導率 | R5: 35.6
Q6: 部品周囲の放熱領域（㎜）
Q7: 最小 | R7: 5
Q8: 最大 | R8: 20
A35: 部品リスト | G35: ※色のついていないセルが入力部分です | N35: 基板放射率 | O35: 0.85
A36: 名称 | B36: 許容温度 | C36: 外形寸法(mm) | F36: 消費電力 | G36: 周長 | H36: 表面積 | I36: 熱流束 | J36: 単体 熱抵抗 K/W | K36: 目標 熱抵抗 K/W | L36: 周囲温度℃ | M36: 55 | N36: 風速[m/s] | O36: 0.66 | P36: 放射率 | Q36: 対流・放射熱伝達率 W/m2K
B37: (℃) | C37: 縦 | D37: 横 | E37: 高さ | F37: Ｗ | G37: mm | H37: mm2 | I37: W/m2 | L37: 単体＜目標 | M37: 目標＞30 | N37: 単体÷目標 | O37: 対策方針
A38: 部品A | B38: 90 | C38: 30 | D38: 30 | E38: 3 | F38: 80 | G38: =(C38+D38)*2 -> 120 | H38: =(C38*D38+D38*E38+E38*C38)*2 -> 2160 | I38: =F38/H38*1000000 -> 37037.03704 | J38: =1/H38/Q38*1000000 -> 17.44068049 | K38: =(B38-$M$36)/F38 -> 0.4375 | L38: =IF(J38<K38,"○","×") -> × | M38: =IF(OR(K38>=30,L38="○"),"○","×") -> × | N38: =J38/K38 -> 39.86441255 | P38: 0.9 | Q38: =IF($O$36<>0,3.86*($O$36/MIN(C38,D38)*1000)^0.5+0.0000000567*P38*(($M$36+273+(B38-$M$36))^2+($M$36+273)^2)*(($M$36+273+(B38-$M$36))+($M$36+273)),2.51*0.56*((B38-$M$36)/(MIN(C38,D38)/1000))^0.25+0.0000000567*P38*(($M$36+273+(B38-$M$36))^2+($M$36+273)^2)*(($M$36+273+(B38-$M$36))+($M$36+273))) -> 26.54500569
A39: 部品B | B39: 90 | C39: 37 | D39: 37 | E39: 4.5 | F39: 40 | G39: =(C39+D39)*2 -> 148 | H39: 3404 | I39: 11750.88132 | J39: =1/H39/Q39*1000000 -> 11.87309892 | K39: =(B39-$M$36)/F39 -> 0.875 | L39: × | M39: × | N39: 13.56925591 | P39: 0.9 | Q39: =IF($O$36<>0,3.86*($O$36/MIN(C39,D39)*1000)^0.5+0.0000000567*P39*(($M$36+273+(B39-$M$36))^2+($M$36+273)^2)*(($M$36+273+(B39-$M$36))+($M$36+273)),2.51*0.56*((B39-$M$36)/(MIN(C39,D39)/1000))^0.25+0.0000000567*P39*(($M$36+273+(B39-$M$36))^2+($M$36+273)^2)*(($M$36+273+(B39-$M$36))+($M$36+273))) -> 24.74265858
A40: 部品1 | B40: 90 | C40: 11 | D40: 11 | E40: 1.7 | F40: 1.1 | G40: 44 | H40: 316.8 | I40: 3472.222222 | J40: =1/H40/Q40*1000000 -> 82.33209173 | K40: =(B40-$M$36)/F40 -> 31.81818182 | L40: × | M40: ○ | N40: 2.587580026 | P40: 0.9 | Q40: =IF($O$36<>0,3.86*($O$36/MIN(C40,D40)*1000)^0.5+0.0000000567*P40*(($M$36+273+(B40-$M$36))^2+($M$36+273)^2)*(($M$36+273+(B40-$M$36))+($M$36+273)),2.51*0.56*((B40-$M$36)/(MIN(C40,D40)/1000))^0.25+0.0000000567*P40*(($M$36+273+(B40-$M$36))^2+($M$36+273)^2)*(($M$36+273+(B40-$M$36))+($M$36+273))) -> 38.33943229
A41: 部品2 | B41: 90 | C41: 6 | D41: 6 | E41: 1 | F41: 0.15 | G41: 24 | H41: 96 | I41: 1562.5 | J41: =1/H41/Q41*1000000 -> 212.9151725 | K41: =(B41-$M$36)/F41 -> 233.3333333 | L41: =IF(J41<K41,"○","×") -> ○ | M41: ○ | N41: 0.9124935963 | P41: 0.9 | Q41: =IF($O$36<>0,3.86*($O$36/MIN(C41,D41)*1000)^0.5+0.0000000567*P41*(($M$36+273+(B41-$M$36))^2+($M$36+273)^2)*(($M$36+273+(B41-$M$36))+($M$36+273)),2.51*0.56*((B41-$M$36)/(MIN(C41,D41)/1000))^0.25+0.0000000567*P41*(($M$36+273+(B41-$M$36))^2+($M$36+273)^2)*(($M$36+273+(B41-$M$36))+($M$36+273))) -> 48.9240224
A42: 部品3 | B42: 90 | C42: 10 | D42: 10 | E42: 1 | F42: 0.7 | G42: 40 | H42: 240 | I42: 2916.666667 | J42: 104.6933025 | K42: 50 | L42: × | M42: ○ | N42: 2.09386605 | P42: 0.9 | Q42: 39.7987891
A43: 部品4 | B43: 90 | C43: 29 | D43: 29 | E43: 2.6 | F43: 1.8 | G43: 116 | H43: 1983.6 | I43: 907.4410163 | J43: 18.77277958 | K43: 19.44444444 | L43: ○ | M43: ○ | N43: 0.9654572357 | P43: 0.9 | Q43: 26.85451538
A44: 部品5 | B44: 90 | C44: 10 | D44: 20 | E44: 1.5 | F44: 1.2 | G44: 60 | H44: 490 | I44: 2448.979592 | J44: 51.27835225 | K44: 29.16666667 | L44: =IF(J44<K44,"○","×") -> × | M44: =IF(OR(K44>=30,L44="○"),"○","×") -> × | N44: =J44/K44 -> 1.758114934 | P44: 0.9 | Q44: 39.7987891
A45: 部品6 | B45: 90 | C45: 19 | D45: 19 | E45: 2.2 | F45: 2.2 | G45: 76 | H45: 889.2 | I45: 2474.134053 | J45: =1/H45/Q45*1000000 -> 36.05656729 | K45: 15.90909091 | L45: × | M45: × | N45: 2.266412801 | P45: 0.9 | Q45: 31.19005696
A46: 部品7 | B46: 90 | C46: 8 | D46: 12.5 | E46: 1.2 | F46: 0.3 | G46: 41 | H46: 249.2 | I46: 1203.852327 | J46: 92.24881341 | K46: 116.6666667 | L46: ○ | M46: ○ | N46: 0.7907041149 | P46: 0.9 | Q46: 43.50019196
A47: 部品8 | B47: 90 | C47: 31 | D47: 31 | E47: 2.23 | F47: 3.5 | G47: =(C47+D47)*2 -> 124 | H47: =(C47*D47+D47*E47+E47*C47)*2 -> 2198.52 | I47: =F47/H47*1000000 -> 1591.980059 | J47: =1/H47/Q47*1000000 -> 17.32728087 | K47: =(B47-$M$36)/F47 -> 10 | L47: =IF(J47<K47,"○","×") -> × | M47: =IF(OR(K47>=30,L47="○"),"○","×") -> × | N47: =J47/K47 -> 1.732728087 | P47: 0.9 | Q47: =IF($O$36<>0,3.86*($O$36/MIN(C47,D47)*1000)^0.5+0.0000000567*P47*(($M$36+273+(B47-$M$36))^2+($M$36+273)^2)*(($M$36+273+(B47-$M$36))+($M$36+273)),2.51*0.56*((B47-$M$36)/(MIN(C47,D47)/1000))^0.25+0.0000000567*P47*(($M$36+273+(B47-$M$36))^2+($M$36+273)^2)*(($M$36+273+(B47-$M$36))+($M$36+273))) -> 26.25059575
A48: 部品9 | B48: 90 | C48: 12 | D48: 12 | E48: 1.75 | F48: 1.1 | G48: 48 | H48: 372 | I48: 2956.989247 | J48: 72.52290028 | K48: 31.81818182 | L48: × | M48: ○ | N48: 2.279291152 | P48: 0.9 | Q48: 37.06652702
A49: 部品10 | B49: 90 | C49: 24 | D49: 24 | E49: 1.5 | F49: 2 | G49: 96 | H49: 1296 | I49: 1543.209877 | J49: 26.90205095 | K49: 17.5 | L49: × | M49: × | N49: 1.537260054 | P49: 0.9 | Q49: 28.68201163
A50: 部品11 | B50: 90 | C50: 22.22 | D50: 11.75 | E50: 1.8 | F50: 1.23 | G50: 67.94 | H50: 644.462 | I50: 1908.568698 | J50: 41.52272468 | K50: 28.45528455 | L50: × | M50: × | N50: 1.459227182 | P50: 0.9 | Q50: 37.36946166
A51: 部品12 | B51: 90 | C51: 12 | D51: 18.4 | E51: 1 | F51: 2.1 | G51: 60.8 | H51: 502.4 | I51: 4179.936306 | J51: 53.69928126 | K51: 16.66666667 | L51: × | M51: × | N51: 3.221956876 | P51: 0.9 | Q51: 37.06652702
A52: 部品13 | B52: 90 | C52: 55 | D52: 25 | E52: 2.5 | F52: 1.2 | G52: 160 | H52: 3150 | I52: 380.952381 | J52: 11.22837579 | K52: 29.16666667 | L52: ○ | M52: ○ | N52: 0.3849728843 | P52: 0.9 | Q52: 28.27303996
A53: UNIT1 | B53: 80 | C53: 150 | D53: 130 | E53: 100 | F53: 30 | G53: 560 | H53: 95000 | I53: 315.7894737 | J53: 0.6278219934 | K53: 0.8333333333 | L53: ○ | M53: ○ | N53: 0.7533863921 | P53: 0.9 | Q53: 16.76640178
A54: UNIT2 | B54: 80 | C54: 100 | D54: 100 | E54: 70 | F54: 20 | G54: 400 | H54: =(C54*D54+D54*E54+E54*C54)*2 -> 48000 | I54: 416.6666667 | J54: 1.158336758 | K54: 1.25 | L54: ○ | M54: ○ | N54: 0.9266694063 | P54: 0.9 | Q54: 17.98555834

Sheet ダクト計算
B1: 流れ計算＋熱計算
A2: ◆入力
B3: ダクト幅（m） | C3: 0.05 | E3: 通風抵抗カーブ
B4: ダクト高さ(m) | C4: 0.05 | E4: Q m3/s | F4: Pfan | G4: P
B5: ダクト長さ（m） | C5: 0.4 | E5: 0 | F5: =-$C$13/$C$12*E5+$C$13 -> 100 | G5: =$C$24*E5^2 -> 0
B6: 障害物開口率 | C6: 0.32 | E6: =E15/10 -> 0.001 | F6: 90 | G6: 1.596701322
B7: ダクト内発熱量（W) | C7: 50 | E7: =E6+$E$6 -> 0.002 | F7: 80 | G7: 6.386805287
B8: 部品流れ方向長さ（m） | C8: 0.03 | E8: 0.003 | F8: 70 | G8: 14.3703119
B9: 部品幅（m） | C9: 0.03 | E9: 0.004 | F9: 60 | G9: 25.54722115
B10: 部品高さ（m） | C10: 0.003 | E10: 0.005 | F10: 50 | G10: 39.91753304
B11: 部品発熱量（W) | C11: 5 | E11: 0.006 | F11: 40 | G11: 57.48124758
B12: ファン最大風量m3/s | C12: 0.01 | E12: 0.007 | F12: 30 | G12: 78.23836476
B13: ファン最大静圧Pa | C13: 100 | E13: 0.008 | F13: 20 | G13: 102.1888846
B14: 空気の密度kg/m3 | C14: 1.15 | E14: 0.009 | F14: 10 | G14: 129.3328071
B15: 周囲空気温度(℃） | C15: 25 | E15: =C12 -> 0.01 | F15: 0 | G15: 159.6701322
A17: ◆流れ計算
B18: レイノルズ数 Re | C18: =C27*C20/0.000017 -> 6918.357217 | D18: 層流 | E18: 乱流
B19: 摩擦係数 | C19: =IF(C18>2000,E19,D19) -> 0.03469251057 | D19: =64/C18 -> 0.009250751009 | E19: =0.3164/C18^0.25 -> 0.03469251057
B20: ダクト等価直径 | C20: =1.3*((C3*C4)^5/(C3+C4)^2)^(1/8) -> 0.05465826699
B21: 摩擦圧損係数 | C21: =C19*C5/C20 -> 0.2538866486
B22: 局所圧損係数 | C22: =2.5*(1-C6)/C6^2 -> 16.6015625
B23: 入口圧損係数 | C23: 0.5
A24: ① | B24: 通風抵抗 Pa･s2/m6 | C24: =SUM(C21:C23)*C14/2/(C3*C4)^2 -> 1596701.322
A25: ② | B25: 実効風量 m3/s | C25: =(-(C13/C12)+SQRT((C13/C12)^2-4*C24*(-C13)))/2/C24 -> 0.005379427448 | D25: ←グラフ交点算出
B26: 実効静圧 Pa | C26: =C24*C25^2 -> 46.20572552
A27: ② | B27: 流路平均風速 m/s | C27: =C25/C3/C4 -> 2.151770979
A28: ② | B28: 障害物通過風速 m/s | C28: =C27/C6 -> 6.72428431
A29: ◆熱計算
B30: 部品が平均風速で冷却された場合
A31: ③ | B31: 空気温度上昇℃ | C31: =C7/1150/C25 -> 8.082321268 | D31: 層流熱伝達率 | E31: 乱流熱伝達率
A32: ④ | B32: 部品熱伝達率W/m2K | C32: =MAX(D32,E32) -> 32.69073614 | D32: =3.86*SQRT(C27/C8) -> 32.69073614 | E32: =6*(C27/C8^0.25)^0.8 -> 22.3338624
A33: ⑤ | B33: 部品表面温度上昇℃ | C33: =C11/((C8*C9+C9*C10+C8*C10)*2*C32) -> 70.8095041
B34: 部品表面温度℃ | C34: =C15+C31+C33 -> 103.8918254
B35: 部品が障害物通過風速で冷却された場合
A36: ④ | B36: 部品熱伝達率W/m2K | C36: =MAX(D36,E36) -> 57.78960302 | D36: =3.86*SQRT(C28/C8) -> 57.78960302 | E36: =6*(C28/C8^0.25)^0.8 -> 55.5704423
A37: ⑤ | B37: 部品表面温度上昇℃ | C37: =C11/((C8*C9+C9*C10+C8*C10)*2*C36) -> 40.05590442
B38: 部品表面温度℃ | C38: =C15+C31+C37 -> 73.13822569

Sheet 平板の対流放射
B1: 平板の自然対流＋熱放射
B3: 平板幅(m) | C3: 0.2
B4: 平板高さ(m) | C4: 0.1
B5: 放射率 | C5: 0.8
B6: 発熱量（W) | C6: 10
B7: 周囲空気温度(℃） | C7: 40
D9: 熱ｺﾝﾀﾞｸﾀﾝｽ
C10: 対流＋放射熱伝達率 | D10: =熱伝達率×表面積
B11: 対流/放射熱伝達率 | C11: =2.51*0.56*(C13/C4)^0.25+0.0000000567*C5*((273+C13+C7)^2+(273+C7)^2)*(273+C13+C7+273+C7) -> 10.28098439 | D11: =C11*C3*C4*2 -> 0.4112393756
B13: 温度上昇（仮定） | C13: 10 | D13: 発熱量
B14: 温度上昇（結果） | C14: =1/D11*C6 -> 24.31673763 | D14: =D11*C13 -> 4.112393756
B15: 誤差 | C15: =C13-C14 -> -14.31673763 | D15: =C6-D14 -> 5.887606244

Sheet 平板の強制対流
B1: 平板の強制対流
B3: 平板幅 (m) | C3: 0.1
B4: 平板長さ (m) | C4: 0.2
B5: 風速 (m/s) | C5: 1
B6: 放射率 | C6: 0.8
B7: 発熱量 （W) | C7: 10
B8: 周囲空気温度(℃） | C8: 25
C10: 層流 | D10: 乱流 | E10: 熱ｺﾝﾀﾞｸﾀﾝｽ | F10: 総合熱伝達率(対流＋放射）
B11: 対流熱伝達率 | C11: =3.86*SQRT(C5/C4) -> 8.631222393 | D11: =6*(C5/C4^0.25)^0.8 -> 8.278377969 | E11: =C3*C4*2*F11 -> 0.5554282993 | F11: =MAX(C11,D11)+0.0000000567*C6*((273+C13+C8)^2+(273+C8)^2)*(273+C13+C8+273+C8) -> 13.88570748
B13: 温度上昇（結果） | C13: =1/E11*C7 -> 18.00412405 | D13: =1/熱コンダクタンス×発熱量
B14: 誤差

Sheet LEEの式 (4) (hidden)
L2: 面方向 | M2: 厚み方向
K3: 等価熱伝導率 | L3: =【事例3】危険部品判断シート!R5 -> 35.6 | M3: 0.4 | O3: ターゲット温度上昇 | Q3: 30
K4: 隙間 | L4: =【事例3】危険部品判断シート!R7 -> 5
E5: 位置 | H5: 発熱量 | I5: 部品L | J5: 周長 | K5: 周囲幅 | L5: P表面積 | M5: 熱伝達率 | N5: 熱抵抗R0 | O5: 温度上昇 | P5: As | Q5: Ap | R5: λ | S5: AC | T5: BC | U5: CC | V5: Rc | W5: Rt | X5: ERR
E6: C0 | F6: 1 | G6: =J6*1000 -> 8 | H6: =X6 -> 0.316015312 | I6: 0.002 | J6: =I6*4 -> 0.008 | K6: =I6+$L$4/1000*2 -> 0.012 | L6: =K6^2*2 -> 0.000288 | M6: =IF(【事例3】危険部品判断シート!$O$36=0,2.51*0.56*(O6/K6)^0.25+0.0000000567*$F$9*(($F$10+273+O6)^2+($F$10+273)^2)*(($F$10+273+O6)+($F$10+273)),3.86*(【事例3】危険部品判断シート!$O$36/K6)^0.5+0.0000000567*$F$9*(($F$10+273+O6)^2+($F$10+273)^2)*(($F$10+273+O6)+($F$10+273))) -> 36.57584629 | N6: =1/L6/M6+$F$8/$M$3/L6 -> 108.8209978 | O6: =H6*N6 -> 34.38910156 | P6: =I6^2 -> 4e-06 | Q6: =K6^2 -> 0.000144 | R6: =(PI()^1.5)/((Q6)^0.5)+1/(P6)^0.5 -> 964.0273331 | S6: =$F$6*(Q6^0.5-P6^0.5)/($L$3*(PI()*Q6*P6)^0.5) -> 6.603342504 | T6: =R6*$L$3*Q6*N6/$F$6 -> 537.7922523 | U6: =TANH(R6*$F$8/$F$6) -> 0.9125300913 | V6: =S6*(T6+U6)/(1+T6*U6) -> 7.233839386 | W6: =N6+V6 -> 116.0548371 | X6: =L6*M6*$Q$3 -> 0.316015312 | Y6: =J6*1000 -> 8
G7: =J7*1000 -> 16 | H7: =X7 -> 0.405052263 | I7: =I6+0.002 -> 0.004 | J7: 0.016 | K7: =I7+$L$4/1000*2 -> 0.014 | L7: =K7^2*2 -> 0.000392 | M7: =IF(【事例3】危険部品判断シート!$O$36=0,2.51*0.56*(O7/K7)^0.25+0.0000000567*$F$9*(($F$10+273+O7)^2+($F$10+273)^2)*(($F$10+273+O7)+($F$10+273)),3.86*(【事例3】危険部品判断シート!$O$36/K7)^0.5+0.0000000567*$F$9*(($F$10+273+O7)^2+($F$10+273)^2)*(($F$10+273+O7)+($F$10+273))) -> 34.44321964 | N7: =1/L7/M7+$F$8/$M$3/L7 -> 84.2685981 | O7: =H7*N7 -> 34.13318636 | P7: =I7^2 -> 1.6e-05 | Q7: =K7^2 -> 0.000196 | R7: =(PI()^1.5)/((Q7)^0.5)+1/(P7)^0.5 -> 647.7377141 | S7: 2.83000393 | T7: 380.8649632 | U7: 0.7764546697 | V7: =S7*(T7+U7)/(1+T7*U7) -> 3.639898802 | W7: =N7+V7 -> 87.9084969 | X7: =L7*M7*$Q$3 -> 0.405052263 | Y7: =J7*1000 -> 16
E8: t | F8: 0.0016 | G8: 24 | H8: =X8 -> 0.5026431793 | I8: =I7+0.002 -> 0.006 | J8: 0.024 | K8: 0.016 | L8: 0.000512 | M8: =IF(【事例3】危険部品判断シート!$O$36=0,2.51*0.56*(O8/K8)^0.25+0.0000000567*$F$9*(($F$10+273+O8)^2+($F$10+273)^2)*(($F$10+273+O8)+($F$10+273)),3.86*(【事例3】危険部品判断シート!$O$36/K8)^0.5+0.0000000567*$F$9*(($F$10+273+O8)^2+($F$10+273)^2)*(($F$10+273+O8)+($F$10+273))) -> 32.72416532 | N8: 67.49698641 | O8: 33.92689984 | P8: 3.6e-05 | Q8: 0.000256 | R8: 514.6871665 | S8: 1.650835626 | T8: 316.6049391 | U8: 0.67697007 | V8: 2.432430453 | W8: 69.92941686 | X8: 0.5026431793 | Y8: 24
E9: 放射率 | F9: =【事例3】危険部品判断シート!O35 -> 0.85 | G9: 32 | H9: 0.6084768958 | I9: 0.008 | J9: 0.032 | K9: 0.018 | L9: 0.000648 | M9: =IF(【事例3】危険部品判断シート!$O$36=0,2.51*0.56*(O9/K9)^0.25+0.0000000567*$F$9*(($F$10+273+O9)^2+($F$10+273)^2)*(($F$10+273+O9)+($F$10+273)),3.86*(【事例3】危険部品判断シート!$O$36/K9)^0.5+0.0000000567*$F$9*(($F$10+273+O9)^2+($F$10+273)^2)*(($F$10+273+O9)+($F$10+273))) -> 31.30025184 | N9: 55.47627273 | O9: 33.75603022 | P9: 6.4e-05 | Q9: 0.000324 | R9: 434.3515554 | S9: 1.100557084 | T9: 277.935271 | U9: 0.6011605318 | V9: 1.823765272 | W9: 57.300038 | X9: 0.6084768958 | Y9: 32
E10: 室温 | F10: =【事例3】危険部品判断シート!M36 -> 55 | G10: 40 | H10: 0.7222959958 | I10: 0.01 | J10: 0.04 | K10: 0.02 | L10: 0.0008 | M10: =IF(【事例3】危険部品判断シート!$O$36=0,2.51*0.56*(O10/K10)^0.25+0.0000000567*$F$9*(($F$10+273+O10)^2+($F$10+273)^2)*(($F$10+273+O10)+($F$10+273)),3.86*(【事例3】危険部品判断シート!$O$36/K10)^0.5+0.0000000567*$F$9*(($F$10+273+O10)^2+($F$10+273)^2)*(($F$10+273+O10)+($F$10+273))) -> 30.09566649 | N10: 46.5342189 | O10: 33.61147998 | P10: 0.0001 | Q10: 0.0004 | R10: 378.4163998 | S10: 0.7924011005 | T10: 250.756597 | U10: 0.5409277979 | V10: 1.45730874 | W10: 47.99152764 | X10: 0.7222959958 | Y10: 40
G11: 48 | H11: 0.8438829043 | I11: 0.012 | J11: 0.048 | K11: 0.022 | L11: =K11^2*2 -> 0.000968 | M11: =IF(【事例3】危険部品判断シート!$O$36=0,2.51*0.56*(O11/K11)^0.25+0.0000000567*$F$9*(($F$10+273+O11)^2+($F$10+273)^2)*(($F$10+273+O11)+($F$10+273)),3.86*(【事例3】危険部品判断シート!$O$36/K11)^0.5+0.0000000567*$F$9*(($F$10+273+O11)^2+($F$10+273)^2)*(($F$10+273+O11)+($F$10+273))) -> 29.05932866 | N11: 39.68218727 | O11: 33.48711944 | P11: 0.000144 | Q11: 0.000484 | R11: 336.4391514 | S11: 0.600303864 | T11: 230.0368917 | U11: 0.4917020551 | V11: 1.212756776 | W11: 40.89494404 | X11: 0.8438829043 | Y11: 48
G12: 56 | H12: 0.9730505547 | I12: 0.014 | J12: 0.056 | K12: 0.024 | L12: 0.001152 | M12: =IF(【事例3】危険部品判断シート!$O$36=0,2.51*0.56*(O12/K12)^0.25+0.0000000567*$F$9*(($F$10+273+O12)^2+($F$10+273)^2)*(($F$10+273+O12)+($F$10+273)),3.86*(【事例3】危険部品判断シート!$O$36/K12)^0.5+0.0000000567*$F$9*(($F$10+273+O12)^2+($F$10+273)^2)*(($F$10+273+O12)+($F$10+273))) -> 28.155398 | N12: 34.3030972 | O12: 33.37864776 | P12: 0.000196 | Q12: 0.000576 | R12: 303.442238 | S12: 0.4716673217 | T12: 213.4429664 | U12: 0.4506435895 | V12: 1.038070245 | W12: 35.34116744 | X12: 0.9730505547 | Y12: 56
G13: 64 | H13: 1.109635859 | I13: 0.016 | J13: 0.064 | K13: 0.026 | L13: 0.001352 | M13: =IF(【事例3】危険部品判断シート!$O$36=0,2.51*0.56*(O13/K13)^0.25+0.0000000567*$F$9*(($F$10+273+O13)^2+($F$10+273)^2)*(($F$10+273+O13)+($F$10+273)),3.86*(【事例3】危険部品判断シート!$O$36/K13)^0.5+0.0000000567*$F$9*(($F$10+273+O13)^2+($F$10+273)^2)*(($F$10+273+O13)+($F$10+273))) -> 27.35788606 | N13: 29.99447617 | O13: 33.28294633 | P13: 0.000256 | Q13: 0.000676 | R13: 276.6664614 | S13: 0.3809620675 | T13: 199.7075534 | U13: 0.4158521253 | V13: 0.9070851315 | W13: 30.90156131 | X13: 1.109635859 | Y13: 64
G14: 72 | H14: 1.253494981 | I14: 0.018 | J14: 0.072 | K14: 0.028 | L14: 0.001568 | M14: =IF(【事例3】危険部品判断シート!$O$36=0,2.51*0.56*(O14/K14)^0.25+0.0000000567*$F$9*(($F$10+273+O14)^2+($F$10+273)^2)*(($F$10+273+O14)+($F$10+273)),3.86*(【事例3】危険部品判断シート!$O$36/K14)^0.5+0.0000000567*$F$9*(($F$10+273+O14)^2+($F$10+273)^2)*(($F$10+273+O14)+($F$10+273))) -> 26.64742732 | N14: 26.48410387 | O14: 33.19769128 | P14: 0.000324 | Q14: 0.000784 | R14: 254.4244126 | S14: 0.3144448811 | T14: 188.065929 | U14: 0.385989732 | V14: 0.805225156 | W14: 27.28932903 | X14: 1.253494981 | Y14: 72
G15: 80 | H15: 1.404499823 | I15: 0.02 | J15: 0.08 | K15: 0.03 | L15: 0.0018 | M15: =IF(【事例3】危険部品判断シート!$O$36=0,2.51*0.56*(O15/K15)^0.25+0.0000000567*$F$9*(($F$10+273+O15)^2+($F$10+273)^2)*(($F$10+273+O15)+($F$10+273)),3.86*(【事例3】危険部品判断シート!$O$36/K15)^0.5+0.0000000567*$F$9*(($F$10+273+O15)^2+($F$10+273)^2)*(($F$10+273+O15)+($F$10+273))) -> 26.00925598 | N15: 23.58213948 | O15: 33.12111072 | P15: 0.0004 | Q15: 0.0009 | R15: 235.6109332 | S15: 0.2641337002 | T15: 178.0209649 | U15: 0.360079719 | V15: 0.7237355877 | W15: 24.30587506 | X15: 1.404499823 | Y15: 80
G16: 88 | H16: 1.562535346 | I16: 0.022 | J16: 0.088 | K16: 0.032 | L16: 0.002048 | M16: =IF(【事例3】危険部品判断シート!$O$36=0,2.51*0.56*(O16/K16)^0.25+0.0000000567*$F$9*(($F$10+273+O16)^2+($F$10+273)^2)*(($F$10+273+O16)+($F$10+273)),3.86*(【事例3】危険部品判断シート!$O$36/K16)^0.5+0.0000000567*$F$9*(($F$10+273+O16)^2+($F$10+273)^2)*(($F$10+273+O16)+($F$10+273))) -> 25.43189041 | N16: 21.15269067 | O16: 33.05182685 | P16: 0.000484 | Q16: 0.001024 | R16: 219.4647954 | S16: 0.225113949 | T16: 169.2312014 | U16: 0.3373894216 | V16: 0.6570455487 | W16: 21.80973622 | X16: 1.562535346 | Y16: 88
G17: 96 | H17: =X17 -> 1.727497494 | I17: 0.024 | J17: 0.096 | K17: 0.034 | L17: 0.002312 | M17: =IF(【事例3】危険部品判断シート!$O$36=0,2.51*0.56*(O17/K17)^0.25+0.0000000567*$F$9*(($F$10+273+O17)^2+($F$10+273)^2)*(($F$10+273+O17)+($F$10+273)),3.86*(【事例3】危険部品判断シート!$O$36/K17)^0.5+0.0000000567*$F$9*(($F$10+273+O17)^2+($F$10+273)^2)*(($F$10+273+O17)+($F$10+273))) -> 24.90624991 | N17: 19.09626504 | O17: 32.98874999 | P17: 0.000576 | Q17: 0.001156 | R17: 205.4410195 | S17: 0.194215956 | T17: 161.4519993 | U17: 0.3173572499 | V17: 0.6014436387 | W17: 19.69770867 | X17: =L17*M17*$Q$3 -> 1.727497494 | Y17: 96
G18: 104 | H18: =X18 -> 1.899291544 | I18: 0.026 | J18: 0.104 | K18: 0.036 | L18: 0.002592 | M18: =IF(【事例3】危険部品判断シート!$O$36=0,2.51*0.56*(O18/K18)^0.25+0.0000000567*$F$9*(($F$10+273+O18)^2+($F$10+273)^2)*(($F$10+273+O18)+($F$10+273)),3.86*(【事例3】危険部品判断シート!$O$36/K18)^0.5+0.0000000567*$F$9*(($F$10+273+O18)^2+($F$10+273)^2)*(($F$10+273+O18)+($F$10+273))) -> 24.42504557 | N18: 17.33857321 | O18: 32.93100547 | P18: 0.000676 | Q18: 0.001296 | R18: 193.1373162 | S18: 0.1693164745 | T18: 154.5021574 | U18: 0.2995450243 | V18: 0.5543630094 | W18: 17.89293622 | X18: =L18*M18*$Q$3 -> 1.899291544 | Y18: 104
G19: 112 | H19: 2.077830794 | I19: 0.028 | J19: 0.112 | K19: 0.038 | L19: 0.002888 | M19: =IF(【事例3】危険部品判断シート!$O$36=0,2.51*0.56*(O19/K19)^0.25+0.0000000567*$F$9*(($F$10+273+O19)^2+($F$10+273)^2)*(($F$10+273+O19)+($F$10+273)),3.86*(【事例3】危険部品判断シート!$O$36/K19)^0.5+0.0000000567*$F$9*(($F$10+273+O19)^2+($F$10+273)^2)*(($F$10+273+O19)+($F$10+273))) -> 23.98234988 | N19: 15.82317583 | O19: 32.87788199 | P19: 0.000784 | Q19: 0.001444 | R19: 182.249233 | S19: 0.1489475753 | T19: 148.2438053 | U19: 0.2836056584 | V19: 0.5139723014 | W19: 16.33714813 | X19: 2.077830794 | Y19: 112
G20: 120 | H20: 2.263035488 | I20: 0.03 | J20: 0.12 | K20: 0.04 | L20: 0.0032 | M20: =IF(【事例3】危険部品判断シート!$O$36=0,2.51*0.56*(O20/K20)^0.25+0.0000000567*$F$9*(($F$10+273+O20)^2+($F$10+273)^2)*(($F$10+273+O20)+($F$10+273)),3.86*(【事例3】危険部品判断シート!$O$36/K20)^0.5+0.0000000567*$F$9*(($F$10+273+O20)^2+($F$10+273)^2)*(($F$10+273+O20)+($F$10+273))) -> 23.57328633 | N20: 14.50653096 | O20: 32.82879436 | P20: 0.0009 | Q20: 0.0016 | R20: 172.5415333 | S20: 0.1320668501 | T20: 142.5696892 | U20: 0.2692605998 | V20: 0.4789300951 | W20: 14.98546105 | X20: 2.263035488 | Y20: 120
G21: 128 | H21: 2.454831937 | I21: 0.032 | J21: 0.128 | K21: 0.042 | L21: 0.003528 | M21: =IF(【事例3】危険部品判断シート!$O$36=0,2.51*0.56*(O21/K21)^0.25+0.0000000567*$F$9*(($F$10+273+O21)^2+($F$10+273)^2)*(($F$10+273+O21)+($F$10+273)),3.86*(【事例3】危険部品判断シート!$O$36/K21)^0.5+0.0000000567*$F$9*(($F$10+273+O21)^2+($F$10+273)^2)*(($F$10+273+O21)+($F$10+273))) -> 23.19380137 | N21: 13.35458272 | O21: 32.78325616 | P21: 0.001024 | Q21: 0.001764 | R21: 163.829238 | S21: 0.1179168304 | T21: 137.3948052 | U21: 0.2562837043 | V21: 0.4482314664 | W21: 13.80281419 | X21: 2.454831937 | Y21: 128
G22: 136 | H22: 2.653151784 | I22: 0.034 | J22: 0.136 | K22: 0.044 | L22: 0.003872 | M22: =IF(【事例3】危険部品判断シート!$O$36=0,2.51*0.56*(O22/K22)^0.25+0.0000000567*$F$9*(($F$10+273+O22)^2+($F$10+273)^2)*(($F$10+273+O22)+($F$10+273)),3.86*(【事例3】危険部品判断シート!$O$36/K22)^0.5+0.0000000567*$F$9*(($F$10+273+O22)^2+($F$10+273)^2)*(($F$10+273+O22)+($F$10+273))) -> 22.84049401 | N22: 12.3403642 | O22: 32.74085928 | P22: 0.001156 | Q22: 0.001936 | R22: 155.9646737 | S22: 0.105935976 | T22: 132.650707 | U22: 0.2444894769 | V22: 0.4211087535 | W22: 12.76147295 | X22: 2.653151784 | Y22: 136
G23: 144 | H23: 2.857931393 | I23: 0.036 | J23: 0.144 | K23: 0.046 | L23: 0.004232 | M23: =IF(【事例3】危険部品判断シート!$O$36=0,2.51*0.56*(O23/K23)^0.25+0.0000000567*$F$9*(($F$10+273+O23)^2+($F$10+273)^2)*(($F$10+273+O23)+($F$10+273)),3.86*(【事例3】危険部品判断シート!$O$36/K23)^0.5+0.0000000567*$F$9*(($F$10+273+O23)^2+($F$10+273)^2)*(($F$10+273+O23)+($F$10+273))) -> 22.51048672 | N23: 11.44228251 | O23: 32.70125841 | P23: 0.001296 | Q23: 0.002116 | R23: 148.8283864 | S23: 0.095700616 | T23: 128.2815211 | U23: 0.2337243489 | V23: 0.3969654548 | W23: 11.83924797 | X23: 2.857931393 | Y23: 144
G24: 152 | H24: 3.069111328 | I24: 0.038 | J24: 0.152 | K24: 0.048 | L24: 0.004608 | M24: =IF(【事例3】危険部品判断シート!$O$36=0,2.51*0.56*(O24/K24)^0.25+0.0000000567*$F$9*(($F$10+273+O24)^2+($F$10+273)^2)*(($F$10+273+O24)+($F$10+273)),3.86*(【事例3】危険部品判断シート!$O$36/K24)^0.5+0.0000000567*$F$9*(($F$10+273+O24)^2+($F$10+273)^2)*(($F$10+273+O24)+($F$10+273))) -> 22.20132616 | N24: 10.64287204 | O24: 32.66415914 | P24: 0.001444 | Q24: 0.002304 | R24: 142.3226227 | S24: 0.08688608558 | T24: 124.2410896 | U24: 0.22386011 | V24: 0.3753310451 | W24: 11.01820308 | X24: 3.069111328 | Y24: 152
G25: 160 | H25: 3.28663591 | I25: 0.04 | J25: 0.16 | K25: 0.05 | L25: 0.005 | M25: =IF(【事例3】危険部品判断シート!$O$36=0,2.51*0.56*(O25/K25)^0.25+0.0000000567*$F$9*(($F$10+273+O25)^2+($F$10+273)^2)*(($F$10+273+O25)+($F$10+273)),3.86*(【事例3】危険部品判断シート!$O$36/K25)^0.5+0.0000000567*$F$9*(($F$10+273+O25)^2+($F$10+273)^2)*(($F$10+273+O25)+($F$10+273))) -> 21.91090607 | N25: 9.927874466 | O25: 32.62930873 | P25: 0.0016 | Q25: 0.0025 | R25: 136.3665599 | S25: 0.07924011005 | T25: 120.4908779 | U25: 0.2147888975 | V25: 0.3558293799 | W25: 10.28370385 | X25: 3.28663591 | Y25: 160
G26: 168 | H26: 3.510452837 | I26: 0.042 | J26: 0.168 | K26: 0.052 | L26: 0.005408 | M26: =IF(【事例3】危険部品判断シート!$O$36=0,2.51*0.56*(O26/K26)^0.25+0.0000000567*$F$9*(($F$10+273+O26)^2+($F$10+273)^2)*(($F$10+273+O26)+($F$10+273)),3.86*(【事例3】危険部品判断シート!$O$36/K26)^0.5+0.0000000567*$F$9*(($F$10+273+O26)^2+($F$10+273)^2)*(($F$10+273+O26)+($F$10+273))) -> 21.63740654 | N26: 9.285550981 | O26: 32.59648878 | P26: 0.001764 | Q26: 0.002704 | R26: 130.8927545 | S26: 0.07256420334 | T26: 116.9984131 | U26: 0.2064193265 | V26: 0.3381561514 | W26: 9.623707133 | X26: 3.510452837 | Y26: 168
G27: 176 | H27: 3.740512857 | I27: 0.044 | J27: 0.176 | K27: 0.054 | L27: 0.005832 | M27: =IF(【事例3】危険部品判断シート!$O$36=0,2.51*0.56*(O27/K27)^0.25+0.0000000567*$F$9*(($F$10+273+O27)^2+($F$10+273)^2)*(($F$10+273+O27)+($F$10+273)),3.86*(【事例3】危険部品判断シート!$O$36/K27)^0.5+0.0000000567*$F$9*(($F$10+273+O27)^2+($F$10+273)^2)*(($F$10+273+O27)+($F$10+273))) -> 21.37924587 | N27: 8.706161628 | O27: 32.5655095 | P27: 0.001936 | Q27: 0.002916 | R27: 125.8444579 | S27: 0.06670042933 | T27: 113.7361013 | U27: 0.1986734697 | V27: 0.3220625106 | W27: 9.028224139 | X27: 3.740512857 | Y27: 176
G28: 184 | H28: 3.976769482 | I28: 0.046 | J28: 0.184 | K28: 0.056 | L28: 0.006272 | M28: =IF(【事例3】危険部品判断シート!$O$36=0,2.51*0.56*(O28/K28)^0.25+0.0000000567*$F$9*(($F$10+273+O28)^2+($F$10+273)^2)*(($F$10+273+O28)+($F$10+273)),3.86*(【事例3】危険部品判断シート!$O$36/K28)^0.5+0.0000000567*$F$9*(($F$10+273+O28)^2+($F$10+273)^2)*(($F$10+273+O28)+($F$10+273))) -> 21.13504189 | N28: 8.181566766 | O28: 32.53620503 | P28: 0.002116 | Q28: 0.003136 | R28: 121.1735589 | S28: 0.06152182457 | T28: 110.680317 | U28: 0.1914844765 | V28: 0.307342974 | W28: 8.48890974 | X28: 3.976769482 | Y28: 184
G29: 192 | H29: 4.219178737 | I29: 0.048 | J29: 0.192 | K29: 0.058 | L29: 0.006728 | M29: =IF(【事例3】危険部品判断シート!$O$36=0,2.51*0.56*(O29/K29)^0.25+0.0000000567*$F$9*(($F$10+273+O29)^2+($F$10+273)^2)*(($F$10+273+O29)+($F$10+273)),3.86*(【事例3】危険部品判断シート!$O$36/K29)^0.5+0.0000000567*$F$9*(($F$10+273+O29)^2+($F$10+273)^2)*(($F$10+273+O29)+($F$10+273))) -> 20.90358074 | N29: 7.704918827 | O29: 32.50842969 | P29: 0.002304 | Q29: 0.003364 | R29: 116.8389885 | S29: 0.05692536641 | T29: 107.8106939 | U29: 0.1847946791 | V29: 0.2938263638 | W29: 7.998745191 | X29: 4.219178737 | Y29: 192
G30: 200 | H30: 4.467698946 | I30: 0.05 | J30: 0.2 | K30: 0.06 | L30: 0.0072 | M30: =IF(【事例3】危険部品判断シート!$O$36=0,2.51*0.56*(O30/K30)^0.25+0.0000000567*$F$9*(($F$10+273+O30)^2+($F$10+273)^2)*(($F$10+273+O30)+($F$10+273)),3.86*(【事例3】危険部品判断シート!$O$36/K30)^0.5+0.0000000567*$F$9*(($F$10+273+O30)^2+($F$10+273)^2)*(($F$10+273+O30)+($F$10+273))) -> 20.68379142 | N30: 7.270421611 | O30: 32.48205497 | P30: 0.0025 | Q30: 0.0036 | R30: 112.8054666 | S30: 0.05282674003 | T30: 105.1095656 | U30: 0.178554074 | V30: 0.2813689275 | W30: 7.551790539 | X30: 4.467698946 | Y30: 200
K32: 隙間 | L32: =L4+E33 -> 10
E33: =(【事例3】危険部品判断シート!R8-【事例3】危険部品判断シート!R7)/3 -> 5 | H33: 発熱量 | I33: 部品L | J33: 周長 | K33: 周囲幅 | L33: P表面積 | M33: 熱伝達率 | N33: 熱抵抗R0 | O33: 温度上昇 | P33: As | Q33: Ap | R33: λ | S33: AC | T33: BC | U33: CC | V33: Rc | W33: Rt | X33: ERR
G34: =J34*1000 -> 8 | H34: =X34 -> 0.8438829043 | I34: 0.002 | J34: =I34*4 -> 0.008 | K34: =I34+$L$32/1000*2 -> 0.022 | L34: =K34^2*2 -> 0.000968 | M34: =IF(【事例3】危険部品判断シート!$O$36=0,2.51*0.56*(O34/K34)^0.25+0.0000000567*$F$9*(($F$10+273+O34)^2+($F$10+273)^2)*(($F$10+273+O34)+($F$10+273)),3.86*(【事例3】危険部品判断シート!$O$36/K34)^0.5+0.0000000567*$F$9*(($F$10+273+O34)^2+($F$10+273)^2)*(($F$10+273+O34)+($F$10+273))) -> 29.05932866 | N34: =1/L34/M34+$F$8/$M$3/L34 -> 39.68218727 | O34: =H34*N34 -> 33.48711944 | P34: =I34^2 -> 4e-06 | Q34: =K34^2 -> 0.000484 | R34: =(PI()^1.5)/((Q34)^0.5)+1/(P34)^0.5 -> 753.105818 | S34: =$F$6*(Q34^0.5-P34^0.5)/($L$3*(PI()*Q34*P34)^0.5) -> 7.203646368 | T34: =R34*$L$3*Q34*N34/$F$6 -> 514.9285415 | U34: =TANH(R34*$F$8/$F$6) -> 0.8351640799 | V34: =S34*(T34+U34)/(1+T34*U34) -> 8.61937335 | W34: =N34+V34 -> 48.30156062 | X34: =L34*M34*$Q$3 -> 0.8438829043
G35: =J35*1000 -> 16 | H35: =X35 -> 0.9730505547 | I35: =I34+0.002 -> 0.004 | J35: 0.016 | K35: =I35+$L$32/1000*2 -> 0.024 | L35: =K35^2*2 -> 0.001152 | M35: =IF(【事例3】危険部品判断シート!$O$36=0,2.51*0.56*(O35/K35)^0.25+0.0000000567*$F$9*(($F$10+273+O35)^2+($F$10+273)^2)*(($F$10+273+O35)+($F$10+273)),3.86*(【事例3】危険部品判断シート!$O$36/K35)^0.5+0.0000000567*$F$9*(($F$10+273+O35)^2+($F$10+273)^2)*(($F$10+273+O35)+($F$10+273))) -> 28.155398 | N35: 34.3030972 | O35: =H35*N35 -> 33.37864776 | P35: =I35^2 -> 1.6e-05 | Q35: =K35^2 -> 0.000576 | R35: =(PI()^1.5)/((Q35)^0.5)+1/(P35)^0.5 -> 482.0136665 | S35: 3.301671252 | T35: 339.0511075 | U35: 0.6476393826 | V35: =S35*(T35+U35)/(1+T35*U35) -> 5.084591061 | W35: =N35+V35 -> 39.38768826 | X35: =L35*M35*$Q$3 -> 0.9730505547
G36: 24 | H36: =X36 -> 1.109635859 | I36: =I35+0.002 -> 0.006 | J36: 0.024 | K36: 0.026 | L36: 0.001352 | M36: =IF(【事例3】危険部品判断シート!$O$36=0,2.51*0.56*(O36/K36)^0.25+0.0000000567*$F$9*(($F$10+273+O36)^2+($F$10+273)^2)*(($F$10+273+O36)+($F$10+273)),3.86*(【事例3】危険部品判断シート!$O$36/K36)^0.5+0.0000000567*$F$9*(($F$10+273+O36)^2+($F$10+273)^2)*(($F$10+273+O36)+($F$10+273))) -> 27.35788606 | N36: 29.99447617 | O36: 33.28294633 | P36: 3.6e-05 | Q36: 0.000676 | R36: 380.8331281 | S36: 2.031797694 | T36: 274.8987061 | U36: 0.5436574135 | V36: 3.719777218 | W36: 33.71425339 | X36: 1.109635859
G37: 32 | H37: 1.253494981 | I37: 0.008 | J37: 0.032 | K37: 0.028 | L37: 0.001568 | M37: =IF(【事例3】危険部品判断シート!$O$36=0,2.51*0.56*(O37/K37)^0.25+0.0000000567*$F$9*(($F$10+273+O37)^2+($F$10+273)^2)*(($F$10+273+O37)+($F$10+273)),3.86*(【事例3】危険部品判断シート!$O$36/K37)^0.5+0.0000000567*$F$9*(($F$10+273+O37)^2+($F$10+273)^2)*(($F$10+273+O37)+($F$10+273))) -> 26.64742732 | N37: 26.48410387 | O37: 33.19769128 | P37: 6.4e-05 | Q37: 0.000784 | R37: 323.868857 | S37: 1.415001965 | T37: 239.3980077 | U37: 0.4763019743 | V37: 2.95084047 | W37: 29.43494434 | X37: 1.253494981
G38: 40 | H38: 1.404499823 | I38: 0.01 | J38: 0.04 | K38: 0.03 | L38: 0.0018 | M38: =IF(【事例3】危険部品判断シート!$O$36=0,2.51*0.56*(O38/K38)^0.25+0.0000000567*$F$9*(($F$10+273+O38)^2+($F$10+273)^2)*(($F$10+273+O38)+($F$10+273)),3.86*(【事例3】危険部品判断シート!$O$36/K38)^0.5+0.0000000567*$F$9*(($F$10+273+O38)^2+($F$10+273)^2)*(($F$10+273+O38)+($F$10+273))) -> 26.00925598 | N38: 23.58213948 | O38: 33.12111072 | P38: 0.0001 | Q38: 0.0009 | R38: 285.6109332 | S38: 1.056534801 | T38: 215.7995523 | U38: 0.4276175861 | V38: 2.449102751 | W38: 26.03124223 | X38: 1.404499823
G39: 48 | H39: 1.562535346 | I39: 0.012 | J39: 0.048 | K39: 0.032 | L39: =K39^2*2 -> 0.002048 | M39: =IF(【事例3】危険部品判断シート!$O$36=0,2.51*0.56*(O39/K39)^0.25+0.0000000567*$F$9*(($F$10+273+O39)^2+($F$10+273)^2)*(($F$10+273+O39)+($F$10+273)),3.86*(【事例3】危険部品判断シート!$O$36/K39)^0.5+0.0000000567*$F$9*(($F$10+273+O39)^2+($F$10+273)^2)*(($F$10+273+O39)+($F$10+273))) -> 25.43189041 | N39: 21.15269067 | O39: 33.05182685 | P39: 0.000144 | Q39: 0.001024 | R39: 257.3435832 | S39: 0.825417813 | T39: 198.4398622 | U39: 0.3899573487 | V39: 2.093789495 | W39: 23.24648017 | X39: 1.562535346
G40: 56 | H40: 1.727497494 | I40: 0.014 | J40: 0.056 | K40: 0.034 | L40: 0.002312 | M40: =IF(【事例3】危険部品判断シート!$O$36=0,2.51*0.56*(O40/K40)^0.25+0.0000000567*$F$9*(($F$10+273+O40)^2+($F$10+273)^2)*(($F$10+273+O40)+($F$10+273)),3.86*(【事例3】危険部品判断シート!$O$36/K40)^0.5+0.0000000567*$F$9*(($F$10+273+O40)^2+($F$10+273)^2)*(($F$10+273+O40)+($F$10+273))) -> 24.90624991 | N40: 19.09626504 | O40: 32.98874999 | P40: 0.000196 | Q40: 0.001156 | R40: 235.2029243 | S40: 0.6658832777 | T40: 184.8412865 | U40: 0.3595114134 | V40: 1.828279441 | W40: 20.92454448 | X40: 1.727497494
G41: 64 | H41: 1.899291544 | I41: 0.016 | J41: 0.064 | K41: 0.036 | L41: 0.002592 | M41: =IF(【事例3】危険部品判断シート!$O$36=0,2.51*0.56*(O41/K41)^0.25+0.0000000567*$F$9*(($F$10+273+O41)^2+($F$10+273)^2)*(($F$10+273+O41)+($F$10+273)),3.86*(【事例3】危険部品判断シート!$O$36/K41)^0.5+0.0000000567*$F$9*(($F$10+273+O41)^2+($F$10+273)^2)*(($F$10+273+O41)+($F$10+273))) -> 24.42504557 | N41: 17.33857321 | O41: 32.93100547 | P41: 0.000256 | Q41: 0.001296 | R41: 217.1757777 | S41: 0.550278542 | T41: 173.7319688 | U41: 0.3341398927 | V41: 1.622075817 | W41: 18.96064902 | X41: 1.899291544
G42: 72 | H42: 2.077830794 | I42: 0.018 | J42: 0.072 | K42: 0.038 | L42: 0.002888 | M42: =IF(【事例3】危険部品判断シート!$O$36=0,2.51*0.56*(O42/K42)^0.25+0.0000000567*$F$9*(($F$10+273+O42)^2+($F$10+273)^2)*(($F$10+273+O42)+($F$10+273)),3.86*(【事例3】危険部品判断シート!$O$36/K42)^0.5+0.0000000567*$F$9*(($F$10+273+O42)^2+($F$10+273)^2)*(($F$10+273+O42)+($F$10+273))) -> 23.98234988 | N42: 15.82317583 | O42: 32.87788199 | P42: 0.000324 | Q42: 0.001444 | R42: 202.0905028 | S42: 0.4633924564 | T42: 164.3829423 | U42: 0.3125281728 | V42: 1.457177237 | W42: 17.28035306 | X42: 2.077830794
B43: 0.1 | C43: 0.1 | G43: 80 | H43: 2.263035488 | I43: 0.02 | J43: 0.08 | K43: 0.04 | L43: 0.0032 | M43: =IF(【事例3】危険部品判断シート!$O$36=0,2.51*0.56*(O43/K43)^0.25+0.0000000567*$F$9*(($F$10+273+O43)^2+($F$10+273)^2)*(($F$10+273+O43)+($F$10+273)),3.86*(【事例3】危険部品判断シート!$O$36/K43)^0.5+0.0000000567*$F$9*(($F$10+273+O43)^2+($F$10+273)^2)*(($F$10+273+O43)+($F$10+273))) -> 23.57328633 | N43: 14.50653096 | O43: 32.82879436 | P43: 0.0004 | Q43: 0.0016 | R43: 189.2081999 | S43: 0.3962005502 | T43: 156.3412225 | U43: 0.2938117954 | V43: 1.322233413 | W43: 15.82876437 | X43: 2.263035488
B44: 1000 | C44: 1000 | G44: 88 | H44: 2.454831937 | I44: 0.022 | J44: 0.088 | K44: 0.042 | L44: 0.003528 | M44: =IF(【事例3】危険部品判断シート!$O$36=0,2.51*0.56*(O44/K44)^0.25+0.0000000567*$F$9*(($F$10+273+O44)^2+($F$10+273)^2)*(($F$10+273+O44)+($F$10+273)),3.86*(【事例3】危険部品判断シート!$O$36/K44)^0.5+0.0000000567*$F$9*(($F$10+273+O44)^2+($F$10+273)^2)*(($F$10+273+O44)+($F$10+273))) -> 23.19380137 | N44: 13.35458272 | O44: 32.78325616 | P44: 0.000484 | Q44: 0.001764 | R44: 178.0337835 | S44: 0.3430307794 | T44: 149.3073965 | U44: 0.2773916393 | V44: 1.209718791 | W44: 14.56430151 | X44: 2.454831937
G45: 96 | H45: 2.653151784 | I45: 0.024 | J45: 0.096 | K45: 0.044 | L45: 0.003872 | M45: =IF(【事例3】危険部品判断シート!$O$36=0,2.51*0.56*(O45/K45)^0.25+0.0000000567*$F$9*(($F$10+273+O45)^2+($F$10+273)^2)*(($F$10+273+O45)+($F$10+273)),3.86*(【事例3】危険部品判断シート!$O$36/K45)^0.5+0.0000000567*$F$9*(($F$10+273+O45)^2+($F$10+273)^2)*(($F$10+273+O45)+($F$10+273))) -> 22.84049401 | N45: 12.3403642 | O45: 32.74085928 | P45: 0.000576 | Q45: 0.001936 | R45: 168.2195757 | S45: 0.300151932 | T45: 143.0737173 | U45: 0.2628349616 | V45: 1.114440975 | W45: 13.45480517 | X45: 2.653151784
G46: 104 | H46: 2.857931393 | I46: 0.026 | J46: 0.104 | K46: 0.046 | L46: 0.004232 | M46: =IF(【事例3】危険部品判断シート!$O$36=0,2.51*0.56*(O46/K46)^0.25+0.0000000567*$F$9*(($F$10+273+O46)^2+($F$10+273)^2)*(($F$10+273+O46)+($F$10+273)),3.86*(【事例3】危険部品判断シート!$O$36/K46)^0.5+0.0000000567*$F$9*(($F$10+273+O46)^2+($F$10+273)^2)*(($F$10+273+O46)+($F$10+273))) -> 22.51048672 | N46: 11.44228251 | O46: 32.70125841 | P46: 0.000676 | Q46: 0.002116 | R46: 159.5121471 | S46: 0.2650170905 | T46: 137.4903092 | U46: 0.2498187007 | V46: 1.032699133 | W46: 12.47498165 | X46: 2.857931393
G47: 112 | H47: 3.069111328 | I47: 0.028 | J47: 0.112 | K47: 0.048 | L47: 0.004608 | M47: =IF(【事例3】危険部品判断シート!$O$36=0,2.51*0.56*(O47/K47)^0.25+0.0000000567*$F$9*(($F$10+273+O47)^2+($F$10+273)^2)*(($F$10+273+O47)+($F$10+273)),3.86*(【事例3】危険部品判断シート!$O$36/K47)^0.5+0.0000000567*$F$9*(($F$10+273+O47)^2+($F$10+273)^2)*(($F$10+273+O47)+($F$10+273))) -> 22.20132616 | N47: 10.64287204 | O47: 32.66415914 | P47: 0.000784 | Q47: 0.002304 | R47: 151.721119 | S47: 0.2358336609 | T47: 132.4455437 | U47: 0.2380951272 | V47: 0.9617831839 | W47: 11.60465522 | X47: 3.069111328
G48: 120 | H48: 3.28663591 | I48: 0.03 | J48: 0.12 | K48: 0.05 | L48: 0.005 | M48: =IF(【事例3】危険部品判断シート!$O$36=0,2.51*0.56*(O48/K48)^0.25+0.0000000567*$F$9*(($F$10+273+O48)^2+($F$10+273)^2)*(($F$10+273+O48)+($F$10+273)),3.86*(【事例3】危険部品判断シート!$O$36/K48)^0.5+0.0000000567*$F$9*(($F$10+273+O48)^2+($F$10+273)^2)*(($F$10+273+O48)+($F$10+273))) -> 21.91090607 | N48: 9.927874466 | O48: 32.62930873 | P48: 0.0009 | Q48: 0.0025 | R48: 144.6998933 | S48: 0.2113069601 | T48: 127.8540514 | U48: 0.2274700389 | V48: 0.8996625169 | W48: 10.82753698 | X48: 3.28663591
G49: 128 | H49: 3.510452837 | I49: 0.032 | J49: 0.128 | K49: 0.052 | L49: 0.005408 | M49: =IF(【事例3】危険部品判断シート!$O$36=0,2.51*0.56*(O49/K49)^0.25+0.0000000567*$F$9*(($F$10+273+O49)^2+($F$10+273)^2)*(($F$10+273+O49)+($F$10+273)),3.86*(【事例3】危険部品判断シート!$O$36/K49)^0.5+0.0000000567*$F$9*(($F$10+273+O49)^2+($F$10+273)^2)*(($F$10+273+O49)+($F$10+273))) -> 21.63740654 | N49: 9.285550981 | O49: 32.59648878 | P49: 0.001024 | Q49: 0.002704 | R49: 138.3332307 | S49: 0.1904810338 | T49: 123.6490784 | U49: 0.2177883641 | V49: 0.844785335 | W49: 10.13033632 | X49: 3.510452837
G50: 136 | H50: 3.740512857 | I50: 0.034 | J50: 0.136 | K50: 0.054 | L50: 0.005832 | M50: =IF(【事例3】危険部品判断シート!$O$36=0,2.51*0.56*(O50/K50)^0.25+0.0000000567*$F$9*(($F$10+273+O50)^2+($F$10+273)^2)*(($F$10+273+O50)+($F$10+273)),3.86*(【事例3】危険部品判断シート!$O$36/K50)^0.5+0.0000000567*$F$9*(($F$10+273+O50)^2+($F$10+273)^2)*(($F$10+273+O50)+($F$10+273))) -> 21.37924587 | N50: 8.706161628 | O50: 32.5655095 | P50: 0.001156 | Q50: 0.002916 | R50: 132.5289498 | S50: 0.1726364053 | T50: 119.7774326 | U50: 0.2089243332 | V50: 0.7959452377 | W50: 9.502106866 | X50: 3.740512857
G51: 144 | H51: 3.976769482 | I51: 0.036 | J51: 0.144 | K51: 0.056 | L51: 0.006272 | M51: =IF(【事例3】危険部品判断シート!$O$36=0,2.51*0.56*(O51/K51)^0.25+0.0000000567*$F$9*(($F$10+273+O51)^2+($F$10+273)^2)*(($F$10+273+O51)+($F$10+273)),3.86*(【事例3】危険部品判断シート!$O$36/K51)^0.5+0.0000000567*$F$9*(($F$10+273+O51)^2+($F$10+273)^2)*(($F$10+273+O51)+($F$10+273))) -> 21.13504189 | N51: 8.181566766 | O51: 32.53620503 | P51: 0.001296 | Q51: 0.003136 | R51: 127.2122063 | S51: 0.1572224406 | T51: 116.1960368 | U51: 0.2007745718 | V51: 0.7521901085 | W51: 8.933756874 | X51: 3.976769482
G52: 152 | H52: 4.219178737 | I52: 0.038 | J52: 0.152 | K52: 0.058 | L52: 0.006728 | M52: =IF(【事例3】危険部品判断シート!$O$36=0,2.51*0.56*(O52/K52)^0.25+0.0000000567*$F$9*(($F$10+273+O52)^2+($F$10+273)^2)*(($F$10+273+O52)+($F$10+273)),3.86*(【事例3】危険部品判断シート!$O$36/K52)^0.5+0.0000000567*$F$9*(($F$10+273+O52)^2+($F$10+273)^2)*(($F$10+273+O52)+($F$10+273))) -> 20.90358074 | N52: 7.704918827 | O52: 32.50842969 | P52: 0.001444 | Q52: 0.003364 | R52: 122.3214446 | S52: 0.143811452 | T52: 112.8695138 | U52: 0.1932531275 | V52: 0.7127584238 | W52: 8.417677251 | X52: 4.219178737
G53: 160 | H53: 4.467698946 | I53: 0.04 | J53: 0.16 | K53: 0.06 | L53: 0.0072 | M53: =IF(【事例3】危険部品判断シート!$O$36=0,2.51*0.56*(O53/K53)^0.25+0.0000000567*$F$9*(($F$10+273+O53)^2+($F$10+273)^2)*(($F$10+273+O53)+($F$10+273)),3.86*(【事例3】危険部品判断シート!$O$36/K53)^0.5+0.0000000567*$F$9*(($F$10+273+O53)^2+($F$10+273)^2)*(($F$10+273+O53)+($F$10+273))) -> 20.68379142 | N53: 7.270421611 | O53: 32.48205497 | P53: 0.0016 | Q53: 0.0036 | R53: 117.8054666 | S53: 0.1320668501 | T53: 109.7684518 | U53: 0.1862878094 | V53: 0.6770338054 | W53: 7.947455417 | X53: 4.467698946
G54: 168 | H54: 4.722290532 | I54: 0.042 | J54: 0.168 | K54: 0.062 | L54: 0.007688 | M54: =IF(【事例3】危険部品判断シート!$O$36=0,2.51*0.56*(O54/K54)^0.25+0.0000000567*$F$9*(($F$10+273+O54)^2+($F$10+273)^2)*(($F$10+273+O54)+($F$10+273)),3.86*(【事例3】危険部品判断シート!$O$36/K54)^0.5+0.0000000567*$F$9*(($F$10+273+O54)^2+($F$10+273)^2)*(($F$10+273+O54)+($F$10+273))) -> 20.47472482 | N54: 6.873140641 | O54: 32.45696698 | P54: 0.001764 | Q54: 0.003844 | R54: 113.6212657 | S54: 0.1217205992 | T54: 106.868135 | U54: 0.179817443 | V54: 0.6445119929 | W54: 7.517652634 | X54: 4.722290532
G55: 176 | H55: 4.982915853 | I55: 0.044 | J55: 0.176 | K55: 0.064 | L55: 0.008192 | M55: =IF(【事例3】危険部品判断シート!$O$36=0,2.51*0.56*(O55/K55)^0.25+0.0000000567*$F$9*(($F$10+273+O55)^2+($F$10+273)^2)*(($F$10+273+O55)+($F$10+273)),3.86*(【事例3】危険部品判断シート!$O$36/K55)^0.5+0.0000000567*$F$9*(($F$10+273+O55)^2+($F$10+273)^2)*(($F$10+273+O55)+($F$10+273))) -> 20.27553651 | N55: 6.508852515 | O55: 32.43306438 | P55: 0.001936 | Q55: 0.004096 | R55: 109.7323977 | S55: 0.1125569745 | T55: 104.147595 | U55: 0.1737897781 | V55: 0.6147764468 | W55: 7.123628962 | X55: 4.982915853
G56: 184 | H56: 5.249539043 | I56: 0.046 | J56: 0.184 | K56: 0.066 | L56: 0.008712 | M56: =IF(【事例3】危険部品判断シート!$O$36=0,2.51*0.56*(O56/K56)^0.25+0.0000000567*$F$9*(($F$10+273+O56)^2+($F$10+273)^2)*(($F$10+273+O56)+($F$10+273)),3.86*(【事例3】危険部品判断シート!$O$36/K56)^0.5+0.0000000567*$F$9*(($F$10+273+O56)^2+($F$10+273)^2)*(($F$10+273+O56)+($F$10+273))) -> 20.08547231 | N56: 6.173924303 | O56: 32.41025668 | P56: 0.002116 | Q56: 0.004356 | R56: 106.1077364 | S56: 0.104400672 | T56: 101.588891 | U56: 0.1681598693 | V56: 0.5874800586 | W56: 6.761404362 | X56: 5.249539043
G57: 192 | H57: 5.522125881 | I57: 0.048 | J57: 0.192 | K57: 0.068 | L57: 0.009248 | M57: =IF(【事例3】危険部品判断シート!$O$36=0,2.51*0.56*(O57/K57)^0.25+0.0000000567*$F$9*(($F$10+273+O57)^2+($F$10+273)^2)*(($F$10+273+O57)+($F$10+273)),3.86*(【事例3】危険部品判断シート!$O$36/K57)^0.5+0.0000000567*$F$9*(($F$10+273+O57)^2+($F$10+273)^2)*(($F$10+273+O57)+($F$10+273))) -> 19.90385626 | N57: 5.865216304 | O57: 32.38846275 | P57: 0.002304 | Q57: 0.004624 | R57: 102.7205098 | S57: 0.097107978 | T57: 99.17655589 | U57: 0.1628888074 | V57: 0.5623312551 | W57: 6.427547559 | X57: 5.522125881
G58: 200 | H58: 5.80064367 | I58: 0.05 | J58: 0.2 | K58: 0.07 | L58: 0.0098 | M58: =IF(【事例3】危険部品判断シート!$O$36=0,2.51*0.56*(O58/K58)^0.25+0.0000000567*$F$9*(($F$10+273+O58)^2+($F$10+273)^2)*(($F$10+273+O58)+($F$10+273)),3.86*(【事例3】危険部品判断シート!$O$36/K58)^0.5+0.0000000567*$F$9*(($F$10+273+O58)^2+($F$10+273)^2)*(($F$10+273+O58)+($F$10+273))) -> 19.73008051 | N58: 5.5800031 | O58: 32.36760966 | P58: 0.0025 | Q58: 0.0049 | R58: 99.54754281 | S58: 0.09056012577 | T58: 96.89716323 | U58: 0.1579427127 | V58: 0.5390833135 | W58: 6.119086414 | X58: 5.80064367
K60: 隙間 | L60: =L32+E33 -> 15
H61: 発熱量 | I61: 部品L | J61: 周長 | K61: 周囲幅 | L61: P表面積 | M61: 熱伝達率 | N61: 熱抵抗R0 | O61: 温度上昇 | P61: As | Q61: Ap | R61: λ | S61: AC | T61: BC | U61: CC | V61: Rc | W61: Rt | X61: ERR
G62: =J62*1000 -> 8 | H62: =X62 -> 1.562535346 | I62: 0.002 | J62: =I62*4 -> 0.008 | K62: =I62+$L$60/1000*2 -> 0.032 | L62: =K62^2*2 -> 0.002048 | M62: =IF(【事例3】危険部品判断シート!$O$36=0,2.51*0.56*(O62/K62)^0.25+0.0000000567*$F$9*(($F$10+273+O62)^2+($F$10+273)^2)*(($F$10+273+O62)+($F$10+273)),3.86*(【事例3】危険部品判断シート!$O$36/K62)^0.5+0.0000000567*$F$9*(($F$10+273+O62)^2+($F$10+273)^2)*(($F$10+273+O62)+($F$10+273))) -> 25.43189041 | N62: =1/L62/M62+$F$8/$M$3/L62 -> 21.15269067 | O62: =H62*N62 -> 33.05182685 | P62: =I62^2 -> 4e-06 | Q62: =K62^2 -> 0.001024 | R62: =(PI()^1.5)/((Q62)^0.5)+1/(P62)^0.5 -> 674.0102499 | S62: =$F$6*(Q62^0.5-P62^0.5)/($L$3*(PI()*Q62*P62)^0.5) -> 7.428760317 | T62: =R62*$L$3*Q62*N62/$F$6 -> 519.7351318 | U62: =TANH(R62*$F$8/$F$6) -> 0.7926111043 | V62: =S62*(T62+U62)/(1+T62*U62) -> 9.364078211 | W62: =N62+V62 -> 30.51676888 | X62: =L62*M62*$Q$3 -> 1.562535346
G63: =J63*1000 -> 16 | H63: =X63 -> 1.727497494 | I63: =I62+0.002 -> 0.004 | J63: 0.016 | K63: =I63+$L$60/1000*2 -> 0.034 | L63: =K63^2*2 -> 0.002312 | M63: =IF(【事例3】危険部品判断シート!$O$36=0,2.51*0.56*(O63/K63)^0.25+0.0000000567*$F$9*(($F$10+273+O63)^2+($F$10+273)^2)*(($F$10+273+O63)+($F$10+273)),3.86*(【事例3】危険部品判断シート!$O$36/K63)^0.5+0.0000000567*$F$9*(($F$10+273+O63)^2+($F$10+273)^2)*(($F$10+273+O63)+($F$10+273))) -> 24.90624991 | N63: 19.09626504 | O63: 32.98874999 | P63: =I63^2 -> 1.6e-05 | Q63: =K63^2 -> 0.001156 | R63: =(PI()^1.5)/((Q63)^0.5)+1/(P63)^0.5 -> 413.7743528 | S63: 3.495887208 | T63: 325.1770102 | U63: 0.5797187352 | V63: =S63*(T63+U63)/(1+T63*U63) -> 6.009189701 | W63: =N63+V63 -> 25.10545474 | X63: =L63*M63*$Q$3 -> 1.727497494
G64: 24 | H64: =X64 -> 1.899291544 | I64: =I63+0.002 -> 0.006 | J64: 0.024 | K64: 0.036 | L64: 0.002592 | M64: =IF(【事例3】危険部品判断シート!$O$36=0,2.51*0.56*(O64/K64)^0.25+0.0000000567*$F$9*(($F$10+273+O64)^2+($F$10+273)^2)*(($F$10+273+O64)+($F$10+273)),3.86*(【事例3】危険部品判断シート!$O$36/K64)^0.5+0.0000000567*$F$9*(($F$10+273+O64)^2+($F$10+273)^2)*(($F$10+273+O64)+($F$10+273))) -> 24.42504557 | N64: 17.33857321 | O64: 32.93100547 | P64: 3.6e-05 | Q64: 0.001296 | R64: 321.3424444 | S64: 2.201114168 | T64: 257.0611516 | U64: 0.473170744 | V64: 4.622399127 | W64: 21.96097233 | X64: 1.899291544
G65: 32 | H65: 2.077830794 | I65: 0.008 | J65: 0.032 | K65: 0.038 | L65: 0.002888 | M65: =IF(【事例3】危険部品判断シート!$O$36=0,2.51*0.56*(O65/K65)^0.25+0.0000000567*$F$9*(($F$10+273+O65)^2+($F$10+273)^2)*(($F$10+273+O65)+($F$10+273)),3.86*(【事例3】危険部品判断シート!$O$36/K65)^0.5+0.0000000567*$F$9*(($F$10+273+O65)^2+($F$10+273)^2)*(($F$10+273+O65)+($F$10+273))) -> 23.98234988 | N65: 15.82317583 | O65: 32.87788199 | P65: 6.4e-05 | Q65: 0.001444 | R65: 271.5349473 | S65: 1.56394954 | T65: 220.8699219 | U65: 0.4090384446 | V65: 3.78862358 | W65: 19.61179941 | X65: 2.077830794
G66: 40 | H66: 2.263035488 | I66: 0.01 | J66: 0.04 | K66: 0.04 | L66: 0.0032 | M66: =IF(【事例3】危険部品判断シート!$O$36=0,2.51*0.56*(O66/K66)^0.25+0.0000000567*$F$9*(($F$10+273+O66)^2+($F$10+273)^2)*(($F$10+273+O66)+($F$10+273)),3.86*(【事例3】危険部品判断シート!$O$36/K66)^0.5+0.0000000567*$F$9*(($F$10+273+O66)^2+($F$10+273)^2)*(($F$10+273+O66)+($F$10+273))) -> 23.57328633 | N66: 14.50653096 | O66: 32.82879436 | P66: 0.0001 | Q66: 0.0016 | R66: 239.2081999 | S66: 1.188601651 | T66: 197.6558227 | U66: 0.3650786707 | V66: 3.217170743 | W66: 17.7237017 | X66: 2.263035488
G67: 48 | H67: 2.454831937 | I67: 0.012 | J67: 0.048 | K67: 0.042 | L67: =K67^2*2 -> 0.003528 | M67: =IF(【事例3】危険部品判断シート!$O$36=0,2.51*0.56*(O67/K67)^0.25+0.0000000567*$F$9*(($F$10+273+O67)^2+($F$10+273)^2)*(($F$10+273+O67)+($F$10+273)),3.86*(【事例3】危険部品判断シート!$O$36/K67)^0.5+0.0000000567*$F$9*(($F$10+273+O67)^2+($F$10+273)^2)*(($F$10+273+O67)+($F$10+273))) -> 23.19380137 | N67: 13.35458272 | O67: 32.78325616 | P67: 0.000144 | Q67: 0.001764 | R67: 215.9125714 | S67: 0.9433346434 | T67: 181.0743066 | U67: 0.3323432097 | V67: 2.797163917 | W67: 16.15174664 | X67: 2.454831937
G68: 56 | H68: 2.653151784 | I68: 0.014 | J68: 0.056 | K68: 0.044 | L68: 0.003872 | M68: =IF(【事例3】危険部品判断シート!$O$36=0,2.51*0.56*(O68/K68)^0.25+0.0000000567*$F$9*(($F$10+273+O68)^2+($F$10+273)^2)*(($F$10+273+O68)+($F$10+273)),3.86*(【事例3】危険部品判断シート!$O$36/K68)^0.5+0.0000000567*$F$9*(($F$10+273+O68)^2+($F$10+273)^2)*(($F$10+273+O68)+($F$10+273))) -> 22.84049401 | N68: 12.3403642 | O68: 32.74085928 | P68: 0.000196 | Q68: 0.001936 | R68: 197.9814804 | S68: 0.7718192537 | T68: 168.3867425 | U68: 0.3065837591 | V68: 2.474140553 | W68: 14.81450475 | X68: 2.653151784
G69: 64 | H69: 2.857931393 | I69: 0.016 | J69: 0.064 | K69: 0.046 | L69: 0.004232 | M69: =IF(【事例3】危険部品判断シート!$O$36=0,2.51*0.56*(O69/K69)^0.25+0.0000000567*$F$9*(($F$10+273+O69)^2+($F$10+273)^2)*(($F$10+273+O69)+($F$10+273)),3.86*(【事例3】危険部品判断シート!$O$36/K69)^0.5+0.0000000567*$F$9*(($F$10+273+O69)^2+($F$10+273)^2)*(($F$10+273+O69)+($F$10+273))) -> 22.51048672 | N69: 11.44228251 | O69: 32.70125841 | P69: 0.000256 | Q69: 0.002116 | R69: 183.5506086 | S69: 0.645979158 | T69: 158.2100824 | U69: 0.2855192506 | V69: 2.217465167 | W69: 13.65974768 | X69: 2.857931393
G70: 72 | H70: 3.069111328 | I70: 0.018 | J70: 0.072 | K70: 0.048 | L70: 0.004608 | M70: =IF(【事例3】危険部品判断シート!$O$36=0,2.51*0.56*(O70/K70)^0.25+0.0000000567*$F$9*(($F$10+273+O70)^2+($F$10+273)^2)*(($F$10+273+O70)+($F$10+273)),3.86*(【事例3】危険部品判断シート!$O$36/K70)^0.5+0.0000000567*$F$9*(($F$10+273+O70)^2+($F$10+273)^2)*(($F$10+273+O70)+($F$10+273))) -> 22.20132616 | N70: 10.64287204 | O70: 32.66415914 | P70: 0.000324 | Q70: 0.002304 | R70: 171.5623888 | S70: 0.550278542 | T70: 149.7660577 | U70: 0.2678069394 | V70: 2.008359296 | W70: 12.65123134 | X70: 3.069111328
G71: 80 | H71: 3.28663591 | I71: 0.02 | J71: 0.08 | K71: 0.05 | L71: 0.005 | M71: =IF(【事例3】危険部品判断シート!$O$36=0,2.51*0.56*(O71/K71)^0.25+0.0000000567*$F$9*(($F$10+273+O71)^2+($F$10+273)^2)*(($F$10+273+O71)+($F$10+273)),3.86*(【事例3】危険部品判断シート!$O$36/K71)^0.5+0.0000000567*$F$9*(($F$10+273+O71)^2+($F$10+273)^2)*(($F$10+273+O71)+($F$10+273))) -> 21.91090607 | N71: 9.927874466 | O71: 32.62930873 | P71: 0.0004 | Q71: 0.0025 | R71: 161.3665599 | S71: 0.4754406603 | T71: 142.5803986 | U71: 0.2525985202 | V71: 1.834594568 | W71: 11.76246903 | X71: 3.28663591
G72: 88 | H72: 3.510452837 | I72: 0.022 | J72: 0.088 | K72: 0.052 | L72: 0.005408 | M72: =IF(【事例3】危険部品判断シート!$O$36=0,2.51*0.56*(O72/K72)^0.25+0.0000000567*$F$9*(($F$10+273+O72)^2+($F$10+273)^2)*(($F$10+273+O72)+($F$10+273)),3.86*(【事例3】危険部品判断シート!$O$36/K72)^0.5+0.0000000567*$F$9*(($F$10+273+O72)^2+($F$10+273)^2)*(($F$10+273+O72)+($F$10+273))) -> 21.63740654 | N72: 9.285550981 | O72: 32.59648878 | P72: 0.000484 | Q72: 0.002704 | R72: 152.5377762 | S72: 0.4155949828 | T72: 136.3458032 | U72: 0.2393273215 | V72: 1.6878365 | W72: 10.97338748 | X72: 3.510452837
G73: 96 | H73: 3.740512857 | I73: 0.024 | J73: 0.096 | K73: 0.054 | L73: 0.005832 | M73: =IF(【事例3】危険部品判断シート!$O$36=0,2.51*0.56*(O73/K73)^0.25+0.0000000567*$F$9*(($F$10+273+O73)^2+($F$10+273)^2)*(($F$10+273+O73)+($F$10+273)),3.86*(【事例3】危険部品判断シート!$O$36/K73)^0.5+0.0000000567*$F$9*(($F$10+273+O73)^2+($F$10+273)^2)*(($F$10+273+O73)+($F$10+273))) -> 21.37924587 | N73: 8.706161628 | O73: 32.5655095 | P73: 0.000576 | Q73: 0.002916 | R73: 144.7838518 | S73: 0.3668523613 | T73: 130.8532065 | U73: 0.2275974178 | V73: 1.562196536 | W73: 10.26835816 | X73: 3.740512857
G74: 104 | H74: 3.976769482 | I74: 0.026 | J74: 0.104 | K74: 0.056 | L74: 0.006272 | M74: =IF(【事例3】危険部品判断シート!$O$36=0,2.51*0.56*(O74/K74)^0.25+0.0000000567*$F$9*(($F$10+273+O74)^2+($F$10+273)^2)*(($F$10+273+O74)+($F$10+273)),3.86*(【事例3】危険部品判断シート!$O$36/K74)^0.5+0.0000000567*$F$9*(($F$10+273+O74)^2+($F$10+273)^2)*(($F$10+273+O74)+($F$10+273))) -> 21.13504189 | N74: 8.181566766 | O74: 32.53620503 | P74: 0.000676 | Q74: 0.003136 | R74: 137.895967 | S74: 0.326538915 | T74: 125.9546181 | U74: 0.217121825 | V74: 1.453390531 | W74: 9.634957297 | X74: 3.976769482
G75: 112 | H75: 4.219178737 | I75: 0.028 | J75: 0.112 | K75: 0.058 | L75: 0.006728 | M75: =IF(【事例3】危険部品判断シート!$O$36=0,2.51*0.56*(O75/K75)^0.25+0.0000000567*$F$9*(($F$10+273+O75)^2+($F$10+273)^2)*(($F$10+273+O75)+($F$10+273)),3.86*(【事例3】危険部品判断シート!$O$36/K75)^0.5+0.0000000567*$F$9*(($F$10+273+O75)^2+($F$10+273)^2)*(($F$10+273+O75)+($F$10+273))) -> 20.90358074 | N75: 7.704918827 | O75: 32.50842969 | P75: 0.000784 | Q75: 0.003364 | R75: 131.7199408 | S75: 0.2927590273 | T75: 121.5417765 | U75: 0.207686085 | V75: 1.358224472 | W75: 9.0631433 | X75: 4.219178737
G76: 120 | H76: 4.467698946 | I76: 0.03 | J76: 0.12 | K76: 0.06 | L76: 0.0072 | M76: =IF(【事例3】危険部品判断シート!$O$36=0,2.51*0.56*(O76/K76)^0.25+0.0000000567*$F$9*(($F$10+273+O76)^2+($F$10+273)^2)*(($F$10+273+O76)+($F$10+273)),3.86*(【事例3】危険部品判断シート!$O$36/K76)^0.5+0.0000000567*$F$9*(($F$10+273+O76)^2+($F$10+273)^2)*(($F$10+273+O76)+($F$10+273))) -> 20.68379142 | N76: 7.270421611 | O76: 32.48205497 | P76: 0.0009 | Q76: 0.0036 | R76: 126.1387999 | S76: 0.2641337002 | T76: 117.5332621 | U76: 0.1991257859 | V76: 1.274267112 | W76: 8.544688724 | X76: 4.467698946
G77: 128 | H77: 4.722290532 | I77: 0.032 | J77: 0.128 | K77: 0.062 | L77: 0.007688 | M77: =IF(【事例3】危険部品判断シート!$O$36=0,2.51*0.56*(O77/K77)^0.25+0.0000000567*$F$9*(($F$10+273+O77)^2+($F$10+273)^2)*(($F$10+273+O77)+($F$10+273)),3.86*(【事例3】危険部品判断シート!$O$36/K77)^0.5+0.0000000567*$F$9*(($F$10+273+O77)^2+($F$10+273)^2)*(($F$10+273+O77)+($F$10+273))) -> 20.47472482 | N77: 6.873140641 | O77: 32.45696698 | P77: 0.001024 | Q77: 0.003844 | R77: 121.0617419 | S77: 0.2396374296 | T77: 113.8663832 | U77: 0.1913121231 | V77: 1.199634371 | W77: 8.072775012 | X77: 4.722290532
G78: 136 | H78: 4.982915853 | I78: 0.034 | J78: 0.136 | K78: 0.064 | L78: 0.008192 | M78: =IF(【事例3】危険部品判断シート!$O$36=0,2.51*0.56*(O78/K78)^0.25+0.0000000567*$F$9*(($F$10+273+O78)^2+($F$10+273)^2)*(($F$10+273+O78)+($F$10+273)),3.86*(【事例3】危険部品判断シート!$O$36/K78)^0.5+0.0000000567*$F$9*(($F$10+273+O78)^2+($F$10+273)^2)*(($F$10+273+O78)+($F$10+273))) -> 20.27553651 | N78: 6.508852515 | O78: 32.43306438 | P78: 0.001156 | Q78: 0.004096 | R78: 116.4168897 | S78: 0.2184929505 | T78: 110.4918815 | U78: 0.1841423026 | V78: 1.132843204 | W78: 7.641695719 | X78: 4.982915853
G79: 144 | H79: 5.249539043 | I79: 0.036 | J79: 0.144 | K79: 0.066 | L79: 0.008712 | M79: =IF(【事例3】危険部品判断シート!$O$36=0,2.51*0.56*(O79/K79)^0.25+0.0000000567*$F$9*(($F$10+273+O79)^2+($F$10+273)^2)*(($F$10+273+O79)+($F$10+273)),3.86*(【事例3】危険部品判断シート!$O$36/K79)^0.5+0.0000000567*$F$9*(($F$10+273+O79)^2+($F$10+273)^2)*(($F$10+273+O79)+($F$10+273))) -> 20.08547231 | N79: 6.173924303 | O79: 32.41025668 | P79: 0.001296 | Q79: 0.004356 | R79: 112.1463838 | S79: 0.200101288 | T79: 107.3703685 | U79: 0.1775329697 | V79: 1.072710059 | W79: 7.246634362 | X79: 5.249539043
G80: 152 | H80: 5.522125881 | I80: 0.038 | J80: 0.152 | K80: 0.068 | L80: 0.009248 | M80: =IF(【事例3】危険部品判断シート!$O$36=0,2.51*0.56*(O80/K80)^0.25+0.0000000567*$F$9*(($F$10+273+O80)^2+($F$10+273)^2)*(($F$10+273+O80)+($F$10+273)),3.86*(【事例3】危険部品判断シート!$O$36/K80)^0.5+0.0000000567*$F$9*(($F$10+273+O80)^2+($F$10+273)^2)*(($F$10+273+O80)+($F$10+273))) -> 19.90385626 | N80: 5.865216304 | O80: 32.38846275 | P80: 0.001444 | Q80: 0.004624 | R80: 108.2029659 | S80: 0.1839940636 | T80: 104.4698622 | U80: 0.1714155915 | V80: 1.018278772 | W80: 6.883495076 | X80: 5.522125881
G81: 160 | H81: 5.80064367 | I81: 0.04 | J81: 0.16 | K81: 0.07 | L81: 0.0098 | M81: =IF(【事例3】危険部品判断シート!$O$36=0,2.51*0.56*(O81/K81)^0.25+0.0000000567*$F$9*(($F$10+273+O81)^2+($F$10+273)^2)*(($F$10+273+O81)+($F$10+273)),3.86*(【事例3】危険部品判断シート!$O$36/K81)^0.5+0.0000000567*$F$9*(($F$10+273+O81)^2+($F$10+273)^2)*(($F$10+273+O81)+($F$10+273))) -> 19.73008051 | N81: 5.5800031 | O81: 32.36760966 | P81: 0.0016 | Q81: 0.0049 | R81: 104.5475428 | S81: 0.1698002358 | T81: 101.7640419 | U81: 0.1657331358 | V81: 0.9687683797 | W81: 6.54877148 | X81: 5.80064367
G82: 168 | H82: 6.085061121 | I82: 0.042 | J82: 0.168 | K82: 0.072 | L82: 0.010368 | M82: =IF(【事例3】危険部品判断シート!$O$36=0,2.51*0.56*(O82/K82)^0.25+0.0000000567*$F$9*(($F$10+273+O82)^2+($F$10+273)^2)*(($F$10+273+O82)+($F$10+273)),3.86*(【事例3】危険部品判断シート!$O$36/K82)^0.5+0.0000000567*$F$9*(($F$10+273+O82)^2+($F$10+273)^2)*(($F$10+273+O82)+($F$10+273))) -> 19.56359671 | N82: 5.31590907 | O82: 32.34763161 | P82: 0.001764 | Q82: 0.005184 | R82: 101.1474127 | S82: 0.1572224406 | T82: 99.23098732 | U82: 0.160437634 | V82: 0.9235346927 | W82: 6.239443763 | X82: 6.085061121
G83: 176 | H83: 6.37534826 | I83: 0.044 | J83: 0.176 | K83: 0.074 | L83: 0.010952 | M83: =IF(【事例3】危険部品判断シート!$O$36=0,2.51*0.56*(O83/K83)^0.25+0.0000000567*$F$9*(($F$10+273+O83)^2+($F$10+273)^2)*(($F$10+273+O83)+($F$10+273)),3.86*(【事例3】危険部品判断シート!$O$36/K83)^0.5+0.0000000567*$F$9*(($F$10+273+O83)^2+($F$10+273)^2)*(($F$10+273+O83)+($F$10+273))) -> 19.40390875 | N83: 5.070855384 | O83: 32.32846905 | P83: 0.001936 | Q83: 0.005476 | R83: 97.97494836 | S83: 0.1460198588 | T83: 96.85224807 | U83: 0.1554883591 | V83: 0.8820415777 | W83: 5.952896962 | X83: 6.37534826
G84: 184 | H84: 6.671476338 | I84: 0.046 | J84: 0.184 | K84: 0.076 | L84: 0.011552 | M84: =IF(【事例3】危険部品判断シート!$O$36=0,2.51*0.56*(O84/K84)^0.25+0.0000000567*$F$9*(($F$10+273+O84)^2+($F$10+273)^2)*(($F$10+273+O84)+($F$10+273)),3.86*(【事例3】危険部品判断シート!$O$36/K84)^0.5+0.0000000567*$F$9*(($F$10+273+O84)^2+($F$10+273)^2)*(($F$10+273+O84)+($F$10+273))) -> 19.25056653 | N84: 4.8430162 | O84: 32.31006798 | P84: 0.002116 | Q84: 0.005776 | R84: 95.00660408 | S84: 0.1359956122 | T84: 94.61214729 | U84: 0.1508504414 | V84: 0.8438391885 | W84: 5.686855388 | X84: 6.671476338
G85: 192 | H85: 6.973417748 | I85: 0.048 | J85: 0.192 | K85: 0.078 | L85: 0.012168 | M85: =IF(【事例3】危険部品判断シート!$O$36=0,2.51*0.56*(O85/K85)^0.25+0.0000000567*$F$9*(($F$10+273+O85)^2+($F$10+273)^2)*(($F$10+273+O85)+($F$10+273)),3.86*(【事例3】危険部品判断シート!$O$36/K85)^0.5+0.0000000567*$F$9*(($F$10+273+O85)^2+($F$10+273)^2)*(($F$10+273+O85)+($F$10+273))) -> 19.10316061 | N85: 4.63078227 | O85: 32.29237927 | P85: 0.002304 | Q85: 0.006084 | R85: 92.22215381 | S85: 0.1269873558 | T85: 92.49725104 | U85: 0.146493802 | V85: 0.8085472624 | W85: 5.439329533 | X85: 6.973417748
G86: 200 | H86: 7.281145951 | I86: 0.05 | J86: 0.2 | K86: 0.08 | L86: 0.0128 | M86: =IF(【事例3】危険部品判断シート!$O$36=0,2.51*0.56*(O86/K86)^0.25+0.0000000567*$F$9*(($F$10+273+O86)^2+($F$10+273)^2)*(($F$10+273+O86)+($F$10+273)),3.86*(【事例3】危険部品判断シート!$O$36/K86)^0.5+0.0000000567*$F$9*(($F$10+273+O86)^2+($F$10+273)^2)*(($F$10+273+O86)+($F$10+273))) -> 18.96131758 | N86: 4.432730552 | O86: 32.27535811 | P86: 0.0025 | Q86: 0.0064 | R86: 89.60409996 | S86: 0.1188601651 | T86: 90.49595904 | U86: 0.1423923183 | V86: 0.7758421559 | W86: 5.208572707 | X86: 7.281145951
K88: 隙間 | L88: =L60+E33 -> 20
H89: 発熱量 | I89: 部品L | J89: 周長 | K89: 周囲幅 | L89: P表面積 | M89: 熱伝達率 | N89: 熱抵抗R0 | O89: 温度上昇 | P89: As | Q89: Ap | R89: λ | S89: AC | T89: BC | U89: CC | V89: Rc | W89: Rt | X89: ERR
G90: =J90*1000 -> 8 | H90: =X90 -> 2.454831937 | I90: 0.002 | J90: =I90*4 -> 0.008 | K90: =I90+$L$88/1000*2 -> 0.042 | L90: =K90^2*2 -> 0.003528 | M90: =IF(【事例3】危険部品判断シート!$O$36=0,2.51*0.56*(O90/K90)^0.25+0.0000000567*$F$9*(($F$10+273+O90)^2+($F$10+273)^2)*(($F$10+273+O90)+($F$10+273)),3.86*(【事例3】危険部品判断シート!$O$36/K90)^0.5+0.0000000567*$F$9*(($F$10+273+O90)^2+($F$10+273)^2)*(($F$10+273+O90)+($F$10+273))) -> 23.19380137 | N90: =1/L90/M90+$F$8/$M$3/L90 -> 13.35458272 | O90: =H90*N90 -> 32.78325616 | P90: =I90^2 -> 4e-06 | Q90: =K90^2 -> 0.001764 | R90: =(PI()^1.5)/((Q90)^0.5)+1/(P90)^0.5 -> 632.579238 | S90: =$F$6*(Q90^0.5-P90^0.5)/($L$3*(PI()*Q90*P90)^0.5) -> 7.546677148 | T90: =R90*$L$3*Q90*N90/$F$6 -> 530.5103181 | U90: =TANH(R90*$F$8/$F$6) -> 0.7666402413 | V90: =S90*(T90+U90)/(1+T90*U90) -> 9.833877487 | W90: =N90+V90 -> 23.18846021 | X90: =L90*M90*$Q$3 -> 2.454831937
G91: =J91*1000 -> 16 | H91: =X91 -> 2.653151784 | I91: =I90+0.002 -> 0.004 | J91: 0.016 | K91: =I91+$L$88/1000*2 -> 0.044 | L91: =K91^2*2 -> 0.003872 | M91: =IF(【事例3】危険部品判断シート!$O$36=0,2.51*0.56*(O91/K91)^0.25+0.0000000567*$F$9*(($F$10+273+O91)^2+($F$10+273)^2)*(($F$10+273+O91)+($F$10+273)),3.86*(【事例3】危険部品判断シート!$O$36/K91)^0.5+0.0000000567*$F$9*(($F$10+273+O91)^2+($F$10+273)^2)*(($F$10+273+O91)+($F$10+273))) -> 22.84049401 | N91: 12.3403642 | O91: 32.74085928 | P91: =I91^2 -> 1.6e-05 | Q91: =K91^2 -> 0.001936 | R91: =(PI()^1.5)/((Q91)^0.5)+1/(P91)^0.5 -> 376.552909 | S91: 3.601823184 | T91: 320.2648934 | U91: 0.5388152321 | V91: =S91*(T91+U91)/(1+T91*U91) -> 6.657376409 | W91: =N91+V91 -> 18.9977406 | X91: =L91*M91*$Q$3 -> 2.653151784
G92: 24 | H92: =X92 -> 2.857931393 | I92: =I91+0.002 -> 0.006 | J92: 0.024 | K92: 0.046 | L92: 0.004232 | M92: =IF(【事例3】危険部品判断シート!$O$36=0,2.51*0.56*(O92/K92)^0.25+0.0000000567*$F$9*(($F$10+273+O92)^2+($F$10+273)^2)*(($F$10+273+O92)+($F$10+273)),3.86*(【事例3】危険部品判断シート!$O$36/K92)^0.5+0.0000000567*$F$9*(($F$10+273+O92)^2+($F$10+273)^2)*(($F$10+273+O92)+($F$10+273))) -> 22.51048672 | N92: 11.44228251 | O92: 32.70125841 | P92: 3.6e-05 | Q92: 0.002116 | R92: 287.7172753 | S92: 2.296814784 | T92: 247.9957662 | U92: 0.4303675056 | V92: 5.296504427 | W92: 16.73878694 | X92: 2.857931393
G93: 32 | H93: 3.069111328 | I93: 0.008 | J93: 0.032 | K93: 0.048 | L93: 0.004608 | M93: =IF(【事例3】危険部品判断シート!$O$36=0,2.51*0.56*(O93/K93)^0.25+0.0000000567*$F$9*(($F$10+273+O93)^2+($F$10+273)^2)*(($F$10+273+O93)+($F$10+273)),3.86*(【事例3】危険部品判断シート!$O$36/K93)^0.5+0.0000000567*$F$9*(($F$10+273+O93)^2+($F$10+273)^2)*(($F$10+273+O93)+($F$10+273))) -> 22.20132616 | N93: 10.64287204 | O93: 32.66415914 | P93: 6.4e-05 | Q93: 0.002304 | R93: 241.0068333 | S93: 1.650835626 | T93: 210.3878568 | U93: 0.3675702974 | V93: 4.441621746 | W93: 15.08449378 | X93: 3.069111328
G94: 40 | H94: 3.28663591 | I94: 0.01 | J94: 0.04 | K94: 0.05 | L94: 0.005 | M94: =IF(【事例3】危険部品判断シート!$O$36=0,2.51*0.56*(O94/K94)^0.25+0.0000000567*$F$9*(($F$10+273+O94)^2+($F$10+273)^2)*(($F$10+273+O94)+($F$10+273)),3.86*(【事例3】危険部品判断シート!$O$36/K94)^0.5+0.0000000567*$F$9*(($F$10+273+O94)^2+($F$10+273)^2)*(($F$10+273+O94)+($F$10+273))) -> 21.91090607 | N94: 9.927874466 | O94: 32.62930873 | P94: 0.0001 | Q94: 0.0025 | R94: 211.3665599 | S94: 1.267841761 | T94: 186.7594399 | U94: 0.3258574132 | V94: 3.834566051 | W94: 13.76244052 | X94: 3.28663591
G95: 48 | H95: 3.510452837 | I95: 0.012 | J95: 0.048 | K95: 0.052 | L95: =K95^2*2 -> 0.005408 | M95: =IF(【事例3】危険部品判断シート!$O$36=0,2.51*0.56*(O95/K95)^0.25+0.0000000567*$F$9*(($F$10+273+O95)^2+($F$10+273)^2)*(($F$10+273+O95)+($F$10+273)),3.86*(【事例3】危険部品判断シート!$O$36/K95)^0.5+0.0000000567*$F$9*(($F$10+273+O95)^2+($F$10+273)^2)*(($F$10+273+O95)+($F$10+273))) -> 21.63740654 | N95: 9.285550981 | O95: 32.59648878 | P95: 0.000144 | Q95: 0.002704 | R95: 190.416564 | S95: 1.015898847 | T95: 170.2037359 | U95: 0.295577273 | V95: 3.375864455 | W95: 12.66141544 | X95: 3.510452837
G96: 56 | H96: 3.740512857 | I96: 0.014 | J96: 0.056 | K96: 0.054 | L96: 0.005832 | M96: =IF(【事例3】危険部品判断シート!$O$36=0,2.51*0.56*(O96/K96)^0.25+0.0000000567*$F$9*(($F$10+273+O96)^2+($F$10+273)^2)*(($F$10+273+O96)+($F$10+273)),3.86*(【事例3】危険部品判断シート!$O$36/K96)^0.5+0.0000000567*$F$9*(($F$10+273+O96)^2+($F$10+273)^2)*(($F$10+273+O96)+($F$10+273))) -> 21.37924587 | N96: 8.706161628 | O96: 32.5655095 | P96: 0.000196 | Q96: 0.002916 | R96: 174.5457566 | S96: 0.8385196831 | T96: 157.7515148 | U96: 0.272232287 | V96: 3.015265776 | W96: 11.7214274 | X96: 3.740512857
G97: 64 | H97: 3.976769482 | I97: 0.016 | J97: 0.064 | K97: 0.056 | L97: 0.006272 | M97: =IF(【事例3】危険部品判断シート!$O$36=0,2.51*0.56*(O97/K97)^0.25+0.0000000567*$F$9*(($F$10+273+O97)^2+($F$10+273)^2)*(($F$10+273+O97)+($F$10+273)),3.86*(【事例3】危険部品判断シート!$O$36/K97)^0.5+0.0000000567*$F$9*(($F$10+273+O97)^2+($F$10+273)^2)*(($F$10+273+O97)+($F$10+273))) -> 21.13504189 | N97: 8.181566766 | O97: 32.53620503 | P97: 0.000256 | Q97: 0.003136 | R97: 161.9344285 | S97: 0.7075009826 | T97: 147.9114259 | U97: 0.2534489411 | V97: 2.723623211 | W97: 10.90518998 | X97: 3.976769482
G98: 72 | H98: 4.219178737 | I98: 0.018 | J98: 0.072 | K98: 0.058 | L98: 0.006728 | M98: =IF(【事例3】危険部品判断シート!$O$36=0,2.51*0.56*(O98/K98)^0.25+0.0000000567*$F$9*(($F$10+273+O98)^2+($F$10+273)^2)*(($F$10+273+O98)+($F$10+273)),3.86*(【事例3】危険部品判断シート!$O$36/K98)^0.5+0.0000000567*$F$9*(($F$10+273+O98)^2+($F$10+273)^2)*(($F$10+273+O98)+($F$10+273))) -> 20.90358074 | N98: 7.704918827 | O98: 32.50842969 | P98: 0.000324 | Q98: 0.003364 | R98: 151.5612107 | S98: 0.6072039084 | T98: 139.8498866 | U98: 0.2378537634 | V98: 2.482555036 | W98: 10.18747386 | X98: 4.219178737
G99: 80 | H99: 4.467698946 | I99: 0.02 | J99: 0.08 | K99: 0.06 | L99: 0.0072 | M99: =IF(【事例3】危険部品判断シート!$O$36=0,2.51*0.56*(O99/K99)^0.25+0.0000000567*$F$9*(($F$10+273+O99)^2+($F$10+273)^2)*(($F$10+273+O99)+($F$10+273)),3.86*(【事例3】危険部品判断シート!$O$36/K99)^0.5+0.0000000567*$F$9*(($F$10+273+O99)^2+($F$10+273)^2)*(($F$10+273+O99)+($F$10+273))) -> 20.68379142 | N99: 7.270421611 | O99: 32.48205497 | P99: 0.0004 | Q99: 0.0036 | R99: 142.8054666 | S99: 0.5282674003 | T99: 133.0628826 | U99: 0.2245938181 | V99: 2.279786264 | W99: 9.550207875 | X99: 4.467698946
G100: 88 | H100: 4.722290532 | I100: 0.022 | J100: 0.088 | K100: 0.062 | L100: 0.007688 | M100: =IF(【事例3】危険部品判断シート!$O$36=0,2.51*0.56*(O100/K100)^0.25+0.0000000567*$F$9*(($F$10+273+O100)^2+($F$10+273)^2)*(($F$10+273+O100)+($F$10+273)),3.86*(【事例3】危険部品判断シート!$O$36/K100)^0.5+0.0000000567*$F$9*(($F$10+273+O100)^2+($F$10+273)^2)*(($F$10+273+O100)+($F$10+273))) -> 20.47472482 | N100: 6.873140641 | O100: 32.45696698 | P100: 0.000484 | Q100: 0.003844 | R100: 135.2662873 | S100: 0.4647513786 | T100: 127.2266751 | U100: 0.2131090443 | V100: 2.106765145 | W100: 8.979905786 | X100: 4.722290532
G101: 96 | H101: 4.982915853 | I101: 0.024 | J101: 0.096 | K101: 0.064 | L101: 0.008192 | M101: =IF(【事例3】危険部品判断シート!$O$36=0,2.51*0.56*(O101/K101)^0.25+0.0000000567*$F$9*(($F$10+273+O101)^2+($F$10+273)^2)*(($F$10+273+O101)+($F$10+273)),3.86*(【事例3】危険部品判断シート!$O$36/K101)^0.5+0.0000000567*$F$9*(($F$10+273+O101)^2+($F$10+273)^2)*(($F$10+273+O101)+($F$10+273))) -> 20.27553651 | N101: 6.508852515 | O101: 32.43306438 | P101: 0.000576 | Q101: 0.004096 | R101: 128.6717916 | S101: 0.4127089065 | T101: 122.1230733 | U101: 0.2030147155 | V101: 1.95733318 | W101: 8.466185696 | X101: 4.982915853
G102: 104 | H102: 5.249539043 | I102: 0.026 | J102: 0.104 | K102: 0.066 | L102: 0.008712 | M102: =IF(【事例3】危険部品判断シート!$O$36=0,2.51*0.56*(O102/K102)^0.25+0.0000000567*$F$9*(($F$10+273+O102)^2+($F$10+273)^2)*(($F$10+273+O102)+($F$10+273)),3.86*(【事例3】危険部品判断シート!$O$36/K102)^0.5+0.0000000567*$F$9*(($F$10+273+O102)^2+($F$10+273)^2)*(($F$10+273+O102)+($F$10+273))) -> 20.08547231 | N102: 6.173924303 | O102: 32.41025668 | P102: 0.000676 | Q102: 0.004356 | R102: 122.8301445 | S102: 0.3694177625 | T102: 117.5991363 | U102: 0.1940365267 | V102: 1.826934495 | W102: 8.000858799 | X102: 5.249539043
G103: 112 | H103: 5.522125881 | I103: 0.028 | J103: 0.112 | K103: 0.068 | L103: 0.009248 | M103: =IF(【事例3】危険部品判断シート!$O$36=0,2.51*0.56*(O103/K103)^0.25+0.0000000567*$F$9*(($F$10+273+O103)^2+($F$10+273)^2)*(($F$10+273+O103)+($F$10+273)),3.86*(【事例3】危険部品判断シート!$O$36/K103)^0.5+0.0000000567*$F$9*(($F$10+273+O103)^2+($F$10+273)^2)*(($F$10+273+O103)+($F$10+273))) -> 19.90385626 | N103: 5.865216304 | O103: 32.38846275 | P103: 0.000784 | Q103: 0.004624 | R103: 117.6014621 | S103: 0.3329416389 | T103: 113.5441015 | U103: 0.1859727104 | V103: 1.712122387 | W103: 7.57733869 | X103: 5.522125881
G104: 120 | H104: 5.80064367 | I104: 0.03 | J104: 0.12 | K104: 0.07 | L104: 0.0098 | M104: =IF(【事例3】危険部品判断シート!$O$36=0,2.51*0.56*(O104/K104)^0.25+0.0000000567*$F$9*(($F$10+273+O104)^2+($F$10+273)^2)*(($F$10+273+O104)+($F$10+273)),3.86*(【事例3】危険部品判断シート!$O$36/K104)^0.5+0.0000000567*$F$9*(($F$10+273+O104)^2+($F$10+273)^2)*(($F$10+273+O104)+($F$10+273))) -> 19.73008051 | N104: 5.5800031 | O104: 32.36760966 | P104: 0.0009 | Q104: 0.0049 | R104: 112.8808761 | S104: 0.3018670859 | T104: 109.8755064 | U104: 0.17867088 | V104: 1.610239089 | W104: 7.190242189 | X104: 5.80064367
G105: 128 | H105: 6.085061121 | I105: 0.032 | J105: 0.128 | K105: 0.072 | L105: 0.010368 | M105: =IF(【事例3】危険部品判断シート!$O$36=0,2.51*0.56*(O105/K105)^0.25+0.0000000567*$F$9*(($F$10+273+O105)^2+($F$10+273)^2)*(($F$10+273+O105)+($F$10+273)),3.86*(【事例3】危険部品判断シート!$O$36/K105)^0.5+0.0000000567*$F$9*(($F$10+273+O105)^2+($F$10+273)^2)*(($F$10+273+O105)+($F$10+273))) -> 19.56359671 | N105: 5.31590907 | O105: 32.34763161 | P105: 0.001024 | Q105: 0.005184 | R105: 108.5878888 | S105: 0.275139271 | T105: 106.5304899 | U105: 0.1720133085 | V105: 1.519201159 | W105: 6.835110229 | X105: 6.085061121
G106: 136 | H106: 6.37534826 | I106: 0.034 | J106: 0.136 | K106: 0.074 | L106: 0.010952 | M106: =IF(【事例3】危険部品判断シート!$O$36=0,2.51*0.56*(O106/K106)^0.25+0.0000000567*$F$9*(($F$10+273+O106)^2+($F$10+273)^2)*(($F$10+273+O106)+($F$10+273)),3.86*(【事例3】危険部品判断シート!$O$36/K106)^0.5+0.0000000567*$F$9*(($F$10+273+O106)^2+($F$10+273)^2)*(($F$10+273+O106)+($F$10+273))) -> 19.40390875 | N106: 5.070855384 | O106: 32.32846905 | P106: 0.001156 | Q106: 0.005476 | R106: 104.6594403 | S106: 0.2519558348 | T106: 103.4601421 | U106: 0.165907249 | V106: 1.437351672 | W106: 6.508207056 | X106: 6.37534826
G107: 144 | H107: 6.671476338 | I107: 0.036 | J107: 0.144 | K107: 0.076 | L107: 0.011552 | M107: =IF(【事例3】危険部品判断シート!$O$36=0,2.51*0.56*(O107/K107)^0.25+0.0000000567*$F$9*(($F$10+273+O107)^2+($F$10+273)^2)*(($F$10+273+O107)+($F$10+273)),3.86*(【事例3】危険部品判断シート!$O$36/K107)^0.5+0.0000000567*$F$9*(($F$10+273+O107)^2+($F$10+273)^2)*(($F$10+273+O107)+($F$10+273))) -> 19.25056653 | N107: 4.8430162 | O107: 32.31006798 | P107: 0.001296 | Q107: 0.005776 | R107: 101.0452514 | S107: 0.2316962282 | T107: 100.6257228 | U107: 0.1602783793 | V107: 1.363356033 | W107: 6.206372233 | X107: 6.671476338
G108: 152 | H108: 6.973417748 | I108: 0.038 | J108: 0.152 | K108: 0.078 | L108: 0.012168 | M108: =IF(【事例3】危険部品判断シート!$O$36=0,2.51*0.56*(O108/K108)^0.25+0.0000000567*$F$9*(($F$10+273+O108)^2+($F$10+273)^2)*(($F$10+273+O108)+($F$10+273)),3.86*(【事例3】危険部品判断シート!$O$36/K108)^0.5+0.0000000567*$F$9*(($F$10+273+O108)^2+($F$10+273)^2)*(($F$10+273+O108)+($F$10+273))) -> 19.10316061 | N108: 4.63078227 | O108: 32.29237927 | P108: 0.001444 | Q108: 0.006084 | R108: 97.70460995 | S108: 0.2138734414 | T108: 97.99606126 | U108: 0.1550662466 | V108: 1.296127015 | W108: 5.926909285 | X108: 6.973417748
G109: 160 | H109: 7.281145951 | I109: 0.04 | J109: 0.16 | K109: 0.08 | L109: 0.0128 | M109: =IF(【事例3】危険部品判断シート!$O$36=0,2.51*0.56*(O109/K109)^0.25+0.0000000567*$F$9*(($F$10+273+O109)^2+($F$10+273)^2)*(($F$10+273+O109)+($F$10+273)),3.86*(【事例3】危険部品判断シート!$O$36/K109)^0.5+0.0000000567*$F$9*(($F$10+273+O109)^2+($F$10+273)^2)*(($F$10+273+O109)+($F$10+273))) -> 18.96131758 | N109: 4.432730552 | O109: 32.27535811 | P109: 0.0016 | Q109: 0.0064 | R109: 94.60409996 | S109: 0.1981002751 | T109: 95.54572568 | U109: 0.1502210287 | V109: 1.234769851 | W109: 5.667500403 | X109: 7.281145951
G110: 168 | H110: 7.594635412 | I110: 0.042 | J110: 0.168 | K110: 0.082 | L110: 0.013448 | M110: =IF(【事例3】危険部品判断シート!$O$36=0,2.51*0.56*(O110/K110)^0.25+0.0000000567*$F$9*(($F$10+273+O110)^2+($F$10+273)^2)*(($F$10+273+O110)+($F$10+273)),3.86*(【事例3】危険部品判断シート!$O$36/K110)^0.5+0.0000000567*$F$9*(($F$10+273+O110)^2+($F$10+273)^2)*(($F$10+273+O110)+($F$10+273))) -> 18.82469614 | N110: 4.247598704 | O110: 32.25896354 | P110: 0.001764 | Q110: 0.006724 | R110: 91.7159628 | S110: 0.1840652963 | T110: 93.25370852 | U110: 0.1457011834 | V110: 1.17854137 | W110: 5.426140074 | X110: 7.594635412
G111: 176 | H111: 7.913861534 | I111: 0.044 | J111: 0.176 | K111: 0.084 | L111: 0.014112 | M111: =IF(【事例3】危険部品判断シート!$O$36=0,2.51*0.56*(O111/K111)^0.25+0.0000000567*$F$9*(($F$10+273+O111)^2+($F$10+273)^2)*(($F$10+273+O111)+($F$10+273)),3.86*(【事例3】危険部品判断シート!$O$36/K111)^0.5+0.0000000567*$F$9*(($F$10+273+O111)^2+($F$10+273)^2)*(($F$10+273+O111)+($F$10+273))) -> 18.69298359 | N111: 4.074263606 | O111: 32.24315803 | P111: 0.001936 | Q111: 0.007056 | R111: 89.01689174 | S111: 0.1715153897 | T111: 91.10246338 | U111: 0.1414717118 | V111: 1.126819138 | W111: 5.201082745 | X111: 7.913861534
G112: 184 | H112: 8.238800605 | I112: 0.046 | J112: 0.184 | K112: 0.086 | L112: 0.014792 | M112: =IF(【事例3】危険部品判断シート!$O$36=0,2.51*0.56*(O112/K112)^0.25+0.0000000567*$F$9*(($F$10+273+O112)^2+($F$10+273)^2)*(($F$10+273+O112)+($F$10+273)),3.86*(【事例3】危険部品判断シート!$O$36/K112)^0.5+0.0000000567*$F$9*(($F$10+273+O112)^2+($F$10+273)^2)*(($F$10+273+O112)+($F$10+273))) -> 18.56589284 | N112: 3.911723161 | O112: 32.22790714 | P112: 0.002116 | Q112: 0.007396 | R112: 86.4871304 | S112: 0.1602428919 | T112: 89.07718817 | U112: 0.1375028527 | V112: 1.079077864 | W112: 4.990801025 | X112: 8.238800605
G113: 192 | H113: 8.569429745 | I113: 0.048 | J113: 0.192 | K113: 0.088 | L113: 0.015488 | M113: =IF(【事例3】危険部品判断シート!$O$36=0,2.51*0.56*(O113/K113)^0.25+0.0000000567*$F$9*(($F$10+273+O113)^2+($F$10+273)^2)*(($F$10+273+O113)+($F$10+273)),3.86*(【事例3】危険部品判断シート!$O$36/K113)^0.5+0.0000000567*$F$9*(($F$10+273+O113)^2+($F$10+273)^2)*(($F$10+273+O113)+($F$10+273))) -> 18.44315975 | N113: 3.759080841 | O113: 32.21317917 | P113: 0.002304 | Q113: 0.007744 | R113: 84.10978784 | S113: 0.150075966 | T113: 87.16528316 | U113: 0.1337690874 | V113: 1.03487113 | W113: 4.793951971 | X113: 8.569429745
G114: 200 | H114: 8.905726859 | I114: 0.05 | J114: 0.2 | K114: 0.09 | L114: 0.0162 | M114: =IF(【事例3】危険部品判断シート!$O$36=0,2.51*0.56*(O114/K114)^0.25+0.0000000567*$F$9*(($F$10+273+O114)^2+($F$10+273)^2)*(($F$10+273+O114)+($F$10+273)),3.86*(【事例3】危険部品判断シート!$O$36/K114)^0.5+0.0000000567*$F$9*(($F$10+273+O114)^2+($F$10+273)^2)*(($F$10+273+O114)+($F$10+273))) -> 18.32454086 | N114: 3.615532501 | O114: 32.1989449 | P114: 0.0025 | Q114: 0.0081 | R114: 81.87031108 | S114: 0.1408713068 | T114: 85.35593563 | U114: 0.1302483698 | V114: 0.993817108 | W114: 4.609349609 | X114: 8.905726859
